Workbook

Sheet INDICE
F1: ÁFRICA DO SUL
F2: Trocas comerciais com Portugal (PT) 2019-2023 Setores agrícola e agroalimentar, do mar e das florestas
C3: Fonte
D4: Estatísticas do Comércio Internacional | F4: África do Sul - Síntese
D5: dados: 2022 definitivos | F5: 1. Evolução da balança comercial
F6: 2. Ranking dos parceiros comerciais de Portugal por país
C7: Data | D7: 2024-07-23T14:50:46.270 | F7: 2A Parceiros comerciais de Portugal - UE vs. Países Terceiros
F8: 3. Principais produtos transacionados (NC a 2 e 4 dígitos)
F9: 3A Principais produtos transacionados (sem mar nem florestas)
F10: 4A Evolução da balança comercial por produto
F11: 5.2. Trocas comerciais por produto (NC 2 dígitos)

Sheet Sintese
A1: África do Sul - Síntese (2019-2023)
A3: • As trocas comerciais de bens transacionáveis (excluindo serviços) entre Portugal e África do Sul representam um total de 213,3 milhões de € (M€) em exportações e 215,5 M€ em importações, na média do período 2019-2023, correspondendo a um saldo negativo da balança comercial de cerca de -2,2 M€.
A4: • No que respeita aos produtos dos setores agrícola e agroalimentar, mar e florestas, Portugal exportou para África do Sul 36,8 M€ em média anual, no mesmo período (este país ocupa assim a 32ª posição em relação ao total dos países), enquanto as importações totalizaram 152,6 M€ (14ª posição), com um saldo negativo de -115,8 M€. Estes setores representam perto de 17,3% do total de exportações de bens transacionáveis e 70,8% das correspondentes importações.
A5: • Se nos referirmos apenas ao setor agrícola e agroalimentar, as exportações representam, em média, 22,2 M€ (31ª posição) e as importações 122 milhões (12ª posição), ou seja, Portugal tem um saldo negativo de -99,9 M€. Estes valores representam, respetivamente, cerca de 60,2% das exportações do setor agroflorestal e mar e 80% das importações.
A6: • As principais exportações agrícolas e agroalimentares (NC 4 dígitos) neste período são Óleos de girassol, cártamo ou algodão (22%), Glicerol em bruto; águas e lixívias (10%) e Tomates preparados (8%). As importações agrícolas e agroalimentares mais relevantes referem-se a Citrinos, frescos ou secos (81%), Maçãs, peras e marmelos, frescos (5%) e Milho (3%). Se considerarmos também os produtos do mar e da floresta, merecem particular destaque, em termos de exportações, Óleos de girassol, cártamo ou algodão (13%), Obras de cortiça natural (12%) e Papel e cartão p/ escrita, etc. (12%). Nas importações destes setores, destacam-se Citrinos, frescos ou secos (65%), Peixes congelados (10%) e Filetes de peixes (6%).
A9: Saldo da Balança Comercial | B9: 2019 | C9: 2020 | D9: 2021 | E9: 2022 | F9: 2023 | G9: média 2019-2023 | J9: Posição entre os parceiros comerciais de Portugal (milhares de euros)
A10: Total de Bens Transacionáveis* | B10: -8660.514 | C10: -67146.302 | D10: 51633.644 | E10: 53614.729 | F10: -40337.306 | G10: -2179.1498 | J10: AA + M + F | K10: Posição | L10: média 2019-2023 | M10: % do total | N10: TVMA* 2019-2023 | O10: TVT* 2019-2023
A11: Agrícola e Agroalimentar (AA) | B11: -55979.6 | C11: -108523.876 | D11: -72303.101 | E11: -116912.516 | F11: -145628.007 | G11: -99869.42 | J11: Exportações | K11: 32ª | L11: 36811.4276 | M11: 0.002652504839 | N11: -0.05463971344 | O11: -0.2012894579
A12: Mar (M) | B12: -35450.913 | C12: -30920.71 | D12: -26726.462 | E12: -24365.706 | F12: -27049.553 | G12: -28902.6688 | J12: Importações | K12: 14ª | L12: 152632.7646 | M12: 0.009440133309 | N12: 0.12921668 | O12: 0.6259573085
A13: Florestas (F) | B13: 12314.641 | C13: 1924-12-22T15:05:45.600 | D13: 12928.995 | E13: 18059.847 | F13: 1933-09-29T15:31:40.800 | G13: 12950.7518 | J13: AA
A14: AA + M + F | B14: -79115.872 | C14: -130320.957 | D14: -86100.568 | E14: -123218.375 | F14: -160350.913 | G14: -115821.337 | J14: Exportações | K14: 31ª | L14: 22161.1504 | M14: 0.002859805311 | N14: -0.07910034444 | O14: -0.280800723
J15: Importações | K15: 12ª | L15: 122030.5704 | M15: 0.01088476852 | N15: 0.1532132419 | O15: 1.039614556
A16: milhares de euros *exclui serviços | K16: *TVMA - Taxa de variação média anual; TVT - Taxa de variação total
A18: Evolução das trocas comerciais Portugal-África do Sul em milhares de euros (2019-2023)
E27: Exportações | G27: Importações | I27: Saldo
A28: Principais produtos agrícolas e agroalimentares, do mar e da floresta transacionados (NC 4 dígitos)
A47: Principais produtos agrícolas e agroalimentares transacionados (NC 4 dígitos)
A81: Fonte: GPP a partir de dados INE/Comércio Internacional (2022 definitivos) | N81: 2024-07-23T14:50:46.270

Sheet 1
A1: Evolução da balança comercial Portugal-África do Sul 2019-2023 em milhões de euros
A3: Total de Bens Transacionáveis (BT)(1) | B3: 2019 | C3: 2020 | D3: 2021 | E3: 2022 | F3: 2023 | G3: média quinquénio | H3: var. 19/20 | I3: var. 20/21 | J3: var. 21/22 | K3: var. 22/23 | L3: TVMA* 2019-2023 | M3: TVT* 2019-2023
A4: Exportações | B4: 188.667902 | C4: 147.395272 | D4: 219.545103 | E4: 285.479057 | F4: 225.489089 | G4: 213.3152846 | H4: -0.2187580906 | I4: 0.4894989508 | J4: 0.3003207683 | K4: -0.2101378946 | L4: 0.04557906244 | M4: 0.1951640242
A5: Importações | B5: 197.328416 | C5: 214.541574 | D5: 167.911459 | E5: 231.864328 | F5: 265.826395 | G5: 215.4944344 | H5: 0.08723101492 | I5: -0.2173476876 | J5: 0.3808725705 | K5: 0.1464738767 | L5: 0.07733834574 | M5: 0.3471267868
A6: Saldo (exp-imp) | B6: -8.660514 | C6: -67.146302 | D6: 51.633644 | E6: 53.614729 | F6: -40.337306 | G6: -2.1791498
A7: Cobertura (exp/imp) | B7: 0.9561111665 | C7: 0.6870242874 | D7: 1.307505183 | E7: 1.231233193 | F7: 0.8482569573 | G7: 0.9898876748
A8: Exp BT África do Sul / Exp BT Mundo | B8: 0.00314956681 | C8: 0.002741860514 | D8: 0.003450961839 | E8: 0.003644189653 | F8: 0.002908904793 | G8: 0.003201646674 | L8: Exportações
A9: Imp BT África do Sul / Imp BT Mundo | B9: 0.002467310593 | C9: 0.003148283599 | D9: 0.00201948422 | E9: 0.002117757051 | F9: 0.002534057637 | G9: 0.002417723349 | L9: Importações
A10: Exp BT África do Sul / Exp TE Mundo | B10: 0.00202279244 | C10: 0.001984165662 | D10: 0.002454396376 | E10: 0.002375062561 | F10: 0.001789014089 | G10: 0.002119393578
A11: Imp BT África do Sul / Imp TE Mundo | B11: 0.002137861668 | C11: 0.002730065454 | D11: 0.001757355796 | E11: 0.001839722928 | F11: 0.002148109526 | G11: 0.002087252548
A12: (1) Todos os produtos transacionados entre PT e África do Sul (exclui serviços) | D12: TE - Total da Economia (bens e serviços) Fonte: INE/Contas Nacionais | H12: *TVMA - Taxa de variação média anual; TVT - Taxa de variação total
A24: Agro(1) + Mar + Florestas (AMF) | B24: 2019 | C24: 2020 | D24: 2021 | E24: 2022 | F24: 2023 | G24: média quinquénio | H24: var. 19/20 | I24: var. 20/21 | J24: var. 21/22 | K24: var. 22/23 | L24: TVMA* 2019-2023 | M24: TVT* 2019-2023
A25: Exportações | B25: 38.334248 | C25: 28.913932 | D25: 37.587692 | E25: 48.603298 | F25: 30.617968 | G25: 36.8114276 | H25: -0.2457415103 | I25: 0.299985488 | J25: 0.2930641764 | K25: -0.3700434073 | L25: -0.05463971344 | M25: -0.2012894579
A26: Importações | B26: 117.45012 | C26: 159.234889 | D26: 123.68826 | E26: 171.821673 | F26: 190.968881 | G26: 152.6327646 | H26: 0.3557660818 | I26: -0.2232339233 | J26: 0.3891510237 | K26: 0.1114365124 | L26: 0.12921668 | M26: 0.6259573085
A27: Saldo (exp-imp) | B27: -79.115872 | C27: -130.320957 | D27: -86.100568 | E27: -123.218375 | F27: -160.350913 | G27: -115.821337
A28: Cobertura (exp/imp) | B28: 0.3263874741 | C28: 0.1815803822 | D28: 0.303890539 | E28: 0.2828705899 | F28: 0.1603296194 | G28: 0.2411764453
A29: Exp AMF / Exp BT | B29: 0.2031837297 | C29: 0.1961659394 | D29: 0.1712071528 | E29: 0.1702517113 | F29: 0.1357846987 | G29: 0.1725681667 | L29: Exportações
A30: Imp AMF / Imp BT | B30: 0.5952012507 | C30: 0.7422099411 | D30: 0.7366278677 | E30: 0.7410440169 | F30: 0.7183969861 | G30: 0.7082909822 | L30: Importações
A31: Exp AMF África do Sul / Exp AMF Mundo | B31: 0.00324102248 | C31: 0.002506530691 | D31: 0.002805769929 | E31: 0.00296571979 | F31: 0.001885141341 | G31: 0.002652504839
A32: Imp AMF África do Sul / Imp AMF Mundo | B32: 0.008490350343 | C32: 0.01220622117 | D32: 0.008276445547 | E32: 0.008896533456 | F32: 0.009691003203 | G32: 0.009440133309
A33: (1) Produtos agrícolas e agroalimentares | B33: BT - Total de Bens Transacionáveis (exclui serviços) | H33: *TVMA - Taxa de variação média anual; TVT - Taxa de variação total
A45: Agroalimentar (AA)(1) | B45: 2019 | C45: 2020 | D45: 2021 | E45: 2022 | F45: 2023 | G45: média quinquénio | H45: var. 19/20 | I45: var. 20/21 | J45: var. 21/22 | K45: var. 22/23 | L45: TVMA* 2019-2023 | M45: TVT* 2019-2023
A46: Exportações | B46: 23.819173 | C46: 18.515295 | D46: 22.543551 | E46: 28.797001 | F46: 17.130732 | G46: 22.1611504 | H46: -0.2226726344 | I46: 0.2175636953 | J46: 0.2773941869 | K46: -0.4051209708 | L46: -0.07910034444 | M46: -0.280800723
A47: Importações | B47: 79.798773 | C47: 127.039171 | D47: 94.846652 | E47: 145.709517 | F47: 162.758739 | G47: 122.0305704 | H47: 0.5919940398 | I47: -0.2534062427 | J47: 0.536264211 | K47: 0.117008294 | L47: 0.1950526127 | M47: 1.039614556
A48: Saldo (exp-imp) | B48: -55.9796 | C48: -108.523876 | D48: -72.303101 | E48: -116.912516 | F48: -145.628007 | G48: -99.86942
A49: Cobertura (exp/imp) | B49: 0.2984904668 | C49: 0.1457447719 | D49: 0.2376842042 | E49: 0.1976329453 | F49: 0.1052523023 | G49: 0.1816032682
A50: Exp AA / Exp AMF | B50: 0.6213549044 | C50: 0.6403589453 | D50: 0.5997588519 | E50: 0.5924906783 | F50: 0.559499311 | G50: 0.6020182276 | L50: Exportações
A51: Imp AA / Imp AMF | B51: 0.6794269176 | C51: 0.7978099008 | D51: 0.7668201655 | E51: 0.8480275768 | F51: 0.8522788537 | G51: 0.799504423 | L51: Importações
A52: Exp AA / Exp BT | B52: 0.1262492069 | C52: 0.1256166141 | D52: 0.1026830054 | E52: 0.1008725519 | F52: 0.07597144534 | G52: 0.1038891819
A53: Imp AA / Imp BT | B53: 0.4043957511 | C53: 0.5921424395 | D53: 0.5648611034 | E53: 0.628425762 | F53: 0.6122745599 | G53: 0.5662817731
A54: Exp AA África do Sul / Exp AA Mundo | B54: 0.003785833172 | C54: 0.002798105876 | D54: 0.003025247928 | E54: 0.003243856822 | F54: 0.001801723816 | G54: 0.002859805311
A55: Imp AA África do Sul / Imp AA Mundo | B55: 0.008564789794 | C55: 0.0139842428 | D55: 0.009234553327 | E55: 0.01100757773 | F55: 0.01150556492 | G55: 0.01088476852
A56: (1) Produtos agrícolas e agroalimentares | B56: AMF - Agroalimentar, Mar e Florestas; BT - Total de Bens Transacionáveis (exclui serviços) | H56: *TVMA - Taxa de variação média anual; TVT - Taxa de variação total
A67: Mar (M) | B67: 2019 | C67: 2020 | D67: 2021 | E67: 2022 | F67: 2023 | G67: média quinquénio | H67: var. 19/20 | I67: var. 20/21 | J67: var. 21/22 | K67: var. 22/23 | L67: TVMA* 2019-2023 | M67: TVT* 2019-2023
A68: Exportações | B68: 0.954503 | C68: 0.520854 | D68: 1.144701 | E68: 1.097079 | F68: 0.433785 | G68: 0.8301844 | H68: -0.4543191588 | I68: 1.197738714 | J68: -0.04160213016 | K68: -0.6046000334 | L68: -0.1789411093 | M68: -0.5455383587
A69: Importações | B69: 36.405416 | C69: 31.441564 | D69: 27.871163 | E69: 25.462785 | F69: 27.483338 | G69: 29.7328532 | H69: -0.1363492729 | I69: -0.1135567238 | J69: -0.08641110527 | K69: 0.07935318152 | L69: -0.06787132094
A70: Saldo (exp-imp) | B70: -35.450913 | C70: -30.92071 | D70: -26.726462 | E70: -24.365706 | F70: -27.049553 | G70: -28.9026688
A71: Cobertura (exp/imp) | B71: 0.02621870878 | C71: 0.01656577898 | D71: 0.04107116018 | E71: 0.04308558549 | F71: 0.01578356312 | G71: 0.02792145088
A72: Exp M / Exp AMF | B72: 0.02489948414 | C72: 0.01801394566 | D72: 0.0304541444 | E72: 0.02257211023 | F72: 0.01416766129 | G72: 0.02255235545 | L72: Exportações
A73: Imp M / Imp AMF | B73: 0.3099649111 | C73: 0.1974539889 | D73: 0.2253339403 | E73: 0.148193092 | F73: 0.1439152696 | G73: 0.1947999388 | L73: Importações
A74: Exp M / Exp BT | B74: 0.005059170054 | C74: 0.003533722574 | D74: 0.005213967355 | E74: 0.003842940395 | F74: 0.001923751619 | G74: 0.003891818636
A75: Imp M / Imp BT | B75: 0.1844915027 | C75: 0.1465523134 | D75: 0.16598726 | E75: 0.1098176042 | F75: 0.103388296 | G75: 0.13797504
A76: Exp M África do Sul / Exp M Mundo | B76: 0.0008934057202 | C76: 0.0005789391431 | D76: 0.001044982436 | E76: 0.0008576814622 | F76: 0.0003252100133 | G76: 0.000731251154
A77: Imp M África do Sul / Imp M Mundo | B77: 0.01670477234 | C77: 0.01633440937 | D77: 0.01332238798 | E77: 0.009791751498 | F77: 0.01085393277 | G77: 0.013122679
A78: AMF - Agroalimentar, Mar e Florestas; BT - Total de Bens Transacionáveis (exclui serviços) | H78: *TVMA - Taxa de variação média anual; TVT - Taxa de variação total
A90: Florestas (F) | B90: 2019 | C90: 2020 | D90: 2021 | E90: 2022 | F90: 2023 | G90: média quinquénio | H90: var. 19/20 | I90: var. 20/21 | J90: var. 21/22 | K90: var. 22/23 | L90: TVMA* 2019-2023 | M90: TVT* 2019-2023
A91: Exportações | B91: 13.560572 | C91: 9.877783 | D91: 13.89944 | E91: 18.709218 | F91: 13.053451 | G91: 13.8200928 | H91: -0.2715806531 | I91: 0.4071416633 | J91: 0.3460411355 | K91: -0.3022984178 | L91: -0.009483228188 | M91: -0.03739672633
A92: Importações | B92: 1.245931 | C92: 0.754154 | D92: 0.970445 | E92: 0.649371 | F92: 0.726804 | G92: 0.869341 | H92: -0.3947064484 | I92: 0.2867995131 | J92: -0.3308523409 | K92: 0.1192430829 | L92: -0.1260615858 | M92: -0.4166579048
A93: Saldo (exp-imp) | B93: 12.314641 | C93: 9.123629 | D93: 12.928995 | E93: 18.059847 | F93: 12.326647 | G93: 12.9507518
A94: Cobertura (exp/imp) | B94: 10.88388683 | C94: 13.0978328 | D94: 14.32274884 | E94: 28.81129277 | F94: 17.96007039 | G94: 15.89720581
A95: Exp F / Exp AMF | B95: 0.3537456115 | C95: 0.341627109 | D95: 0.3697870037 | E95: 0.3849372115 | F95: 0.4263330277 | G95: 0.3754294169 | L95: Exportações
A96: Imp F / Imp AMF | B96: 0.01060817137 | C96: 0.004736110313 | D96: 0.007845894186 | E96: 0.003779331144 | F96: 0.003805876623 | G96: 0.00569563817 | L96: Importações
A97: Exp F / Exp BT | B97: 0.0718753527 | C97: 0.06701560278 | D97: 0.06331018005 | E97: 0.065536219 | F97: 0.0578895017 | G97: 0.06478716622
A98: Imp F / Imp BT | B98: 0.006313996865 | C98: 0.003515188156 | D98: 0.005779504304 | E98: 0.002800650732 | F98: 0.002734130296 | G98: 0.004034169153
A99: Exp F África do Sul / Exp F Mundo | B99: 0.003035193085 | C99: 0.002457962321 | D99: 0.002866253562 | E99: 0.003002194548 | F99: 0.002417347336 | G99: 0.002767609609
A100: Imp F África do Sul / Imp F Mundo | B100: 0.0005331440172 | C100: 0.0003703969404 | D100: 0.000375891897 | E100: 0.0001868319568 | F100: 0.0002400599652 | G100: 0.0003229824562
A101: AMF - Agroalimentar, Mar e Florestas; BT - Total de Bens Transacionáveis (exclui serviços) | H101: *TVMA - Taxa de variação média anual; TVT - Taxa de variação total
A111: Fonte: GPP a partir de dados INE/Comércio Internacional (2022 definitivos) | J111: 2024-07-23T14:50:46.270

Sheet 2
A1: Ranking dos parceiros comerciais de Portugal por país (média 2019-2023 em milhares de euros) produtos agrícolas e agroalimentares, do mar e da floresta
A2: Exportações | F2: Importações | K2: Trocas comerciais (total e saldo)
A3: P | B3: País | C3: média quinquénio | D3: % do Total | F3: P | G3: País | H3: média quinquénio | I3: % do Total | K3: P | L3: País | M3: Total (exp+imp) | N3: % do Total | O3: Saldo (exp-imp)
A4: 1 | B4: Espanha | C4: 4592550.996 | D4: 0.330923426 | F4: 1 | G4: Espanha | H4: 7532755.764 | I4: 0.4658909166 | K4: 1 | L4: Espanha | M4: 12125306.76 | N4: 0.4035516061 | O4: -2940204.768
A5: 2 | B5: França | C5: 1475406.133 | D5: 0.1063126904 | F5: 2 | G5: França | H5: 1064680.34 | I5: 0.06584906176 | K5: 2 | L5: França | M5: 2540086.473 | N5: 0.08453856023 | O5: 410725.7926
A6: 3 | B6: Itália | C6: 914488.1622 | D6: 0.06589487105 | F6: 3 | G6: Países Baixos | H6: 945995.408 | I6: 0.0585085567 | K6: 3 | L6: Países Baixos | M6: 1579390.658 | N6: 0.05256490821 | O6: -312600.1578
A7: 4 | B7: Alemanha | C7: 650417.4182 | D7: 0.04686684167 | F7: 4 | G7: Alemanha | H7: 908245.3624 | I7: 0.05617376663 | K7: 4 | L7: Alemanha | M7: 1558662.781 | N7: 0.05187504786 | O7: -257827.9442
A8: 5 | B8: Países Baixos | C8: 633395.2502 | D8: 0.0456402828 | F8: 5 | G8: Brasil | H8: 813481.1398 | I8: 0.05031272561 | K8: 5 | L8: Itália | M8: 1407737.084 | N8: 0.04685197436 | O8: 421239.24
A9: 6 | B9: Estados Unidos | C9: 565282.3184 | D9: 0.04073229925 | F9: 6 | G9: Itália | H9: 493248.9222 | I9: 0.03050678924 | K9: 6 | L9: Brasil | M9: 1307206.312 | N9: 0.04350613284 | O9: -319755.9678 | P9: Nota: Nesta listagem, o Reino Unido passa a ser constituído por três componentes: Reino Unido [até 2020] ; Reino Unido (sem Irlanda do Norte) pós-2020 e Reino Unido (Irlanda do Norte) pós-2020. Estas componentes são calculadas igualmente como média do quinquénio, embora a primeira corresponda apenas a 2019-2020 e as duas últimas a 2021-2023.
A10: 7 | B10: Brasil | C10: 493725.172 | D10: 0.03557613744 | F10: 7 | G10: Suécia | H10: 338905.0652 | I10: 0.02096082714 | K10: 7 | L10: Estados Unidos | M10: 831257.7434 | N10: 0.02766572459 | O10: 299306.8934
A11: 8 | B11: Reino Unido (sem Irlanda do Norte) pós 2020 | C11: 454907.9418 | D11: 0.03277910137 | F11: 8 | G11: Bélgica | H11: 312236.0226 | I11: 0.01931138236 | K11: 8 | L11: Bélgica | M11: 566850.3792 | N11: 0.01886578092 | O11: -57621.666
A12: 9 | B12: Angola | C12: 292706.8674 | D12: 0.02109144993 | F12: 9 | G12: Estados Unidos | H12: 265975.425 | I12: 0.01645022598 | K12: 9 | L12: Reino Unido (sem Irlanda do Norte) pós 2020 | M12: 544526.1836 | N12: 0.0181227923 | O12: 365289.7
A13: 10 | B13: Reino Unido | C13: 261878.4294 | D13: 0.01887005874 | F13: 10 | G13: Polónia | H13: 241404.995 | I13: 0.01493057759 | K13: 10 | L13: Polónia | M13: 500845.6188 | N13: 0.01666902602 | O13: 18035.6288
A14: 11 | B14: Polónia | C14: 259440.6238 | D14: 0.01869439885 | F14: 11 | G14: Ucrânia | H14: 222824.0602 | I14: 0.0137813715 | K14: 11 | L14: Suécia | M14: 438188.76 | N14: 0.01458369519 | O14: -239621.3704
A15: 12 | B15: Bélgica | C15: 254614.3566 | D15: 0.01834663464 | F15: 12 | G15: China, República Popular da | H15: 185793.2864 | I15: 0.01149106744 | K15: 12 | L15: China, República Popular da | M15: 398803.9742 | N15: 0.01327290002 | O15: 27217.4014
A16: 13 | B16: Israel | C16: 229312.128 | D16: 0.01652344309 | F16: 13 | G16: Dinamarca | H16: 157383.1058 | I16: 0.009733935589 | K16: 13 | L16: Reino Unido | M16: 360801.6302 | N16: 0.01200811495 | O16: 162955.2286
A17: 14 | B17: China, República Popular da | C17: 213010.6878 | D17: 0.01534881739 | F17: 14 | G17: África do Sul | H17: 152632.7646 | I17: 0.009440133309 | K17: 14 | L17: Angola | M17: 311605.3244 | N17: 0.01037077508 | O17: 273808.4104
A18: 15 | B18: Turquia | C18: 183340.2302 | D18: 0.01321086628 | F18: 15 | G18: Roménia | H18: 151233.4708 | I18: 0.00935358885 | K18: 15 | L18: Turquia | M18: 242682.4712 | N18: 0.008076900896 | O18: 123997.9892
A19: 16 | B19: Suíça | C19: 154487.3398 | D19: 0.01113182626 | F19: 16 | G19: Irlanda | H19: 122129.636 | I19: 0.00755355541 | K19: 16 | L19: Dinamarca | M19: 241846.6646 | N19: 0.008049083777 | O19: -72919.547
A20: 17 | B20: Marrocos | C20: 118641.6206 | D20: 0.008548907044 | F20: 17 | G20: Canadá | H20: 119672.9708 | I20: 0.007401613938 | K20: 17 | L20: Ucrânia | M20: 239492.5 | N20: 0.007970733025 | O20: -206155.6204
A21: 18 | B21: Cabo Verde | C21: 109793.574 | D21: 0.007911347244 | F21: 18 | G21: Argentina | H21: 105868.1334 | I21: 0.006547803121 | K21: 18 | L21: Israel | M21: 237364.4856 | N21: 0.00789990895 | O21: 221259.7704
A22: 19 | B22: Suécia | C22: 99283.6948 | D22: 0.007154041503 | F22: 19 | G22: Uruguai | H22: 104314.013 | I22: 0.006451682844 | K22: 19 | L22: Canadá | M22: 218508.6438 | N22: 0.007272353261 | O22: -20837.2978
A23: 20 | B23: Canadá | C23: 98835.673 | D23: 0.007121758594 | F23: 20 | G23: Rússia, Federação da | H23: 103735.9496 | I23: 0.006415930392 | K23: 20 | L23: Irlanda | M23: 195463.3652 | N23: 0.006505365722 | O23: -48795.9068
A24: 21 | B24: Argélia | C24: 96652.6324 | D24: 0.006964456198 | F24: 21 | G24: Reino Unido | H24: 98923.2008 | I24: 0.006118268285 | K24: 21 | L24: África do Sul | M24: 189444.1922 | N24: 0.006305037023 | O24: -115821.337
A25: 22 | B25: Dinamarca | C25: 84463.5588 | D25: 0.006086153486 | F25: 22 | G25: Reino Unido (sem Irlanda do Norte) pós 2020 | H25: 89618.2418 | I25: 0.005542768958 | K25: 22 | L25: Roménia | M25: 177317.969 | N25: 0.005901454916 | O25: -125148.9726
A26: 23 | B26: Egito | C26: 82715.0134 | D26: 0.005960159319 | F26: 23 | G26: Finlândia | H26: 81459.6846 | I26: 0.005038173055 | K26: 23 | L26: Rússia, Federação da | M26: 176432.6266 | N26: 0.005871989158 | O26: -31039.2726
A27: 24 | B27: México | C27: 78971.398 | D27: 0.005690407272 | F27: 24 | G27: Índia | H27: 79609.9066 | I27: 0.004923766748 | K27: 24 | L27: Marrocos | M27: 161441.7528 | N27: 0.005373066424 | O27: 75841.4884
A28: 25 | B28: Japão | C28: 73359.52 | D28: 0.005286034648 | F28: 25 | G28: Costa Rica | H28: 70759.3454 | I28: 0.00437637132 | K28: 25 | L28: Suíça | M28: 158551.543 | N28: 0.005276875142 | O28: 150423.1366
A29: 26 | B29: Irlanda | C29: 73333.7292 | D29: 0.005284176252 | F29: 26 | G29: Áustria | H29: 70717.6682 | I29: 0.00437379364 | K29: 26 | L29: Argentina | M29: 121955.0376 | N29: 0.004058878862 | O29: -89781.2292
A30: 27 | B30: Rússia, Federação da | C30: 72696.677 | D30: 0.005238272462 | F30: 27 | G30: Vietname | H30: 69724.8096 | I30: 0.004312386658 | K30: 27 | L30: Grécia | M30: 120758.504 | N30: 0.004019056112 | O30: -5970.7576
A31: 28 | B31: Luxemburgo | C31: 58604.114 | D31: 0.004222810852 | F31: 28 | G31: Grécia | H31: 63364.6308 | I31: 0.003919018065 | K31: 28 | L31: Áustria | M31: 112878.7532 | N31: 0.0037568041 | O31: -28556.5832
A32: 29 | B32: Grécia | C32: 57393.8732 | D32: 0.004135605063 | F32: 29 | G32: Turquia | H32: 59342.241 | I32: 0.003670238611 | K32: 29 | L32: Finlândia | M32: 112248.6552 | N32: 0.003735833327 | O32: -50670.714
A33: 30 | B33: Áustria | C33: 42161.085 | D33: 0.003037982748 | F33: 30 | G33: Equador | H33: 58414.7256 | I33: 0.003612873018 | K33: 30 | L33: Índia | M33: 110944.9186 | N33: 0.003692442672 | O33: -48274.8946
A34: 31 | B34: Moçambique | C34: 41355.922 | D34: 0.002979965472 | F34: 31 | G34: Chile | H34: 53583.805 | I34: 0.00331408701 | K34: 31 | L34: Cabo Verde | M34: 110212.476 | N34: 0.00366806569 | O34: 109374.672
A35: 32 | B35: África do Sul | C35: 36811.4276 | D35: 0.002652504839 | F35: 32 | G35: Bulgária | H35: 44053.42 | I35: 0.002724645384 | K35: 32 | L35: Uruguai | M35: 107585.2684 | N35: 0.003580627585 | O35: -101042.7576
A36: 33 | B36: Arábia Saudita | C36: 35872.3396 | D36: 0.002584837388 | F36: 33 | G36: Marrocos | H36: 42800.1322 | I36: 0.002647131202 | K36: 33 | L36: Argélia | M36: 103327.6826 | N36: 0.003438927616 | O36: 89977.5822
A37: 34 | B37: Austrália | C37: 35112.889 | D37: 0.00253011399 | F37: 34 | G37: Checa, República | H37: 40061.9108 | I37: 0.002477775853 | K37: 34 | L37: Egito | M37: 96954.5744 | N37: 0.003226819329 | O37: 68475.4524
A38: 35 | B38: Guiné-Bissau | C38: 34934.7098 | D38: 0.00251727501 | F38: 35 | G38: Moçambique | H38: 38763.0688 | I38: 0.002397444205 | K38: 35 | L38: México | M38: 96735.505 | N38: 0.003219528313 | O38: 61207.291
A39: 36 | B39: Índia | C39: 31335.012 | D39: 0.00225789317 | F39: 36 | G39: Cuba | H39: 37252.762 | I39: 0.00230403374 | K39: 36 | L39: Japão | M39: 88206.787 | N39: 0.002935677527 | O39: 58512.253
A40: 37 | B40: Emirados Árabes Unidos | C40: 31193.253 | D40: 0.002247678504 | F40: 37 | G40: Colômbia | H40: 31648.7828 | I40: 0.001957435086 | K40: 37 | L40: Chile | M40: 83997.9068 | N40: 0.002795598567 | O40: -23169.7032
A41: 38 | B41: Finlândia | C41: 30788.9706 | D41: 0.002218547305 | F41: 38 | G41: Guiana | H41: 31014.2578 | I41: 0.001918190559 | K41: 38 | L41: Moçambique | M41: 80118.9908 | N41: 0.002666501397 | O41: 2592.8532
A42: 39 | B42: Checa, República | C42: 30741.4622 | D42: 0.002215124013 | F42: 39 | G42: Indonésia | H42: 29000.573 | I42: 0.001793646835 | K42: 39 | L42: Vietname | M42: 76018.5502 | N42: 0.002530031498 | O42: -63431.069
A43: 40 | B43: Chile | C43: 30414.1018 | D43: 0.002191535549 | F43: 40 | G43: Hungria | H43: 27599.932 | I43: 0.001707019054 | K43: 40 | L43: Costa Rica | M43: 75105.2118 | N43: 0.002499633985 | O43: -66413.479
A44: 41 | B44: Jordânia | C44: 29568.7308 | D44: 0.002130621023 | F44: 41 | G44: Costa do Marfim | H44: 23657.68 | I44: 0.001463196015 | K44: 41 | L44: Checa, República | M44: 70803.373 | N44: 0.002356461198 | O44: -9320.4486
A45: 42 | B45: São Tomé e Príncipe | C45: 26635.9748 | D45: 0.001919296714 | F45: 42 | G45: Uganda | H45: 22974.374 | I45: 0.001420934449 | K45: 42 | L45: Luxemburgo | M45: 67469.1578 | N45: 0.002245492632 | O45: 49739.0702
A46: 43 | B46: Roménia | C46: 26084.4982 | D46: 0.001879559207 | F46: 43 | G46: Namíbia | H46: 22899.6914 | I46: 0.00141631543 | K46: 43 | L46: Equador | M46: 61226.8336 | N46: 0.002037737067 | O46: -55602.6176
A47: 44 | B47: Tunísia | C47: 25934.5578 | D47: 0.001868755018 | F47: 44 | G47: Peru | H47: 21918.8742 | I47: 0.001355653191 | K47: 44 | L47: Bulgária | M47: 58331.7144 | N47: 0.001941382391 | O47: -29775.1256
A48: 45 | B48: Noruega | C48: 23600.8168 | D48: 0.00170059367 | F48: 45 | G48: Letónia | H48: 19649.9098 | I48: 0.001215320764 | K48: 45 | L48: Austrália | M48: 52768.4148 | N48: 0.001756225963 | O48: 17457.3632
A49: 46 | B49: Coreia, República da | C49: 22131.0668 | D49: 0.001594688541 | F49: 46 | G49: Lituânia | H49: 19335.0472 | I49: 0.001195846931 | K49: 46 | L49: Hungria | M49: 47357.4652 | N49: 0.001576140012 | O49: -7842.3988
A50: 47 | B50: Hungria | C50: 19757.5332 | D50: 0.001423659875 | F50: 47 | G50: Angola | H50: 18898.457 | I50: 0.001168844408 | K50: 47 | L50: Cuba | M50: 44341.484 | N50: 0.001475762836 | O50: -30164.04
A51: 48 | B51: Nigéria | C51: 18837.3684 | D51: 0.001357355965 | F51: 48 | G51: Suazilândia | H51: 17908.5294 | I51: 0.001107618704 | K51: 48 | L51: Colômbia | M51: 40554.3906 | N51: 0.001349721684 | O51: -22743.175
A52: 49 | B52: Ucrânia | C52: 16668.4398 | D52: 0.001201070431 | F52: 49 | G52: México | H52: 17764.107 | I52: 0.001098686371 | K52: 49 | L52: Noruega | M52: 38853.5164 | N52: 0.001293113589 | O52: 8348.1172
A53: 50 | B53: Argentina | C53: 16086.9042 | D53: 0.001159166976 | F53: 50 | G53: Austrália | H53: 17655.5258 | I53: 0.001091970768 | K53: 50 | L53: Tunísia | M53: 37484.3298 | N53: 0.001247544643 | O53: 14384.7858
A54: 51 | B54: Lituânia | C54: 15776.7104 | D54: 0.001136815478 | F54: 51 | G54: Senegal | H54: 16694.6988 | I54: 0.001032544897 | K54: 51 | L54: Arábia Saudita | M54: 35923.6224 | N54: 0.001195601547 | O54: 35821.0568
A55: 52 | B55: Macau | C55: 14584.6512 | D55: 0.001050919793 | F55: 52 | G55: Nova Zelânda | H55: 16509.396 | I55: 0.001021084166 | K55: 52 | L55: Costa do Marfim | M55: 35761.2586 | N55: 0.001190197793 | O55: -11554.1014
A56: 53 | B56: Bulgária | C56: 14278.2944 | D56: 0.001028844776 | F56: 53 | G56: Estónia | H56: 16249.3526 | I56: 0.001005000828 | K56: 53 | L56: Guiné-Bissau | M56: 35226.5092 | N56: 0.001172400389 | O56: 34642.9104
A57: 54 | B57: Líbia, Jamahira Árabe da | C57: 13798.5402 | D57: 0.0009942753387 | F57: 54 | G57: Eslovénia | H57: 16020.7566 | I57: 0.0009908624692 | K57: 54 | L57: Lituânia | M57: 35111.7576 | N57: 0.001168581254 | O57: -3558.3368
A58: 55 | B58: Iraque | C58: 13659.5246 | D58: 0.0009842583528 | F58: 55 | G58: Noruega | H58: 15252.6996 | I58: 0.0009433591662 | K58: 55 | L58: Coreia, República da | M58: 35092.7906 | N58: 0.001167949998 | O58: 9169.343
A59: 56 | B59: Senegal | C59: 13224.0438 | D59: 0.0009528791044 | F59: 56 | G59: Japão | H59: 14847.267 | I59: 0.0009182836996 | K59: 56 | L59: Indonésia | M59: 33328.2666 | N59: 0.001109223526 | O59: -24672.8794
A60: 57 | B60: Letónia | C60: 13142.7602 | D60: 0.0009470220878 | F60: 57 | G60: Egito | H60: 14239.561 | I60: 0.0008806978925 | K60: 57 | L60: Letónia | M60: 32792.67 | N60: 0.001091397926 | O60: -6507.1496
A61: 58 | B61: Eslováquia | C61: 12789.8374 | D61: 0.000921591685 | F61: 58 | G61: Mauritânia | H61: 13443.2356 | I61: 0.0008314462265 | K61: 58 | L61: Emirados Árabes Unidos | M61: 31951.8318 | N61: 0.001063413347 | O61: 30434.6742
A62: 59 | B62: Croácia | C62: 12333.362 | D62: 0.000888699638 | F62: 59 | G62: Tanzânia, República Unida da | H62: 13079.5878 | I62: 0.0008089550942 | K62: 59 | L62: Guiana | M62: 31130.901 | N62: 0.001036091321 | O62: -30897.6146
A63: 60 | B63: Costa do Marfim | C63: 12103.5786 | D63: 0.0008721422366 | F63: 60 | G63: Camarões | H63: 13022.8276 | I63: 0.0008054445514 | K63: 60 | L63: Senegal | M63: 29918.7426 | N63: 0.0009957485504 | O63: -3470.655
A64: 61 | B64: Síria, República Árabe da | C64: 11995.3212 | D64: 0.0008643415808 | F64: 61 | G64: Coreia, República da | H64: 12961.7238 | I64: 0.0008016653627 | K64: 61 | L64: Jordânia | M64: 29716.5252 | N64: 0.0009890183985 | O64: 29420.9364
A65: 62 | B65: Dominicana, República | C65: 11848.0206 | D65: 0.0008537276063 | F65: 62 | G65: Paquistão | H65: 12615.7756 | I65: 0.000780268927 | K65: 62 | L65: São Tomé e Príncipe | M65: 27725.0646 | N65: 0.0009227390754 | O65: 25546.885
A66: 63 | B66: Território Palestiniano Ocupado | C66: 11806.0928 | D66: 0.0008507064332 | F66: 63 | G66: Tailândia | H66: 12316.114 | I66: 0.000761735256 | K66: 63 | L66: Peru | M66: 27428.1902 | N66: 0.0009128585715 | O66: -16409.5582
A67: 64 | B67: HongKong | C67: 11528.0934 | D67: 0.0008306747528 | F67: 64 | G67: Moldava, República de | H67: 12178.8658 | I67: 0.0007532466375 | K67: 64 | L67: Nigéria | M67: 25016.4128 | N67: 0.0008325903637 | O67: 12658.324
A68: 65 | B68: Malta | C68: 10826.3942 | D68: 0.0007801127224 | F68: 65 | G68: Sérvia | H68: 11730.1152 | I68: 0.0007254920102 | K68: 65 | L68: Estónia | M68: 24688.678 | N68: 0.0008216827712 | O68: -7810.0272
A69: 66 | B69: Kuwait | C69: 10775.802 | D69: 0.0007764672225 | F69: 66 | G69: Tunísia | H69: 11549.772 | I69: 0.0007143380234 | K69: 66 | L69: Uganda | M69: 24133.8048 | N69: 0.0008032156119 | O69: -21814.9432
A70: 67 | B70: Chipre | C70: 10743.4788 | D70: 0.0007741381239 | F70: 67 | G70: Belize | H70: 10934.5394 | I70: 0.0006762867061 | K70: 67 | L70: Eslovénia | M70: 23941.568 | N70: 0.000796817632 | O70: -8099.9452
A71: 68 | B71: Tailândia | C71: 9256.3754 | D71: 0.0006669825686 | F71: 68 | G71: Paraguai | H71: 10263.5706 | I71: 0.000634788179 | K71: 68 | L71: Namíbia | M71: 23765.809 | N71: 0.0007909680623 | O71: -22033.5738
A72: 69 | B72: Colômbia | C72: 8905.6078 | D72: 0.0006417074621 | F72: 69 | G72: Maurícias | H72: 9873.1322 | I72: 0.0006106400837 | K72: 69 | L72: Camarões | M72: 21652.1438 | N72: 0.0007206215545 | O72: -4393.5114
A73: 70 | B73: Geórgia | C73: 8776.724 | D73: 0.0006324205388 | F73: 70 | G73: Reino Unido (Irlanda do Norte) pós-2020 | H73: 9115.9984 | I73: 0.000563812366 | K73: 70 | L73: Tailândia | M73: 21572.4894 | N73: 0.0007179705155 | O73: -3059.7386
A74: 71 | B74: Líbano | C74: 8677.7716 | D74: 0.0006252903693 | F74: 71 | G74: Islândia | H74: 9112.164 | I74: 0.0005635752135 | K74: 71 | L74: Nova Zelânda | M74: 20810.7044 | N74: 0.0006926169664 | O74: -12208.0876
A75: 72 | B75: Camarões | C75: 8629.3162 | D75: 0.0006217988398 | F75: 72 | G75: Luxemburgo | H75: 8865.0438 | I75: 0.0005482911581 | K75: 72 | L75: Croácia | M75: 20465.1116 | N75: 0.0006811150282 | O75: 4201.6124
A76: 73 | B76: Estónia | C76: 8439.3254 | D76: 0.0006081087564 | F76: 73 | G76: Croácia | H76: 8131.7496 | I76: 0.000502937888 | K76: 73 | L76: Eslováquia | M76: 20081.0802 | N76: 0.0006683337855 | O76: 5498.5946
A77: 74 | B77: Gana | C77: 8178.0838 | D77: 0.0005892845854 | F77: 74 | G77: Israel | H77: 8052.3576 | I77: 0.0004980275984 | K77: 74 | L77: Suazilândia | M77: 19975.6478 | N77: 0.0006648248092 | O77: -15841.411
A78: 75 | B78: Eslovénia | C78: 7920.8114 | D78: 0.0005707464212 | F78: 75 | G78: Bangladesh | H78: 7823.177 | I78: 0.0004838530834 | K78: 75 | L78: Sérvia | M78: 19112.5644 | N78: 0.0006360998706 | O78: -4347.666
A79: 76 | B79: Belarus | C79: 7872.655 | D79: 0.0005672764367 | F79: 76 | G79: Malásia | H79: 7805.5168 | I79: 0.0004827608235 | K79: 76 | L79: Paquistão | M79: 17209.3366 | N79: 0.0005727570908 | O79: -8022.2146
A80: 77 | B80: Sérvia | C80: 7382.4492 | D80: 0.0005319538931 | F80: 77 | G80: Quénia | H80: 7356.7132 | I80: 0.0004550029183 | K80: 77 | L80: Mauritânia | M80: 16816.7526 | N80: 0.0005596912025 | O80: -10069.7186
A81: 78 | B81: Gibraltar | C81: 7309.7404 | D81: 0.0005267147471 | F81: 78 | G81: Filipinas | H81: 7323.2812 | I81: 0.0004529351936 | K81: 78 | L81: Maurícias | M81: 16663.174 | N81: 0.0005545798357 | O81: -3083.0904
A82: 79 | B82: Cuba | C82: 7088.722 | D82: 0.0005107889215 | F82: 79 | G82: Eslováquia | H82: 7291.2428 | I82: 0.0004509536612 | K82: 79 | L82: Moldava, República de | M82: 15413.0416 | N82: 0.0005129732234 | O82: -8944.69
A83: 80 | B83: Maurícias | C83: 6790.0418 | D83: 0.0004892670538 | F83: 80 | G83: Gana | H83: 6780.4694 | I83: 0.0004193630064 | K83: 80 | L83: Chipre | M83: 14982.1486 | N83: 0.0004986323439 | O83: 6504.809
A84: 81 | B84: Taiwan | C84: 6498.8018 | D84: 0.0004682813013 | F84: 81 | G84: Argélia | H84: 6675.0502 | I84: 0.0004128429692 | K84: 81 | L84: Gana | M84: 14958.5532 | N84: 0.0004978470474 | O84: 1397.6144
A85: 82 | B85: Vietname | C85: 6293.7406 | D85: 0.0004535052967 | F85: 82 | G85: Nigéria | H85: 6179.0444 | I85: 0.0003821656707 | K85: 82 | L85: Macau | M85: 14605.4142 | N85: 0.0004860939583 | O85: 14563.8882
A86: 83 | B86: Andorra | C86: 6022.5714 | D86: 0.0004339657769 | F86: 83 | G86: Panamá | H86: 5638.1522 | I86: 0.0003487122082 | K86: 83 | L86: HongKong | M86: 14502.5018 | N86: 0.000482668852 | O86: 8553.685
A87: 84 | B87: Guatemala | C87: 5731.0826 | D87: 0.0004129620968 | F87: 84 | G87: Congo | H87: 5587.8752 | I87: 0.0003456026427 | K87: 84 | L87: Dominicana, República | M87: 14480.0812 | N87: 0.0004819226549 | O87: 9215.96
A88: 85 | B88: Peru | C88: 5509.316 | D88: 0.0003969823585 | F88: 85 | G88: Honduras | H88: 5352.3066 | I88: 0.0003310330383 | K88: 85 | L88: Líbia, Jamahira Árabe da | M88: 13839.6806 | N88: 0.0004606089928 | O88: 13757.3998
A89: 86 | B89: Singapura | C89: 5118.6402 | D89: 0.0003688316043 | F89: 86 | G89: Camboja | H89: 5251.3418 | I89: 0.0003247884999 | K89: 86 | L89: Iraque | M89: 13672.6982 | N89: 0.0004550515239 | O89: 13646.351
A90: 87 | B90: Omã | C90: 4766.6966 | D90: 0.0003434717592 | F90: 87 | G90: Zimbabwe | H90: 5173.412 | I90: 0.0003199686455 | K90: 87 | L90: Tanzânia, República Unida da | M90: 13489.132 | N90: 0.0004489421168 | O90: -12670.0436
A91: 88 | B91: Panamá | C91: 4742.5904 | D91: 0.0003417347493 | F91: 88 | G91: Etiópia | H91: 4865.2444 | I91: 0.0003009088896 | K91: 88 | L91: Malta | M91: 13317.6174 | N91: 0.0004432338083 | O91: 8335.171
A92: 89 | B92: Paquistão | C92: 4593.561 | D92: 0.0003309962034 | F92: 89 | G92: Sri Lanca | H92: 4526.3514 | I92: 0.0002799488087 | K92: 89 | L92: Reino Unido (Irlanda do Norte) pós-2020 | M92: 12713.3372 | N92: 0.0004231222968 | O92: -5518.6596
A93: 90 | B93: Mali | C93: 4507.5844 | D93: 0.0003248010254 | F93: 90 | G93: Suriname | H93: 4461.0484 | I93: 0.0002759099051 | K93: 90 | L93: Kuwait | M93: 12319.6144 | N93: 0.0004100185073 | O93: 9231.9896
A94: 91 | B94: Costa Rica | C94: 4345.8664 | D94: 0.0003131481827 | F94: 91 | G94: Macedónia, Antiga República jugoslava da | H94: 4419.1744 | I94: 0.0002733200539 | K94: 91 | L94: Síria, República Árabe da | M94: 12141.732 | N94: 0.0004040982671 | O94: 11848.9104
A95: 92 | B95: Indonésia | C95: 4327.6936 | D95: 0.0003118387132 | F95: 92 | G95: Myanmar | H95: 4417.7084 | I95: 0.0002732293838 | K95: 92 | L95: Território Palestiniano Ocupado | M95: 11817.7626 | N95: 0.0003933159938 | O95: 11794.423
A96: 93 | B96: Nova Zelânda | C96: 4301.3084 | D96: 0.0003099374865 | F96: 93 | G96: Papuásia-Nova Guiné | H96: 4268.11 | I96: 0.0002639769219 | K96: 93 | L96: Paraguai | M96: 11233.3798 | N96: 0.0003738667029 | O96: -9293.7614
A97: 94 | B97: Burquina Faso | C97: 4086.0794 | D97: 0.0002944288251 | F97: 94 | G97: Chipre | H97: 4238.6698 | I97: 0.0002621560847 | K97: 94 | L97: Islândia | M97: 10997.3204 | N97: 0.0003660102295 | O97: -7227.0076
A98: 95 | B98: Venezuela | C98: 3914.122 | D98: 0.0002820381664 | F98: 95 | G98: Suíça | H98: 4064.2032 | I98: 0.0002513655577 | K98: 95 | L98: Belize | M98: 10954.0486 | N98: 0.0003645700677 | O98: -10915.0302
A99: 96 | B99: Reino Unido (Irlanda do Norte) pós-2020 | C99: 3597.3388 | D99: 0.0002592118588 | F99: 96 | G99: Guatemala | H99: 3891.5604 | I99: 0.0002406878304 | K99: 96 | L99: Filipinas | M99: 10864.8014 | N99: 0.0003615997634 | O99: -3781.761
A100: 97 | B100: Filipinas | C100: 3541.5202 | D100: 0.0002551897625 | F100: 97 | G100: Malavi | H100: 3761.9744 | I100: 0.0002326731088 | K100: 97 | L100: Malásia | M100: 10802.9 | N100: 0.0003595395755 | O100: -4808.1336
A101: 98 | B101: Catar | C101: 3509.0372 | D101: 0.0002528491493 | F101: 98 | G101: Congo, República Democrática do | H101: 3658.6746 | I101: 0.0002262841537 | K101: 98 | L101: Panamá | M101: 10380.7426 | N101: 0.0003454894323 | O101: -895.5618
A102: 99 | B102: Mauritânia | C102: 3373.517 | D102: 0.0002430840298 | F102: 99 | G102: Madagáscar | H102: 3530.0814 | I102: 0.0002183308354 | K102: 99 | L102: Bangladesh | M102: 9992.5026 | N102: 0.00033256812 | O102: -5653.8514
A103: 100 | B103: Uruguai | C103: 3271.2554 | D103: 0.0002357154107 | F103: 100 | G103: Taiwan | H103: 3371.8952 | I103: 0.0002085472295 | K103: 100 | L103: Taiwan | M103: 9870.697 | N103: 0.0003285142147 | O103: 3126.9066
A104: 101 | B104: Moldava, República de | C104: 3234.1758 | D104: 0.0002330435823 | F104: 101 | G104: Nicarágua | H104: 3348.1498 | I104: 0.0002070786081 | K104: 101 | L104: Geórgia | M104: 9763.0358 | N104: 0.0003249310599 | O104: 7790.4122
A105: 102 | B105: Guiné | C105: 3199.9078 | D105: 0.0002305743481 | F105: 102 | G105: Gâmbia | H105: 3121.0524 | I105: 0.0001930329363 | K105: 102 | L105: Quénia | M105: 9728.6568 | N105: 0.0003237868662 | O105: -4984.7696
A106: 103 | B106: Malásia | C106: 2997.3832 | D106: 0.0002159811221 | F106: 103 | G106: HongKong | H106: 2974.4084 | I106: 0.0001839632001 | K106: 103 | L106: Guatemala | M106: 9622.643 | N106: 0.0003202585398 | O106: 1839.5222
A107: 104 | B107: Gabão | C107: 2969.7446 | D107: 0.0002139895797 | F107: 104 | G107: Gabão | H107: 2833.2392 | I107: 0.000175232073 | K107: 104 | L107: Líbano | M107: 9030.5168 | N107: 0.000300551535 | O107: 8325.0264
A108: 105 | B108: Equador | C108: 2812.108 | D108: 0.0002026308286 | F108: 105 | G108: Dominicana, República | H108: 2632.0606 | I108: 0.0001627894444 | K108: 105 | L108: Belarus | M108: 8568.8254 | N108: 0.0002851856305 | O108: 7176.4846
A109: 106 | B109: Arménia | C109: 2727.7232 | D109: 0.0001965503502 | F109: 106 | G109: Malta | H109: 2491.2232 | I109: 0.0001540788387 | K109: 106 | L109: Congo | M109: 8278.2484 | N109: 0.0002755147151 | O109: -2897.502
A110: 107 | B110: Guiné Equatorial | C110: 2712.0278 | D110: 0.0001954193937 | F110: 107 | G110: Mali | H110: 2475.2544 | I110: 0.0001530911896 | K110: 107 | L110: Gibraltar | M110: 7352.4128 | N110: 0.0002447012726 | O110: 7267.068
A111: 108 | B111: Congo | C111: 2690.3732 | D111: 0.0001938590377 | F111: 108 | G111: Centro-Africana, República | H111: 2466.2132 | I111: 0.0001525320035 | K111: 108 | L111: Mali | M111: 6982.8388 | N111: 0.0002324011977 | O111: 2032.33
A112: 109 | B112: Timor-Leste | C112: 2668.7438 | D112: 0.0001923004975 | F112: 109 | G112: Benim | H112: 1927.4492 | I112: 0.0001192101672 | K112: 109 | L112: Singapura | M112: 6659.3268 | N112: 0.0002216341474 | O112: 3577.9536
A113: 110 | B113: Benim | C113: 2476.0626 | D113: 0.0001784165531 | F113: 110 | G113: Serra Leoa | H113: 1903.7664 | I113: 0.0001177454176 | K113: 110 | L113: Honduras | M113: 6528.2066 | N113: 0.0002172702358 | O113: -4176.4066
A114: 111 | B114: Quénia | C114: 2371.9436 | D114: 0.0001709140961 | F114: 111 | G114: Laos, República Democrática Popular do | H114: 1764.877 | I114: 0.0001091552931 | K114: 111 | L114: Etiópia | M114: 6273.7972 | N114: 0.000208803042 | O114: -3456.6916
A115: 112 | B115: Seychelles | C115: 2348.937 | D115: 0.0001692563197 | F115: 112 | G115: Burquina Faso | H115: 1596.8146 | I115: 9.876085737e-05 | K115: 112 | L115: Camboja | M115: 6129.6458 | N115: 0.000204005429 | O115: -4373.0378
A116: 113 | B116: Congo, República Democrática do | C116: 2232.4506 | D116: 0.0001608627104 | F116: 113 | G116: Kuwait | H116: 1543.8124 | I116: 9.548274185e-05 | K116: 113 | L116: Andorra | M116: 6085.3588 | N116: 0.0002025314795 | O116: 5959.784
A117: 114 | B117: Bangladesh | C117: 2169.3256 | D117: 0.0001563141401 | F117: 114 | G117: Singapura | H117: 1540.6866 | I117: 9.528941528e-05 | K117: 114 | L117: Sri Lanca | M117: 6081.5442 | N117: 0.0002024045229 | O117: -2971.1586
A118: 115 | B118: Suazilândia | C118: 2067.1184 | D118: 0.0001489494408 | F118: 115 | G118: Seychelles | H118: 1430.66 | I118: 8.848441654e-05 | K118: 115 | L118: Congo, República Democrática do | M118: 5891.1252 | N118: 0.0001960670425 | O118: -1426.224
A119: 116 | B119: Irão, República Islâmica do | C119: 2015.5486 | D119: 0.0001452334985 | F119: 116 | G119: Bolívia | H119: 1415.5294 | I119: 8.754860907e-05 | K119: 116 | L119: Gabão | M119: 5802.9838 | N119: 0.0001931335412 | O119: 136.5054
A120: 117 | B120: Islândia | C120: 1885.1564 | D120: 0.0001358378851 | F120: 117 | G120: São Tomé e Príncipe | H120: 1089.0898 | I120: 6.735875436e-05 | K120: 117 | L120: Burquina Faso | M120: 5682.894 | N120: 0.0001891367407 | O120: 2489.2648
A121: 118 | B121: Togo | C121: 1879.1826 | D121: 0.0001354074336 | F121: 118 | G121: Venezuela | H121: 1080.4086 | I121: 6.682183369e-05 | K121: 118 | L121: Omã | M121: 5590.2944 | N121: 0.0001860548626 | O121: 3943.0988
A122: 119 | B122: Sudão | C122: 1868.0632 | D122: 0.0001346062079 | F122: 119 | G122: Bósnia-Herzegovina | H122: 1034.9794 | I122: 6.401209815e-05 | K122: 119 | L122: Macedónia, Antiga República jugoslava da | M122: 5497.1524 | N122: 0.0001829549325 | O122: -3341.1964
A123: 120 | B123: Nicarágua | C123: 1709.2518 | D123: 0.0001231628047 | F123: 120 | G123: Geórgia | H123: 986.3118 | I123: 6.100207187e-05 | K123: 120 | L123: Zimbabwe | M123: 5240.2714 | N123: 0.0001744054795 | O123: -5106.5526
A124: 121 | B124: Jamaica | C124: 1645.8018 | D124: 0.000118590816 | F124: 121 | G124: Cazaquistão | H124: 977.1902 | I124: 6.043791306e-05 | K124: 121 | L124: Suriname | M124: 5124.6412 | N124: 0.0001705571024 | O124: -3797.4556
A125: 122 | B125: El Salvador | C125: 1616.0178 | D125: 0.0001164446834 | F125: 122 | G125: El Salvador | H125: 921.9616 | I125: 5.702209767e-05 | K125: 122 | L125: Nicarágua | M125: 5057.4016 | N125: 0.0001683192499 | O125: -1638.898
A126: 123 | B126: Cazaquistão | C126: 1586.0954 | D126: 0.0001142885782 | F126: 123 | G126: Omã | H126: 823.5978 | I126: 5.093842757e-05 | K126: 123 | L126: Venezuela | M126: 4994.5306 | N126: 0.0001662267921 | O126: 2833.7134
A127: 124 | B127: Sri Lanca | C127: 1555.1928 | D127: 0.0001120618432 | F127: 124 | G127: Timor-Leste | H127: 773.0574 | I127: 4.781257111e-05 | K127: 124 | L127: Myanmar | M127: 4788.3204 | N127: 0.0001593637527 | O127: -4047.0964
A128: 125 | B128: Ruanda | C128: 1542.3664 | D128: 0.0001111376169 | F128: 125 | G128: Emirados Árabes Unidos | H128: 758.5788 | I128: 4.691708898e-05 | K128: 125 | L128: Benim | M128: 4403.5118 | N128: 0.0001465566434 | O128: 548.6134
A129: 126 | B129: Azerbaijão | C129: 1447.7444 | D129: 0.0001043194811 | F129: 126 | G129: Belarus | H129: 696.1704 | I129: 4.305721251e-05 | K129: 126 | L129: Papuásia-Nova Guiné | M129: 4270.9956 | N129: 0.0001421462705 | O129: -4265.2244
A130: 127 | B130: Etiópia | C130: 1408.5528 | D130: 0.0001014954692 | F130: 127 | G130: Turquemenistão | H130: 693.7048 | I130: 4.290471844e-05 | K130: 127 | L130: Madagáscar | M130: 3916.3472 | N130: 0.0001303429459 | O130: -3143.8156
A131: 128 | B131: Albânia | C131: 1395.6804 | D131: 0.0001005679284 | F131: 128 | G131: Iémen | H131: 684.2014 | I131: 4.23169458e-05 | K131: 128 | L131: Seychelles | M131: 3779.597 | N131: 0.0001257916579 | O131: 918.277
A132: 129 | B132: Bolívia | C132: 1235.6182 | D132: 8.903439686e-05 | F132: 129 | G132: Gronelândia | H132: 628.3832 | I132: 3.886466443e-05 | K132: 129 | L132: Malavi | M132: 3770.4898 | N132: 0.0001254885542 | O132: -3753.459
A133: 130 | B133: Montenegro | C133: 1193.9358 | D133: 8.603090651e-05 | F133: 130 | G133: Faroé, Ilhas | H133: 595.1746 | I133: 3.681075673e-05 | K133: 130 | L133: Gâmbia | M133: 3599.2092 | N133: 0.0001197880336 | O133: -2642.8956
A134: 131 | B134: São Bartolomeu | C134: 1183.3114 | D134: 8.52653488e-05 | F134: 131 | G134: Cabo Verde | H134: 418.902 | I134: 2.590853107e-05 | K134: 131 | L134: Catar | M134: 3530.389 | N134: 0.0001174975759 | O134: 3487.6854
A135: 132 | B135: Honduras | C135: 1175.9 | D135: 8.473130881e-05 | F135: 132 | G135: Usbequistão | H135: 380.4082 | I135: 2.352774078e-05 | K135: 132 | L135: Guiné | M135: 3486.7122 | N135: 0.0001160439349 | O135: 2913.1034
A136: 133 | B136: Uganda | C136: 1159.4308 | D136: 8.354459491e-05 | F136: 133 | G136: Líbano | H136: 352.7452 | I136: 2.181682105e-05 | K136: 133 | L136: Timor-Leste | M136: 3441.8012 | N136: 0.0001145492176 | O136: 1895.6864
A137: 134 | B137: Macedónia, Antiga República jugoslava da | C137: 1077.978 | D137: 7.767538635e-05 | F137: 134 | G137: Chade | H137: 303.1764 | I137: 1.875105676e-05 | K137: 134 | L137: Arménia | M137: 2777.2048 | N137: 9.243027659e-05 | O137: 2678.2416
A138: 135 | B138: Paraguai | C138: 969.8092 | D138: 6.988111473e-05 | F138: 135 | G138: Guiné-Bissau | H138: 291.7994 | I138: 1.804740445e-05 | K138: 135 | L138: Guiné Equatorial | M138: 2721.8116 | N138: 9.058669314e-05 | O138: 2702.244
A139: 136 | B139: Bermudas | C139: 957.27 | D139: 6.897758311e-05 | F139: 136 | G139: Guiné | H139: 286.8044 | I139: 1.773847035e-05 | K139: 136 | L139: Bolívia | M139: 2651.1476 | N139: 8.823487053e-05 | O139: -179.9112
A140: 137 | B140: Aruba | C140: 940.2512 | D140: 6.775126693e-05 | F140: 137 | G140: Togo | H140: 238.6312 | I140: 1.475902206e-05 | K140: 137 | L140: Centro-Africana, República | M140: 2569.5112 | N140: 8.551786707e-05 | O140: -2362.9152
A141: 138 | B141: Barbados | C141: 924.8742 | D141: 6.664325321e-05 | F141: 138 | G141: Irão, República Islâmica do | H141: 211.8398 | I141: 1.310200963e-05 | K141: 138 | L141: Cazaquistão | M141: 2563.2856 | N141: 8.531066812e-05 | O141: 608.9052
A142: 139 | B142: Camboja | C142: 878.304 | D142: 6.32875648e-05 | F142: 139 | G142: Zâmbia | H142: 183.9494 | I142: 1.137702552e-05 | K142: 139 | L142: El Salvador | M142: 2537.9794 | N142: 8.446843312e-05 | O142: 694.0562
A143: 140 | B143: Trindade e Tobago | C143: 878.2468 | D143: 6.328344317e-05 | F143: 140 | G143: Jordânia | H143: 147.7944 | I143: 9.140886899e-06 | K143: 140 | L143: Serra Leoa | M143: 2340.2336 | N143: 7.788710395e-05 | O143: -1467.2992
A144: 141 | B144: Kosovo | C144: 870.5922 | D144: 6.273187902e-05 | F144: 141 | G144: Síria, República Árabe da | H144: 146.4108 | I144: 9.055313081e-06 | K144: 141 | L144: Irão, República Islâmica do | M144: 2227.3884 | N144: 7.413141655e-05 | O144: 1803.7088
A145: 142 | B145: Namíbia | C145: 866.1176 | D145: 6.240945474e-05 | F145: 142 | G145: Maldivas | H145: 127.2588 | I145: 7.870787376e-06 | K145: 142 | L145: Togo | M145: 2117.8138 | N145: 7.04845805e-05 | O145: 1640.5514
A146: 143 | B146: Turquemenistão | C146: 749.1004 | D146: 5.397759786e-05 | F146: 143 | G146: Albânia | H146: 125.4572 | I146: 7.759360814e-06 | K146: 143 | L146: Laos, República Democrática Popular do | M146: 1935.8146 | N146: 6.442732596e-05 | O146: -1593.9394
A147: 144 | B147: Barém | C147: 728.9324 | D147: 5.252436116e-05 | F147: 144 | G147: Azerbaijão | H147: 124.9342 | I147: 7.72701396e-06 | K147: 144 | L147: Sudão | M147: 1883.1514 | N147: 6.267460173e-05 | O147: 1852.975
A148: 145 | B148: Iémen | C148: 704.0114 | D148: 5.072863963e-05 | F148: 145 | G148: Kosovo | H148: 80.0466 | I148: 4.950775654e-06 | K148: 145 | L148: Jamaica | M148: 1660.4886 | N148: 5.526399082e-05 | O148: 1631.115
A149: 146 | B149: Suriname | C149: 663.5928 | D149: 4.781621435e-05 | F149: 146 | G149: Tajiquistão | H149: 74.7168 | I149: 4.621134619e-06 | K149: 146 | L149: Azerbaijão | M149: 1572.6786 | N149: 5.234151906e-05 | O149: 1322.8102
A150: 147 | B150: Niger | C150: 619.0434 | D150: 4.460613784e-05 | F150: 147 | G150: Andorra | H150: 62.7874 | I150: 3.883317109e-06 | K150: 147 | L150: Bósnia-Herzegovina | M150: 1571.857 | N150: 5.231417477e-05 | O150: -498.1018
A151: 148 | B151: São Martinho (parte holandesa) | C151: 606.1984 | D151: 4.368057133e-05 | F151: 148 | G151: Libéria | H151: 54.4472 | I151: 3.367486841e-06 | K151: 148 | L151: Ruanda | M151: 1569.669 | N151: 5.224135427e-05 | O151: 1515.0638
A152: 149 | B152: Bósnia-Herzegovina | C152: 536.8776 | D152: 3.868555295e-05 | F152: 149 | G152: Arábia Saudita | H152: 51.2828 | I152: 3.171772913e-06 | K152: 149 | L152: Albânia | M152: 1521.1376 | N152: 5.062614363e-05 | O152: 1270.2232
A153: 150 | B153: Curaçau | C153: 534.0534 | D153: 3.848205082e-05 | F153: 150 | G153: Fiji, Ilhas | H153: 50.1218 | I153: 3.099966609e-06 | K153: 150 | L153: Turquemenistão | M153: 1442.8052 | N153: 4.801910313e-05 | O153: 55.3956
A154: 151 | B154: Burundi | C154: 485.0592 | D154: 3.495169731e-05 | F154: 151 | G154: Arménia | H154: 49.4816 | I154: 3.060371091e-06 | K154: 151 | L154: Iémen | M154: 1388.2128 | N154: 4.620217172e-05 | O154: 19.81
A155: 152 | B155: Gâmbia | C155: 478.1568 | D155: 3.445433411e-05 | F155: 152 | G155: Falkland Ilhas (Malvinas) | H155: 46.09 | I155: 2.850605146e-06 | K155: 152 | L155: Montenegro | M155: 1194.2042 | N155: 3.974522315e-05 | O155: 1193.6674
A156: 153 | B156: Antígua e Barbuda | C156: 468.1724 | D156: 3.373489259e-05 | F156: 153 | G156: Aruba | H156: 45.6344 | I156: 2.822426892e-06 | K156: 153 | L156: São Bartolomeu | M156: 1185.2626 | N156: 3.944763092e-05 | O156: 1181.3602
A157: 154 | B157: Serra Leoa | C157: 436.4672 | D157: 3.145032495e-05 | F157: 154 | G157: Gibraltar | H157: 42.6724 | I157: 2.639231135e-06 | K157: 154 | L157: Aruba | M157: 985.8856 | N157: 3.281201253e-05 | O157: 894.6168
A158: 155 | B158: Tanzânia, República Unida da | C158: 409.5442 | D158: 2.951034619e-05 | F158: 155 | G158: Líbia, Jamahira Árabe da | H158: 41.1404 | I158: 2.544478975e-06 | K158: 155 | L158: Bermudas | M158: 958.1048 | N158: 3.188741848e-05 | O158: 956.4352
A159: 156 | B159: Nova Caledónia | C159: 388.6078 | D159: 2.800174123e-05 | F159: 156 | G159: Curaçau | H159: 39.2148 | I159: 2.425383178e-06 | K159: 156 | L159: Kosovo | M159: 950.6388 | N159: 3.163893683e-05 | O159: 790.5456
A160: 157 | B160: Madagáscar | C160: 386.2658 | D160: 2.783298476e-05 | F160: 157 | G160: Botswana | H160: 30.037 | I160: 1.857748465e-06 | K160: 157 | L160: Barbados | M160: 935.22 | N160: 3.112577195e-05 | O160: 914.5284
A161: 158 | B161: Myanmar | C161: 370.612 | D161: 2.670502578e-05 | F161: 158 | G161: São Pedro e Miquelon | H161: 28.9156 | I161: 1.788391368e-06 | K161: 158 | L161: Trindade e Tobago | M161: 878.6292 | N161: 2.924233027e-05 | O161: 877.8644
A162: 159 | B162: Comores | C162: 333.8038 | D162: 2.405275352e-05 | F162: 159 | G162: Ruanda | H162: 27.3026 | I162: 1.688629465e-06 | K162: 159 | L162: Barém | M162: 733.5568 | N162: 2.441406479e-05 | O162: 724.308
A163: 160 | B163: Haiti | C163: 328.0528 | D163: 2.363835624e-05 | F163: 160 | G163: São Marino | H163: 25.3104 | I163: 1.565414547e-06 | K163: 160 | L163: Usbequistão | M163: 665.2294 | N163: 2.214000834e-05 | O163: -95.587
A164: 161 | B164: Polinésia Francesa | C164: 317.6242 | D164: 2.28869072e-05 | F164: 161 | G164: Catar | H164: 21.3518 | I164: 1.320580407e-06 | K164: 161 | L164: Gronelândia | M164: 629.1046 | N164: 2.093771125e-05 | O164: -627.6618
A165: 162 | B165: Bahamas | C165: 305.389 | D165: 2.200528078e-05 | F165: 162 | G165: Macau | H165: 20.763 | I165: 1.284163911e-06 | K165: 162 | L165: Niger | M165: 622.3102 | N165: 2.071158163e-05 | O165: 615.7766
A166: 163 | B166: Libéria | C166: 303.6128 | D166: 2.187729392e-05 | F166: 163 | G166: Marshall, Ilhas | H166: 18.3784 | I166: 1.136679575e-06 | K166: 163 | L166: São Martinho (parte holandesa) | M166: 606.2012 | N166: 2.017544568e-05 | O166: 606.1956
A167: 164 | B167: Somália | C167: 293.0252 | D167: 2.111438788e-05 | F167: 164 | G167: Quirguizistão | H167: 17.5046 | I167: 1.082636208e-06 | K167: 164 | L167: Faroé, Ilhas | M167: 600.7416 | N167: 1.999374056e-05 | O167: -589.6076
A168: 165 | B168: Usbequistão | C168: 284.8212 | D168: 2.052323586e-05 | F168: 165 | G168: Salomão, Ilhas | H168: 16.0532 | I168: 9.928690503e-07 | K168: 165 | L168: Curaçau | M168: 573.2682 | N168: 1.907937732e-05 | O168: 494.8386
A169: 166 | B169: São Marino | C169: 251.4926 | D169: 1.81216916e-05 | F169: 166 | G169: Sudão | H169: 15.0882 | I169: 9.331850849e-07 | K169: 166 | L169: Burundi | M169: 485.2096 | N169: 1.614863172e-05 | O169: 484.9088
A170: 167 | B170: Bonaire, Santo Eustáquio e Saba | C170: 241.8602 | D170: 1.742761399e-05 | F170: 167 | G170: Jamaica | H170: 14.6868 | I170: 9.083590293e-07 | K170: 167 | L170: Antígua e Barbuda | M170: 477.853 | N170: 1.590379109e-05 | O170: 458.4918
A171: 168 | B171: Laos, República Democrática Popular do | C171: 170.9376 | D171: 1.231717542e-05 | F171: 168 | G171: Iraque | H171: 13.1736 | I171: 8.147696236e-07 | K171: 168 | L171: Nova Caledónia | M171: 390.0338 | N171: 1.298101314e-05 | O171: 387.1818
A172: 169 | B172: Zâmbia | C172: 164.8696 | D172: 1.187993621e-05 | F172: 169 | G172: São Cristovão e Nevis | H172: 12.4064 | I172: 7.673193249e-07 | K172: 169 | L172: Libéria | M172: 358.06 | N172: 1.191686866e-05 | O172: 249.1656
A173: 170 | B173: Santa Lúcia | C173: 158.8492 | D173: 1.14461269e-05 | F173: 170 | G173: Nepal | H173: 12.0278 | I173: 7.439034189e-07 | K173: 170 | L173: Zâmbia | M173: 348.819 | N173: 1.160931187e-05 | O173: -19.0798
A174: 171 | B174: Liechtenstein | C174: 144.4366 | D174: 1.040760452e-05 | F174: 171 | G174: Território Palestiniano Ocupado | H174: 11.6698 | I174: 7.217615954e-07 | K174: 171 | L174: Comores | M174: 333.8038 | N174: 1.110957952e-05 | O174: 333.8038
A175: 172 | B175: Maldivas | C175: 139.5096 | D175: 1.005258185e-05 | F175: 172 | G175: Barbados | H175: 10.3458 | I175: 6.398739579e-07 | K175: 172 | L175: Haiti | M175: 328.3394 | N175: 1.092771464e-05 | O175: 327.7662
A176: 173 | B176: Ceuta e Melilha | C176: 132.796 | D176: 9.568822931e-06 | F176: 173 | G176: Jibuti | H176: 9.885 | I176: 6.113740913e-07 | K176: 173 | L176: Polinésia Francesa | M176: 318.4566 | N176: 1.059879762e-05 | O176: 316.7918
A177: 174 | B177: Quirguizistão | C177: 130.9018 | D177: 9.432333395e-06 | F177: 174 | G177: Guiné Equatorial | H177: 9.7838 | I177: 6.05115006e-07 | K177: 174 | L177: Bahamas | M177: 305.389 | N177: 1.016388483e-05 | O177: 305.389
A178: 175 | B178: Botswana | C178: 118.8382 | D178: 8.563071879e-06 | F178: 175 | G178: Antígua e Barbuda | H178: 9.6806 | I178: 5.987322234e-07 | K178: 175 | L178: Chade | M178: 303.2232 | N178: 1.009180318e-05 | O178: -303.1296
A179: 176 | B179: Guiana | C179: 116.6432 | D179: 8.40490773e-06 | F179: 176 | G179: Santa Helena | H179: 5.0476 | I179: 3.121873407e-07 | K179: 176 | L179: Somália | M179: 293.0252 | N179: 9.752395748e-06 | O179: 293.0252
A180: 177 | B180: Nepal | C180: 114.3036 | D180: 8.236324202e-06 | F180: 177 | G180: Barém | H180: 4.6244 | I180: 2.860129841e-07 | K180: 177 | L180: São Marino | M180: 276.803 | N180: 9.212492306e-06 | O180: 226.1822
A181: 178 | B181: Afeganistão | C181: 109.4574 | D181: 7.887123702e-06 | F181: 178 | G181: Niger | H181: 3.2668 | I181: 2.020472313e-07 | K181: 178 | L181: Maldivas | M181: 266.7684 | N181: 8.87852311e-06 | O181: 12.2508
A182: 179 | B182: Virgens Britânicas, Ilhas | C182: 106.6708 | D182: 7.686330892e-06 | F182: 179 | G182: São Bartolomeu | H182: 1.9512 | I182: 1.206791226e-07 | K182: 179 | L182: Bonaire, Santo Eustáquio e Saba | M182: 241.8602 | N182: 8.049534259e-06 | O182: 241.8602
A183: 180 | B183: Centro-Africana, República | C183: 103.298 | D183: 7.443298526e-06 | F183: 180 | G183: Liechtenstein | H183: 1.8568 | I183: 1.148406083e-07 | K183: 180 | L183: Santa Lúcia | M183: 158.8768 | N183: 5.287700269e-06 | O183: 158.8216
A184: 181 | B184: Jibuti | C184: 90.5704 | D184: 6.526191454e-06 | F184: 181 | G184: Lesoto | H184: 1.7136 | I184: 1.059838789e-07 | K184: 181 | L184: Botswana | M184: 148.8752 | N184: 4.954829371e-06 | O184: 88.8012
A185: 182 | B185: Caimão, Ilhas | C185: 73.8006 | D185: 5.317817356e-06 | F185: 182 | G185: Nova Caledónia | H185: 1.426 | I185: 8.819620174e-08 | K185: 182 | L185: Quirguizistão | M185: 148.4064 | N185: 4.93922688e-06 | O185: 113.3972
A186: 183 | B186: Zimbabwe | C186: 66.8594 | D186: 4.817658362e-06 | F186: 183 | G186: Bermudas | H186: 0.8348 | I186: 5.163126873e-08 | K186: 183 | L186: Liechtenstein | M186: 146.2934 | N186: 4.868902511e-06 | O186: 142.5798
A187: 184 | B187: Turcas e Caicos, Ilhas | C187: 48.519 | D187: 3.496112231e-06 | F187: 184 | G187: Polinésia Francesa | H187: 0.8324 | I187: 5.148283193e-08 | K187: 184 | L187: Ceuta e Melilha | M187: 132.796 | N187: 4.419685221e-06 | O187: 132.796
A188: 185 | B188: Virgens dos Estados Unidos, Ilhas | C188: 27.4406 | D188: 1.977275238e-06 | F188: 185 | G188: Micronésia, Estados Federados da | H188: 0.6592 | I188: 4.077064249e-08 | K188: 185 | L188: Nepal | M188: 126.3314 | N188: 4.204531925e-06 | O188: 102.2758
A189: 186 | B189: Mongólia | C189: 26.1112 | D189: 1.881483247e-06 | F189: 186 | G189: Afeganistão | H189: 0.6156 | I189: 3.807404053e-08 | K189: 186 | L189: Afeganistão | M189: 110.073 | N189: 3.663423682e-06 | O189: 108.8418
A190: 187 | B190: Belize | C190: 19.5092 | D190: 1.405765839e-06 | F190: 187 | G190: Trindade e Tobago | H190: 0.3824 | I190: 2.365093096e-08 | K190: 187 | L190: Virgens Britânicas, Ilhas | M190: 106.6778 | N190: 3.550425435e-06 | O190: 106.6638
A191: 188 | B191: Anguila | C191: 15.482 | D191: 1.115579661e-06 | F191: 188 | G191: Haiti | H191: 0.2866 | I191: 1.772582848e-08 | K191: 188 | L191: Jibuti | M191: 100.4554 | N191: 3.343332983e-06 | O191: 80.6854
A192: 189 | B192: Brunei Darussalam | C192: 13.5634 | D192: 9.773319448e-07 | F192: 189 | G192: Montenegro | H192: 0.2684 | I192: 1.660018271e-08 | K192: 189 | L192: Tajiquistão | M192: 74.7168 | N192: 2.486706954e-06 | O192: -74.7168
A193: 190 | B193: Fiji, Ilhas | C193: 11.4598 | D193: 8.257537654e-07 | F193: 190 | G193: Burundi | H193: 0.1504 | I193: 9.302039791e-09 | K193: 190 | L193: Caimão, Ilhas | M193: 73.8014 | N193: 2.456240827e-06 | O193: 73.7998
A194: 191 | B194: Malavi | C194: 8.5154 | D194: 6.135904303e-07 | F194: 191 | G194: Oceano Indico, Território Britânico do | H194: 0.1384 | I194: 8.559855765e-09 | K194: 191 | L194: Fiji, Ilhas | M194: 61.5816 | N194: 2.049544319e-06 | O194: -38.662
A195: 192 | B195: São Vicente e Granadinas | C195: 7.5006 | D195: 5.404674333e-07 | F195: 192 | G195: Vanuatu | H195: 0.0874 | I195: 5.405573655e-09 | K195: 192 | L195: Turcas e Caicos, Ilhas | M195: 48.519 | N195: 1.61479794e-06 | O195: 48.519
A196: 193 | B196: Guam | C196: 6.4026 | D196: 4.613493305e-07 | F196: 193 | G196: Nauru | H196: 0.0694 | I196: 4.292297616e-09 | K196: 193 | L196: Falkland Ilhas (Malvinas) | M196: 46.09 | N196: 1.533956534e-06 | O196: -46.09
A197: 194 | B197: Territórios Franceses do Sul | C197: 6.3292 | D197: 4.56060379e-07 | F197: 194 | G197: Palau | H197: 0.0478 | I197: 2.95636637e-09 | K197: 194 | L197: São Pedro e Miquelon | M197: 28.9156 | N197: 9.623621945e-07 | O197: -28.9156
A198: 195 | B198: Faroé, Ilhas | C198: 5.567 | D198: 4.011388691e-07 | F198: 195 | G198: Santa Lúcia | H198: 0.0276 | I198: 1.707023259e-09 | K198: 195 | L198: Virgens dos Estados Unidos, Ilhas | M198: 27.4406 | N198: 9.132715916e-07 | O198: 27.4406
A199: 196 | B199: Sudão do Sul | C199: 3.771 | D199: 2.717252875e-07 | F199: 196 | G199: Coreia, República Popular Democrática da | H199: 0.0196 | I199: 1.212233909e-09 | K199: 196 | L199: Mongólia | M199: 26.1254 | N199: 8.694994147e-07 | O199: 26.097
A200: 197 | B200: Marianas do Norte, Ilhas | C200: 2.9244 | D200: 2.107222038e-07 | F200: 197 | G200: São Vicente e Granadinas | H200: 0.0144 | I200: 8.90620831e-10 | K200: 197 | L200: Marshall, Ilhas | M200: 18.3784 | N200: 6.116655838e-07 | O200: -18.3784
... 58 more rows

Sheet 2AA
A1: Ranking dos parceiros comerciais de Portugal por país (média 2019-2023 em milhares de euros) produtos agrícolas e agroalimentares
A2: Exportações | F2: Importações | K2: Trocas comerciais (total e saldo)
A3: P | B3: País | C3: média quinquénio | D3: % do Total | F3: P | G3: País | H3: média quinquénio | I3: % do Total | K3: P | L3: País | M3: Total (exp+imp) | N3: % do Total | O3: Saldo (exp-imp)
A4: 1 | B4: Espanha | C4: 2759114.782 | D4: 0.3560524144 | F4: 1 | G4: Espanha | H4: 5216246.404 | I4: 0.4652738611 | K4: 1 | L4: Espanha | M4: 7975361.185 | N4: 0.4206344704 | O4: -2457131.622
A5: 2 | B5: França | C5: 750336.0628 | D5: 0.09682778279 | F5: 2 | G5: França | H5: 878404.7086 | I5: 0.07835112048 | K5: 2 | L5: França | M5: 1628740.771 | N5: 0.08590263135 | O5: -128068.6458
A6: 3 | B6: Itália | C6: 479934.3466 | D6: 0.06193355347 | F6: 3 | G6: Alemanha | H6: 716563.6986 | I6: 0.06391537765 | K6: 3 | L6: Países Baixos | M6: 1047701.306 | N6: 0.0552575957 | O6: -310457.8802
A7: 4 | B7: Brasil | C7: 405387.6024 | D7: 0.05231360274 | F7: 4 | G7: Países Baixos | H7: 679079.593 | I7: 0.06057190551 | K7: 4 | L7: Brasil | M7: 1040823.994 | N7: 0.05489487425 | O7: -230048.7888
A8: 5 | B8: Países Baixos | C8: 368621.7128 | D8: 0.0475691159 | F8: 5 | G8: Brasil | H8: 635436.3912 | I8: 0.05667906007 | K8: 5 | L8: Alemanha | M8: 998150.0304 | N8: 0.05264417494 | O8: -434977.3668
A9: 6 | B9: Alemanha | C9: 281586.3318 | D9: 0.03633755796 | F9: 6 | G9: Itália | H9: 370114.2602 | I9: 0.03301310513 | K9: 6 | L9: Itália | M9: 850048.6068 | N9: 0.04483304734 | O9: 109820.0864 | P9: Nota: Nesta listagem, o Reino Unido passa a ser constituído por três componentes: Reino Unido [até 2020] ; Reino Unido (sem Irlanda do Norte) pós-2020 e Reino Unido (Irlanda do Norte) pós-2020. Estas componentes são calculadas igualmente como média do quinquénio, embora a primeira corresponda apenas a 2019-2020 e as duas últimas a 2021-2023.
A10: 7 | B10: Angola | C10: 239257.2228 | D10: 0.03087516054 | F10: 7 | G10: Bélgica | H10: 281937.5458 | I10: 0.02514800115 | K10: 7 | L10: Bélgica | M10: 456368.6802 | N10: 0.02406968081 | O10: -107506.4114
A11: 8 | B11: Reino Unido (sem Irlanda do Norte) pós 2020 | C11: 237665.5644 | D11: 0.03066976357 | F11: 8 | G11: Ucrânia | H11: 218361.6698 | I11: 0.0194772197 | K11: 8 | L11: Estados Unidos | M11: 399330.4322 | N11: 0.02106138405 | O11: -4827.0378
A12: 9 | B12: Estados Unidos | C12: 197251.6972 | D12: 0.02545452023 | F12: 9 | G12: Polónia | H12: 216535.6918 | I12: 0.01931434783 | K12: 9 | L12: Polónia | M12: 361974.8712 | N12: 0.01909118656 | O12: -71096.5124
A13: 10 | B13: Israel | C13: 180621.8384 | D13: 0.02330850535 | F13: 10 | G13: Estados Unidos | H13: 202078.735 | I13: 0.01802482974 | K13: 10 | L13: Reino Unido (sem Irlanda do Norte) pós 2020 | M13: 312259.9708 | N13: 0.01646913593 | O13: 163071.158
A14: 11 | B14: Bélgica | C14: 174431.1344 | D14: 0.02250962046 | F14: 11 | G14: Roménia | H14: 147819.1428 | I14: 0.01318503345 | K14: 11 | L14: Angola | M14: 248843.2282 | N14: 0.01312442623 | O14: 229671.2174
A15: 12 | B15: Polónia | C15: 145439.1794 | D15: 0.01876832791 | F15: 12 | G15: África do Sul | H15: 122030.5704 | I15: 0.01088476852 | K15: 12 | L15: Ucrânia | M15: 226323.7844 | N15: 0.01193671145 | O15: -210399.5552
A16: 13 | B16: Reino Unido | C16: 140181.6612 | D16: 0.01808986681 | F16: 13 | G16: Canadá | H16: 114587.6202 | I16: 0.01022087922 | K16: 13 | L16: Reino Unido | M16: 218445.519 | N16: 0.01152119798 | O16: 61917.8034
A17: 14 | B17: Suíça | C17: 101113.552 | D17: 0.01304828801 | F17: 14 | G17: Irlanda | H17: 113672.616 | I17: 0.01013926354 | K17: 14 | L17: Canadá | M17: 187938.0432 | N17: 0.009912180456 | O17: -41237.1972
A18: 15 | B18: Cabo Verde | C18: 93274.1312 | D18: 0.012036643 | F18: 15 | G18: Argentina | H18: 81740.7412 | I18: 0.007291034075 | K18: 15 | L18: Israel | M18: 185954.1124 | N18: 0.009807544482 | O18: 175289.5644
A19: 16 | B19: Canadá | C19: 73350.423 | D19: 0.009465570399 | F19: 16 | G19: Reino Unido | H19: 78263.8578 | I19: 0.006980906286 | K19: 16 | L19: Roménia | M19: 164554.4432 | N19: 0.008678888574 | O19: -131083.8424
A20: 17 | B20: China, República Popular da | C20: 65002.3268 | D20: 0.00838828292 | F20: 17 | G20: Dinamarca | H20: 77997.3668 | I20: 0.006957136071 | K20: 17 | L20: Irlanda | M20: 144233.3214 | N20: 0.007607117139 | O20: -83111.9106
A21: 18 | B21: Japão | C21: 61056.1688 | D21: 0.007879047461 | F21: 18 | G21: Reino Unido (sem Irlanda do Norte) pós 2020 | H21: 74594.4064 | I21: 0.006653601997 | K21: 18 | L21: África do Sul | M21: 144191.7208 | N21: 0.007604923051 | O21: -99869.42
A22: 19 | B22: Suécia | C22: 55331.0614 | D22: 0.007140245898 | F22: 19 | G22: Costa Rica | H22: 70756.5738 | I22: 0.006311278599 | K22: 19 | L22: Dinamarca | M22: 126432.8158 | N22: 0.006668287402 | O22: -29561.9178
A23: 20 | B23: Marrocos | C23: 49767.4468 | D23: 0.006422284317 | F23: 20 | G23: China, República Popular da | H23: 48106.5576 | I23: 0.004290963668 | K23: 20 | L23: China, República Popular da | M23: 113108.8844 | N23: 0.005965560002 | O23: 16895.7692
A24: 21 | B24: Dinamarca | C24: 48435.449 | D24: 0.00625039548 | F24: 21 | G24: Bulgária | H24: 41813.1574 | I24: 0.003729610851 | K24: 21 | L24: Suíça | M24: 103785.579 | N24: 0.005473832601 | O24: 98441.525
A25: 22 | B25: Luxemburgo | C25: 48405.0208 | D25: 0.006246468845 | F25: 22 | G25: Grécia | H25: 35188.6176 | I25: 0.003138721355 | K25: 22 | L25: Cabo Verde | M25: 93419.3098 | N25: 0.004927097468 | O25: 93128.9526
A26: 23 | B26: Rússia, Federação da | C26: 47519.044 | D26: 0.006132137183 | F26: 23 | G26: Colômbia | H26: 31210.9096 | I26: 0.002783921482 | K26: 23 | L26: Argentina | M26: 82057.1494 | N26: 0.004327837295 | O26: -81424.333
A27: 24 | B27: Guiné-Bissau | C27: 33196.0112 | D27: 0.004283808711 | F27: 24 | G27: Guiana | H27: 31014.2578 | I27: 0.002766380719 | K27: 24 | L27: Japão | M27: 72872.0242 | N27: 0.003843397759 | O27: 49240.3134
A28: 25 | B28: Irlanda | C28: 30560.7054 | D28: 0.003943733336 | F28: 25 | G28: Vietname | H28: 30892.5166 | I28: 0.002755521762 | K28: 25 | L28: Costa Rica | M28: 72068.7862 | N28: 0.003801033585 | O28: -69444.3614
A29: 26 | B29: Arábia Saudita | C29: 29146.6976 | D29: 0.003761261446 | F29: 26 | G29: Cuba | H29: 28789.5394 | I29: 0.002567942371 | K29: 26 | L29: Suécia | M29: 68872.8558 | N29: 0.003632474637 | O29: 41789.267
A30: 27 | B30: Moçambique | C30: 28593.946 | D30: 0.003689931125 | F30: 27 | G30: Áustria | H30: 27561.0174 | I30: 0.002458361816 | K30: 27 | L30: Marrocos | M30: 61090.9854 | N30: 0.003222045208 | O30: 38443.9082
A31: 28 | B31: São Tomé e Príncipe | C31: 25047.189 | D31: 0.003232236722 | F31: 28 | G31: Chile | H31: 26079.5266 | I31: 0.002326217187 | K31: 28 | L31: Grécia | M31: 60085.0254 | N31: 0.003168989122 | O31: -10292.2098
A32: 29 | B32: Grécia | C32: 24896.4078 | D32: 0.003212779028 | F32: 29 | G32: Checa, República | H32: 24316.1738 | I32: 0.002168931296 | K32: 29 | L32: Rússia, Federação da | M32: 59387.4766 | N32: 0.00313219918 | O32: 35650.6114
A33: 30 | B33: Finlândia | C33: 22500.2588 | D33: 0.002903565855 | F33: 30 | G33: Índia | H33: 24071.1366 | I33: 0.002147074697 | K33: 30 | L33: Luxemburgo | M33: 56663.1448 | N33: 0.002988513166 | O33: 40146.8968
A34: 31 | B34: África do Sul | C34: 22161.1504 | D34: 0.002859805311 | F34: 31 | G34: Uruguai | H34: 22728.6906 | I34: 0.002027332456 | K34: 31 | L34: Bulgária | M34: 50834.8076 | N34: 0.002681116488 | O34: -32791.5072
A35: 32 | B35: Jordânia | C35: 21893.2362 | D35: 0.002825232085 | F35: 32 | G35: Costa do Marfim | H35: 22619.1534 | I35: 0.00201756206 | K35: 32 | L35: Checa, República | M35: 43760.0556 | N35: 0.002307981718 | O35: -4872.292
A36: 33 | B36: Argélia | C36: 20568.7852 | D36: 0.002654317131 | F36: 33 | G36: Turquia | H36: 19669.1464 | I36: 0.001754430098 | K36: 33 | L36: Áustria | M36: 42114.8324 | N36: 0.002221209775 | O36: -13007.2024
A37: 34 | B37: Checa, República | C37: 19443.8818 | D37: 0.002509152974 | F37: 34 | G37: Hungria | H37: 19114.934 | I37: 0.00170499598 | K37: 34 | L37: Moçambique | M37: 38413.508 | N37: 0.002025995465 | O37: 18774.384
A38: 35 | B38: Noruega | C38: 18383.7692 | D38: 0.002372349803 | F38: 35 | G38: Suazilândia | H38: 17908.3876 | I38: 0.001597375584 | K38: 35 | L38: Colômbia | M38: 37783.0652 | N38: 0.001992744811 | O38: -24638.754
A39: 36 | B39: Coreia, República da | C39: 16791.4172 | D39: 0.002166863327 | F39: 36 | G39: Letónia | H39: 17561.7186 | I39: 0.001566453727 | K39: 36 | L39: Guiné-Bissau | M39: 33466.8492 | N39: 0.001765100045 | O39: 32925.1732
A40: 37 | B40: Roménia | C40: 16735.3004 | D40: 0.002159621685 | F40: 37 | G40: Uganda | H40: 17520.2176 | I40: 0.00156275196 | K40: 37 | L40: Austrália | M40: 33457.4934 | N40: 0.001764606604 | O40: -224.9866
A41: 38 | B41: Austrália | C41: 16616.2534 | D41: 0.002144259159 | F41: 38 | G41: Austrália | H41: 16841.24 | I41: 0.001502189152 | K41: 38 | L41: Cuba | M41: 33227.7552 | N41: 0.00175248981 | O41: -24351.3236
A42: 39 | B42: Áustria | C42: 14553.815 | D42: 0.001878109966 | F42: 39 | G42: Lituânia | H42: 14646.1226 | I42: 0.001306391126 | K42: 39 | L42: Vietname | M42: 32990.675 | N42: 0.001739985787 | O42: -28794.3582
A43: 40 | B43: Emirados Árabes Unidos | C43: 13772.665 | D43: 0.001777305772 | F43: 40 | G43: México | H43: 13942.9954 | I43: 0.001243674245 | K43: 40 | L43: Hungria | M43: 31183.5242 | N43: 0.001644673499 | O43: -7046.3438
A44: 41 | B44: Iraque | C44: 13213.736 | D44: 0.001705178283 | F44: 41 | G44: Peru | H44: 13551.1124 | I44: 0.001208719432 | K44: 41 | L44: Chile | M44: 31046.9382 | N44: 0.001637469715 | O44: -21112.115
A45: 42 | B45: Nigéria | C45: 12563.3872 | D45: 0.001621253445 | F45: 42 | G45: Suécia | H45: 13541.7944 | I45: 0.001207888294 | K45: 42 | L45: Guiana | M45: 31034.393 | N45: 0.001636808059 | O45: -30994.1226
A46: 43 | B46: Hungria | C46: 12068.5902 | D46: 0.001557401927 | F46: 43 | G46: Egito | H46: 13444.2972 | I46: 0.00119919183 | K46: 43 | L46: Finlândia | M46: 30625.0708 | N46: 0.001615219692 | O46: 14375.4468
A47: 44 | B47: Macau | C47: 11451.795 | D47: 0.001477807044 | F47: 44 | G47: Indonésia | H47: 13373.0146 | I47: 0.001192833631 | K47: 44 | L47: Costa do Marfim | M47: 30195.695 | N47: 0.001592573663 | O47: -15042.6118
A48: 45 | B48: Território Palestiniano Ocupado | C48: 11126.9966 | D48: 0.001435893146 | F48: 45 | G48: Paquistão | H48: 12392.2934 | I48: 0.00110535618 | K48: 45 | L48: Turquia | M48: 29730.2176 | N48: 0.001568023572 | O48: -9608.0752
A49: 46 | B49: Líbia, Jamahira Árabe da | C49: 10747.1924 | D49: 0.001386880976 | F49: 46 | G49: Moldava, República de | H49: 12169.9448 | I49: 0.001085523338 | K49: 46 | L49: Arábia Saudita | M49: 29183.7518 | N49: 0.001539202012 | O49: 29109.6434
A50: 47 | B50: Senegal | C50: 10277.8906 | D50: 0.001326319509 | F50: 47 | G50: Rússia, Federação da | H50: 11868.4326 | I50: 0.001058629335 | K50: 47 | L50: Índia | M50: 27213.734 | N50: 0.001435299834 | O50: -20928.5392
A51: 48 | B51: Turquia | C51: 10061.0712 | D51: 0.001298339857 | F51: 48 | G51: Japão | H51: 11815.8554 | I51: 0.001053939603 | K51: 48 | L51: São Tomé e Príncipe | M51: 26136.022 | N51: 0.001378459422 | O51: 23958.356
A52: 49 | B52: Kuwait | C52: 9238.6512 | D52: 0.001192209939 | F52: 49 | G52: Marrocos | H52: 11323.5386 | I52: 0.00101002639 | K52: 49 | L52: Uruguai | M52: 24804.8014 | N52: 0.001308248524 | O52: -20652.5798
A53: 50 | B53: Bulgária | C53: 9021.6502 | D53: 0.001164206852 | F53: 50 | G53: Tailândia | H53: 10221.1584 | I53: 0.0009116973138 | K53: 50 | L53: Letónia | M53: 24563.5132 | N53: 0.001295522563 | O53: -10559.924
A54: 51 | B54: Eslováquia | C54: 8977.9814 | D54: 0.001158571573 | F54: 51 | G54: Paraguai | H54: 9863.0808 | I54: 0.0008797578434 | K54: 51 | L54: Argélia | M54: 22398.8544 | N54: 0.00118135468 | O54: 18738.716
A55: 52 | B55: Ucrânia | C55: 7962.1146 | D55: 0.001027478141 | F55: 52 | G55: Moçambique | H55: 9819.562 | I55: 0.0008758760942 | K55: 52 | L55: Jordânia | M55: 22013.8634 | N55: 0.001161049582 | O55: 21772.609
A56: 53 | B56: Costa do Marfim | C56: 7576.5416 | D56: 0.0009777215313 | F56: 53 | G56: Angola | H56: 9586.0054 | I56: 0.0008550435314 | K56: 53 | L56: México | M56: 20411.1484 | N56: 0.001076519596 | O56: -7474.8424
A57: 54 | B57: Letónia | C57: 7001.7946 | D57: 0.0009035527949 | F57: 54 | G57: Equador | H57: 9434.7056 | I57: 0.0008415480335 | K57: 54 | L57: Lituânia | M57: 20297.1126 | N57: 0.001070505148 | O57: -8995.1326
A58: 55 | B58: Gibraltar | C58: 6867.0166 | D58: 0.0008861602483 | F58: 55 | G58: Sérvia | H58: 8961.3684 | I58: 0.0007993277453 | K58: 55 | L58: Suazilândia | M58: 19974.7344 | N58: 0.001053502359 | O58: -15842.0408
A59: 56 | B59: Maurícias | C59: 6601.9064 | D59: 0.0008519488674 | F59: 56 | G59: Belize | H59: 8481.6488 | I59: 0.0007565381657 | K59: 56 | L59: Noruega | M59: 19562.9914 | N59: 0.001031786315 | O59: 17204.547
A60: 57 | B60: Colômbia | C60: 6572.1556 | D60: 0.000848109649 | F60: 57 | G60: Luxemburgo | H60: 8258.124 | I60: 0.00073660041 | K60: 57 | L60: Uganda | M60: 18130.6166 | N60: 0.0009562403676 | O60: -16909.8186
A61: 58 | B61: México | C61: 6468.153 | D61: 0.0008346885413 | F61: 58 | G61: Finlândia | H61: 8124.812 | I61: 0.000724709371 | K61: 58 | L61: Coreia, República da | M61: 18110.515 | N61: 0.0009551801741 | O61: 15472.3194
A62: 59 | B62: Malta | C62: 5886.9876 | D62: 0.0007596915367 | F62: 59 | G62: Estónia | H62: 8074.939 | I62: 0.0007202608459 | K62: 59 | L62: Peru | M62: 15535.3046 | N62: 0.0008193590824 | O62: -11566.9202
A63: 60 | B63: Andorra | C63: 5880.33 | D63: 0.0007588324008 | F63: 60 | G63: Nova Zelânda | H63: 7373.8184 | I63: 0.0006577229473 | K63: 60 | L63: Egito | M63: 15081.7762 | N63: 0.000795439203 | O63: -11806.8182
A64: 61 | B64: Lituânia | C64: 5650.99 | D64: 0.0007292370171 | F64: 61 | G64: Malásia | H64: 6878.308 | I64: 0.0006135248747 | K64: 61 | L64: Indonésia | M64: 14601.4892 | N64: 0.0007701080282 | O64: -12144.54
A65: 62 | B65: Estónia | C65: 5362.261 | D65: 0.0006919777272 | F65: 62 | G65: Camarões | H65: 6873.6916 | I65: 0.0006131131054 | K65: 62 | L65: Emirados Árabes Unidos | M65: 14301.0792 | N65: 0.0007542638804 | O65: 13244.2508
A66: 63 | B66: HongKong | C66: 4973.9084 | D66: 0.0006418624214 | F66: 63 | G66: Eslovénia | H66: 5854.3092 | I66: 0.0005221871888 | K66: 63 | L66: Eslováquia | M66: 14074.743 | N66: 0.0007423265142 | O66: 3881.2198
A67: 64 | B67: Chile | C67: 4967.4116 | D67: 0.0006410240361 | F67: 64 | G67: Israel | H67: 5332.274 | I67: 0.000475623182 | K67: 64 | L67: Tailândia | M67: 13545.1598 | N67: 0.0007143953718 | O67: -6897.157
A68: 65 | B68: Chipre | C68: 4590.055 | D68: 0.000592327719 | F68: 65 | G68: Honduras | H68: 5320.7232 | I68: 0.0004745928846 | K68: 65 | L68: Estónia | M68: 13437.2 | N68: 0.0007087013835 | O68: -2712.678
A69: 66 | B69: Cuba | C69: 4438.2158 | D69: 0.0005727334947 | F69: 66 | G69: Camboja | H69: 5251.2876 | I69: 0.000468399433 | K69: 66 | L69: Iraque | M69: 13226 | N69: 0.0006975623268 | O69: 13201.472
A70: 67 | B70: Mali | C70: 4408.7876 | D70: 0.0005689359065 | F70: 67 | G70: Zimbabwe | H70: 5172.692 | I70: 0.0004613889362 | K70: 67 | L70: Paquistão | M70: 12653.1142 | N70: 0.0006673473297 | O70: -12131.4726
A71: 68 | B71: Omã | C71: 4251.3822 | D71: 0.0005486233871 | F71: 68 | G71: Eslováquia | H71: 5096.7616 | I71: 0.0004546161675 | K71: 68 | L71: Nigéria | M71: 12613.3818 | N71: 0.0006652517736 | O71: 12513.3926
A72: 69 | B72: Sérvia | C72: 3643.2286 | D72: 0.0004701436663 | F72: 69 | G72: Reino Unido (Irlanda do Norte) pós-2020 | H72: 4870.1284 | I72: 0.0004344011516 | K72: 69 | L72: Sérvia | M72: 12604.597 | N72: 0.0006647884479 | O72: -5318.1398
A73: 70 | B73: Gana | C73: 3561.703 | D73: 0.0004596231229 | F73: 70 | G73: Etiópia | H73: 4865.161 | I73: 0.0004339580741 | K73: 70 | L73: Moldava, República de | M73: 12435.7646 | N73: 0.0006558839324 | O73: -11904.125
A74: 71 | B74: Síria, República Árabe da | C74: 3557.076 | D74: 0.0004590260276 | F74: 71 | G74: Tanzânia, República Unida da | H74: 4645.6104 | I74: 0.0004143748054 | K74: 71 | L74: Macau | M74: 11470.0196 | N74: 0.0006049488553 | O74: 11433.5704
A75: 72 | B75: Tailândia | C75: 3324.0014 | D75: 0.0004289487091 | F75: 72 | G75: Filipinas | H75: 4316.8954 | I75: 0.0003850543927 | K75: 72 | L75: Território Palestiniano Ocupado | M75: 11138.6664 | N75: 0.0005874727092 | O75: 11115.3268
A76: 73 | B76: Singapura | C76: 3292.5498 | D76: 0.0004248900095 | F76: 73 | G76: Macedónia, Antiga República jugoslava da | H76: 4269.76 | I76: 0.0003808500534 | K76: 73 | L76: Kuwait | M76: 10781.5982 | N76: 0.000568640309 | O76: 7695.7042
A77: 74 | B77: Eslovénia | C77: 3210.916 | D77: 0.0004143555034 | F77: 74 | G77: Myanmar | H77: 4258.6984 | I77: 0.0003798633912 | K77: 74 | L77: Senegal | M77: 10777.8706 | N77: 0.0005684437089 | O77: 9777.9106
A78: 75 | B78: Índia | C78: 3142.5974 | D78: 0.000405539269 | F78: 75 | G78: Tunísia | H78: 4096.3914 | I78: 0.0003653860834 | K78: 75 | L78: Líbia, Jamahira Árabe da | M78: 10763.4438 | N78: 0.0005676828143 | O78: 10730.941
A79: 76 | B79: Taiwan | C79: 3027.0112 | D79: 0.0003906233453 | F79: 76 | G79: Quénia | H79: 3999.6272 | I79: 0.0003567550009 | K79: 76 | L79: Paraguai | M79: 10570.8508 | N79: 0.0005575251233 | O79: -9155.3108
A80: 77 | B80: Guiné | C80: 2745.3572 | D80: 0.0003542770551 | F80: 77 | G80: Chipre | H80: 3962.962 | I80: 0.0003534845727 | K80: 77 | L80: Equador | M80: 10263.4314 | N80: 0.0005413112875 | O80: -8605.9798
A81: 78 | B81: Burquina Faso | C81: 2525.8832 | D81: 0.0003259548381 | F81: 78 | G81: Suriname | H81: 3877.4378 | I81: 0.0003458560653 | K81: 78 | L81: Nova Zelânda | M81: 9856.0686 | N81: 0.0005198262623 | O81: -4891.5682
A82: 79 | B82: Venezuela | C82: 2486.9168 | D82: 0.0003209263844 | F82: 79 | G82: Malavi | H82: 3756.8802 | I82: 0.0003351026814 | K82: 79 | L82: Maurícias | M82: 9426.6558 | N82: 0.0004971782817 | O82: 3777.157
A83: 80 | B83: Nova Zelânda | C83: 2482.2502 | D83: 0.0003203241789 | F83: 80 | G83: Guatemala | H83: 3336.065 | I83: 0.0002975672013 | K83: 80 | L83: Eslovénia | M83: 9065.2252 | N83: 0.000478115801 | O83: -2643.3932
A84: 81 | B84: Timor-Leste | C84: 2425.5014 | D84: 0.0003130009796 | F84: 81 | G84: Sri Lanca | H84: 3081.7828 | I84: 0.0002748859758 | K84: 81 | L84: Camarões | M84: 8912.7596 | N84: 0.0004700744991 | O84: -4834.6236
A85: 82 | B85: Filipinas | C85: 2423.494 | D85: 0.0003127419329 | F85: 82 | G85: Nicarágua | H85: 3050.9764 | I85: 0.0002721381354 | K85: 82 | L85: Chipre | M85: 8553.017 | N85: 0.0004511010464 | O85: 627.093
A86: 83 | B86: Congo | C86: 2401.0914 | D86: 0.0003098509695 | F86: 83 | G86: Maurícias | H86: 2824.7494 | I86: 0.0002519593513 | K86: 83 | L86: Belize | M86: 8501.158 | N86: 0.0004483659122 | O86: -8462.1396
A87: 84 | B87: Dominicana, República | C87: 2366.1238 | D87: 0.0003053385446 | F87: 84 | G87: Suíça | H87: 2672.027 | I87: 0.0002383369617 | K87: 84 | L87: Malásia | M87: 8478.9536 | N87: 0.0004471948134 | O87: -5277.6624
A88: 85 | B88: Seychelles | C88: 2266.2448 | D88: 0.0002924495704 | F88: 85 | G88: Taiwan | H88: 2620.89 | I88: 0.0002337756915 | K88: 85 | L88: Mali | M88: 6882.4546 | N88: 0.0003629926694 | O88: 1935.1206
A89: 86 | B89: Belarus | C89: 2265.0334 | D89: 0.0002922932442 | F89: 86 | G89: Dominicana, República | H89: 2590.705 | I89: 0.0002310832781 | K89: 86 | L89: Gibraltar | M89: 6867.0382 | N89: 0.0003621795815 | O89: 6866.995
A90: 87 | B90: Benim | C90: 2254.9256 | D90: 0.0002909888742 | F90: 87 | G90: Mali | H90: 2473.667 | I90: 0.0002206438322 | K90: 87 | L90: Filipinas | M90: 6740.3894 | N90: 0.0003554999027 | O90: -1893.4014
A91: 88 | B91: Guiné Equatorial | C91: 2237.2378 | D91: 0.0002887063364 | F91: 88 | G91: Gana | H91: 2244.213 | I91: 0.0002001772092 | K91: 88 | L91: Reino Unido (Irlanda do Norte) pós-2020 | M91: 6635.6924 | N91: 0.0003499780002 | O91: -3104.5644
A92: 89 | B92: Líbano | C92: 2221.1552 | D92: 0.000286630943 | F92: 89 | G92: Croácia | H92: 2133.6594 | I92: 0.0001903161528 | K92: 89 | L92: HongKong | M92: 6486.7258 | N92: 0.0003421212417 | O92: 3461.091
A93: 90 | B93: Gabão | C93: 2209.6904 | D93: 0.0002851514577 | F93: 90 | G93: Congo, República Democrática do | H93: 1937.5966 | I93: 0.0001728279268 | K93: 90 | L93: Malta | M93: 6408.603 | N93: 0.0003380009088 | O93: 5365.3722
A94: 91 | B94: Croácia | C94: 2104.1314 | D94: 0.0002715295029 | F94: 91 | G94: Benim | H94: 1901.2374 | I94: 0.0001695847929 | K94: 91 | L94: Honduras | M94: 6000.5624 | N94: 0.0003164801353 | O94: -4640.884
A95: 92 | B95: Vietname | C95: 2098.1584 | D95: 0.0002707587118 | F95: 92 | G95: Serra Leoa | H95: 1900.5094 | I95: 0.0001695198574 | K95: 92 | L95: Andorra | M95: 5897.0704 | N95: 0.0003110217866 | O95: 5863.5896
A96: 93 | B96: Uruguai | C96: 2076.1108 | D96: 0.0002679135597 | F96: 93 | G96: Argélia | H96: 1830.0692 | I96: 0.0001632367984 | K96: 93 | L96: Gana | M96: 5805.916 | N96: 0.0003062141444 | O96: 1317.49
A97: 94 | B97: Suazilândia | C97: 2066.3468 | D97: 0.0002666535557 | F97: 94 | G97: Laos, República Democrática Popular do | H97: 1764.7672 | I97: 0.0001574120518 | K97: 94 | L97: Camboja | M97: 5661.8046 | N97: 0.0002986134576 | O97: -4840.7706
A98: 95 | B98: Camarões | C98: 2039.068 | D98: 0.0002631333388 | F98: 95 | G98: Burquina Faso | H98: 1596.6714 | I98: 0.0001424184001 | K98: 95 | L98: Taiwan | M98: 5647.9012 | N98: 0.000297880168 | O98: 406.1212
A99: 96 | B99: Peru | C99: 1984.1922 | D99: 0.0002560518425 | F99: 96 | G99: Kuwait | H99: 1542.947 | I99: 0.0001376263414 | K99: 96 | L99: Etiópia | M99: 5274.7014 | N99: 0.0002781969592 | O99: -4455.6206
A100: 97 | B100: Catar | C100: 1923.0908 | D100: 0.0002481669581 | F100: 97 | G100: HongKong | H100: 1512.8174 | I100: 0.0001349388695 | K100: 97 | L100: Zimbabwe | M100: 5238.022 | N100: 0.0002762624236 | O100: -5107.362
A101: 98 | B101: Irão, República Islâmica do | C101: 1920.529 | D101: 0.0002478363684 | F101: 98 | G101: Panamá | H101: 1505.4946 | I101: 0.0001342856973 | K101: 98 | L101: Tunísia | M101: 5011.6662 | N101: 0.0002643240236 | O101: -3181.1166
A102: 99 | B102: Geórgia | C102: 1916.3824 | D102: 0.0002473012667 | F102: 99 | G102: Madagáscar | H102: 1471.794 | I102: 0.0001312797027 | K102: 99 | L102: Tanzânia, República Unida da | M102: 4986.1414 | N102: 0.0002629778011 | O102: -4305.0794
A103: 100 | B103: Reino Unido (Irlanda do Norte) pós-2020 | C103: 1765.564 | D103: 0.0002278387725 | F103: 100 | G103: Coreia, República da | H103: 1319.0978 | I103: 0.0001176596501 | K103: 100 | L103: Dominicana, República | M103: 4956.8288 | N103: 0.0002614318034 | O103: -224.5812
A104: 101 | B104: Egito | C104: 1637.479 | D104: 0.00021130993 | F104: 101 | G104: Singapura | H104: 1313.0876 | I104: 0.0001171235579 | K104: 101 | L104: Omã | M104: 4826.1814 | N104: 0.0002545412314 | O104: 3676.583
A105: 102 | B105: Malásia | C105: 1600.6456 | D105: 0.0002065567313 | F105: 102 | G105: Noruega | H105: 1179.2222 | I105: 0.0001051831573 | K105: 102 | L105: Singapura | M105: 4605.6374 | N105: 0.0002429093559 | O105: 1979.4622
A106: 103 | B106: Bangladesh | C106: 1592.1082 | D106: 0.0002054550149 | F106: 103 | G106: São Tomé e Príncipe | H106: 1088.833 | I106: 9.712070613e-05 | K106: 103 | L106: Myanmar | M106: 4593.3818 | N106: 0.0002422629742 | O106: -3924.015
A107: 104 | B107: Congo, República Democrática do | C107: 1487.5888 | D107: 0.0001919672162 | F107: 104 | G107: Timor-Leste | H107: 773.0574 | I107: 6.895444992e-05 | K107: 104 | L107: Macedónia, Antiga República jugoslava da | M107: 4569.63 | N107: 0.0002410102628 | O107: -3969.89
A108: 105 | B108: Costa Rica | C108: 1312.2124 | D108: 0.0001693356131 | F108: 105 | G108: El Salvador | H108: 699.8376 | I108: 6.242345877e-05 | K108: 105 | L108: Quénia | M108: 4449.3114 | N108: 0.0002346644498 | O108: -3549.943
A109: 106 | B109: Sudão | C109: 1307.024 | D109: 0.0001686660714 | F109: 106 | G109: Turquemenistão | H109: 693.7048 | I109: 6.187643102e-05 | K109: 106 | L109: Croácia | M109: 4237.7908 | N109: 0.0002235084841 | O109: -29.528
A110: 107 | B110: Togo | C110: 1248.9136 | D110: 0.0001611671633 | F110: 107 | G110: Cazaquistão | H110: 686.1514 | I110: 6.120268992e-05 | K110: 107 | L110: Benim | M110: 4156.163 | N110: 0.0002192032915 | O110: 353.6882
A111: 108 | B111: Indonésia | C111: 1228.4746 | D111: 0.0001585295944 | F111: 108 | G111: Omã | H111: 574.7992 | I111: 5.127040068e-05 | K111: 108 | L111: Burquina Faso | M111: 4122.5546 | N111: 0.0002174307258 | O111: 929.2118
A112: 109 | B112: Islândia | C112: 1198.9784 | D112: 0.0001547232311 | F112: 109 | G112: Geórgia | H112: 547.4606 | I112: 4.883187784e-05 | K112: 109 | L112: Suriname | M112: 4115.4388 | N112: 0.0002170554261 | O112: -3639.4368
A113: 110 | B113: Panamá | C113: 1014.5438 | D113: 0.0001309227046 | F113: 110 | G113: Emirados Árabes Unidos | H113: 528.4142 | I113: 4.71329949e-05 | K113: 110 | L113: Guatemala | M113: 3875.6304 | N113: 0.0002044075124 | O113: -2796.4996
A114: 111 | B114: Tunísia | C114: 915.2748 | D114: 0.0001181124484 | F114: 111 | G114: Malta | H114: 521.6154 | I114: 4.65265619e-05 | K114: 111 | L114: Malavi | M114: 3763.5146 | N114: 0.0001984943295 | O114: -3750.2458
A115: 112 | B115: Equador | C115: 828.7258 | D115: 0.000106943656 | F115: 112 | G115: Senegal | H115: 499.98 | I115: 4.459674776e-05 | K115: 112 | L115: Síria, República Árabe da | M115: 3703.4868 | N115: 0.0001953283585 | O115: 3410.6652
A116: 113 | B116: Bermudas | C116: 818.2718 | D116: 0.0001055946103 | F116: 113 | G116: Usbequistão | H116: 380.3558 | I116: 3.392662041e-05 | K116: 113 | L116: Sri Lanca | M116: 3487.054 | N116: 0.0001839133148 | O116: -2676.5116
A117: 114 | B117: Kosovo | C117: 799.843 | D117: 0.0001032164494 | F117: 114 | G117: Líbano | H117: 342.8862 | I117: 3.058444212e-05 | K117: 114 | L117: Nicarágua | M117: 3449.8386 | N117: 0.0001819505097 | O117: -2652.1142
A118: 115 | B118: Paraguai | C118: 707.77 | D118: 9.133480746e-05 | F118: 115 | G118: Chade | H118: 303.1764 | I118: 2.704244457e-05 | K118: 115 | L118: Congo, República Democrática do | M118: 3425.1854 | N118: 0.0001806502569 | O118: -450.0078
A119: 116 | B119: Honduras | C119: 679.8392 | D119: 8.77304526e-05 | F119: 116 | G119: Bangladesh | H119: 298.8156 | I119: 2.665347402e-05 | K119: 116 | L119: Timor-Leste | M119: 3198.5588 | N119: 0.0001686975744 | O119: 1652.444
A120: 117 | B120: Aruba | C120: 651.3298 | D120: 8.405143178e-05 | F120: 117 | G120: Bolívia | H120: 296.509 | I120: 2.644773207e-05 | K120: 117 | L120: Guiné | M120: 3020.6542 | N120: 0.0001593145752 | O120: 2470.0602
A121: 118 | B121: Mauritânia | C121: 615.705 | D121: 7.945419787e-05 | F121: 118 | G121: Venezuela | H121: 285.0498 | I121: 2.542560508e-05 | K121: 118 | L121: Venezuela | M121: 2771.9666 | N121: 0.0001461983571 | O121: 2201.867
A122: 119 | B122: Uganda | C122: 610.399 | D122: 7.876948039e-05 | F122: 119 | G122: Guiné | H122: 275.297 | I122: 2.455568396e-05 | K122: 119 | L122: Congo | M122: 2655.1662 | N122: 0.0001400381001 | O122: 2147.0166
A123: 120 | B123: Namíbia | C123: 600.2532 | D123: 7.746020663e-05 | F123: 120 | G123: Guiné-Bissau | H123: 270.838 | I123: 2.415795426e-05 | K123: 120 | L123: Líbano | M123: 2564.0414 | N123: 0.0001352320191 | O123: 1878.269
A124: 121 | B124: Cazaquistão | C124: 584.6762 | D124: 7.545005885e-05 | F124: 121 | G124: Congo | H124: 254.0748 | I124: 2.266272604e-05 | K124: 121 | L124: Panamá | M124: 2520.0384 | N124: 0.0001329112241 | O124: -490.9508
A125: 122 | B125: Albânia | C125: 582.0574 | D125: 7.511211348e-05 | F125: 122 | G125: Belarus | H125: 241.8304 | I125: 2.157056152e-05 | K125: 122 | L125: Belarus | M125: 2506.8638 | N125: 0.0001322163727 | O125: 2023.203
A126: 123 | B126: Ruanda | C126: 580.43 | D126: 7.49021042e-05 | F126: 123 | G126: Togo | H126: 238.6312 | I126: 2.128520227e-05 | K126: 123 | L126: Geórgia | M126: 2463.843 | N126: 0.0001299473806 | O126: 1368.9218
A127: 124 | B127: Azerbaijão | C127: 564.159 | D127: 7.280239858e-05 | F127: 124 | G127: Irão, República Islâmica do | H127: 186.7426 | I127: 1.665689153e-05 | K127: 124 | L127: Serra Leoa | M127: 2326.8524 | N127: 0.0001227222572 | O127: -1474.1664
A128: 125 | B128: São Bartolomeu | C128: 548.5216 | D128: 7.078445642e-05 | F128: 125 | G128: Zâmbia | H128: 183.9494 | I128: 1.640774629e-05 | K128: 125 | L128: Seychelles | M128: 2267.3882 | N128: 0.0001195860115 | O128: 2265.1014
A129: 126 | B129: Guatemala | C129: 539.5654 | D129: 6.962869565e-05 | F129: 126 | G129: Islândia | H129: 183.9414 | I129: 1.640703272e-05 | K129: 126 | L129: Guiné Equatorial | M129: 2237.2378 | N129: 0.0001179958268 | O129: 2237.2378
A130: 127 | B130: Arménia | C130: 525.5354 | D130: 6.781818185e-05 | F130: 127 | G130: Síria, República Árabe da | H130: 146.4108 | I130: 1.305941341e-05 | K130: 127 | L130: Gabão | M130: 2210.0274 | N130: 0.0001165607028 | O130: 2209.3534
A131: 128 | B131: Barém | C131: 502.4658 | D131: 6.484114486e-05 | F131: 128 | G131: Cabo Verde | H131: 145.1786 | I131: 1.294950479e-05 | K131: 128 | L131: Irão, República Islâmica do | M131: 2107.2716 | N131: 0.0001111411826 | O131: 1733.7864
A132: 129 | B132: Bolívia | C132: 494.4554 | D132: 6.380743569e-05 | F132: 129 | G132: Azerbaijão | H132: 124.8964 | I132: 1.114039211e-05 | K132: 129 | L132: Catar | M132: 1939.3412 | N132: 0.0001022842401 | O132: 1906.8404
A133: 130 | B133: Burundi | C133: 484.978 | D133: 6.25844162e-05 | F133: 130 | G133: Jordânia | H133: 120.6272 | I133: 1.075959201e-05 | K133: 130 | L133: Bangladesh | M133: 1890.9238 | N133: 9.973062194e-05 | O133: 1293.2926
A134: 131 | B134: Quénia | C134: 449.6842 | D134: 5.802989647e-05 | F134: 131 | G134: Albânia | H134: 120.2784 | I134: 1.072848007e-05 | K134: 131 | L134: Laos, República Democrática Popular do | M134: 1777.8864 | N134: 9.376883215e-05 | O134: -1751.648
A135: 132 | B135: Gâmbia | C135: 434.028 | D135: 5.600952825e-05 | F135: 132 | G135: Iémen | H135: 84.6154 | I135: 7.547445198e-06 | K135: 132 | L135: Madagáscar | M135: 1602.4536 | N135: 8.451620005e-05 | O135: -1341.1344
A136: 133 | B136: Serra Leoa | C136: 426.343 | D136: 5.501781061e-05 | F136: 133 | G136: Kosovo | H136: 79.8322 | I136: 7.120797804e-06 | K136: 133 | L136: Togo | M136: 1487.5448 | N136: 7.845570935e-05 | O136: 1010.2824
A137: 134 | B137: Camboja | C137: 410.517 | D137: 5.29755304e-05 | F137: 134 | G137: Tajiquistão | H137: 74.7168 | I137: 6.664519146e-06 | K137: 134 | L137: Islândia | M137: 1382.9198 | N137: 7.293760422e-05 | O137: 1015.037
A138: 135 | B138: Etiópia | C138: 409.5404 | D138: 5.284950419e-05 | F138: 135 | G138: Namíbia | H138: 64.9894 | I138: 5.796863632e-06 | K138: 135 | L138: Sudão | M138: 1318.1622 | N138: 6.952217536e-05 | O138: 1295.8858
A139: 136 | B139: Sri Lanca | C139: 405.2712 | D139: 5.229858149e-05 | F139: 136 | G139: Libéria | H139: 54.4472 | I139: 4.85653035e-06 | K139: 136 | L139: Cazaquistão | M139: 1270.8276 | N139: 6.702566593e-05 | O139: -101.4752
A140: 137 | B140: Antígua e Barbuda | C140: 403.3246 | D140: 5.204738076e-05 | F140: 137 | G140: Nigéria | H140: 49.9946 | I140: 4.459371506e-06 | K140: 137 | L140: El Salvador | M140: 1081.0474 | N140: 5.701632691e-05 | O140: -318.6278
A141: 138 | B141: Nicarágua | C141: 398.8622 | D141: 5.14715264e-05 | F141: 138 | G141: Aruba | H141: 45.6144 | I141: 4.068670529e-06 | K141: 138 | L141: Kosovo | M141: 879.6752 | N141: 4.639560558e-05 | O141: 720.0108
A142: 139 | B142: El Salvador | C142: 381.2098 | D142: 4.919355678e-05 | F142: 139 | G142: Bósnia-Herzegovina | H142: 42.5574 | I142: 3.795995106e-06 | K142: 139 | L142: Bermudas | M142: 818.9736 | N142: 4.319409723e-05 | O142: 817.57
A143: 140 | B143: São Martinho (parte holandesa) | C143: 373.2376 | D143: 4.816477716e-05 | F143: 140 | G143: Curaçau | H143: 39.2148 | I143: 3.497845002e-06 | K143: 140 | L143: Bolívia | M143: 790.9644 | N143: 4.171684313e-05 | O143: 197.9464
A144: 141 | B144: Iémen | C144: 360.3172 | D144: 4.649745268e-05 | F144: 141 | G144: Arménia | H144: 37.5752 | I144: 3.351597496e-06 | K144: 141 | L144: Albânia | M144: 702.3358 | N144: 3.704241606e-05 | O144: 461.779
A145: 142 | B145: Tanzânia, República Unida da | C145: 340.531 | D145: 4.394412495e-05 | F145: 142 | G145: Arábia Saudita | H145: 37.0542 | I145: 3.305125826e-06 | K145: 142 | L145: Turquemenistão | M145: 700.9924 | N145: 3.69715628e-05 | O145: -686.4172
A146: 143 | B146: Myanmar | C146: 334.6834 | D146: 4.318951622e-05 | F146: 143 | G146: Botswana | H146: 30.037 | I146: 2.679212193e-06 | K146: 143 | L146: Aruba | M146: 696.9442 | N146: 3.675805367e-05 | O146: 605.7154
A147: 144 | B147: Comores | C147: 333.8038 | D147: 4.307600746e-05 | F147: 144 | G147: Ruanda | H147: 26.8278 | I147: 2.392960977e-06 | K147: 144 | L147: Azerbaijão | M147: 689.0554 | N147: 3.634198458e-05 | O147: 439.2626
A148: 145 | B148: Argentina | C148: 316.4082 | D148: 4.083117683e-05 | F148: 145 | G148: São Marino | H148: 25.2246 | I148: 2.249960245e-06 | K148: 145 | L148: Namíbia | M148: 665.2426 | N148: 3.508605595e-05 | O148: 535.2638
A149: 146 | B149: Jamaica | C149: 302.5728 | D149: 3.904577536e-05 | F149: 146 | G149: Macau | H149: 18.2246 | I149: 1.625580802e-06 | K149: 146 | L149: Mauritânia | M149: 617.715 | N149: 3.257936736e-05 | O149: 613.695
A150: 147 | B150: Libéria | C150: 301.9358 | D150: 3.896357313e-05 | F150: 147 | G150: Quirguizistão | H150: 17.5046 | I150: 1.561358916e-06 | K150: 147 | L150: Ruanda | M150: 607.2578 | N150: 3.202783638e-05 | O150: 553.6022
A151: 148 | B151: Macedónia, Antiga República jugoslava da | C151: 299.87 | D151: 3.869699014e-05 | F151: 148 | G151: Andorra | H151: 16.7404 | I151: 1.49319452e-06 | K151: 148 | L151: Arménia | M151: 563.1106 | N151: 2.969943599e-05 | O151: 487.9602
A152: 149 | B152: Somália | C152: 292.8384 | D152: 3.778959108e-05 | F152: 149 | G152: Líbia, Jamahira Árabe da | H152: 16.2514 | I152: 1.449577156e-06 | K152: 149 | L152: São Bartolomeu | M152: 548.8046 | N152: 2.894491258e-05 | O152: 548.2386
A153: 150 | B153: Moldava, República de | C153: 265.8198 | D153: 3.430295188e-05 | F153: 150 | G153: Catar | H153: 16.2504 | I153: 1.449487959e-06 | K153: 150 | L153: Barém | M153: 506.7884 | N153: 2.672890485e-05 | O153: 498.1432
A154: 151 | B154: Paquistão | C154: 260.8208 | D154: 3.365785149e-05 | F154: 151 | G154: Jamaica | H154: 14.6512 | I154: 1.306844015e-06 | K154: 151 | L154: Burundi | M154: 485.092 | N154: 2.558459884e-05 | O154: 484.864
A155: 152 | B155: Curaçau | C155: 251.4226 | D155: 3.244505243e-05 | F155: 152 | G155: São Cristovão e Nevis | H155: 12.4064 | I155: 1.106614447e-06 | K155: 152 | L155: Iémen | M155: 444.9326 | N155: 2.346652198e-05 | O155: 275.7018
A156: 153 | B156: Suriname | C156: 238.001 | D156: 3.071305016e-05 | F156: 153 | G156: Iraque | H156: 12.264 | I156: 1.093912785e-06 | K156: 153 | L156: Gâmbia | M156: 434.067 | N156: 2.289345127e-05 | O156: 433.989
A157: 154 | B157: Nova Caledónia | C157: 206.2626 | D157: 2.661734018e-05 | F157: 154 | G157: Território Palestiniano Ocupado | H157: 11.6698 | I157: 1.04091189e-06 | K157: 154 | L157: Usbequistão | M157: 421.6984 | N157: 2.224110972e-05 | O157: -339.0132
A158: 155 | B158: Trindade e Tobago | C158: 189.8074 | D158: 2.44938643e-05 | F158: 155 | G158: Sudão | H158: 11.1382 | I158: 9.934947315e-07 | K158: 155 | L158: Antígua e Barbuda | M158: 403.7924 | N158: 2.129671602e-05 | O158: 402.8568
A159: 156 | B159: Haiti | C159: 187.225 | D159: 2.41606162e-05 | F159: 156 | G159: Barém | H159: 4.3226 | I159: 3.855632262e-07 | K159: 156 | L159: São Martinho (parte holandesa) | M159: 373.2376 | N159: 1.968520253e-05 | O159: 373.2376
A160: 157 | B160: Zâmbia | C160: 152.2624 | D160: 1.964883647e-05 | F160: 157 | G160: Nepal | H160: 2.6584 | I160: 2.371214733e-07 | K160: 157 | L160: Libéria | M160: 356.383 | N160: 1.879626151e-05 | O160: 247.4886
A161: 158 | B161: Maldivas | C161: 137.7162 | D161: 1.777170919e-05 | F161: 158 | G161: Fiji, Ilhas | H161: 2.251 | I161: 2.007825897e-07 | K161: 158 | L161: Zâmbia | M161: 336.2118 | N161: 1.773239721e-05 | O161: -31.687
A162: 159 | B162: Liechtenstein | C162: 135.8048 | D162: 1.752505088e-05 | F162: 159 | G162: Mauritânia | H162: 2.01 | I162: 1.792860974e-07 | K162: 159 | L162: Comores | M162: 333.8038 | N162: 1.760539509e-05 | O162: 333.8038
A163: 160 | B163: Polinésia Francesa | C163: 133.9344 | D163: 1.728368345e-05 | F163: 160 | G163: Liechtenstein | H163: 1.7982 | I163: 1.603941594e-07 | K163: 160 | L163: Jamaica | M163: 317.224 | N163: 1.673094749e-05 | O163: 287.9216
A164: 161 | B164: Madagáscar | C164: 130.6596 | D164: 1.686108398e-05 | F164: 161 | G164: Lesoto | H164: 1.7136 | I164: 1.528480878e-07 | K164: 161 | L164: Chade | M164: 303.1804 | N164: 1.599026352e-05 | O164: -303.1724
A165: 162 | B165: Niger | C165: 126.732 | D165: 1.635424335e-05 | F165: 162 | G165: Seychelles | H165: 1.1434 | I165: 1.019879223e-07 | K165: 162 | L165: Somália | M165: 292.8384 | N165: 1.544480838e-05 | O165: 292.8384
A166: 163 | B166: Bósnia-Herzegovina | C166: 90.5322 | D166: 1.168280805e-05 | F166: 163 | G166: Bermudas | H166: 0.7018 | I166: 6.259849909e-08 | K166: 163 | L166: Curaçau | M166: 290.6374 | N166: 1.53287238e-05 | O166: 212.2078
A167: 164 | B167: Centro-Africana, República | C167: 89.9082 | D167: 1.160228342e-05 | F167: 164 | G167: Afeganistão | H167: 0.5848 | I167: 5.216244267e-08 | K167: 164 | L167: Nova Caledónia | M167: 206.2906 | N167: 1.088012634e-05 | O167: 206.2346
A168: 165 | B168: Nepal | C168: 87.8934 | D168: 1.134228177e-05 | F168: 165 | G168: Antígua e Barbuda | H168: 0.4678 | I168: 4.172638626e-08 | K168: 165 | L168: Trindade e Tobago | M168: 189.8764 | N168: 1.001441278e-05 | O168: 189.7384
A169: 166 | B169: Jibuti | C169: 70.7204 | D169: 9.126176749e-06 | F169: 166 | G169: Gabão | H169: 0.337 | I169: 3.005941036e-08 | K169: 166 | L169: Haiti | M169: 187.2274 | N169: 9.874699893e-06 | O169: 187.2226
A170: 167 | B170: Zimbabwe | C170: 65.33 | D170: 8.430567799e-06 | F170: 167 | G170: São Bartolomeu | H170: 0.283 | I170: 2.524276894e-08 | K170: 167 | L170: Maldivas | M170: 137.7198 | N170: 7.26358265e-06 | O170: 137.7126
A171: 168 | B171: Montenegro | C171: 54.6326 | D171: 7.050112327e-06 | F171: 168 | G171: Barbados | H171: 0.1636 | I171: 1.459263957e-08 | K171: 168 | L171: Liechtenstein | M171: 137.603 | N171: 7.257422415e-06 | O171: 134.0066
A172: 169 | B172: Caimão, Ilhas | C172: 53.1296 | D172: 6.856156359e-06 | F172: 169 | G172: Oceano Indico, Território Britânico do | H172: 0.1384 | I172: 1.234487357e-08 | K172: 169 | L172: Polinésia Francesa | M172: 133.9626 | N172: 7.065421364e-06 | O172: 133.9062
A173: 170 | B173: Ceuta e Melilha | C173: 51.6648 | D173: 6.667129944e-06 | F173: 170 | G173: Niger | H173: 0.1252 | I173: 1.116747234e-08 | K173: 170 | L173: Bósnia-Herzegovina | M173: 133.0896 | N173: 7.01937782e-06 | O173: 47.9748
A174: 171 | B174: Bahamas | C174: 43.9552 | D174: 5.672237773e-06 | F174: 171 | G174: Burundi | H174: 0.114 | I174: 1.016846523e-08 | K174: 171 | L174: Niger | M174: 126.8572 | N174: 6.690670165e-06 | O174: 126.6068
A175: 172 | B175: Usbequistão | C175: 41.3426 | D175: 5.335092489e-06 | F175: 172 | G175: Trindade e Tobago | H175: 0.069 | I175: 6.154597374e-09 | K175: 172 | L175: Nepal | M175: 90.5518 | N175: 4.775859996e-06 | O175: 85.235
A176: 173 | B176: Virgens dos Estados Unidos, Ilhas | C176: 26.0742 | D176: 3.364768267e-06 | F176: 173 | G176: Gâmbia | H176: 0.039 | I176: 3.478685472e-09 | K176: 173 | L176: Centro-Africana, República | M176: 89.9082 | N176: 4.741915408e-06 | O176: 89.9082
A177: 174 | B177: Turcas e Caicos, Ilhas | C177: 25.0024 | D177: 3.226456886e-06 | F177: 174 | G177: Polinésia Francesa | H177: 0.0282 | I177: 2.515357188e-09 | K177: 174 | L177: Tajiquistão | M177: 74.7168 | N177: 3.940694455e-06 | O177: -74.7168
A178: 175 | B178: Quirguizistão | C178: 23.7908 | D178: 3.070104889e-06 | F178: 175 | G178: Nova Caledónia | H178: 0.028 | I178: 2.497517775e-09 | K178: 175 | L178: Jibuti | M178: 70.7204 | N178: 3.729917343e-06 | O178: 70.7204
A179: 176 | B179: Guiana | C179: 20.1352 | D179: 2.598364744e-06 | F179: 176 | G179: Papuásia-Nova Guiné | H179: 0.0222 | I179: 1.980174807e-09 | K179: 176 | L179: Montenegro | M179: 54.634 | N179: 2.881492527e-06 | O179: 54.6312
A180: 177 | B180: Belize | C180: 19.5092 | D180: 2.517582019e-06 | F180: 177 | G180: Gibraltar | H180: 0.0216 | I180: 1.926656569e-09 | K180: 177 | L180: Caimão, Ilhas | M180: 53.1304 | N180: 2.802190038e-06 | O180: 53.1288
A181: 178 | B181: Mongólia | C181: 19.1206 | D181: 2.467434787e-06 | F181: 178 | G181: São Vicente e Granadinas | H181: 0.0144 | I181: 1.284437713e-09 | K181: 178 | L181: Ceuta e Melilha | M181: 51.6648 | N181: 2.724891736e-06 | O181: 51.6648
A182: 179 | B182: Afeganistão | C182: 18.9718 | D182: 2.448232759e-06 | F182: 179 | G182: Mongólia | H182: 0.0112 | I182: 9.9900711e-10 | K182: 179 | L182: Bahamas | M182: 43.9552 | N182: 2.318273975e-06 | O182: 43.9552
A183: 180 | B183: Barbados | C183: 15.4724 | D183: 1.996649582e-06 | F183: 180 | G183: Santa Lúcia | H183: 0.009 | I183: 8.027735706e-10 | K183: 180 | L183: Quirguizistão | M183: 41.2954 | N183: 2.17799148e-06 | O183: 6.2862
A184: 181 | B184: Virgens Britânicas, Ilhas | C184: 13.47 | D184: 1.738248098e-06 | F184: 181 | G184: Virgens Britânicas, Ilhas | H184: 0.007 | I184: 6.243794438e-10 | K184: 181 | L184: Botswana | M184: 30.0886 | N184: 1.586925286e-06 | O184: -29.9854
A185: 182 | B185: Laos, República Democrática Popular do | C185: 13.1192 | D185: 1.692978801e-06 | F185: 182 | G185: Maldivas | H185: 0.0036 | I185: 3.211094282e-10 | K185: 182 | L185: Virgens dos Estados Unidos, Ilhas | M185: 26.0742 | N185: 1.375198822e-06 | O185: 26.0742
A186: 183 | B186: Brunei Darussalam | C186: 12.819 | D186: 1.654239226e-06 | F186: 183 | G186: Faroé, Ilhas | H186: 0.0026 | I186: 2.319123648e-10 | K186: 183 | L186: São Marino | M186: 25.2486 | N186: 1.331655237e-06 | O186: -25.2006
A187: 184 | B187: Fiji, Ilhas | C187: 11.4226 | D187: 1.474039549e-06 | F187: 184 | G187: Haiti | H187: 0.0024 | I187: 2.140729521e-10 | K187: 184 | L187: Turcas e Caicos, Ilhas | M187: 25.0024 | N187: 1.318670219e-06 | O187: 25.0024
A188: 185 | B188: Turquemenistão | C188: 7.2876 | D188: 9.404348063e-07 | F188: 185 | G188: Montenegro | H188: 0.0014 | I188: 1.248758888e-10 | K188: 185 | L188: Afeganistão | M188: 19.5566 | N188: 1.031449221e-06 | O188: 18.387
A189: 186 | B189: Santa Lúcia | C189: 7.138 | D189: 9.211295416e-07 | F189: 186 | G189: Caimão, Ilhas | H189: 0.0008 | I189: 7.135765072e-11 | K189: 186 | L189: Mongólia | M189: 19.1318 | N189: 1.009044528e-06 | O189: 19.1094
A190: 187 | B190: Malavi | C190: 6.6344 | D190: 8.561420329e-07 | F190: 187 | G190: Anguila | H190: 0 | I190: 0 | K190: 187 | L190: Barbados | M190: 15.636 | N190: 8.246699336e-07 | O190: 15.3088
A191: 188 | B191: Bonaire, Santo Eustáquio e Saba | C191: 6.6316 | D191: 8.557807044e-07 | F191: 188 | G191: Antárctica | H191: 0 | I191: 0 | K191: 188 | L191: Fiji, Ilhas | M191: 13.6736 | N191: 7.211695321e-07 | O191: 9.1716
A192: 189 | B192: Guam | C192: 6.3336 | D192: 8.1732503e-07 | F192: 189 | G192: Antilhas Holandesas | H192: 0 | I192: 0 | K192: 189 | L192: Virgens Britânicas, Ilhas | M192: 13.477 | N192: 7.108005049e-07 | O192: 13.463
A193: 190 | B193: São Vicente e Granadinas | C193: 4.3128 | D193: 5.565491015e-07 | F193: 190 | G193: Bahamas | H193: 0 | I193: 0 | K193: 190 | L193: São Cristovão e Nevis | M193: 13.1558 | N193: 6.938598563e-07 | O193: -11.657
A194: 191 | B194: Sudão do Sul | C194: 3.771 | D194: 4.8663204e-07 | F194: 191 | G194: Bonaire, Santo Eustáquio e Saba | H194: 0 | I194: 0 | K194: 191 | L194: Brunei Darussalam | M194: 12.819 | N194: 6.760964364e-07 | O194: 12.819
A195: 192 | B195: Marianas do Norte, Ilhas | C195: 2.9244 | D195: 3.77381792e-07 | F195: 192 | G195: Bouvet, Ilha | H195: 0 | I195: 0 | K195: 192 | L195: Santa Lúcia | M195: 7.147 | N195: 3.769452555e-07 | O195: 7.129
A196: 193 | B196: Papuásia-Nova Guiné | C196: 2.8856 | D196: 3.723748116e-07 | F196: 193 | G196: Brunei Darussalam | H196: 0 | I196: 0 | K196: 193 | L196: Bonaire, Santo Eustáquio e Saba | M196: 6.6316 | N196: 3.497621599e-07 | O196: 6.6316
A197: 194 | B197: Anguila | C197: 2.7816 | D197: 3.589540393e-07 | F197: 194 | G197: Butão | H197: 0 | I197: 0 | K197: 194 | L197: Guam | M197: 6.3336 | N197: 3.340451197e-07 | O197: 6.3336
A198: 195 | B198: Domínica | C198: 1.4248 | D198: 1.838645798e-07 | F198: 195 | G198: Centro-Africana, República | H198: 0 | I198: 0 | K198: 195 | L198: São Vicente e Granadinas | M198: 4.3272 | N198: 2.282240814e-07 | O198: 4.2984
A199: 196 | B199: São Cristovão e Nevis | C199: 0.7494 | D199: 9.670698773e-08 | F199: 196 | G199: Ceuta | H199: 0 | I199: 0 | K199: 196 | L199: Sudão do Sul | M199: 3.771 | N199: 1.988891225e-07 | O199: 3.771
A200: 197 | B200: Granada | C200: 0.6942 | D200: 8.958365477e-08 | F200: 197 | G200: Ceuta e Melilha | H200: 0 | I200: 0 | K200: 197 | L200: Marianas do Norte, Ilhas | M200: 2.9244 | N200: 1.542379607e-07 | O200: 2.9244
... 58 more rows

Sheet 2A
A1: Parceiros comerciais de Portugal - União Europeia vs. Países Terceiros (média 2019-2023 em milhões de euros) produtos agrícolas e agroalimentares, do mar e da floresta
A2: Exportações | F2: Importações | K2: Trocas comerciais (total e saldo)
A3: P | B3: Grupo de Países | C3: média quinquénio | D3: % do Total | F3: P | G3: Grupo de Países | H3: média quinquénio | I3: % do Total | K3: P | L3: Grupo de Países | M3: média quinquénio | N3: % do Total | O3: Saldo (exp-imp)
A4: 1 | B4: União Europeia | C4: 9409.176433 | D4: 0.6779928854 | F4: 1 | G4: União Europeia | H4: 12697.74833 | I4: 0.7853388315 | K4: 1 | L4: União Europeia | M4: 22106.92477 | N4: 0.7357574677 | O4: -3288.571901
A5: 2 | B5: Países Terceiros | C5: 4469.085973 | D5: 0.3220269612 | F5: 2 | G5: Países Terceiros | H5: 3470.748402 | I5: 0.2146611685 | K5: 2 | L5: Países Terceiros | M5: 7939.834375 | N5: 0.2642516992 | O5: 998.3375714
B6: Outros | C6: -0.2754318 | D6: -1.9846668e-05 | G6: Outros | H6: 0 | I6: 0 | L6: Outros | M6: -0.2754318 | N6: -9.16685635e-06 | O6: -0.2754318
B7: Total | C7: 13877.98697 | D7: 1 | G7: Total | H7: 16168.49674 | I7: 1 | L7: Total | M7: 30046.48371 | N7: 1 | O7: -2290.509762
F27: valores em milhões de euros
A28: Nota: Outros = Países não determinados, abastecimentos de bordo, etc.
A29: Fonte: GPP a partir de dados INE/Comércio Internacional (2022 provisórios) | M29: 2024-07-09

Sheet 3
A1: Principais produtos agrícolas e agroalimentares, do mar e da floresta transacionados entre Portugal e África do Sul em 2019-2023 (NC a 2 e 4 dígitos) em milhões de euros
AC4: P | AE4: Cód.NC | AF4: Descritivo | AG4: Média export quinquénio | AH4: % do total | AI4: % acumulada | AN4: P | AO4: NC | AP4: Exportações | AQ4: 2019 | AR4: 2020 | AS4: 2021 | AT4: 2022 | AU4: 2023 | AV4: média quinquénio
AC5: 1 | AD5: º | AE5: 15 | AF5: Gorduras e óleos animais ou vegetais | AG5: 9.484675 | AH5: 0.2576557232 | AN5: 1º | AO5: 15 | AP5: Gorduras e óleos animais ou vegetais | AQ5: 13.470886 | AR5: 9.777437 | AS5: 3.547101 | AT5: 12.332892 | AU5: 8.295059 | AV5: 9.484675
AC6: 2 | AD6: º | AE6: 45 | AF6: Cortiça e suas obras | AG6: 8.2812078 | AH6: 0.2249629623 | AN6: 2º | AO6: 45 | AP6: Cortiça e suas obras | AQ6: 9.040743 | AR6: 6.720696 | AS6: 8.349448 | AT6: 9.39799 | AU6: 7.897162 | AV6: 8.2812078
AC7: 3 | AD7: º | AE7: 48 | AF7: Papel e cartão | AG7: 4.7210168 | AH7: 0.1282486746 | AI7: 0.6108673601 | AN7: 3º | AO7: 48 | AP7: Papel e cartão | AQ7: 3.699063 | AR7: 2.597519 | AS7: 4.827419 | AT7: 8.011343 | AU7: 4.46974 | AV7: 4.7210168
AC8: 4 | AD8: º | AE8: 19a | AF8: Preparações à base de cereais (exc. NC 19022010) (a) | AG8: 2.9663732 | AH8: 0.08058294376 | AO8: - | AP8: Outros | AQ8: 12.123556 | AR8: 9.81828 | AS8: 20.863724 | AT8: 18.861073 | AU8: 9.956007 | AV8: 14.324528
AC9: 5 | AD9: º | AE9: 20 | AF9: Preparações de produtos vegetais | AG9: 2.022815 | AH9: 0.05495073492 | AP9: Total | AQ9: 38.334248 | AR9: 28.913932 | AS9: 37.587692 | AT9: 48.603298 | AU9: 30.617968 | AV9: 36.8114276
AC10: 6 | AD10: º | AE10: 22 | AF10: Bebidas, líquidos alcoólicos e vinagres | AG10: 1.5995904 | AH10: 0.04345363666
AC11: 7 | AD11: º | AE11: 23a | AF11: Resíduos indústrias alimentares; alimentos p/ animais (exc. NC 230120) (a) | AG11: 1.249181 | AH11: 0.03393459807
AC12: 8 | AD12: º | AE12: 11 | AF12: Produtos da indústria de moagem e outros | AG12: 1.0937282 | AH12: 0.02971164856
AC13: 9 | AD13: º | AE13: 18 | AF13: Cacau e suas preparações | AG13: 1.0872412 | AH13: 0.02953542611
AC14: 10 | AD14: º | AE14: 04 | AF14: Leite e laticínios; ovos; mel, etc. | AG14: 0.7122508 | AH14: 0.01934863292 | AI14: 0.9023849811
AE15: - | AF15: Outros | AG15: 3.5933482 | AH15: 0.09761501888
AE16: Total | AG16: 36.8114276 | AH16: 1
AC38: P | AE38: Cód.NC | AF38: Descritivo | AG38: Média import quinquénio | AH38: % do total | AI38: % acumulada | AN38: P | AO38: NC | AP38: Importações | AQ38: 2019 | AR38: 2020 | AS38: 2021 | AT38: 2022 | AU38: 2023 | AV38: média quinquénio
AC39: 1 | AD39: º | AE39: 08 | AF39: Frutas | AG39: 109.8218098 | AH39: 0.7195166129 | AN39: 1º | AO39: 08 | AP39: Frutas | AQ39: 76.949688 | AR39: 124.943954 | AS39: 93.176527 | AT39: 111.587948 | AU39: 142.450932 | AV39: 109.8218098
AC40: 2 | AD40: º | AE40: 03 | AF40: Peixes e crustáceos | AG40: 28.9781674 | AH40: 0.189855484 | AN40: 2º | AO40: 03 | AP40: Peixes e crustáceos | AQ40: 36.036059 | AR40: 31.003053 | AS40: 27.319638 | AT40: 24.655736 | AU40: 25.876351 | AV40: 28.9781674
AC41: 3 | AD41: º | AE41: 12 | AF41: Sementes e frutos oleaginosos | AG41: 3.9815986 | AH41: 0.02608613302 | AI41: 0.9354582299 | AN41: 3º | AO41: 12 | AP41: Sementes e frutos oleaginosos | AQ41: 0.111716 | AR41: 0.070128 | AS41: 0.05532 | AT41: 1.128897 | AU41: 18.541932 | AV41: 3.9815986
AC42: 4 | AD42: º | AE42: 10 | AF42: Cereais | AG42: 3.507111 | AH42: 0.0229774453 | AO42: - | AP42: Outros | AQ42: 4.352657 | AR42: 3.217754 | AS42: 3.136775 | AT42: 34.449092 | AU42: 4.099666 | AV42: 9.8511888
AC43: 5 | AD43: º | AE43: 17 | AF43: Açúcares e produtos de confeitaria | AG43: 3.1443574 | AH43: 0.02060080225 | AP43: Total | AQ43: 117.45012 | AR43: 159.234889 | AS43: 123.68826 | AT43: 171.821673 | AU43: 190.968881 | AV43: 152.6327646
AC44: 6 | AD44: º | AE44: 16p | AF44: Preparações e conservas de peixes ou crustáceos (NC 1604-05) (p) | AG44: 0.7411984 | AH44: 0.004856089726
AC45: 7 | AD45: º | AE45: 07 | AF45: Produtos hortícolas | AG45: 0.4803558 | AH45: 0.003147134242
AC46: 8 | AD46: º | AE46: 20 | AF46: Preparações de produtos vegetais | AG46: 0.310102 | AH46: 0.002031686976
AC47: 9 | AD47: º | AE47: 46 | AF47: Obras de espartaria ou de cestaria | AG47: 0.2997136 | AH47: 0.001963625574
AC48: 10 | AD48: º | AE48: 13f | AF48: Gomas e resinas (NC 1301) (f) | AG48: 0.264376 | AH48: 0.001732105166 | AI48: 0.9927671192
AE49: - | AF49: Outros | AG49: 1.1039746 | AH49: 0.007232880849
AE50: Total | AG50: 152.6327646 | AH50: 1
AC62: DESAGREGAÇÃO A 4 DÍGITOS | AN62: DESAGREGAÇÃO A 4 DÍGITOS
AC64: P | AE64: Cód.NC | AF64: Descritivo | AG64: Média export quinquénio | AH64: % do total | AI64: % acumulada | AN64: P | AO64: NC | AP64: Exportações | AQ64: 2019 | AR64: 2020 | AS64: 2021 | AT64: 2022 | AU64: 2023 | AV64: média quinquénio
AC65: 1 | AD65: º | AE65: 1512 | AF65: Óleos de girassol, cártamo ou algodão | AG65: 4.9297644 | AH65: 0.1339194028 | AN65: 1º | AO65: 1512 | AP65: Óleos de girassol, cártamo ou algodão | AQ65: 10.800381 | AR65: 7.900997 | AS65: 0.036958 | AT65: 0 | AU65: 5.910486 | AV65: 4.9297644
AC66: 2 | AD66: º | AE66: 4503 | AF66: Obras de cortiça natural | AG66: 4.4096928 | AH66: 0.1197914096 | AN66: 2º | AO66: 4503 | AP66: Obras de cortiça natural | AQ66: 5.952384 | AR66: 3.329981 | AS66: 4.612407 | AT66: 4.23347 | AU66: 3.920222 | AV66: 4.4096928
AC67: 3 | AD67: º | AE67: 4802 | AF67: Papel e cartão p/ escrita, etc. | AG67: 4.2666454 | AH67: 0.1159054587 | AI67: 0.369616271 | AN67: 3º | AO67: 4802 | AP67: Papel e cartão p/ escrita, etc. | AQ67: 2.996842 | AR67: 2.103411 | AS67: 4.486659 | AT67: 7.569342 | AU67: 4.176973 | AV67: 4.2666454
AC68: 4 | AD68: º | AE68: 4504 | AF68: Cortiça aglomerada e suas obras | AG68: 3.8699056 | AH68: 0.1051278326 | AN68: - | AO68: - | AP68: Outros | AQ68: 18.584641 | AR68: 15.579543 | AS68: 28.451668 | AT68: 36.800486 | AU68: 16.610287 | AV68: 23.205325
AC69: 5 | AD69: º | AE69: 1520 | AF69: Glicerol em bruto; águas e lixívias | AG69: 2.2161356 | AH69: 0.06020238128 | AP69: Total | AQ69: 38.334248 | AR69: 28.913932 | AS69: 37.587692 | AT69: 48.603298 | AU69: 30.617968 | AV69: 36.8114276
AC70: 6 | AD70: º | AE70: 2002 | AF70: Tomates preparados | AG70: 1.8195504 | AH70: 0.04942895505
AC71: 7 | AD71: º | AE71: 1507 | AF71: Óleo de soja e suas frações | AG71: 1.4427118 | AH71: 0.03919195462
AC72: 8 | AD72: º | AE72: 1905 | AF72: Produtos de padaria, pastelaria, etc. | AG72: 1.0899426 | AH72: 0.02960881093
AC73: 9 | AD73: º | AE73: 1107 | AF73: Malte, mesmo torrado | AG73: 1.0872956 | AH73: 0.02953690392
AC74: 10 | AD74: º | AE74: 1806 | AF74: Chocolate e outras preparações com cacau | AG74: 1.0853876 | AH74: 0.02948507218 | AI74: 0.7121981816
AE75: - | AF75: Outros | AG75: 10.5943958 | AH75: 0.2878018184
AE76: Total | AG76: 36.8114276 | AH76: 1
AC89: DESAGREGAÇÃO A 4 DÍGITOS | AN89: DESAGREGAÇÃO A 4 DÍGITOS
G91: média 2019-2023 em milhões de euros | I91: Cód. NC | J91: Descritivo | K91: Export | L91: Import | M91: Saldo | AC91: P | AE91: Cód.NC | AF91: Descritivo | AG91: Média import quinquénio | AH91: % do total | AI91: % acumulada | AN91: P | AO91: NC | AP91: Importações | AQ91: 2019 | AR91: 2020 | AS91: 2021 | AT91: 2022 | AU91: 2023 | AV91: média quinquénio
I92: 1512 | J92: Óleos de girassol, cártamo ou algodão | K92: 4.9297644 | L92: 0 | M92: 4.9297644 | AC92: 1 | AD92: º | AE92: 0805 | AF92: Citrinos, frescos ou secos | AG92: 99.0340378 | AH92: 0.6488386557 | AN92: 1º | AO92: 0805 | AP92: Citrinos, frescos ou secos | AQ92: 69.189162 | AR92: 115.181955 | AS92: 82.951385 | AT92: 99.81078 | AU92: 128.036907 | AV92: 99.0340378
I93: 4802 | J93: Papel e cartão p/ escrita, etc. | K93: 4.2666454 | L93: 0.000127 | M93: 4.2665184 | AC93: 2 | AD93: º | AE93: 0303 | AF93: Peixes congelados | AG93: 14.8063966 | AH93: 0.09700667245 | AN93: 2º | AO93: 0303 | AP93: Peixes congelados | AQ93: 20.878 | AR93: 17.225007 | AS93: 14.266178 | AT93: 10.538312 | AU93: 11.124486 | AV93: 14.8063966
I94: 4503 | J94: Obras de cortiça natural | K94: 4.4096928 | L94: 0.1536022 | M94: 4.2560906 | AC94: 3 | AD94: º | AE94: 0304 | AF94: Filetes de peixes | AG94: 9.5031518 | AH94: 0.06226154538 | AI94: 0.8081068735 | AN94: 3º | AO94: 0304 | AP94: Filetes de peixes | AQ94: 10.420952 | AR94: 7.308493 | AS94: 9.220139 | AT94: 9.056507 | AU94: 11.509668 | AV94: 9.5031518
I95: 4504 | J95: Cortiça aglomerada e suas obras | K95: 3.8699056 | L95: 0.0116874 | M95: 3.8582182 | AC95: 4 | AD95: º | AE95: 0808 | AF95: Maçãs, peras e marmelos, frescos | AG95: 5.8074808 | AH95: 0.03804871657 | AN95: - | AO95: - | AP95: Outros | AQ95: 16.962006 | AR95: 19.519434 | AS95: 17.250558 | AT95: 52.416074 | AU95: 40.29782 | AV95: 29.2891784
I96: 1520 | J96: Glicerol em bruto; águas e lixívias | K96: 2.2161356 | L96: 0 | M96: 2.2161356 | AC96: 5 | AD96: º | AE96: 0307 | AF96: Moluscos | AG96: 4.4239046 | AH96: 0.0289839774 | AP96: Total | AQ96: 117.45012 | AR96: 159.234889 | AS96: 123.68826 | AT96: 171.821673 | AU96: 190.968881 | AV96: 152.6327646
I97: 2002 | J97: Tomates preparados | K97: 1.8195504 | L97: 0 | M97: 1.8195504 | AC97: 6 | AD97: º | AE97: 1005 | AF97: Milho | AG97: 3.5070138 | AH97: 0.02297680848
I98: 1507 | J98: Óleo de soja e suas frações | K98: 1.4427118 | L98: 0 | M98: 1.4427118 | AC98: 7 | AD98: º | AE98: 1201 | AF98: Soja, mesmo triturada | AG98: 3.2255252 | AH98: 0.02113258715
I99: 1905 | J99: Produtos de padaria, pastelaria, etc. | K99: 1.0899426 | L99: 8.98e-05 | M99: 1.0898528 | AC99: 8 | AD99: º | AE99: 1701 | AF99: Açúcares (cana/beterraba); sacarose pura | AG99: 3.144306 | AH99: 0.02060046549
I100: 1107 | J100: Malte, mesmo torrado | K100: 1.0872956 | L100: 0 | M100: 1.0872956 | AC100: 9 | AD100: º | AE100: 0804 | AF100: Tâmaras, figos, ananases, abacates, goiabas, mangas | AG100: 2.3518538 | AH100: 0.01540857762
I101: 1806 | J101: Chocolate e outras preparações com cacau | K101: 1.0853876 | L101: 0.0002342 | M101: 1.0851534 | AC101: 10 | AD101: º | AE101: 0806 | AF101: Uvas, frescas ou secas | AG101: 1.9207518 | AH101: 0.01258413818 | AI101: 0.9678421444
I102: - | J102: Outros | K102: 10.3949274 | L102: 4.7426018 | M102: 5.6523256 | AE102: - | AF102: Outros | AG102: 4.9083424 | AH102: 0.03215785557
I103: 0806 | J103: Uvas, frescas ou secas | K103: 0.0294418 | L103: 1.9207518 | M103: -1.89131 | AE103: Total | AG103: 152.6327646 | AH103: 1
I104: 0804 | J104: Tâmaras, figos, ananases, abacates, goiabas, mangas | K104: 0.0012066 | L104: 2.3518538 | M104: -2.3506472
I105: 1701 | J105: Açúcares (cana/beterraba); sacarose pura | K105: 0 | L105: 3.144306 | M105: -3.144306
I106: 1201 | J106: Soja, mesmo triturada | K106: 0 | L106: 3.2255252 | M106: -3.2255252
I107: 1005 | J107: Milho | K107: 0 | L107: 3.5070138 | M107: -3.5070138
I108: 0307 | J108: Moluscos | K108: 0.0300358 | L108: 4.4239046 | M108: -4.3938688
I109: 0808 | J109: Maçãs, peras e marmelos, frescos | K109: 0 | L109: 5.8074808 | M109: -5.8074808
I110: 0304 | J110: Filetes de peixes | K110: 0.004553 | L110: 9.5031518 | M110: -9.4985988
I111: 0303 | J111: Peixes congelados | K111: 0.1316578 | L111: 14.8063966 | M111: -14.6747388
I112: 0805 | J112: Citrinos, frescos ou secos | K112: 0.0025734 | L112: 99.0340378 | M112: -99.0314644
I113: Total | K113: 36.8114276 | L113: 152.6327646 | M113: -115.821337
A116: Fonte: GPP a partir de dados INE/Comércio Internacional (2022 definitivos) | Y116: 2024-07-23T14:50:46.270

Sheet 3A
A1: Principais produtos agrícolas e agroalimentares transacionados entre Portugal e África do Sul em 2019-2023 (NC a 2 e 4 dígitos) em milhões de euros
AC4: P | AE4: Cód.NC | AF4: Descritivo | AG4: Média export quinquénio | AH4: % do total | AI4: % acumulada | AN4: P | AO4: NC | AP4: Exportações | AQ4: 2019 | AR4: 2020 | AS4: 2021 | AT4: 2022 | AU4: 2023 | AV4: média quinquénio
AC5: 1 | AD5: º | AE5: 15 | AF5: Gorduras e óleos animais ou vegetais | AG5: 9.484675 | AH5: 0.4279865814 | AN5: 1º | AO5: 15 | AP5: Gorduras e óleos animais ou vegetais | AQ5: 13.470886 | AR5: 9.777437 | AS5: 3.547101 | AT5: 12.332892 | AU5: 8.295059 | AV5: 9.484675
AC6: 2 | AD6: º | AE6: 19a | AF6: Preparações à base de cereais (exc. NC 19022010) (a) | AG6: 2.9663732 | AH6: 0.1338546577 | AN6: 2º | AO6: 19a | AP6: Preparações à base de cereais (exc. NC 19022010) (a) | AQ6: 2.39955 | AR6: 2.687934 | AS6: 4.694096 | AT6: 3.112985 | AU6: 1.937301 | AV6: 2.9663732
AC7: 3 | AD7: º | AE7: 20 | AF7: Preparações de produtos vegetais | AG7: 2.022815 | AH7: 0.09127752682 | AI7: 0.6531187659 | AN7: 3º | AO7: 20 | AP7: Preparações de produtos vegetais | AQ7: 1.867986 | AR7: 1.714816 | AS7: 3.066925 | AT7: 3.349354 | AU7: 0.114994 | AV7: 2.022815
AC8: 4 | AD8: º | AE8: 22 | AF8: Bebidas, líquidos alcoólicos e vinagres | AG8: 1.5995904 | AH8: 0.07217993521 | AO8: - | AP8: Outros | AQ8: 6.080751 | AR8: 4.335108 | AS8: 11.235429 | AT8: 10.00177 | AU8: 6.783378 | AV8: 7.6872872
AC9: 5 | AD9: º | AE9: 23a | AF9: Resíduos indústrias alimentares; alimentos p/ animais (exc. NC 230120) (a) | AG9: 1.249181 | AH9: 0.0563680575 | AP9: Total | AQ9: 23.819173 | AR9: 18.515295 | AS9: 22.543551 | AT9: 28.797001 | AU9: 17.130732 | AV9: 22.1611504
AC10: 6 | AD10: º | AE10: 11 | AF10: Produtos da indústria de moagem e outros | AG10: 1.0937282 | AH10: 0.0493534036
AC11: 7 | AD11: º | AE11: 18 | AF11: Cacau e suas preparações | AG11: 1.0872412 | AH11: 0.04906068414
AC12: 8 | AD12: º | AE12: 04 | AF12: Leite e laticínios; ovos; mel, etc. | AG12: 0.7122508 | AH12: 0.03213961311
AC13: 9 | AD13: º | AE13: 21 | AF13: Preparações alimentícias diversas | AG13: 0.4351248 | AH13: 0.01963457637
AC14: 10 | AD14: º | AE14: 38a | AF14: Agentes de acabamento, ácidos gordos, sorbitol (NC 380910, 382311-12-13-19-70, 382460) (a) | AG14: 0.4127068 | AH14: 0.01862298629 | AI14: 0.9504780221
AE15: - | AF15: Outros | AG15: 1.097464 | AH15: 0.04952197788
AE16: Total | AG16: 22.1611504 | AH16: 1
AC38: P | AE38: Cód.NC | AF38: Descritivo | AG38: Média import quinquénio | AH38: % do total | AI38: % acumulada | AN38: P | AO38: NC | AP38: Importações | AQ38: 2019 | AR38: 2020 | AS38: 2021 | AT38: 2022 | AU38: 2023 | AV38: média quinquénio
AC39: 1 | AD39: º | AE39: 08 | AF39: Frutas | AG39: 109.8218098 | AH39: 0.8999532612 | AN39: 1º | AO39: 08 | AP39: Frutas | AQ39: 76.949688 | AR39: 124.943954 | AS39: 93.176527 | AT39: 111.587948 | AU39: 142.450932 | AV39: 109.8218098
AC40: 2 | AD40: º | AE40: 12 | AF40: Sementes e frutos oleaginosos | AG40: 3.9815986 | AH40: 0.0326278783 | AN40: 2º | AO40: 12 | AP40: Sementes e frutos oleaginosos | AQ40: 0.111716 | AR40: 0.070128 | AS40: 0.05532 | AT40: 1.128897 | AU40: 18.541932 | AV40: 3.9815986
AC41: 3 | AD41: º | AE41: 10 | AF41: Cereais | AG41: 3.507111 | AH41: 0.02873960999 | AI41: 0.9613207495 | AN41: 3º | AO41: 10 | AP41: Cereais | AQ41: 0.000486 | AR41: 0 | AS41: 0 | AT41: 17.535056 | AU41: 1.3e-05 | AV41: 3.507111
AC42: 4 | AD42: º | AE42: 17 | AF42: Açúcares e produtos de confeitaria | AG42: 3.1443574 | AH42: 0.0257669647 | AO42: - | AP42: Outros | AQ42: 2.736883 | AR42: 2.025089 | AS42: 1.614805 | AT42: 15.457616 | AU42: 1.765862 | AV42: 4.720051
AC43: 5 | AD43: º | AE43: 07 | AF43: Produtos hortícolas | AG43: 0.4803558 | AH43: 0.003936356262 | AP43: Total | AQ43: 79.798773 | AR43: 127.039171 | AS43: 94.846652 | AT43: 145.709517 | AU43: 162.758739 | AV43: 122.0305704
AC44: 6 | AD44: º | AE44: 20 | AF44: Preparações de produtos vegetais | AG44: 0.310102 | AH44: 0.00254118291
AC45: 7 | AD45: º | AE45: 52 | AF45: Algodão (NC 5201-5203) | AG45: 0.1784152 | AH45: 0.001462053315
AC46: 8 | AD46: º | AE46: 15 | AF46: Gorduras e óleos animais ou vegetais | AG46: 0.1751348 | AH46: 0.001435171526
AC47: 9 | AD47: º | AE47: 22 | AF47: Bebidas, líquidos alcoólicos e vinagres | AG47: 0.1404058 | AH47: 0.001150578904
AC48: 10 | AD48: º | AE48: 41 | AF48: Couro e peles em bruto (NC 4101 a 4103) | AG48: 0.0820628 | AH48: 0.0006724773942 | AI48: 0.9982855345
AE49: - | AF49: Outros | AG49: 0.2092172 | AH49: 0.001714465476
AE50: Total | AG50: 122.0305704 | AH50: 1
AC62: DESAGREGAÇÃO A 4 DÍGITOS | AN62: DESAGREGAÇÃO A 4 DÍGITOS
AC64: P | AE64: Cód.NC | AF64: Descritivo | AG64: Média export quinquénio | AH64: % do total | AI64: % acumulada | AN64: P | AO64: NC | AP64: Exportações | AQ64: 2019 | AR64: 2020 | AS64: 2021 | AT64: 2022 | AU64: 2023 | AV64: média quinquénio
AC65: 1 | AD65: º | AE65: 1512 | AF65: Óleos de girassol, cártamo ou algodão | AG65: 4.9297644 | AH65: 0.2224507443 | AN65: 1º | AO65: 1512 | AP65: Óleos de girassol, cártamo ou algodão | AQ65: 10.800381 | AR65: 7.900997 | AS65: 0.036958 | AT65: 0 | AU65: 5.910486 | AV65: 4.9297644
AC66: 2 | AD66: º | AE66: 1520 | AF66: Glicerol em bruto; águas e lixívias | AG66: 2.2161356 | AH66: 0.1000009277 | AN66: 2º | AO66: 1520 | AP66: Glicerol em bruto; águas e lixívias | AQ66: 0.788984 | AR66: 1.164795 | AS66: 2.738088 | AT66: 4.443069 | AU66: 1.945742 | AV66: 2.2161356
AC67: 3 | AD67: º | AE67: 2002 | AF67: Tomates preparados | AG67: 1.8195504 | AH67: 0.08210541272 | AI67: 0.4045570847 | AN67: 3º | AO67: 2002 | AP67: Tomates preparados | AQ67: 1.482395 | AR67: 1.464566 | AS67: 2.936217 | AT67: 3.16796 | AU67: 0.046614 | AV67: 1.8195504
AC68: 4 | AD68: º | AE68: 1507 | AF68: Óleo de soja e suas frações | AG68: 1.4427118 | AH68: 0.0651009435 | AN68: - | AO68: - | AP68: Outros | AQ68: 10.747413 | AR68: 7.984937 | AS68: 16.832288 | AT68: 21.185972 | AU68: 9.22789 | AV68: 13.1957
AC69: 5 | AD69: º | AE69: 1905 | AF69: Produtos de padaria, pastelaria, etc. | AG69: 1.0899426 | AH69: 0.04918258215 | AP69: Total | AQ69: 23.819173 | AR69: 18.515295 | AS69: 22.543551 | AT69: 28.797001 | AU69: 17.130732 | AV69: 22.1611504
AC70: 6 | AD70: º | AE70: 1107 | AF70: Malte, mesmo torrado | AG70: 1.0872956 | AH70: 0.04906313889
AC71: 7 | AD71: º | AE71: 1806 | AF71: Chocolate e outras preparações com cacau | AG71: 1.0853876 | AH71: 0.04897704227
AC72: 8 | AD72: º | AE72: 1902 | AF72: Massas alimentícias (exc. NC 1902 20 10) (a) | AG72: 1.0751928 | AH72: 0.048517012
AC73: 9 | AD73: º | AE73: 2306 | AF73: Bagaços e outros resíduos sólidos de gorduras ou óleos vegetais | AG73: 0.9103554 | AH73: 0.04107888731
AC74: 10 | AD74: º | AE74: 2204 | AF74: Vinhos de uvas frescas | AG74: 0.8249916 | AH74: 0.03722693024 | AI74: 0.7437036211
AE75: - | AF75: Outros | AG75: 5.6798226 | AH75: 0.2562963789
AE76: Total | AG76: 22.1611504 | AH76: 1
AC89: DESAGREGAÇÃO A 4 DÍGITOS | AN89: DESAGREGAÇÃO A 4 DÍGITOS
G91: média 2019-2023 em milhões de euros | I91: Cód. NC | J91: Descritivo | K91: Export | L91: Import | M91: Saldo | AC91: P | AE91: Cód.NC | AF91: Descritivo | AG91: Média import quinquénio | AH91: % do total | AI91: % acumulada | AN91: P | AO91: NC | AP91: Importações | AQ91: 2019 | AR91: 2020 | AS91: 2021 | AT91: 2022 | AU91: 2023 | AV91: média quinquénio
I92: 1512 | J92: Óleos de girassol, cártamo ou algodão | K92: 4.9297644 | L92: 0 | M92: 4.9297644 | AC92: 1 | AD92: º | AE92: 0805 | AF92: Citrinos, frescos ou secos | AG92: 99.0340378 | AH92: 0.8115510521 | AN92: 1º | AO92: 0805 | AP92: Citrinos, frescos ou secos | AQ92: 69.189162 | AR92: 115.181955 | AS92: 82.951385 | AT92: 99.81078 | AU92: 128.036907 | AV92: 99.0340378
I93: 1520 | J93: Glicerol em bruto; águas e lixívias | K93: 2.2161356 | L93: 0 | M93: 2.2161356 | AC93: 2 | AD93: º | AE93: 0808 | AF93: Maçãs, peras e marmelos, frescos | AG93: 5.8074808 | AH93: 0.04759037658 | AN93: 2º | AO93: 0808 | AP93: Maçãs, peras e marmelos, frescos | AQ93: 5.129564 | AR93: 4.862808 | AS93: 5.444643 | AT93: 5.239578 | AU93: 8.360811 | AV93: 5.8074808
I94: 2002 | J94: Tomates preparados | K94: 1.8195504 | L94: 0 | M94: 1.8195504 | AC94: 3 | AD94: º | AE94: 1005 | AF94: Milho | AG94: 3.5070138 | AH94: 0.02873881347 | AI94: 0.8878802422 | AN94: 3º | AO94: 1005 | AP94: Milho | AQ94: 0 | AR94: 0 | AS94: 0 | AT94: 17.535056 | AU94: 1.3e-05 | AV94: 3.5070138
I95: 1507 | J95: Óleo de soja e suas frações | K95: 1.4427118 | L95: 0 | M95: 1.4427118 | AC95: 4 | AD95: º | AE95: 1201 | AF95: Soja, mesmo triturada | AG95: 3.2255252 | AH95: 0.02643210787 | AN95: - | AO95: - | AP95: Outros | AQ95: 5.480047 | AR95: 6.994408 | AS95: 6.450624 | AT95: 23.124103 | AU95: 26.361008 | AV95: 13.682038
I96: 1905 | J96: Produtos de padaria, pastelaria, etc. | K96: 1.0899426 | L96: 8.98e-05 | M96: 1.0898528 | AC96: 5 | AD96: º | AE96: 1701 | AF96: Açúcares (cana/beterraba); sacarose pura | AG96: 3.144306 | AH96: 0.0257665435 | AP96: Total | AQ96: 79.798773 | AR96: 127.039171 | AS96: 94.846652 | AT96: 145.709517 | AU96: 162.758739 | AV96: 122.0305704
I97: 1107 | J97: Malte, mesmo torrado | K97: 1.0872956 | L97: 0 | M97: 1.0872956 | AC97: 6 | AD97: º | AE97: 0804 | AF97: Tâmaras, figos, ananases, abacates, goiabas, mangas | AG97: 2.3518538 | AH97: 0.01927266088
I98: 1806 | J98: Chocolate e outras preparações com cacau | K98: 1.0853876 | L98: 0.0002342 | M98: 1.0851534 | AC98: 7 | AD98: º | AE98: 0806 | AF98: Uvas, frescas ou secas | AG98: 1.9207518 | AH98: 0.01573992315
I99: 1902 | J99: Massas alimentícias (exc. NC 1902 20 10) (a) | K99: 1.0751928 | L99: 0.0654438 | M99: 1.009749 | AC99: 8 | AD99: º | AE99: 1211 | AF99: Plantas, partes de plantas para usos não alimentares | AG99: 0.6847718 | AH99: 0.005611477499
I100: 2306 | J100: Bagaços e outros resíduos sólidos de gorduras ou óleos vegetais | K100: 0.9103554 | L100: 0 | M100: 0.9103554 | AC100: 9 | AD100: º | AE100: 0809 | AF100: Damascos, cerejas, pêssegos, etc., frescos | AG100: 0.3770326 | AH100: 0.00308965695
I101: 2204 | J101: Vinhos de uvas frescas | K101: 0.8249916 | L101: 0.0466092 | M101: 0.7783824 | AC101: 10 | AD101: º | AE101: 2009 | AF101: Sumos de frutas | AG101: 0.2468952 | AH101: 0.002023224174 | AI101: 0.9858158362
I102: - | J102: Outros | K102: 5.6374588 | L102: 1.6185246 | M102: 4.0189342 | AE102: - | AF102: Outros | AG102: 1.7309016 | AH102: 0.01418416381
I103: 2009 | J103: Sumos de frutas | K103: 0.0057306 | L103: 0.2468952 | M103: -0.2411646 | AE103: Total | AG103: 122.0305704 | AH103: 1
I104: 0809 | J104: Damascos, cerejas, pêssegos, etc., frescos | K104: 0.003328 | L104: 0.3770326 | M104: -0.3737046
I105: 1211 | J105: Plantas, partes de plantas para usos não alimentares | K105: 8.34e-05 | L105: 0.6847718 | M105: -0.6846884
I106: 0806 | J106: Uvas, frescas ou secas | K106: 0.0294418 | L106: 1.9207518 | M106: -1.89131
I107: 0804 | J107: Tâmaras, figos, ananases, abacates, goiabas, mangas | K107: 0.0012066 | L107: 2.3518538 | M107: -2.3506472
I108: 1701 | J108: Açúcares (cana/beterraba); sacarose pura | K108: 0 | L108: 3.144306 | M108: -3.144306
I109: 1201 | J109: Soja, mesmo triturada | K109: 0 | L109: 3.2255252 | M109: -3.2255252
I110: 1005 | J110: Milho | K110: 0 | L110: 3.5070138 | M110: -3.5070138
I111: 0808 | J111: Maçãs, peras e marmelos, frescos | K111: 0 | L111: 5.8074808 | M111: -5.8074808
I112: 0805 | J112: Citrinos, frescos ou secos | K112: 0.0025734 | L112: 99.0340378 | M112: -99.0314644
I113: Total | K113: 22.1611504 | L113: 122.0305704 | M113: -99.86942
A116: Fonte: GPP a partir de dados INE/Comércio Internacional (2022 definitivos) | Y116: 2024-07-23T14:50:46.270

Sheet 4A
A1: Evolução da balança comercial Portugal-África do Sul 2019-2023 por produto em euros (NC 2 dígitos)
A3: =+aux!A31 -> Evolução da balança comercial Portugal-África do Sul para Gorduras e óleos animais ou vegetais
A5: Selecione o produto:
Q7: Para obter uma maior desagregação deste produto, clique no botão respetivo:
A20: =+aux!A43 -> Evolução da balança comercial Portugal-África do Sul para Frutas
A22: Selecione o produto:
A38: Fonte: GPP a partir de dados INE/Comércio Internacional (2022 definitivos) | N38: 2024-07-23T14:50:46.270

Sheet 5.2
A1: Trocas comerciais Portugal-África do Sul 2019-2023 em milhares de euros (NC 2 dígitos) | C1: Produtos agrícolas e agroalimentares, do mar e da floresta
A2: Cód. NC | B2: Descritivo | C2: Importações | K2: Exportações | S2: Saldo quinquénio (exp-imp) | T2: Evolução das importações | U2: =+"Variação das Importações " & INDEX(K3:N3,1,aux!AL1) & "-"& '5.2'!O3 &"" -> Variação das Importações 2019-2023 | Z2: Evolução das exportações | AA2: ="Variação das Exportações " & INDEX(K3:N3,1,aux!AL1) & "-"& '5.2'!O3 &"" -> Variação das Exportações 2019-2023
C3: 2019 | D3: 2020 | E3: 2021 | F3: 2022 | G3: 2023 | H3: média quinquénio | I3: % Subtot | J3: % Total | K3: 2019 | L3: 2020 | M3: 2021 | N3: 2022 | O3: 2023 | P3: média quinquénio | Q3: % Subtot | R3: % Total | U3: variação total em valor | V3: % no subtotal de variação | W3: % no total de variação | X3: taxa de variação média anual | Y3: taxa de variação total | AA3: variação total em valor | AB3: % no subtotal de variação | AC3: % no total de variação | AD3: taxa de variação média anual | AE3: taxa de variação total
A4: 01 | B4: Animais vivos | C4: 1.78 | D4: 13.218 | E4: 27.295 | F4: 43.506 | G4: 23.239 | H4: 21.8076 | I4: 0.00017870604 | J4: 0.0001428762694 | K4: 1.41 | L4: 1.32 | M4: 2.325 | N4: 2.13 | O4: 3.002 | P4: 2.0374 | Q4: 9.193566052e-05 | R4: 5.53469434e-05 | S4: -19.7702 | U4: =G4-INDEX($C4:$G4,1,aux!$AL$1) -> 21.459 | V4: =IF($U$37<>0,U4/$U$37, "n.d.") -> 0.0002586669334 | W4: =IF($U$53<>0,U4/$U$53, "n.d.") -> 0.0002918846796 | X4: =+IF(INDEX($C4:$G4,1,aux!$AL$1)>0,(G4/INDEX($C4:$G4,1,aux!$AL$1))^(1/($G$3-INDEX($C$3:$G$3,1,aux!$AL$1)))-1,"n.d.") -> 0.9008566146 | Y4: =IF(INDEX($C4:$G4,1,aux!$AL$1)>0,(G4-INDEX($C4:$G4,1,aux!$AL$1))/INDEX($C4:$G4,1,aux!$AL$1),"n.d.") -> 12.05561798 | AA4: =O4-INDEX($K4:$O4,1,aux!$AL$1) -> 1.592 | AB4: =IF($AA$37<>0,AA4/$AA$37, "n.d.") -> -0.0002380225825 | AC4: =IF($AA$53<>0,AA4/$AA$53, "n.d.") -> -0.0002063170336 | AD4: =+IF(INDEX($K4:$O4,1,aux!$AL$1)>0,(O4/INDEX($K4:$O4,1,aux!$AL$1))^(1/($O$3-INDEX($K$3:$O$3,1,aux!$AL$1)))-1,"n.d.") -> 0.2079470397 | AE4: =IF(INDEX($K4:$O4,1,aux!$AL$1)>0,(O4-INDEX($K4:$O4,1,aux!$AL$1))/INDEX($K4:$O4,1,aux!$AL$1),"n.d.") -> 1.129078014
A5: 02 | B5: Carnes e miudezas | C5: 0 | D5: 0 | E5: 0 | F5: 0 | G5: 0 | H5: 0 | I5: 0 | J5: 0 | K5: 2.934 | L5: 1.479 | M5: 0 | N5: 0 | O5: 5.794 | P5: 2.0414 | Q5: 9.211615657e-05 | R5: 5.545560531e-05 | S5: 2.0414 | U5: =G5-INDEX($C5:$G5,1,aux!$AL$1) -> 0 | V5: 0 | W5: 0 | X5: =+IF(INDEX($C5:$G5,1,aux!$AL$1)>0,(G5/INDEX($C5:$G5,1,aux!$AL$1))^(1/($G$3-INDEX($C$3:$G$3,1,aux!$AL$1)))-1,"n.d.") -> n.d. | Y5: =IF(INDEX($C5:$G5,1,aux!$AL$1)>0,(G5-INDEX($C5:$G5,1,aux!$AL$1))/INDEX($C5:$G5,1,aux!$AL$1),"n.d.") -> n.d. | AA5: =O5-INDEX($K5:$O5,1,aux!$AL$1) -> 2.86 | AB5: -0.0004276033832 | AC5: -0.0003706449222 | AD5: =+IF(INDEX($K5:$O5,1,aux!$AL$1)>0,(O5/INDEX($K5:$O5,1,aux!$AL$1))^(1/($O$3-INDEX($K$3:$O$3,1,aux!$AL$1)))-1,"n.d.") -> 0.1854400489 | AE5: =IF(INDEX($K5:$O5,1,aux!$AL$1)>0,(O5-INDEX($K5:$O5,1,aux!$AL$1))/INDEX($K5:$O5,1,aux!$AL$1),"n.d.") -> 0.9747784594
A6: 04 | B6: Leite e laticínios; ovos; mel, etc. | C6: 0 | D6: 0 | E6: 0 | F6: 0.015 | G6: 0 | H6: 0.003 | I6: 2.458400375e-08 | J6: 1.965501973e-08 | K6: 1159.525 | L6: 274.314 | M6: 643.058 | N6: 1178.942 | O6: 305.415 | P6: 712.2508 | Q6: 0.03213961311 | R6: 0.01934863292 | S6: 712.2478 | U6: =G6-INDEX($C6:$G6,1,aux!$AL$1) -> 0 | V6: 0 | W6: 0 | X6: =+IF(INDEX($C6:$G6,1,aux!$AL$1)>0,(G6/INDEX($C6:$G6,1,aux!$AL$1))^(1/($G$3-INDEX($C$3:$G$3,1,aux!$AL$1)))-1,"n.d.") -> n.d. | Y6: =IF(INDEX($C6:$G6,1,aux!$AL$1)>0,(G6-INDEX($C6:$G6,1,aux!$AL$1))/INDEX($C6:$G6,1,aux!$AL$1),"n.d.") -> n.d. | AA6: =O6-INDEX($K6:$O6,1,aux!$AL$1) -> -854.11 | AB6: 0.1276994146 | AC6: 0.1106893477 | AD6: =+IF(INDEX($K6:$O6,1,aux!$AL$1)>0,(O6/INDEX($K6:$O6,1,aux!$AL$1))^(1/($O$3-INDEX($K$3:$O$3,1,aux!$AL$1)))-1,"n.d.") -> -0.2836049745 | AE6: =IF(INDEX($K6:$O6,1,aux!$AL$1)>0,(O6-INDEX($K6:$O6,1,aux!$AL$1))/INDEX($K6:$O6,1,aux!$AL$1),"n.d.") -> -0.7366033505
A7: 05a | B7: Outros produtos de origem animal (exc. NC 0508, 051191) (a) | C7: 0.332 | D7: 0 | E7: 0.034 | F7: 0.023 | G7: 0.003 | H7: 0.0784 | I7: 6.424619646e-07 | J7: 5.136511823e-07 | K7: 701.681 | L7: 636.625 | M7: 389.484 | N7: 293.707 | O7: 0.012 | P7: 404.3018 | Q7: 0.01824371897 | R7: 0.01098305136 | S7: 404.2234 | U7: =G7-INDEX($C7:$G7,1,aux!$AL$1) -> -0.329 | V7: -3.96576826e-06 | W7: -4.475048213e-06 | X7: =+IF(INDEX($C7:$G7,1,aux!$AL$1)>0,(G7/INDEX($C7:$G7,1,aux!$AL$1))^(1/($G$3-INDEX($C$3:$G$3,1,aux!$AL$1)))-1,"n.d.") -> -0.6916841918 | Y7: =IF(INDEX($C7:$G7,1,aux!$AL$1)>0,(G7-INDEX($C7:$G7,1,aux!$AL$1))/INDEX($C7:$G7,1,aux!$AL$1),"n.d.") -> -0.9909638554 | AA7: =O7-INDEX($K7:$O7,1,aux!$AL$1) -> -701.669 | AB7: 0.1049077057 | AC7: 0.09093358458 | AD7: =+IF(INDEX($K7:$O7,1,aux!$AL$1)>0,(O7/INDEX($K7:$O7,1,aux!$AL$1))^(1/($O$3-INDEX($K$3:$O$3,1,aux!$AL$1)))-1,"n.d.") -> -0.9356926842 | AE7: =IF(INDEX($K7:$O7,1,aux!$AL$1)>0,(O7-INDEX($K7:$O7,1,aux!$AL$1))/INDEX($K7:$O7,1,aux!$AL$1),"n.d.") -> -0.9999828982
A8: 06 | B8: Plantas vivas e produtos de floricultura | C8: 2.902 | D8: 6.962 | E8: 70.224 | F8: 162.872 | G8: 13.105 | H8: 51.213 | I8: 0.000419673528 | J8: 0.0003355308418 | K8: 0 | L8: 1.177 | M8: 2.528 | N8: 6.789 | O8: 2.261 | P8: 2.551 | Q8: 0.0001151113527 | R8: 6.929913253e-05 | S8: -48.662 | U8: =G8-INDEX($C8:$G8,1,aux!$AL$1) -> 10.203 | V8: 0.0001229870321 | W8: 0.0001387809025 | X8: =+IF(INDEX($C8:$G8,1,aux!$AL$1)>0,(G8/INDEX($C8:$G8,1,aux!$AL$1))^(1/($G$3-INDEX($C$3:$G$3,1,aux!$AL$1)))-1,"n.d.") -> 0.4577562238 | Y8: =IF(INDEX($C8:$G8,1,aux!$AL$1)>0,(G8-INDEX($C8:$G8,1,aux!$AL$1))/INDEX($C8:$G8,1,aux!$AL$1),"n.d.") -> 3.515851137 | AA8: =O8-INDEX($K8:$O8,1,aux!$AL$1) -> 2.261 | AB8: -0.0003380458914 | AC8: -0.0002930168423 | AD8: =+IF(INDEX($K8:$O8,1,aux!$AL$1)>0,(O8/INDEX($K8:$O8,1,aux!$AL$1))^(1/($O$3-INDEX($K$3:$O$3,1,aux!$AL$1)))-1,"n.d.") -> n.d. | AE8: =IF(INDEX($K8:$O8,1,aux!$AL$1)>0,(O8-INDEX($K8:$O8,1,aux!$AL$1))/INDEX($K8:$O8,1,aux!$AL$1),"n.d.") -> n.d.
A9: 07 | B9: Produtos hortícolas | C9: 382.366 | D9: 823.393 | E9: 233.445 | F9: 284.417 | G9: 678.158 | H9: 480.3558 | I9: 0.003936356262 | J9: 0.003147134242 | K9: 43.819 | L9: 18.052 | M9: 13.838 | N9: 13.722 | O9: 8.967 | P9: 19.6796 | Q9: 0.0008880224918 | R9: 0.0005346057266 | S9: -460.6762 | U9: =G9-INDEX($C9:$G9,1,aux!$AL$1) -> 295.792 | V9: 0.0035654788 | W9: 0.004023353984 | X9: =+IF(INDEX($C9:$G9,1,aux!$AL$1)>0,(G9/INDEX($C9:$G9,1,aux!$AL$1))^(1/($G$3-INDEX($C$3:$G$3,1,aux!$AL$1)))-1,"n.d.") -> 0.154018857 | Y9: =IF(INDEX($C9:$G9,1,aux!$AL$1)>0,(G9-INDEX($C9:$G9,1,aux!$AL$1))/INDEX($C9:$G9,1,aux!$AL$1),"n.d.") -> 0.7735834253 | AA9: =O9-INDEX($K9:$O9,1,aux!$AL$1) -> -34.852 | AB9: 0.005210780808 | AC9: 0.004516684205 | AD9: =+IF(INDEX($K9:$O9,1,aux!$AL$1)>0,(O9/INDEX($K9:$O9,1,aux!$AL$1))^(1/($O$3-INDEX($K$3:$O$3,1,aux!$AL$1)))-1,"n.d.") -> -0.3274165496 | AE9: =IF(INDEX($K9:$O9,1,aux!$AL$1)>0,(O9-INDEX($K9:$O9,1,aux!$AL$1))/INDEX($K9:$O9,1,aux!$AL$1),"n.d.") -> -0.7953627422
A10: 08 | B10: Frutas | C10: 76949.688 | D10: 124943.954 | E10: 93176.527 | F10: 111587.948 | G10: 142450.932 | H10: 109821.8098 | I10: 0.8999532612 | J10: 0.7195166129 | K10: 11.478 | L10: 215.357 | M10: 61.478 | N10: 22.096 | O10: 10.814 | P10: 64.2446 | Q10: 0.002898974053 | R10: 0.001745235221 | S10: -109757.5652 | U10: =G10-INDEX($C10:$G10,1,aux!$AL$1) -> 65501.244 | V10: 0.7895524451 | W10: 0.8909459723 | X10: =+IF(INDEX($C10:$G10,1,aux!$AL$1)>0,(G10/INDEX($C10:$G10,1,aux!$AL$1))^(1/($G$3-INDEX($C$3:$G$3,1,aux!$AL$1)))-1,"n.d.") -> 0.1664459188 | Y10: =IF(INDEX($C10:$G10,1,aux!$AL$1)>0,(G10-INDEX($C10:$G10,1,aux!$AL$1))/INDEX($C10:$G10,1,aux!$AL$1),"n.d.") -> 0.851221697 | AA10: =O10-INDEX($K10:$O10,1,aux!$AL$1) -> -0.664 | AB10: 9.927575051e-05 | AC10: 8.605182808e-05 | AD10: =+IF(INDEX($K10:$O10,1,aux!$AL$1)>0,(O10/INDEX($K10:$O10,1,aux!$AL$1))^(1/($O$3-INDEX($K$3:$O$3,1,aux!$AL$1)))-1,"n.d.") -> -0.01478722133 | AE10: =IF(INDEX($K10:$O10,1,aux!$AL$1)>0,(O10-INDEX($K10:$O10,1,aux!$AL$1))/INDEX($K10:$O10,1,aux!$AL$1),"n.d.") -> -0.05784979962
A11: 09 | B11: Café, chá, mate e especiarias | C11: 12.932 | D11: 13.6 | E11: 12.564 | F11: 4.072 | G11: 10.06 | H11: 10.6456 | I11: 8.723715676e-05 | J11: 6.974649269e-05 | K11: 313.584 | L11: 193.126 | M11: 173.406 | N11: 258.146 | O11: 215.514 | P11: 230.7552 | Q11: 0.01041260024 | R11: 0.006268575142 | S11: 220.1096 | U11: =G11-INDEX($C11:$G11,1,aux!$AL$1) -> -2.872 | V11: -3.461910773e-05 | W11: -3.906485856e-05 | X11: =+IF(INDEX($C11:$G11,1,aux!$AL$1)>0,(G11/INDEX($C11:$G11,1,aux!$AL$1))^(1/($G$3-INDEX($C$3:$G$3,1,aux!$AL$1)))-1,"n.d.") -> -0.06085409062 | Y11: =IF(INDEX($C11:$G11,1,aux!$AL$1)>0,(G11-INDEX($C11:$G11,1,aux!$AL$1))/INDEX($C11:$G11,1,aux!$AL$1),"n.d.") -> -0.222084751 | AA11: =O11-INDEX($K11:$O11,1,aux!$AL$1) -> -98.07 | AB11: 0.01466260972 | AC11: 0.01270949214 | AD11: =+IF(INDEX($K11:$O11,1,aux!$AL$1)>0,(O11/INDEX($K11:$O11,1,aux!$AL$1))^(1/($O$3-INDEX($K$3:$O$3,1,aux!$AL$1)))-1,"n.d.") -> -0.08949906102 | AE11: =IF(INDEX($K11:$O11,1,aux!$AL$1)>0,(O11-INDEX($K11:$O11,1,aux!$AL$1))/INDEX($K11:$O11,1,aux!$AL$1),"n.d.") -> -0.3127391704
A12: 10 | B12: Cereais | C12: 0.486 | D12: 0 | E12: 0 | F12: 17535.056 | G12: 0.013 | H12: 3507.111 | I12: 0.02873960999 | J12: 0.0229774453 | K12: 140.728 | L12: 80.81 | M12: 139.989 | N12: 162.008 | O12: 151.971 | P12: 135.1012 | Q12: 0.006096308069 | R12: 0.003670088579 | S12: -3372.0098 | U12: =G12-INDEX($C12:$G12,1,aux!$AL$1) -> -0.473 | V12: -5.701545249e-06 | W12: -6.433731929e-06 | X12: =+IF(INDEX($C12:$G12,1,aux!$AL$1)>0,(G12/INDEX($C12:$G12,1,aux!$AL$1))^(1/($G$3-INDEX($C$3:$G$3,1,aux!$AL$1)))-1,"n.d.") -> -0.5955854514 | Y12: =IF(INDEX($C12:$G12,1,aux!$AL$1)>0,(G12-INDEX($C12:$G12,1,aux!$AL$1))/INDEX($C12:$G12,1,aux!$AL$1),"n.d.") -> -0.9732510288 | AA12: =O12-INDEX($K12:$O12,1,aux!$AL$1) -> 11.243 | AB12: -0.001680959733 | AC12: -0.001457049252 | AD12: =+IF(INDEX($K12:$O12,1,aux!$AL$1)>0,(O12/INDEX($K12:$O12,1,aux!$AL$1))^(1/($O$3-INDEX($K$3:$O$3,1,aux!$AL$1)))-1,"n.d.") -> 0.0194009909 | AE12: =IF(INDEX($K12:$O12,1,aux!$AL$1)>0,(O12-INDEX($K12:$O12,1,aux!$AL$1))/INDEX($K12:$O12,1,aux!$AL$1),"n.d.") -> 0.07989170599
A13: 11 | B13: Produtos da indústria de moagem e outros | C13: 2.239 | D13: 0 | E13: 0.001 | F13: 0.031 | G13: 0 | H13: 0.4542 | I13: 3.722018167e-06 | J13: 2.975769987e-06 | K13: 6.086 | L13: 8.184 | M13: 763.704 | N13: 3062.366 | O13: 1628.301 | P13: 1093.7282 | Q13: 0.0493534036 | R13: 0.02971164856 | S13: 1093.274 | U13: =G13-INDEX($C13:$G13,1,aux!$AL$1) -> -2.239 | V13: -2.698892138e-05 | W13: -3.045481139e-05 | X13: =+IF(INDEX($C13:$G13,1,aux!$AL$1)>0,(G13/INDEX($C13:$G13,1,aux!$AL$1))^(1/($G$3-INDEX($C$3:$G$3,1,aux!$AL$1)))-1,"n.d.") -> -1 | Y13: =IF(INDEX($C13:$G13,1,aux!$AL$1)>0,(G13-INDEX($C13:$G13,1,aux!$AL$1))/INDEX($C13:$G13,1,aux!$AL$1),"n.d.") -> -1 | AA13: =O13-INDEX($K13:$O13,1,aux!$AL$1) -> 1622.215 | AB13: -0.2425400777 | AC13: -0.2102327806 | AD13: =+IF(INDEX($K13:$O13,1,aux!$AL$1)>0,(O13/INDEX($K13:$O13,1,aux!$AL$1))^(1/($O$3-INDEX($K$3:$O$3,1,aux!$AL$1)))-1,"n.d.") -> 3.044368185 | AE13: =IF(INDEX($K13:$O13,1,aux!$AL$1)>0,(O13-INDEX($K13:$O13,1,aux!$AL$1))/INDEX($K13:$O13,1,aux!$AL$1),"n.d.") -> 266.5486362
A14: 12 | B14: Sementes e frutos oleaginosos | C14: 111.716 | D14: 70.128 | E14: 55.32 | F14: 1128.897 | G14: 18541.932 | H14: 3981.5986 | I14: 0.0326278783 | J14: 0.02608613302 | K14: 3.224 | L14: 0.096 | M14: 35.55 | N14: 0.151 | O14: 0.278 | P14: 7.8598 | Q14: 0.0003546657036 | R14: 0.0002135152183 | S14: -3973.7388 | U14: =G14-INDEX($C14:$G14,1,aux!$AL$1) -> 18430.216 | V14: 0.2221579503 | W14: 0.2506872497 | X14: =+IF(INDEX($C14:$G14,1,aux!$AL$1)>0,(G14/INDEX($C14:$G14,1,aux!$AL$1))^(1/($G$3-INDEX($C$3:$G$3,1,aux!$AL$1)))-1,"n.d.") -> 2.58930118 | Y14: =IF(INDEX($C14:$G14,1,aux!$AL$1)>0,(G14-INDEX($C14:$G14,1,aux!$AL$1))/INDEX($C14:$G14,1,aux!$AL$1),"n.d.") -> 164.9738265 | AA14: =O14-INDEX($K14:$O14,1,aux!$AL$1) -> -2.946 | AB14: 0.000440461387 | AC14: 0.0003817901891 | AD14: =+IF(INDEX($K14:$O14,1,aux!$AL$1)>0,(O14/INDEX($K14:$O14,1,aux!$AL$1))^(1/($O$3-INDEX($K$3:$O$3,1,aux!$AL$1)))-1,"n.d.") -> -0.4581083729 | AE14: =IF(INDEX($K14:$O14,1,aux!$AL$1)>0,(O14-INDEX($K14:$O14,1,aux!$AL$1))/INDEX($K14:$O14,1,aux!$AL$1),"n.d.") -> -0.9137717122
A15: 13a | B15: Sucos e extratos vegetais (exc. NC 1301) (a) | C15: 0 | D15: 0 | E15: 0 | F15: 0 | G15: 20.1 | H15: 4.02 | I15: 3.294256502e-05 | J15: 2.633772644e-05 | K15: 0.951 | L15: 0 | M15: 0 | N15: 0.901 | O15: 0 | P15: 0.3704 | Q15: 1.671393377e-05 | R15: 1.006209278e-05 | S15: -3.6496 | U15: =G15-INDEX($C15:$G15,1,aux!$AL$1) -> 20.1 | V15: 0.0002422855381 | W15: 0.000273399602 | X15: =+IF(INDEX($C15:$G15,1,aux!$AL$1)>0,(G15/INDEX($C15:$G15,1,aux!$AL$1))^(1/($G$3-INDEX($C$3:$G$3,1,aux!$AL$1)))-1,"n.d.") -> n.d. | Y15: =IF(INDEX($C15:$G15,1,aux!$AL$1)>0,(G15-INDEX($C15:$G15,1,aux!$AL$1))/INDEX($C15:$G15,1,aux!$AL$1),"n.d.") -> n.d. | AA15: =O15-INDEX($K15:$O15,1,aux!$AL$1) -> -0.951 | AB15: 0.0001421856005 | AC15: 0.0001232459164 | AD15: =+IF(INDEX($K15:$O15,1,aux!$AL$1)>0,(O15/INDEX($K15:$O15,1,aux!$AL$1))^(1/($O$3-INDEX($K$3:$O$3,1,aux!$AL$1)))-1,"n.d.") -> -1 | AE15: =IF(INDEX($K15:$O15,1,aux!$AL$1)>0,(O15-INDEX($K15:$O15,1,aux!$AL$1))/INDEX($K15:$O15,1,aux!$AL$1),"n.d.") -> -1
A16: 14 | B16: Matérias para entrançar e outros | C16: 0 | D16: 0 | E16: 0 | F16: 0.194 | G16: 0 | H16: 0.0388 | I16: 3.179531151e-07 | J16: 2.542049219e-07 | K16: 0 | L16: 0 | M16: 0 | N16: 0 | O16: 0 | P16: 0 | Q16: 0 | R16: 0 | S16: -0.0388 | U16: =G16-INDEX($C16:$G16,1,aux!$AL$1) -> 0 | V16: 0 | W16: 0 | X16: =+IF(INDEX($C16:$G16,1,aux!$AL$1)>0,(G16/INDEX($C16:$G16,1,aux!$AL$1))^(1/($G$3-INDEX($C$3:$G$3,1,aux!$AL$1)))-1,"n.d.") -> n.d. | Y16: =IF(INDEX($C16:$G16,1,aux!$AL$1)>0,(G16-INDEX($C16:$G16,1,aux!$AL$1))/INDEX($C16:$G16,1,aux!$AL$1),"n.d.") -> n.d. | AA16: =O16-INDEX($K16:$O16,1,aux!$AL$1) -> 0 | AB16: 0 | AC16: 0 | AD16: =+IF(INDEX($K16:$O16,1,aux!$AL$1)>0,(O16/INDEX($K16:$O16,1,aux!$AL$1))^(1/($O$3-INDEX($K$3:$O$3,1,aux!$AL$1)))-1,"n.d.") -> n.d. | AE16: =IF(INDEX($K16:$O16,1,aux!$AL$1)>0,(O16-INDEX($K16:$O16,1,aux!$AL$1))/INDEX($K16:$O16,1,aux!$AL$1),"n.d.") -> n.d.
A17: 15 | B17: Gorduras e óleos animais ou vegetais | C17: 0 | D17: 138.411 | E17: 71.865 | F17: 142.1 | G17: 523.298 | H17: 175.1348 | I17: 0.001435171526 | J17: 0.001147425983 | K17: 13470.886 | L17: 9777.437 | M17: 3547.101 | N17: 12332.892 | O17: 8295.059 | P17: 9484.675 | Q17: 0.4279865814 | R17: 0.2576557232 | S17: 9309.5402 | U17: =G17-INDEX($C17:$G17,1,aux!$AL$1) -> 523.298 | V17: 0.006307837686 | W17: 0.007117883828 | X17: =+IF(INDEX($C17:$G17,1,aux!$AL$1)>0,(G17/INDEX($C17:$G17,1,aux!$AL$1))^(1/($G$3-INDEX($C$3:$G$3,1,aux!$AL$1)))-1,"n.d.") -> n.d. | Y17: =IF(INDEX($C17:$G17,1,aux!$AL$1)>0,(G17-INDEX($C17:$G17,1,aux!$AL$1))/INDEX($C17:$G17,1,aux!$AL$1),"n.d.") -> n.d. | AA17: =O17-INDEX($K17:$O17,1,aux!$AL$1) -> -5175.827 | AB17: 0.7738465511 | AC17: 0.6707671313 | AD17: =+IF(INDEX($K17:$O17,1,aux!$AL$1)>0,(O17/INDEX($K17:$O17,1,aux!$AL$1))^(1/($O$3-INDEX($K$3:$O$3,1,aux!$AL$1)))-1,"n.d.") -> -0.114158893 | AE17: =IF(INDEX($K17:$O17,1,aux!$AL$1)>0,(O17-INDEX($K17:$O17,1,aux!$AL$1))/INDEX($K17:$O17,1,aux!$AL$1),"n.d.") -> -0.3842232055
A18: 16a | B18: Preparações de carnes (exc. NC 1604-05) (a) | C18: 0 | D18: 0 | E18: 0 | F18: 0 | G18: 0 | H18: 0 | I18: 0 | J18: 0 | K18: 50.587 | L18: 3.557 | M18: 1.722 | N18: 0.785 | O18: 2.121 | P18: 11.7544 | Q18: 0.0005304056779 | R18: 0.0003193138861 | S18: 11.7544 | U18: =G18-INDEX($C18:$G18,1,aux!$AL$1) -> 0 | V18: 0 | W18: 0 | X18: =+IF(INDEX($C18:$G18,1,aux!$AL$1)>0,(G18/INDEX($C18:$G18,1,aux!$AL$1))^(1/($G$3-INDEX($C$3:$G$3,1,aux!$AL$1)))-1,"n.d.") -> n.d. | Y18: =IF(INDEX($C18:$G18,1,aux!$AL$1)>0,(G18-INDEX($C18:$G18,1,aux!$AL$1))/INDEX($C18:$G18,1,aux!$AL$1),"n.d.") -> n.d. | AA18: =O18-INDEX($K18:$O18,1,aux!$AL$1) -> -48.466 | AB18: 0.007246232717 | AC18: 0.006281005873 | AD18: =+IF(INDEX($K18:$O18,1,aux!$AL$1)>0,(O18/INDEX($K18:$O18,1,aux!$AL$1))^(1/($O$3-INDEX($K$3:$O$3,1,aux!$AL$1)))-1,"n.d.") -> -0.5474928603 | AE18: =IF(INDEX($K18:$O18,1,aux!$AL$1)>0,(O18-INDEX($K18:$O18,1,aux!$AL$1))/INDEX($K18:$O18,1,aux!$AL$1),"n.d.") -> -0.958072232
A19: 17 | B19: Açúcares e produtos de confeitaria | C19: 1606.796 | D19: 0 | E19: 0 | F19: 14112.842 | G19: 2.149 | H19: 3144.3574 | I19: 0.0257669647 | J19: 0.02060080225 | K19: 11.443 | L19: 1.9 | M19: 16.339 | N19: 63.642 | O19: 93.878 | P19: 37.4404 | Q19: 0.001689461031 | R19: 0.001017086335 | S19: -3106.917 | U19: =G19-INDEX($C19:$G19,1,aux!$AL$1) -> -1604.647 | V19: -0.01934242596 | W19: -0.02182636076 | X19: =+IF(INDEX($C19:$G19,1,aux!$AL$1)>0,(G19/INDEX($C19:$G19,1,aux!$AL$1))^(1/($G$3-INDEX($C$3:$G$3,1,aux!$AL$1)))-1,"n.d.") -> -0.8087643227 | Y19: =IF(INDEX($C19:$G19,1,aux!$AL$1)>0,(G19-INDEX($C19:$G19,1,aux!$AL$1))/INDEX($C19:$G19,1,aux!$AL$1),"n.d.") -> -0.9986625558 | AA19: =O19-INDEX($K19:$O19,1,aux!$AL$1) -> 82.435 | AB19: -0.01232499472 | AC19: -0.0106832567 | AD19: =+IF(INDEX($K19:$O19,1,aux!$AL$1)>0,(O19/INDEX($K19:$O19,1,aux!$AL$1))^(1/($O$3-INDEX($K$3:$O$3,1,aux!$AL$1)))-1,"n.d.") -> 0.6924115584 | AE19: =IF(INDEX($K19:$O19,1,aux!$AL$1)>0,(O19-INDEX($K19:$O19,1,aux!$AL$1))/INDEX($K19:$O19,1,aux!$AL$1),"n.d.") -> 7.203967491
A20: 18 | B20: Cacau e suas preparações | C20: 0.039 | D20: 0 | E20: 0 | F20: 0.498 | G20: 0.67 | H20: 0.2414 | I20: 1.978192835e-06 | J20: 1.581573921e-06 | K20: 769.47 | L20: 893.513 | M20: 1162.372 | N20: 1372.763 | O20: 1238.088 | P20: 1087.2412 | Q20: 0.04906068414 | R20: 0.02953542611 | S20: 1086.9998 | U20: =G20-INDEX($C20:$G20,1,aux!$AL$1) -> 0.631 | V20: 7.606078334e-06 | W20: 8.582843228e-06 | X20: =+IF(INDEX($C20:$G20,1,aux!$AL$1)>0,(G20/INDEX($C20:$G20,1,aux!$AL$1))^(1/($G$3-INDEX($C$3:$G$3,1,aux!$AL$1)))-1,"n.d.") -> 1.035881748 | Y20: =IF(INDEX($C20:$G20,1,aux!$AL$1)>0,(G20-INDEX($C20:$G20,1,aux!$AL$1))/INDEX($C20:$G20,1,aux!$AL$1),"n.d.") -> 16.17948718 | AA20: =O20-INDEX($K20:$O20,1,aux!$AL$1) -> 468.618 | AB20: -0.07006386092 | AC20: -0.06073107767 | AD20: =+IF(INDEX($K20:$O20,1,aux!$AL$1)>0,(O20/INDEX($K20:$O20,1,aux!$AL$1))^(1/($O$3-INDEX($K$3:$O$3,1,aux!$AL$1)))-1,"n.d.") -> 0.1262633594 | AE20: =IF(INDEX($K20:$O20,1,aux!$AL$1)>0,(O20-INDEX($K20:$O20,1,aux!$AL$1))/INDEX($K20:$O20,1,aux!$AL$1),"n.d.") -> 0.6090139966
A21: 19a | B21: Preparações à base de cereais (exc. NC 19022010) (a) | C21: 0 | D21: 0.071 | E21: 327.226 | F21: 0.952 | G21: 0.354 | H21: 65.7206 | I21: 0.0005385584922 | J21: 0.0004305798966 | K21: 2399.55 | L21: 2687.934 | M21: 4694.096 | N21: 3112.985 | O21: 1937.301 | P21: 2966.3732 | Q21: 0.1338546577 | R21: 0.08058294376 | S21: 2900.6526 | U21: =G21-INDEX($C21:$G21,1,aux!$AL$1) -> 0.354 | V21: 4.267118432e-06 | W21: 4.815097469e-06 | X21: =+IF(INDEX($C21:$G21,1,aux!$AL$1)>0,(G21/INDEX($C21:$G21,1,aux!$AL$1))^(1/($G$3-INDEX($C$3:$G$3,1,aux!$AL$1)))-1,"n.d.") -> n.d. | Y21: =IF(INDEX($C21:$G21,1,aux!$AL$1)>0,(G21-INDEX($C21:$G21,1,aux!$AL$1))/INDEX($C21:$G21,1,aux!$AL$1),"n.d.") -> n.d. | AA21: =O21-INDEX($K21:$O21,1,aux!$AL$1) -> -462.249 | AB21: 0.06911162108 | AC21: 0.05990567994 | AD21: =+IF(INDEX($K21:$O21,1,aux!$AL$1)>0,(O21/INDEX($K21:$O21,1,aux!$AL$1))^(1/($O$3-INDEX($K$3:$O$3,1,aux!$AL$1)))-1,"n.d.") -> -0.05209061157 | AE21: =IF(INDEX($K21:$O21,1,aux!$AL$1)>0,(O21-INDEX($K21:$O21,1,aux!$AL$1))/INDEX($K21:$O21,1,aux!$AL$1),"n.d.") -> -0.19263987
A22: 20 | B22: Preparações de produtos vegetais | C22: 318.039 | D22: 269.375 | E22: 393.026 | F22: 298.655 | G22: 271.415 | H22: 310.102 | I22: 0.00254118291 | J22: 0.002031686976 | K22: 1867.986 | L22: 1714.816 | M22: 3066.925 | N22: 3349.354 | O22: 114.994 | P22: 2022.815 | Q22: 0.09127752682 | R22: 0.05495073492 | S22: 1712.713 | U22: =G22-INDEX($C22:$G22,1,aux!$AL$1) -> -46.624 | V22: -0.0005620060163 | W22: -0.000634178261 | X22: =+IF(INDEX($C22:$G22,1,aux!$AL$1)>0,(G22/INDEX($C22:$G22,1,aux!$AL$1))^(1/($G$3-INDEX($C$3:$G$3,1,aux!$AL$1)))-1,"n.d.") -> -0.03885620487 | Y22: =IF(INDEX($C22:$G22,1,aux!$AL$1)>0,(G22-INDEX($C22:$G22,1,aux!$AL$1))/INDEX($C22:$G22,1,aux!$AL$1),"n.d.") -> -0.1465983732 | AA22: =O22-INDEX($K22:$O22,1,aux!$AL$1) -> -1752.992 | AB22: 0.2620927657 | AC22: 0.2271809732 | AD22: =+IF(INDEX($K22:$O22,1,aux!$AL$1)>0,(O22/INDEX($K22:$O22,1,aux!$AL$1))^(1/($O$3-INDEX($K$3:$O$3,1,aux!$AL$1)))-1,"n.d.") -> -0.5018898505 | AE22: =IF(INDEX($K22:$O22,1,aux!$AL$1)>0,(O22-INDEX($K22:$O22,1,aux!$AL$1))/INDEX($K22:$O22,1,aux!$AL$1),"n.d.") -> -0.9384395815
A23: 21 | B23: Preparações alimentícias diversas | C23: 20.127 | D23: 21.043 | E23: 23.648 | F23: 18.853 | G23: 26.596 | H23: 22.0534 | I23: 0.0001807202894 | J23: 0.0001444866707 | K23: 856.398 | L23: 393.414 | M23: 647.459 | N23: 205.895 | O23: 72.458 | P23: 435.1248 | Q23: 0.01963457637 | R23: 0.01182037287 | S23: 413.0714 | U23: =G23-INDEX($C23:$G23,1,aux!$AL$1) -> 6.469 | V23: 7.797737043e-05 | W23: 8.799114555e-05 | X23: =+IF(INDEX($C23:$G23,1,aux!$AL$1)>0,(G23/INDEX($C23:$G23,1,aux!$AL$1))^(1/($G$3-INDEX($C$3:$G$3,1,aux!$AL$1)))-1,"n.d.") -> 0.07215930586 | Y23: =IF(INDEX($C23:$G23,1,aux!$AL$1)>0,(G23-INDEX($C23:$G23,1,aux!$AL$1))/INDEX($C23:$G23,1,aux!$AL$1),"n.d.") -> 0.3214090525 | AA23: =O23-INDEX($K23:$O23,1,aux!$AL$1) -> -783.94 | AB23: 0.1172081805 | AC23: 0.1015955875 | AD23: =+IF(INDEX($K23:$O23,1,aux!$AL$1)>0,(O23/INDEX($K23:$O23,1,aux!$AL$1))^(1/($O$3-INDEX($K$3:$O$3,1,aux!$AL$1)))-1,"n.d.") -> -0.4606723644 | AE23: =IF(INDEX($K23:$O23,1,aux!$AL$1)>0,(O23-INDEX($K23:$O23,1,aux!$AL$1))/INDEX($K23:$O23,1,aux!$AL$1),"n.d.") -> -0.9153921424
A24: 22 | B24: Bebidas, líquidos alcoólicos e vinagres | C24: 30.939 | D24: 22.84 | E24: 159.512 | F24: 292.665 | G24: 196.073 | H24: 140.4058 | I24: 0.001150578904 | J24: 0.0009198929232 | K24: 1547.492 | L24: 923.853 | M24: 1507.258 | N24: 1987.412 | O24: 2031.937 | P24: 1599.5904 | Q24: 0.07217993521 | R24: 0.04345363666 | S24: 1459.1846 | U24: =G24-INDEX($C24:$G24,1,aux!$AL$1) -> 165.134 | V24: 0.00199052637 | W24: 0.002246147755 | X24: =+IF(INDEX($C24:$G24,1,aux!$AL$1)>0,(G24/INDEX($C24:$G24,1,aux!$AL$1))^(1/($G$3-INDEX($C$3:$G$3,1,aux!$AL$1)))-1,"n.d.") -> 0.5866381056 | Y24: =IF(INDEX($C24:$G24,1,aux!$AL$1)>0,(G24-INDEX($C24:$G24,1,aux!$AL$1))/INDEX($C24:$G24,1,aux!$AL$1),"n.d.") -> 5.337405863 | AA24: =O24-INDEX($K24:$O24,1,aux!$AL$1) -> 484.445 | AB24: -0.07243018216 | AC24: -0.06278219557 | AD24: =+IF(INDEX($K24:$O24,1,aux!$AL$1)>0,(O24/INDEX($K24:$O24,1,aux!$AL$1))^(1/($O$3-INDEX($K$3:$O$3,1,aux!$AL$1)))-1,"n.d.") -> 0.0704600318 | AE24: =IF(INDEX($K24:$O24,1,aux!$AL$1)>0,(O24-INDEX($K24:$O24,1,aux!$AL$1))/INDEX($K24:$O24,1,aux!$AL$1),"n.d.") -> 0.3130516991
A25: 23a | B25: Resíduos indústrias alimentares; alimentos p/ animais (exc. NC 230120) (a) | C25: 1.427 | D25: 1.633 | E25: 3.321 | F25: 1.593 | G25: 0.471 | H25: 1.689 | I25: 1.384079411e-05 | J25: 1.106577611e-05 | K25: 313.052 | L25: 442.841 | M25: 4835.507 | N25: 404.946 | O25: 249.559 | P25: 1249.181 | Q25: 0.0563680575 | R25: 0.03393459807 | S25: 1247.492 | U25: =G25-INDEX($C25:$G25,1,aux!$AL$1) -> -0.956 | V25: -1.152363057e-05 | W25: -1.300348356e-05 | X25: =+IF(INDEX($C25:$G25,1,aux!$AL$1)>0,(G25/INDEX($C25:$G25,1,aux!$AL$1))^(1/($G$3-INDEX($C$3:$G$3,1,aux!$AL$1)))-1,"n.d.") -> -0.2420348577 | Y25: =IF(INDEX($C25:$G25,1,aux!$AL$1)>0,(G25-INDEX($C25:$G25,1,aux!$AL$1))/INDEX($C25:$G25,1,aux!$AL$1),"n.d.") -> -0.6699369306 | AA25: =O25-INDEX($K25:$O25,1,aux!$AL$1) -> -63.493 | AB25: 0.009492944619 | AC25: 0.008228446868 | AD25: =+IF(INDEX($K25:$O25,1,aux!$AL$1)>0,(O25/INDEX($K25:$O25,1,aux!$AL$1))^(1/($O$3-INDEX($K$3:$O$3,1,aux!$AL$1)))-1,"n.d.") -> -0.05509273416 | AE25: =IF(INDEX($K25:$O25,1,aux!$AL$1)>0,(O25-INDEX($K25:$O25,1,aux!$AL$1))/INDEX($K25:$O25,1,aux!$AL$1),"n.d.") -> -0.2028193399
A26: 24 | B26: Tabaco | C26: 0 | D26: 0 | E26: 0 | F26: 0 | G26: 0 | H26: 0 | I26: 0 | J26: 0 | K26: 0 | L26: 0 | M26: 0 | N26: 0 | O26: 0 | P26: 0 | Q26: 0 | R26: 0 | S26: 0 | U26: =G26-INDEX($C26:$G26,1,aux!$AL$1) -> 0 | V26: 0 | W26: 0 | X26: =+IF(INDEX($C26:$G26,1,aux!$AL$1)>0,(G26/INDEX($C26:$G26,1,aux!$AL$1))^(1/($G$3-INDEX($C$3:$G$3,1,aux!$AL$1)))-1,"n.d.") -> n.d. | Y26: =IF(INDEX($C26:$G26,1,aux!$AL$1)>0,(G26-INDEX($C26:$G26,1,aux!$AL$1))/INDEX($C26:$G26,1,aux!$AL$1),"n.d.") -> n.d. | AA26: =O26-INDEX($K26:$O26,1,aux!$AL$1) -> 0 | AB26: 0 | AC26: 0 | AD26: =+IF(INDEX($K26:$O26,1,aux!$AL$1)>0,(O26/INDEX($K26:$O26,1,aux!$AL$1))^(1/($O$3-INDEX($K$3:$O$3,1,aux!$AL$1)))-1,"n.d.") -> n.d. | AE26: =IF(INDEX($K26:$O26,1,aux!$AL$1)>0,(O26-INDEX($K26:$O26,1,aux!$AL$1))/INDEX($K26:$O26,1,aux!$AL$1),"n.d.") -> n.d.
A27: 29 | B27: Manitol e sorbitol (NC 290543; 290544) | C27: 0 | D27: 0 | E27: 0 | F27: 0 | G27: 0 | H27: 0 | I27: 0 | J27: 0 | K27: 33.858 | L27: 48.882 | M27: 35.32 | N27: 0 | O27: 0 | P27: 23.612 | Q27: 0.001065468154 | R27: 0.0006414312495 | S27: 23.612 | U27: =G27-INDEX($C27:$G27,1,aux!$AL$1) -> 0 | V27: 0 | W27: 0 | X27: =+IF(INDEX($C27:$G27,1,aux!$AL$1)>0,(G27/INDEX($C27:$G27,1,aux!$AL$1))^(1/($G$3-INDEX($C$3:$G$3,1,aux!$AL$1)))-1,"n.d.") -> n.d. | Y27: =IF(INDEX($C27:$G27,1,aux!$AL$1)>0,(G27-INDEX($C27:$G27,1,aux!$AL$1))/INDEX($C27:$G27,1,aux!$AL$1),"n.d.") -> n.d. | AA27: =O27-INDEX($K27:$O27,1,aux!$AL$1) -> -33.858 | AB27: 0.005062166206 | AC27: 0.004387865655 | AD27: =+IF(INDEX($K27:$O27,1,aux!$AL$1)>0,(O27/INDEX($K27:$O27,1,aux!$AL$1))^(1/($O$3-INDEX($K$3:$O$3,1,aux!$AL$1)))-1,"n.d.") -> -1 | AE27: =IF(INDEX($K27:$O27,1,aux!$AL$1)>0,(O27-INDEX($K27:$O27,1,aux!$AL$1))/INDEX($K27:$O27,1,aux!$AL$1),"n.d.") -> -1
A28: 33 | B28: Óleos essenciais e resinóides (NC 3301) | C28: 0 | D28: 6.266 | E28: 12.944 | F28: 47.302 | G28: 0.134 | H28: 13.3292 | I28: 0.0001092283676 | J28: 8.732856301e-05 | K28: 76.209 | L28: 103.971 | M28: 133.866 | N28: 114.305 | O28: 306.561 | P28: 146.9824 | Q28: 0.006632435471 | R28: 0.003992847047 | S28: 133.6532 | U28: =G28-INDEX($C28:$G28,1,aux!$AL$1) -> 0.134 | V28: 1.61523692e-06 | W28: 1.822664014e-06 | X28: =+IF(INDEX($C28:$G28,1,aux!$AL$1)>0,(G28/INDEX($C28:$G28,1,aux!$AL$1))^(1/($G$3-INDEX($C$3:$G$3,1,aux!$AL$1)))-1,"n.d.") -> n.d. | Y28: =IF(INDEX($C28:$G28,1,aux!$AL$1)>0,(G28-INDEX($C28:$G28,1,aux!$AL$1))/INDEX($C28:$G28,1,aux!$AL$1),"n.d.") -> n.d. | AA28: =O28-INDEX($K28:$O28,1,aux!$AL$1) -> 230.352 | AB28: -0.03444031277 | AC28: -0.02985272696 | AD28: =+IF(INDEX($K28:$O28,1,aux!$AL$1)>0,(O28/INDEX($K28:$O28,1,aux!$AL$1))^(1/($O$3-INDEX($K$3:$O$3,1,aux!$AL$1)))-1,"n.d.") -> 0.4162100118 | AE28: =IF(INDEX($K28:$O28,1,aux!$AL$1)>0,(O28-INDEX($K28:$O28,1,aux!$AL$1))/INDEX($K28:$O28,1,aux!$AL$1),"n.d.") -> 3.022635122
A29: 35 | B29: Caseínas, albuminas, gelatinas, peptonas, dextrinas (NC 3501 a 3505) | C29: 0 | D29: 0 | E29: 0 | F29: 0.178 | G29: 0 | H29: 0.0356 | I29: 2.917301778e-07 | J29: 2.332395675e-07 | K29: 36.822 | L29: 0 | M29: 0 | N29: 6.84 | O29: 0 | P29: 8.7324 | Q29: 0.0003940409159 | R29: 0.0002372198138 | S29: 8.6968 | U29: =G29-INDEX($C29:$G29,1,aux!$AL$1) -> 0 | V29: 0 | W29: 0 | X29: =+IF(INDEX($C29:$G29,1,aux!$AL$1)>0,(G29/INDEX($C29:$G29,1,aux!$AL$1))^(1/($G$3-INDEX($C$3:$G$3,1,aux!$AL$1)))-1,"n.d.") -> n.d. | Y29: =IF(INDEX($C29:$G29,1,aux!$AL$1)>0,(G29-INDEX($C29:$G29,1,aux!$AL$1))/INDEX($C29:$G29,1,aux!$AL$1),"n.d.") -> n.d. | AA29: =O29-INDEX($K29:$O29,1,aux!$AL$1) -> -36.822 | AB29: 0.005505318803 | AC29: 0.004771988575 | AD29: =+IF(INDEX($K29:$O29,1,aux!$AL$1)>0,(O29/INDEX($K29:$O29,1,aux!$AL$1))^(1/($O$3-INDEX($K$3:$O$3,1,aux!$AL$1)))-1,"n.d.") -> -1 | AE29: =IF(INDEX($K29:$O29,1,aux!$AL$1)>0,(O29-INDEX($K29:$O29,1,aux!$AL$1))/INDEX($K29:$O29,1,aux!$AL$1),"n.d.") -> -1
A30: 38a | B30: Agentes de acabamento, ácidos gordos, sorbitol (NC 380910, 382311-12-13-19-70, 382460) (a) | C30: 0 | D30: 0 | E30: 0 | F30: 0 | G30: 0 | H30: 0 | I30: 0 | J30: 0 | K30: 0 | L30: 92.637 | M30: 670.226 | N30: 844.224 | O30: 456.447 | P30: 412.7068 | Q30: 0.01862298629 | R30: 0.0112113772 | S30: 412.7068 | U30: =G30-INDEX($C30:$G30,1,aux!$AL$1) -> 0 | V30: 0 | W30: 0 | X30: =+IF(INDEX($C30:$G30,1,aux!$AL$1)>0,(G30/INDEX($C30:$G30,1,aux!$AL$1))^(1/($G$3-INDEX($C$3:$G$3,1,aux!$AL$1)))-1,"n.d.") -> n.d. | Y30: =IF(INDEX($C30:$G30,1,aux!$AL$1)>0,(G30-INDEX($C30:$G30,1,aux!$AL$1))/INDEX($C30:$G30,1,aux!$AL$1),"n.d.") -> n.d. | AA30: =O30-INDEX($K30:$O30,1,aux!$AL$1) -> 456.447 | AB30: -0.06824415436 | AC30: -0.05915376321 | AD30: =+IF(INDEX($K30:$O30,1,aux!$AL$1)>0,(O30/INDEX($K30:$O30,1,aux!$AL$1))^(1/($O$3-INDEX($K$3:$O$3,1,aux!$AL$1)))-1,"n.d.") -> n.d. | AE30: =IF(INDEX($K30:$O30,1,aux!$AL$1)>0,(O30-INDEX($K30:$O30,1,aux!$AL$1))/INDEX($K30:$O30,1,aux!$AL$1),"n.d.") -> n.d.
A31: 41 | B31: Couro e peles em bruto (NC 4101 a 4103) | C31: 94.499 | D31: 315.778 | E31: 0 | F31: 0 | G31: 0.037 | H31: 82.0628 | I31: 0.0006724773942 | J31: 0.0005376486511 | K31: 0 | L31: 0 | M31: 0 | N31: 0 | O31: 0 | P31: 0 | Q31: 0 | R31: 0 | S31: -82.0628 | U31: =G31-INDEX($C31:$G31,1,aux!$AL$1) -> -94.462 | V31: -0.001138645597 | W31: -0.001284869314 | X31: =+IF(INDEX($C31:$G31,1,aux!$AL$1)>0,(G31/INDEX($C31:$G31,1,aux!$AL$1))^(1/($G$3-INDEX($C$3:$G$3,1,aux!$AL$1)))-1,"n.d.") -> -0.8593325457 | Y31: =IF(INDEX($C31:$G31,1,aux!$AL$1)>0,(G31-INDEX($C31:$G31,1,aux!$AL$1))/INDEX($C31:$G31,1,aux!$AL$1),"n.d.") -> -0.9996084615 | AA31: =O31-INDEX($K31:$O31,1,aux!$AL$1) -> 0 | AB31: 0 | AC31: 0 | AD31: =+IF(INDEX($K31:$O31,1,aux!$AL$1)>0,(O31/INDEX($K31:$O31,1,aux!$AL$1))^(1/($O$3-INDEX($K$3:$O$3,1,aux!$AL$1)))-1,"n.d.") -> n.d. | AE31: =IF(INDEX($K31:$O31,1,aux!$AL$1)>0,(O31-INDEX($K31:$O31,1,aux!$AL$1))/INDEX($K31:$O31,1,aux!$AL$1),"n.d.") -> n.d.
A32: 43 | B32: Peles com pelo em bruto (NC 4301) | C32: 0 | D32: 0 | E32: 0 | F32: 0 | G32: 0 | H32: 0 | I32: 0 | J32: 0 | K32: 0 | L32: 0 | M32: 0 | N32: 0 | O32: 0 | P32: 0 | Q32: 0 | R32: 0 | S32: 0 | U32: =G32-INDEX($C32:$G32,1,aux!$AL$1) -> 0 | V32: 0 | W32: 0 | X32: =+IF(INDEX($C32:$G32,1,aux!$AL$1)>0,(G32/INDEX($C32:$G32,1,aux!$AL$1))^(1/($G$3-INDEX($C$3:$G$3,1,aux!$AL$1)))-1,"n.d.") -> n.d. | Y32: =IF(INDEX($C32:$G32,1,aux!$AL$1)>0,(G32-INDEX($C32:$G32,1,aux!$AL$1))/INDEX($C32:$G32,1,aux!$AL$1),"n.d.") -> n.d. | AA32: =O32-INDEX($K32:$O32,1,aux!$AL$1) -> 0 | AB32: 0 | AC32: 0 | AD32: =+IF(INDEX($K32:$O32,1,aux!$AL$1)>0,(O32/INDEX($K32:$O32,1,aux!$AL$1))^(1/($O$3-INDEX($K$3:$O$3,1,aux!$AL$1)))-1,"n.d.") -> n.d. | AE32: =IF(INDEX($K32:$O32,1,aux!$AL$1)>0,(O32-INDEX($K32:$O32,1,aux!$AL$1))/INDEX($K32:$O32,1,aux!$AL$1),"n.d.") -> n.d.
A33: 50 | B33: Seda crua (NC 5001-5003) | C33: 0 | D33: 0 | E33: 0 | F33: 0 | G33: 0 | H33: 0 | I33: 0 | J33: 0 | K33: 0 | L33: 0 | M33: 0 | N33: 0 | O33: 0 | P33: 0 | Q33: 0 | R33: 0 | S33: 0 | U33: =G33-INDEX($C33:$G33,1,aux!$AL$1) -> 0 | V33: 0 | W33: 0 | X33: =+IF(INDEX($C33:$G33,1,aux!$AL$1)>0,(G33/INDEX($C33:$G33,1,aux!$AL$1))^(1/($G$3-INDEX($C$3:$G$3,1,aux!$AL$1)))-1,"n.d.") -> n.d. | Y33: =IF(INDEX($C33:$G33,1,aux!$AL$1)>0,(G33-INDEX($C33:$G33,1,aux!$AL$1))/INDEX($C33:$G33,1,aux!$AL$1),"n.d.") -> n.d. | AA33: =O33-INDEX($K33:$O33,1,aux!$AL$1) -> 0 | AB33: 0 | AC33: 0 | AD33: =+IF(INDEX($K33:$O33,1,aux!$AL$1)>0,(O33/INDEX($K33:$O33,1,aux!$AL$1))^(1/($O$3-INDEX($K$3:$O$3,1,aux!$AL$1)))-1,"n.d.") -> n.d. | AE33: =IF(INDEX($K33:$O33,1,aux!$AL$1)>0,(O33-INDEX($K33:$O33,1,aux!$AL$1))/INDEX($K33:$O33,1,aux!$AL$1),"n.d.") -> n.d.
A34: 51 | B34: Lã não cardada (NC 5101-5103) | C34: 89.437 | D34: 0 | E34: 0 | F34: 0 | G34: 0 | H34: 17.8874 | I34: 0.0001465813029 | J34: 0.0001171924 | K34: 0 | L34: 0 | M34: 0 | N34: 0 | O34: 0 | P34: 0 | Q34: 0 | R34: 0 | S34: -17.8874 | U34: =G34-INDEX($C34:$G34,1,aux!$AL$1) -> -89.437 | V34: -0.001078074212 | W34: -0.001216519413 | X34: =+IF(INDEX($C34:$G34,1,aux!$AL$1)>0,(G34/INDEX($C34:$G34,1,aux!$AL$1))^(1/($G$3-INDEX($C$3:$G$3,1,aux!$AL$1)))-1,"n.d.") -> -1 | Y34: =IF(INDEX($C34:$G34,1,aux!$AL$1)>0,(G34-INDEX($C34:$G34,1,aux!$AL$1))/INDEX($C34:$G34,1,aux!$AL$1),"n.d.") -> -1 | AA34: =O34-INDEX($K34:$O34,1,aux!$AL$1) -> 0 | AB34: 0 | AC34: 0 | AD34: =+IF(INDEX($K34:$O34,1,aux!$AL$1)>0,(O34/INDEX($K34:$O34,1,aux!$AL$1))^(1/($O$3-INDEX($K$3:$O$3,1,aux!$AL$1)))-1,"n.d.") -> n.d. | AE34: =IF(INDEX($K34:$O34,1,aux!$AL$1)>0,(O34-INDEX($K34:$O34,1,aux!$AL$1))/INDEX($K34:$O34,1,aux!$AL$1),"n.d.") -> n.d.
A35: 52 | B35: Algodão (NC 5201-5203) | C35: 173.029 | D35: 392.499 | E35: 279.7 | F35: 46.848 | G35: 0 | H35: 178.4152 | I35: 0.001462053315 | J35: 0.001168918092 | K35: 0 | L35: 0 | M35: 0 | N35: 0 | O35: 0 | P35: 0 | Q35: 0 | R35: 0 | S35: -178.4152 | U35: =G35-INDEX($C35:$G35,1,aux!$AL$1) -> -173.029 | V35: -0.002085692755 | W35: -0.002353535311 | X35: =+IF(INDEX($C35:$G35,1,aux!$AL$1)>0,(G35/INDEX($C35:$G35,1,aux!$AL$1))^(1/($G$3-INDEX($C$3:$G$3,1,aux!$AL$1)))-1,"n.d.") -> -1 | Y35: =IF(INDEX($C35:$G35,1,aux!$AL$1)>0,(G35-INDEX($C35:$G35,1,aux!$AL$1))/INDEX($C35:$G35,1,aux!$AL$1),"n.d.") -> -1 | AA35: =O35-INDEX($K35:$O35,1,aux!$AL$1) -> 0 | AB35: 0 | AC35: 0 | AD35: =+IF(INDEX($K35:$O35,1,aux!$AL$1)>0,(O35/INDEX($K35:$O35,1,aux!$AL$1))^(1/($O$3-INDEX($K$3:$O$3,1,aux!$AL$1)))-1,"n.d.") -> n.d. | AE35: =IF(INDEX($K35:$O35,1,aux!$AL$1)>0,(O35-INDEX($K35:$O35,1,aux!$AL$1))/INDEX($K35:$O35,1,aux!$AL$1),"n.d.") -> n.d.
A36: 53 | B36: Linho e cânhamo em bruto (NC 5301-5302) | C36: 0 | D36: 0 | E36: 0 | F36: 0 | G36: 0 | H36: 0 | I36: 0 | J36: 0 | K36: 0 | L36: 0 | M36: 0 | N36: 0 | O36: 0 | P36: 0 | Q36: 0 | R36: 0 | S36: 0 | U36: =G36-INDEX($C36:$G36,1,aux!$AL$1) -> 0 | V36: 0 | W36: =IF($U$53<>0,U36/$U$53, "n.d.") -> 0 | X36: =+IF(INDEX($C36:$G36,1,aux!$AL$1)>0,(G36/INDEX($C36:$G36,1,aux!$AL$1))^(1/($G$3-INDEX($C$3:$G$3,1,aux!$AL$1)))-1,"n.d.") -> n.d. | Y36: =IF(INDEX($C36:$G36,1,aux!$AL$1)>0,(G36-INDEX($C36:$G36,1,aux!$AL$1))/INDEX($C36:$G36,1,aux!$AL$1),"n.d.") -> n.d. | AA36: =O36-INDEX($K36:$O36,1,aux!$AL$1) -> 0 | AB36: 0 | AC36: =IF($AA$53<>0,AA36/$AA$53, "n.d.") -> 0 | AD36: =+IF(INDEX($K36:$O36,1,aux!$AL$1)>0,(O36/INDEX($K36:$O36,1,aux!$AL$1))^(1/($O$3-INDEX($K$3:$O$3,1,aux!$AL$1)))-1,"n.d.") -> n.d. | AE36: =IF(INDEX($K36:$O36,1,aux!$AL$1)>0,(O36-INDEX($K36:$O36,1,aux!$AL$1))/INDEX($K36:$O36,1,aux!$AL$1),"n.d.") -> n.d.
A37: Subtotal Agrícola e Agroalimentar | C37: 79798.773 | D37: 127039.171 | E37: 94846.652 | F37: 145709.517 | G37: 162758.739 | H37: 122030.5704 | I37: 1 | J37: 0.799504423 | K37: 23819.173 | L37: 18515.295 | M37: 22543.551 | N37: 28797.001 | O37: 17130.732 | P37: 22161.1504 | Q37: 1 | R37: 0.6020182276 | S37: -99869.42 | U37: =G37-INDEX($C37:$G37,1,aux!$AL$1) -> 82959.966 | V37: 1 | W37: 1.12841899 | X37: =+IF(INDEX($C37:$G37,1,aux!$AL$1)>0,(G37/INDEX($C37:$G37,1,aux!$AL$1))^(1/($G$3-INDEX($C$3:$G$3,1,aux!$AL$1)))-1,"n.d.") -> 0.1950526127 | Y37: =IF(INDEX($C37:$G37,1,aux!$AL$1)>0,(G37-INDEX($C37:$G37,1,aux!$AL$1))/INDEX($C37:$G37,1,aux!$AL$1),"n.d.") -> 1.039614556 | AA37: =O37-INDEX($K37:$O37,1,aux!$AL$1) -> -6688.441 | AB37: 1 | AC37: 0.8667960468 | AD37: =+IF(INDEX($K37:$O37,1,aux!$AL$1)>0,(O37/INDEX($K37:$O37,1,aux!$AL$1))^(1/($O$3-INDEX($K$3:$O$3,1,aux!$AL$1)))-1,"n.d.") -> -0.07910034444 | AE37: =IF(INDEX($K37:$O37,1,aux!$AL$1)>0,(O37-INDEX($K37:$O37,1,aux!$AL$1))/INDEX($K37:$O37,1,aux!$AL$1),"n.d.") -> -0.280800723
A38: 03 | B38: Peixes e crustáceos | C38: 36036.059 | D38: 31003.053 | E38: 27319.638 | F38: 24655.736 | G38: 25876.351 | H38: 28978.1674 | I38: 0.9746177807 | J38: 0.189855484 | K38: 297.661 | L38: 305.038 | M38: 172.178 | N38: 168.521 | O38: 121.88 | P38: 213.0556 | Q38: 0.2566364774 | R38: 0.005787757061 | S38: -28765.1118 | U38: =G38-INDEX($C38:$G38,1,aux!$AL$1) -> -10159.708 | V38: =IF($U$44<>0,U38/$U$44, "n.d.") -> 1.138715443 | W38: -0.138192046 | X38: =+IF(INDEX($C38:$G38,1,aux!$AL$1)>0,(G38/INDEX($C38:$G38,1,aux!$AL$1))^(1/($G$3-INDEX($C$3:$G$3,1,aux!$AL$1)))-1,"n.d.") -> -0.07946260393 | Y38: =IF(INDEX($C38:$G38,1,aux!$AL$1)>0,(G38-INDEX($C38:$G38,1,aux!$AL$1))/INDEX($C38:$G38,1,aux!$AL$1),"n.d.") -> -0.2819317173 | AA38: =O38-INDEX($K38:$O38,1,aux!$AL$1) -> -175.781 | AB38: =IF($AA$44<>0,AA38/$AA$44, "n.d.") -> 0.3375742724 | AC38: 0.02278053674 | AD38: =+IF(INDEX($K38:$O38,1,aux!$AL$1)>0,(O38/INDEX($K38:$O38,1,aux!$AL$1))^(1/($O$3-INDEX($K$3:$O$3,1,aux!$AL$1)))-1,"n.d.") -> -0.2000688162 | AE38: =IF(INDEX($K38:$O38,1,aux!$AL$1)>0,(O38-INDEX($K38:$O38,1,aux!$AL$1))/INDEX($K38:$O38,1,aux!$AL$1),"n.d.") -> -0.5905409174
A39: 05p | B39: Outros produtos de pescado (NC 0508, 051191) (p) | C39: 0 | D39: 0 | E39: 0.229 | F39: 0 | G39: 1.399 | H39: 0.3256 | I39: 1.095084948e-05 | J39: 2.133224808e-06 | K39: 0 | L39: 0 | M39: 0.022 | N39: 0 | O39: 0 | P39: 0.0044 | Q39: 5.300027319e-06 | R39: 1.195281e-07 | S39: -0.3212 | U39: =G39-INDEX($C39:$G39,1,aux!$AL$1) -> 1.399 | V39: -0.0001568020365 | W39: 1.902915638e-05 | X39: =+IF(INDEX($C39:$G39,1,aux!$AL$1)>0,(G39/INDEX($C39:$G39,1,aux!$AL$1))^(1/($G$3-INDEX($C$3:$G$3,1,aux!$AL$1)))-1,"n.d.") -> n.d. | Y39: =IF(INDEX($C39:$G39,1,aux!$AL$1)>0,(G39-INDEX($C39:$G39,1,aux!$AL$1))/INDEX($C39:$G39,1,aux!$AL$1),"n.d.") -> n.d. | AA39: =O39-INDEX($K39:$O39,1,aux!$AL$1) -> 0 | AB39: 0 | AC39: 0 | AD39: =+IF(INDEX($K39:$O39,1,aux!$AL$1)>0,(O39/INDEX($K39:$O39,1,aux!$AL$1))^(1/($O$3-INDEX($K$3:$O$3,1,aux!$AL$1)))-1,"n.d.") -> n.d. | AE39: =IF(INDEX($K39:$O39,1,aux!$AL$1)>0,(O39-INDEX($K39:$O39,1,aux!$AL$1))/INDEX($K39:$O39,1,aux!$AL$1),"n.d.") -> n.d.
A40: 16p | B40: Preparações e conservas de peixes ou crustáceos (NC 1604-05) (p) | C40: 358.961 | D40: 428.452 | E40: 527.139 | F40: 804.266 | G40: 1587.174 | H40: 741.1984 | I40: 0.02492859986 | J40: 0.004856089726 | K40: 656.479 | L40: 215.262 | M40: 972.501 | N40: 928.474 | O40: 311.833 | P40: 616.9098 | Q40: 0.7430997258 | R40: 0.01675864915 | S40: -124.2886 | U40: =G40-INDEX($C40:$G40,1,aux!$AL$1) -> 1228.213 | V40: -0.1376599711 | W40: 0.01670611669 | X40: =+IF(INDEX($C40:$G40,1,aux!$AL$1)>0,(G40/INDEX($C40:$G40,1,aux!$AL$1))^(1/($G$3-INDEX($C$3:$G$3,1,aux!$AL$1)))-1,"n.d.") -> 0.4500878662 | Y40: =IF(INDEX($C40:$G40,1,aux!$AL$1)>0,(G40-INDEX($C40:$G40,1,aux!$AL$1))/INDEX($C40:$G40,1,aux!$AL$1),"n.d.") -> 3.421577832 | AA40: =O40-INDEX($K40:$O40,1,aux!$AL$1) -> -344.646 | AB40: 0.6618668838 | AC40: 0.04466478666 | AD40: =+IF(INDEX($K40:$O40,1,aux!$AL$1)>0,(O40/INDEX($K40:$O40,1,aux!$AL$1))^(1/($O$3-INDEX($K$3:$O$3,1,aux!$AL$1)))-1,"n.d.") -> -0.1698141846 | AE40: =IF(INDEX($K40:$O40,1,aux!$AL$1)>0,(O40-INDEX($K40:$O40,1,aux!$AL$1))/INDEX($K40:$O40,1,aux!$AL$1),"n.d.") -> -0.5249916601
A41: 19p | B41: Massas recheadas com pescado (NC 19022010) (p) | C41: 0 | D41: 0 | E41: 0 | F41: 0 | G41: 0 | H41: 0 | I41: 0 | J41: 0 | K41: 0 | L41: 0 | M41: 0 | N41: 0 | O41: 0 | P41: 0 | Q41: 0 | R41: 0 | S41: 0 | U41: =G41-INDEX($C41:$G41,1,aux!$AL$1) -> 0 | V41: 0 | W41: 0 | X41: =+IF(INDEX($C41:$G41,1,aux!$AL$1)>0,(G41/INDEX($C41:$G41,1,aux!$AL$1))^(1/($G$3-INDEX($C$3:$G$3,1,aux!$AL$1)))-1,"n.d.") -> n.d. | Y41: =IF(INDEX($C41:$G41,1,aux!$AL$1)>0,(G41-INDEX($C41:$G41,1,aux!$AL$1))/INDEX($C41:$G41,1,aux!$AL$1),"n.d.") -> n.d. | AA41: =O41-INDEX($K41:$O41,1,aux!$AL$1) -> 0 | AB41: 0 | AC41: 0 | AD41: =+IF(INDEX($K41:$O41,1,aux!$AL$1)>0,(O41/INDEX($K41:$O41,1,aux!$AL$1))^(1/($O$3-INDEX($K$3:$O$3,1,aux!$AL$1)))-1,"n.d.") -> n.d. | AE41: =IF(INDEX($K41:$O41,1,aux!$AL$1)>0,(O41-INDEX($K41:$O41,1,aux!$AL$1))/INDEX($K41:$O41,1,aux!$AL$1),"n.d.") -> n.d.
A42: 23p | B42: Farinhas de pescado (NC 230120) (p) | C42: 0 | D42: 0 | E42: 0 | F42: 0 | G42: 0 | H42: 0 | I42: 0 | J42: 0 | K42: 0 | L42: 0 | M42: 0 | N42: 0 | O42: 0 | P42: 0 | Q42: 0 | R42: 0 | S42: 0 | U42: =G42-INDEX($C42:$G42,1,aux!$AL$1) -> 0 | V42: 0 | W42: 0 | X42: =+IF(INDEX($C42:$G42,1,aux!$AL$1)>0,(G42/INDEX($C42:$G42,1,aux!$AL$1))^(1/($G$3-INDEX($C$3:$G$3,1,aux!$AL$1)))-1,"n.d.") -> n.d. | Y42: =IF(INDEX($C42:$G42,1,aux!$AL$1)>0,(G42-INDEX($C42:$G42,1,aux!$AL$1))/INDEX($C42:$G42,1,aux!$AL$1),"n.d.") -> n.d. | AA42: =O42-INDEX($K42:$O42,1,aux!$AL$1) -> 0 | AB42: 0 | AC42: 0 | AD42: =+IF(INDEX($K42:$O42,1,aux!$AL$1)>0,(O42/INDEX($K42:$O42,1,aux!$AL$1))^(1/($O$3-INDEX($K$3:$O$3,1,aux!$AL$1)))-1,"n.d.") -> n.d. | AE42: =IF(INDEX($K42:$O42,1,aux!$AL$1)>0,(O42-INDEX($K42:$O42,1,aux!$AL$1))/INDEX($K42:$O42,1,aux!$AL$1),"n.d.") -> n.d.
A43: 25 | B43: Sal e cloreto de sódio puro; água do mar (NC 2501) | C43: 10.396 | D43: 10.059 | E43: 24.157 | F43: 2.783 | G43: 18.414 | H43: 13.1618 | I43: 0.0004426685832 | J43: 8.62318129e-05 | K43: 0.363 | L43: 0.554 | M43: 0 | N43: 0.084 | O43: 0.072 | P43: 0.2146 | Q43: 0.000258496787 | R43: 5.829711424e-06 | S43: -12.9472 | U43: =G43-INDEX($C43:$G43,1,aux!$AL$1) -> 8.018 | V43: -0.00089866957 | W43: 0.0001090605975 | X43: =+IF(INDEX($C43:$G43,1,aux!$AL$1)>0,(G43/INDEX($C43:$G43,1,aux!$AL$1))^(1/($G$3-INDEX($C$3:$G$3,1,aux!$AL$1)))-1,"n.d.") -> 0.153640428 | Y43: =IF(INDEX($C43:$G43,1,aux!$AL$1)>0,(G43-INDEX($C43:$G43,1,aux!$AL$1))/INDEX($C43:$G43,1,aux!$AL$1),"n.d.") -> 0.7712581762 | AA43: =O43-INDEX($K43:$O43,1,aux!$AL$1) -> -0.291 | AB43: 0.0005588437504 | AC43: 3.771247285e-05 | AD43: =+IF(INDEX($K43:$O43,1,aux!$AL$1)>0,(O43/INDEX($K43:$O43,1,aux!$AL$1))^(1/($O$3-INDEX($K$3:$O$3,1,aux!$AL$1)))-1,"n.d.") -> -0.3326456927 | AE43: =IF(INDEX($K43:$O43,1,aux!$AL$1)>0,(O43-INDEX($K43:$O43,1,aux!$AL$1))/INDEX($K43:$O43,1,aux!$AL$1),"n.d.") -> -0.8016528926
A44: Subtotal Mar | C44: 36405.416 | D44: 31441.564 | E44: 27871.163 | F44: 25462.785 | G44: 27483.338 | H44: 29732.8532 | I44: 1 | J44: 0.1947999388 | K44: 954.503 | L44: 520.854 | M44: 1144.701 | N44: 1097.079 | O44: 433.785 | P44: 830.1844 | Q44: 1 | R44: 0.02255235545 | S44: -28902.6688 | U44: =G44-INDEX($C44:$G44,1,aux!$AL$1) -> -8922.078 | V44: 1 | W44: -0.1213578395 | X44: =+IF(INDEX($C44:$G44,1,aux!$AL$1)>0,(G44/INDEX($C44:$G44,1,aux!$AL$1))^(1/($G$3-INDEX($C$3:$G$3,1,aux!$AL$1)))-1,"n.d.") -> -0.06787132094 | Y44: =IF(INDEX($C44:$G44,1,aux!$AL$1)>0,(G44-INDEX($C44:$G44,1,aux!$AL$1))/INDEX($C44:$G44,1,aux!$AL$1),"n.d.") -> -0.2450755679 | AA44: =O44-INDEX($K44:$O44,1,aux!$AL$1) -> -520.718 | AB44: 1 | AC44: 0.06748303587 | AD44: =+IF(INDEX($K44:$O44,1,aux!$AL$1)>0,(O44/INDEX($K44:$O44,1,aux!$AL$1))^(1/($O$3-INDEX($K$3:$O$3,1,aux!$AL$1)))-1,"n.d.") -> -0.1789411093 | AE44: =IF(INDEX($K44:$O44,1,aux!$AL$1)>0,(O44-INDEX($K44:$O44,1,aux!$AL$1))/INDEX($K44:$O44,1,aux!$AL$1),"n.d.") -> -0.5455383587
A45: 13f | B45: Gomas e resinas (NC 1301) (f) | C45: 209.43 | D45: 466.38 | E45: 246.853 | F45: 186.151 | G45: 213.066 | H45: 264.376 | I45: 0.304110815 | J45: 0.001732105166 | K45: 0.713 | L45: 0 | M45: 0 | N45: 0 | O45: 0 | P45: 0.1426 | Q45: 1.031830987e-05 | R45: 3.87379706e-06 | S45: -264.2334 | U45: =G45-INDEX($C45:$G45,1,aux!$AL$1) -> 3.636 | V45: =IF($U$52<>0,U45/$U$52, "n.d.") -> -0.007004066442 | W45: 4.945676383e-05 | X45: =+IF(INDEX($C45:$G45,1,aux!$AL$1)>0,(G45/INDEX($C45:$G45,1,aux!$AL$1))^(1/($G$3-INDEX($C$3:$G$3,1,aux!$AL$1)))-1,"n.d.") -> 0.004312377207 | Y45: =IF(INDEX($C45:$G45,1,aux!$AL$1)>0,(G45-INDEX($C45:$G45,1,aux!$AL$1))/INDEX($C45:$G45,1,aux!$AL$1),"n.d.") -> 0.01736140954 | AA45: =O45-INDEX($K45:$O45,1,aux!$AL$1) -> -0.713 | AB45: =IF($AA$52<>0,AA45/$AA$52, "n.d.") -> 0.001405976089 | AC45: 9.240203829e-05 | AD45: =+IF(INDEX($K45:$O45,1,aux!$AL$1)>0,(O45/INDEX($K45:$O45,1,aux!$AL$1))^(1/($O$3-INDEX($K$3:$O$3,1,aux!$AL$1)))-1,"n.d.") -> -1 | AE45: =IF(INDEX($K45:$O45,1,aux!$AL$1)>0,(O45-INDEX($K45:$O45,1,aux!$AL$1))/INDEX($K45:$O45,1,aux!$AL$1),"n.d.") -> -1
A46: 38f | B46: Tall oil, essências e colofónias (NC 3803,3805,3806) (f) | C46: 329.455 | D46: 27.281 | E46: 0 | F46: 0 | G46: 0.45 | H46: 71.4372 | I46: 0.08217396856 | J46: 0.0004680331919 | K46: 127.996 | L46: 120.125 | M46: 148.249 | N46: 182.955 | O46: 106.161 | P46: 137.0972 | Q46: 0.009920135992 | R46: 0.003724310871 | S46: 65.66 | U46: =G46-INDEX($C46:$G46,1,aux!$AL$1) -> -329.005 | V46: 0.6337659186 | W46: -0.004475116222 | X46: =+IF(INDEX($C46:$G46,1,aux!$AL$1)>0,(G46/INDEX($C46:$G46,1,aux!$AL$1))^(1/($G$3-INDEX($C$3:$G$3,1,aux!$AL$1)))-1,"n.d.") -> -0.8077554208 | Y46: =IF(INDEX($C46:$G46,1,aux!$AL$1)>0,(G46-INDEX($C46:$G46,1,aux!$AL$1))/INDEX($C46:$G46,1,aux!$AL$1),"n.d.") -> -0.9986341078 | AA46: =O46-INDEX($K46:$O46,1,aux!$AL$1) -> -21.835 | AB46: 0.04305678526 | AC46: 0.002829731425 | AD46: =+IF(INDEX($K46:$O46,1,aux!$AL$1)>0,(O46/INDEX($K46:$O46,1,aux!$AL$1))^(1/($O$3-INDEX($K$3:$O$3,1,aux!$AL$1)))-1,"n.d.") -> -0.04568411971 | AE46: =IF(INDEX($K46:$O46,1,aux!$AL$1)>0,(O46-INDEX($K46:$O46,1,aux!$AL$1))/INDEX($K46:$O46,1,aux!$AL$1),"n.d.") -> -0.1705912685
A47: 44 | B47: Madeira e suas obras | C47: 18.764 | D47: 10.273 | E47: 9.949 | F47: 46.952 | G47: 6.498 | H47: 18.4872 | I47: 0.02126576338 | J47: 0.0001211220936 | K47: 689.055 | L47: 439.443 | M47: 574.324 | N47: 1101.012 | O47: 580.388 | P47: 676.8444 | Q47: 0.04897538749 | R47: 0.01838680117 | S47: 658.3572 | U47: =G47-INDEX($C47:$G47,1,aux!$AL$1) -> -12.266 | V47: 0.02362812953 | W47: -0.0001668417671 | X47: =+IF(INDEX($C47:$G47,1,aux!$AL$1)>0,(G47/INDEX($C47:$G47,1,aux!$AL$1))^(1/($G$3-INDEX($C$3:$G$3,1,aux!$AL$1)))-1,"n.d.") -> -0.2328795318 | Y47: =IF(INDEX($C47:$G47,1,aux!$AL$1)>0,(G47-INDEX($C47:$G47,1,aux!$AL$1))/INDEX($C47:$G47,1,aux!$AL$1),"n.d.") -> -0.6536985717 | AA47: =O47-INDEX($K47:$O47,1,aux!$AL$1) -> -108.667 | AB47: 0.214282193 | AC47: 0.01408282229 | AD47: =+IF(INDEX($K47:$O47,1,aux!$AL$1)>0,(O47/INDEX($K47:$O47,1,aux!$AL$1))^(1/($O$3-INDEX($K$3:$O$3,1,aux!$AL$1)))-1,"n.d.") -> -0.04199862149 | AE47: =IF(INDEX($K47:$O47,1,aux!$AL$1)>0,(O47-INDEX($K47:$O47,1,aux!$AL$1))/INDEX($K47:$O47,1,aux!$AL$1),"n.d.") -> -0.1577043922
A48: 45 | B48: Cortiça e suas obras | C48: 284.103 | D48: 30.068 | E48: 434.965 | F48: 0.486 | G48: 76.834 | H48: 165.2912 | I48: 0.190133906 | J48: 0.001082933933 | K48: 9040.743 | L48: 6720.696 | M48: 8349.448 | N48: 9397.99 | O48: 7897.162 | P48: 8281.2078 | Q48: 0.5992150646 | R48: 0.2249629623 | S48: 8115.9166 | U48: =G48-INDEX($C48:$G48,1,aux!$AL$1) -> -207.269 | V48: 0.3992645345 | W48: -0.002819266772 | X48: =+IF(INDEX($C48:$G48,1,aux!$AL$1)>0,(G48/INDEX($C48:$G48,1,aux!$AL$1))^(1/($G$3-INDEX($C$3:$G$3,1,aux!$AL$1)))-1,"n.d.") -> -0.2788602983 | Y48: =IF(INDEX($C48:$G48,1,aux!$AL$1)>0,(G48-INDEX($C48:$G48,1,aux!$AL$1))/INDEX($C48:$G48,1,aux!$AL$1),"n.d.") -> -0.7295558301 | AA48: =O48-INDEX($K48:$O48,1,aux!$AL$1) -> -1143.581 | AB48: 2.25504564 | AC48: 0.1482036681 | AD48: =+IF(INDEX($K48:$O48,1,aux!$AL$1)>0,(O48/INDEX($K48:$O48,1,aux!$AL$1))^(1/($O$3-INDEX($K$3:$O$3,1,aux!$AL$1)))-1,"n.d.") -> -0.03324432344 | AE48: =IF(INDEX($K48:$O48,1,aux!$AL$1)>0,(O48-INDEX($K48:$O48,1,aux!$AL$1))/INDEX($K48:$O48,1,aux!$AL$1),"n.d.") -> -0.1264919266
A49: 46 | B49: Obras de espartaria ou de cestaria | C49: 282.9 | D49: 197.576 | E49: 254.92 | F49: 380.502 | G49: 382.67 | H49: 299.7136 | I49: 0.3447595362 | J49: 0.001963625574 | K49: 2.966 | L49: 0 | M49: 0 | N49: 15.918 | O49: 0 | P49: 3.7768 | Q49: 0.000273283259 | R49: 0.0001025985746 | S49: -295.9368 | U49: =G49-INDEX($C49:$G49,1,aux!$AL$1) -> 99.77 | V49: -0.1921880388 | W49: 0.001357068572 | X49: =+IF(INDEX($C49:$G49,1,aux!$AL$1)>0,(G49/INDEX($C49:$G49,1,aux!$AL$1))^(1/($G$3-INDEX($C$3:$G$3,1,aux!$AL$1)))-1,"n.d.") -> 0.07844466716 | Y49: =IF(INDEX($C49:$G49,1,aux!$AL$1)>0,(G49-INDEX($C49:$G49,1,aux!$AL$1))/INDEX($C49:$G49,1,aux!$AL$1),"n.d.") -> 0.3526687876 | AA49: =O49-INDEX($K49:$O49,1,aux!$AL$1) -> -2.966 | AB49: 0.005848702775 | AC49: 0.0003843821116 | AD49: =+IF(INDEX($K49:$O49,1,aux!$AL$1)>0,(O49/INDEX($K49:$O49,1,aux!$AL$1))^(1/($O$3-INDEX($K$3:$O$3,1,aux!$AL$1)))-1,"n.d.") -> -1 | AE49: =IF(INDEX($K49:$O49,1,aux!$AL$1)>0,(O49-INDEX($K49:$O49,1,aux!$AL$1))/INDEX($K49:$O49,1,aux!$AL$1),"n.d.") -> -1
A50: 47 | B50: Pastas de madeira | C50: 0 | D50: 0 | E50: 0 | F50: 0 | G50: 0.131 | H50: 0.0262 | I50: 3.013777102e-05 | J50: 1.71653839e-07 | K50: 0.036 | L50: 0 | M50: 0 | N50: 0 | O50: 0 | P50: 0.0072 | Q50: 5.209805827e-07 | R50: 1.955914364e-07 | S50: -0.019 | U50: =G50-INDEX($C50:$G50,1,aux!$AL$1) -> 0.131 | V50: -0.0002523467283 | W50: 1.781858103e-06 | X50: =+IF(INDEX($C50:$G50,1,aux!$AL$1)>0,(G50/INDEX($C50:$G50,1,aux!$AL$1))^(1/($G$3-INDEX($C$3:$G$3,1,aux!$AL$1)))-1,"n.d.") -> n.d. | Y50: =IF(INDEX($C50:$G50,1,aux!$AL$1)>0,(G50-INDEX($C50:$G50,1,aux!$AL$1))/INDEX($C50:$G50,1,aux!$AL$1),"n.d.") -> n.d. | AA50: =O50-INDEX($K50:$O50,1,aux!$AL$1) -> -0.036 | AB50: 7.098897502e-05 | AC50: 4.665460559e-06 | AD50: =+IF(INDEX($K50:$O50,1,aux!$AL$1)>0,(O50/INDEX($K50:$O50,1,aux!$AL$1))^(1/($O$3-INDEX($K$3:$O$3,1,aux!$AL$1)))-1,"n.d.") -> -1 | AE50: =IF(INDEX($K50:$O50,1,aux!$AL$1)>0,(O50-INDEX($K50:$O50,1,aux!$AL$1))/INDEX($K50:$O50,1,aux!$AL$1),"n.d.") -> -1
A51: 48 | B51: Papel e cartão | C51: 121.279 | D51: 22.576 | E51: 23.758 | F51: 35.28 | G51: 47.155 | H51: 50.0096 | I51: 0.05752587305 | J51: 0.0003276465583 | K51: 3699.063 | L51: 2597.519 | M51: 4827.419 | N51: 8011.343 | O51: 4469.74 | P51: 4721.0168 | Q51: 0.3416052894 | R51: 0.1282486746 | S51: 4671.0072 | U51: =G51-INDEX($C51:$G51,1,aux!$AL$1) -> -74.124 | V51: 0.1427858694 | W51: -0.001008232443 | X51: =+IF(INDEX($C51:$G51,1,aux!$AL$1)>0,(G51/INDEX($C51:$G51,1,aux!$AL$1))^(1/($G$3-INDEX($C$3:$G$3,1,aux!$AL$1)))-1,"n.d.") -> -0.2103483713 | Y51: =IF(INDEX($C51:$G51,1,aux!$AL$1)>0,(G51-INDEX($C51:$G51,1,aux!$AL$1))/INDEX($C51:$G51,1,aux!$AL$1),"n.d.") -> -0.6111857782 | AA51: =O51-INDEX($K51:$O51,1,aux!$AL$1) -> 770.677 | AB51: -1.519710286 | AC51: -0.09987675408 | AD51: =+IF(INDEX($K51:$O51,1,aux!$AL$1)>0,(O51/INDEX($K51:$O51,1,aux!$AL$1))^(1/($O$3-INDEX($K$3:$O$3,1,aux!$AL$1)))-1,"n.d.") -> 0.0484497811 | AE51: =IF(INDEX($K51:$O51,1,aux!$AL$1)>0,(O51-INDEX($K51:$O51,1,aux!$AL$1))/INDEX($K51:$O51,1,aux!$AL$1),"n.d.") -> 0.2083438428
A52: Subtotal Florestas | C52: 1245.931 | D52: 754.154 | E52: 970.445 | F52: 649.371 | G52: 726.804 | H52: 869.341 | I52: 1 | J52: 0.00569563817 | K52: 13560.572 | L52: 9877.783 | M52: 13899.44 | N52: 18709.218 | O52: 13053.451 | P52: 13820.0928 | Q52: 1 | R52: 0.3754294169 | S52: 12950.7518 | U52: =G52-INDEX($C52:$G52,1,aux!$AL$1) -> -519.127 | V52: 1 | W52: -0.00706115001 | X52: =+IF(INDEX($C52:$G52,1,aux!$AL$1)>0,(G52/INDEX($C52:$G52,1,aux!$AL$1))^(1/($G$3-INDEX($C$3:$G$3,1,aux!$AL$1)))-1,"n.d.") -> -0.1260615858 | Y52: =IF(INDEX($C52:$G52,1,aux!$AL$1)>0,(G52-INDEX($C52:$G52,1,aux!$AL$1))/INDEX($C52:$G52,1,aux!$AL$1),"n.d.") -> -0.4166579048 | AA52: =O52-INDEX($K52:$O52,1,aux!$AL$1) -> -507.121 | AB52: 1 | AC52: 0.06572091733 | AD52: =+IF(INDEX($K52:$O52,1,aux!$AL$1)>0,(O52/INDEX($K52:$O52,1,aux!$AL$1))^(1/($O$3-INDEX($K$3:$O$3,1,aux!$AL$1)))-1,"n.d.") -> -0.009483228188 | AE52: =IF(INDEX($K52:$O52,1,aux!$AL$1)>0,(O52-INDEX($K52:$O52,1,aux!$AL$1))/INDEX($K52:$O52,1,aux!$AL$1),"n.d.") -> -0.03739672633
B53: TOTAL | C53: 117450.12 | D53: 159234.889 | E53: 123688.26 | F53: 171821.673 | G53: 190968.881 | H53: 152632.7646 | J53: 1 | K53: 38334.248 | L53: 28913.932 | M53: 37587.692 | N53: 48603.298 | O53: 30617.968 | P53: 36811.4276 | R53: 1 | S53: -115821.337 | U53: =G53-INDEX($C53:$G53,1,aux!$AL$1) -> 73518.761 | W53: 1 | X53: =+IF(INDEX($C53:$G53,1,aux!$AL$1)>0,(G53/INDEX($C53:$G53,1,aux!$AL$1))^(1/($G$3-INDEX($C$3:$G$3,1,aux!$AL$1)))-1,"n.d.") -> 0.12921668 | Y53: =IF(INDEX($C53:$G53,1,aux!$AL$1)>0,(G53-INDEX($C53:$G53,1,aux!$AL$1))/INDEX($C53:$G53,1,aux!$AL$1),"n.d.") -> 0.6259573085 | AA53: =O53-INDEX($K53:$O53,1,aux!$AL$1) -> -7716.28 | AC53: 1 | AD53: =+IF(INDEX($K53:$O53,1,aux!$AL$1)>0,(O53/INDEX($K53:$O53,1,aux!$AL$1))^(1/($O$3-INDEX($K$3:$O$3,1,aux!$AL$1)))-1,"n.d.") -> -0.05463971344 | AE53: =IF(INDEX($K53:$O53,1,aux!$AL$1)>0,(O53-INDEX($K53:$O53,1,aux!$AL$1))/INDEX($K53:$O53,1,aux!$AL$1),"n.d.") -> -0.2012894579
B54: a - agrícola e agroalimentar; p - pescas; f - florestas
A55: Fonte: GPP a partir de dados INE/Comércio Internacional (2022 definitivos) | S55: 2024-07-23T14:50:46.270

Sheet 5.2_var
A1: ="Principais contributos por produto para a variação das trocas comerciais PT-África do Sul_x000D_ no período " & INDEX('5.2'!K3:N3,1,aux!AL1) & "-2023 (NC 2 dígitos - milhares de euros) Produtos agrícolas e agroalimentares, do mar e da floresta" -> Principais contributos por produto para a variação das trocas comerciais PT-África do Sul no período 2019-2023 (NC 2 dígitos - milhares de euros) Produtos agrícolas e agroalimentares, do mar e da floresta
E5: aumento das importações | J5: aumento das exportações
E17: redução das importações | J17: redução das exportações
A28: Fonte: GPP a partir de dados INE/Comércio Internacional (2022 definitivos) | F28: a - agrícola e agroalimentar; p - mar; f - florestas | H28: ='3'!Y116 -> 2024-07-23T14:50:46.270
A29: Cód. NC | B29: Descritivo | C29: ="Variação das Importações " & INDEX('5.2'!K3:N3,1,aux!AL1) & "-"& '5.2'!O3 &"" -> Variação das Importações 2019-2023 | F29: Cód. NC | G29: Descritivo | H29: ="Variação das Exportações " & INDEX('5.2'!K3:N3,1,aux!AL1) & "-"& '5.2'!O3 &"" -> Variação das Exportações 2019-2023
C30: variação total em valor | D30: % do aumento/ redução total | H30: variação total em valor | I30: % do aumento/ redução total
A31: =IF(C31>0,aux!AU6,"") -> 08 | B31: =IF(C31>0,aux!AV6,"") -> Frutas | C31: =IF(aux!AW6>0,aux!AW6,0) -> 65501.244 | D31: =IF(SUM($C$31:$C$41)<>0,C31/SUM($C$31:$C$41),0) -> 0.7588522576 | F31: =IF(H31>0,aux!AZ6,"") -> 11 | G31: =IF(H31>0,aux!BA6,"") -> Produtos da indústria de moagem e outros | H31: =IF(aux!BB6>0,aux!BB6,0) -> 1622.215 | I31: =IF(SUM($H$31:$H$41)<>0,H31/SUM($H$31:$H$41),0) -> 0.3924892546
A32: =IF(C32>0,aux!AU7,"") -> 12 | B32: =IF(C32>0,aux!AV7,"") -> Sementes e frutos oleaginosos | C32: =IF(aux!AW7>0,aux!AW7,0) -> 18430.216 | D32: =IF(SUM($C$31:$C$41)<>0,C32/SUM($C$31:$C$41),0) -> 0.2135197771 | F32: =IF(H32>0,aux!AZ7,"") -> 48 | G32: =IF(H32>0,aux!BA7,"") -> Papel e cartão | H32: =IF(aux!BB7>0,aux!BB7,0) -> 770.677 | I32: =IF(SUM($H$31:$H$41)<>0,H32/SUM($H$31:$H$41),0) -> 0.186462609
A33: =IF(C33>0,aux!AU8,"") -> 16p | B33: =IF(C33>0,aux!AV8,"") -> Preparações e conservas de peixes ou crustáceos (NC 1604-05) (p) | C33: =IF(aux!AW8>0,aux!AW8,0) -> 1228.213 | D33: 0.01422922911 | F33: =IF(H33>0,aux!AZ8,"") -> 22 | G33: =IF(H33>0,aux!BA8,"") -> Bebidas, líquidos alcoólicos e vinagres | H33: =IF(aux!BB8>0,aux!BB8,0) -> 484.445 | I33: 0.1172097761
A34: =IF(C34>0,aux!AU9,"") -> 15 | B34: =IF(C34>0,aux!AV9,"") -> Gorduras e óleos animais ou vegetais | C34: =IF(aux!AW9>0,aux!AW9,0) -> 523.298 | D34: 0.006062569876 | F34: =IF(H34>0,aux!AZ9,"") -> 18 | G34: =IF(H34>0,aux!BA9,"") -> Cacau e suas preparações | H34: =IF(aux!BB9>0,aux!BB9,0) -> 468.618 | I34: 0.1133804887
A35: =IF(C35>0,aux!AU10,"") -> 07 | B35: =IF(C35>0,aux!AV10,"") -> Produtos hortícolas | C35: =IF(aux!AW10>0,aux!AW10,0) -> 295.792 | D35: 0.003426842198 | F35: =IF(H35>0,aux!AZ10,"") -> 38a | G35: =IF(H35>0,aux!BA10,"") -> Agentes de acabamento, ácidos gordos, sorbitol (NC 380910, 382311-12-13-19-70, 382460) (a) | H35: =IF(aux!BB10>0,aux!BB10,0) -> 456.447 | I35: 0.1104357578
A36: =IF(C36>0,aux!AU11,"") -> 22 | B36: =IF(C36>0,aux!AV11,"") -> Bebidas, líquidos alcoólicos e vinagres | C36: =IF(aux!AW11>0,aux!AW11,0) -> 165.134 | D36: 0.001913128684 | F36: =IF(H36>0,aux!AZ11,"") -> 33 | G36: =IF(H36>0,aux!BA11,"") -> Óleos essenciais e resinóides (NC 3301) | H36: =IF(aux!BB11>0,aux!BB11,0) -> 230.352 | I36: 0.05573286202
A37: =IF(C37>0,aux!AU12,"") -> 46 | B37: =IF(C37>0,aux!AV12,"") -> Obras de espartaria ou de cestaria | C37: =IF(aux!AW12>0,aux!AW12,0) -> 99.77 | D37: 0.00115586644 | F37: =IF(H37>0,aux!AZ12,"") -> 17 | G37: =IF(H37>0,aux!BA12,"") -> Açúcares e produtos de confeitaria | H37: =IF(aux!BB12>0,aux!BB12,0) -> 82.435 | I37: 0.01994486039
A38: =IF(C38>0,aux!AU13,"") -> 01 | B38: =IF(C38>0,aux!AV13,"") -> Animais vivos | C38: =IF(aux!AW13>0,aux!AW13,0) -> 21.459 | D38: 0.0002486091806 | F38: =IF(H38>0,aux!AZ13,"") -> 10 | G38: =IF(H38>0,aux!BA13,"") -> Cereais | H38: =IF(aux!BB13>0,aux!BB13,0) -> 11.243 | I38: 0.00272020459
A39: =IF(C39>0,aux!AU14,"") -> 13a | B39: =IF(C39>0,aux!AV14,"") -> Sucos e extratos vegetais (exc. NC 1301) (a) | C39: =IF(aux!AW14>0,aux!AW14,0) -> 20.1 | D39: 0.0002328647434 | F39: =IF(H39>0,aux!AZ14,"") -> 02 | G39: =IF(H39>0,aux!BA14,"") -> Carnes e miudezas | H39: =IF(aux!BB14>0,aux!BB14,0) -> 2.86 | I39: 0.000691967013
A40: =IF(C40>0,aux!AU15,"") -> 06 | B40: =IF(C40>0,aux!AV15,"") -> Plantas vivas e produtos de floricultura | C40: =IF(aux!AW15>0,aux!AW15,0) -> 10.203 | D40: 0.0001182049242 | F40: =IF(H40>0,aux!AZ15,"") -> 06 | G40: =IF(H40>0,aux!BA15,"") -> Plantas vivas e produtos de floricultura | H40: =IF(aux!BB15>0,aux!BB15,0) -> 2.261 | I40: 0.0005470410547
B41: Outros contributos para o aumento das importações | C41: =SUMIF(aux!AW16:AW51,">0") -> 20.772 | D41: 0.0002406500722 | G41: Outros contributos para o aumento das exportações | H41: =SUMIF(aux!BB16:BB51,">0") -> 1.592 | I41: 0.0003851788408
B42: Outros contributos para a redução das importações | C42: =SUMIF(aux!AW6:AW41,"<0") -> -6.869 | D42: =IF(SUM($C$42:$C$52)<>0,C42/SUM($C$42:$C$52),0) -> 0.0005367479746 | G42: Outros contributos para a redução das exportações | H42: =SUMIF(aux!BB6:BB41,"<0") -> -345.963 | I42: =IF(SUM($H$42:$H$52)<>0,H42/SUM($H$42:$H$52),0) -> 0.02919660659
A43: =IF(C43<>0,aux!AU42,"") -> 44 | B43: =IF(C43<0,aux!AV42,"") -> Madeira e suas obras | C43: =IF(aux!AW42<0,aux!AW42,0) -> -12.266 | D43: =IF(SUM($C$42:$C$52)<>0,C43/SUM($C$42:$C$52),0) -> 0.0009584729446 | F43: =IF(H43<>0,aux!AZ42,"") -> 44 | G43: =IF(H43<>0,aux!BA42,"") -> Madeira e suas obras | H43: =IF(aux!BB42<0,aux!BB42,0) -> -108.667 | I43: =IF(SUM($H$42:$H$52)<>0,H43/SUM($H$42:$H$52),0) -> 0.00917065596
A44: =IF(C44<>0,aux!AU43,"") -> 20 | B44: =IF(C44<0,aux!AV43,"") -> Preparações de produtos vegetais | C44: =IF(aux!AW43<0,aux!AW43,0) -> -46.624 | D44: 0.003643228646 | F44: =IF(H44<>0,aux!AZ43,"") -> 03 | G44: =IF(H44<>0,aux!BA43,"") -> Peixes e crustáceos | H44: =IF(aux!BB43<0,aux!BB43,0) -> -175.781 | I44: 0.01483455948
A45: =IF(C45<>0,aux!AU44,"") -> 48 | B45: =IF(C45<0,aux!AV44,"") -> Papel e cartão | C45: =IF(aux!AW44<0,aux!AW44,0) -> -74.124 | D45: 0.005792095919 | F45: =IF(H45<>0,aux!AZ44,"") -> 16p | G45: =IF(H45<>0,aux!BA44,"") -> Preparações e conservas de peixes ou crustáceos (NC 1604-05) (p) | H45: =IF(aux!BB44<0,aux!BB44,0) -> -344.646 | I45: 0.02908546195
A46: =IF(C46<>0,aux!AU45,"") -> 51 | B46: =IF(C46<0,aux!AV45,"") -> Lã não cardada (NC 5101-5103) | C46: =IF(aux!AW45<0,aux!AW45,0) -> -89.437 | D46: 0.006988663358 | F46: =IF(H46<>0,aux!AZ45,"") -> 19a | G46: =IF(H46<>0,aux!BA45,"") -> Preparações à base de cereais (exc. NC 19022010) (a) | H46: =IF(aux!BB45<0,aux!BB45,0) -> -462.249 | I46: 0.03901024733
A47: =IF(C47<>0,aux!AU46,"") -> 41 | B47: =IF(C47<0,aux!AV46,"") -> Couro e peles em bruto (NC 4101 a 4103) | C47: =IF(aux!AW46<0,aux!AW46,0) -> -94.462 | D47: 0.007381320014 | F47: =IF(H47<>0,aux!AZ46,"") -> 05a | G47: =IF(H47<>0,aux!BA46,"") -> Outros produtos de origem animal (exc. NC 0508, 051191) (a) | H47: =IF(aux!BB46<0,aux!BB46,0) -> -701.669 | I47: 0.05921544716
A48: =IF(C48<>0,aux!AU47,"") -> 52 | B48: =IF(C48<0,aux!AV47,"") -> Algodão (NC 5201-5203) | C48: =IF(aux!AW47<0,aux!AW47,0) -> -173.029 | D48: 0.01352059474 | F48: =IF(H48<>0,aux!AZ47,"") -> 21 | G48: =IF(H48<>0,aux!BA47,"") -> Preparações alimentícias diversas | H48: =IF(aux!BB47<0,aux!BB47,0) -> -783.94 | I48: 0.06615848448
A49: =IF(C49<>0,aux!AU48,"") -> 45 | B49: =IF(C49<0,aux!AV48,"") -> Cortiça e suas obras | C49: =IF(aux!AW48<0,aux!AW48,0) -> -207.269 | D49: 0.01619612985 | F49: =IF(H49<>0,aux!AZ48,"") -> 04 | G49: =IF(H49<>0,aux!BA48,"") -> Leite e laticínios; ovos; mel, etc. | H49: =IF(aux!BB48<0,aux!BB48,0) -> -854.11 | I49: 0.07208029082
A50: =IF(C50<>0,aux!AU49,"") -> 38f | B50: =IF(C50<0,aux!AV49,"") -> Tall oil, essências e colofónias (NC 3803,3805,3806) (f) | C50: =IF(aux!AW49<0,aux!AW49,0) -> -329.005 | D50: 0.02570865736 | F50: =IF(H50<>0,aux!AZ49,"") -> 45 | G50: =IF(H50<>0,aux!BA49,"") -> Cortiça e suas obras | H50: =IF(aux!BB49<0,aux!BB49,0) -> -1143.581 | I50: 0.09650940868
A51: =IF(C51<>0,aux!AU50,"") -> 17 | B51: =IF(C51<0,aux!AV50,"") -> Açúcares e produtos de confeitaria | C51: =IF(aux!AW50<0,aux!AW50,0) -> -1604.647 | D51: 0.1253881245 | F51: =IF(H51<>0,aux!AZ50,"") -> 20 | G51: =IF(H51<>0,aux!BA50,"") -> Preparações de produtos vegetais | H51: =IF(aux!BB50<0,aux!BB50,0) -> -1752.992 | I51: 0.1479389928
A52: =IF(C52<>0,aux!AU51,"") -> 03 | B52: =IF(C52<0,aux!AV51,"") -> Peixes e crustáceos | C52: =IF(aux!AW51<0,aux!AW51,0) -> -10159.708 | D52: 0.7938859647 | F52: =IF(H52<>0,aux!AZ51,"") -> 15 | G52: =IF(H52<>0,aux!BA51,"") -> Gorduras e óleos animais ou vegetais | H52: =IF(aux!BB51<0,aux!BB51,0) -> -5175.827 | I52: 0.4367998447
A53: TOTAL | C53: =SUM(C31:C52) -> 73518.761 | F53: TOTAL | H53: =SUM(H31:H52) -> -7716.28

Sheet 5.2A
A1: Trocas comerciais Portugal-África do Sul 2019-2023 em milhares de euros (NC 4 dígitos) | G1: Produtos agrícolas e agroalimentares, do mar e da floresta
A2: Cód. NC | B2: Descritivo | C2: Importações | K2: Exportações | S2: Saldo quinquénio (exp-imp) | T2: Evolução das importações | U2: =+"Variação das Importações " & INDEX(K3:N3,1,aux!AL1) & "-"& '5.2'!O3 &"" -> Variação das Importações 2019-2023 | Z2: Evolução das exportações | AA2: ="Variação das Exportações " & INDEX(K3:N3,1,aux!AL1) & "-"& '5.2'!O3 &"" -> Variação das Exportações 2019-2023
C3: 2019 | D3: 2020 | E3: 2021 | F3: 2022 | G3: 2023 | H3: média quinquénio | I3: % Subtot | J3: % Total | K3: 2019 | L3: 2020 | M3: 2021 | N3: 2022 | O3: 2023 | P3: média quinquénio | Q3: % Subtot | R3: % Total | U3: variação total em valor | V3: % no subtotal de variação | W3: % no total de variação | X3: taxa de variação média anual | Y3: taxa de variação total | AA3: variação total em valor | AB3: % no subtotal de variação | AC3: % no total de variação | AD3: taxa de variação média anual | AE3: taxa de variação total | AX3: filtro
A4: 0101 | B4: Equídeos vivos | C4: 0 | D4: 0 | E4: 0 | F4: 0 | G4: 0 | H4: 0 | I4: 0 | J4: 0 | K4: 0 | L4: 0 | M4: 0 | N4: 0 | O4: 0 | P4: 0 | Q4: 0 | R4: 0 | S4: 0 | U4: =G4-INDEX($C4:$G4,1,aux!$AL$1) -> 0 | V4: =IF($U$237<>0,U4/$U$237, "n.d.") -> 0 | W4: =IF($U$322<>0,U4/$U$322, "n.d.") -> 0 | X4: =+IF(INDEX($C4:$G4,1,aux!$AL$1)>0,(G4/INDEX($C4:$G4,1,aux!$AL$1))^(1/($G$3-INDEX($C$3:$G$3,1,aux!$AL$1)))-1,"n.d.") -> n.d. | Y4: =IF(INDEX($C4:$G4,1,aux!$AL$1)>0,(G4-INDEX($C4:$G4,1,aux!$AL$1))/INDEX($C4:$G4,1,aux!$AL$1),"n.d.") -> n.d. | AA4: =O4-INDEX($K4:$O4,1,aux!$AL$1) -> 0 | AB4: =IF($AA$237<>0,AA4/$AA$237, "n.d.") -> 0 | AC4: =IF($AA$322<>0,AA4/$AA$322, "n.d.") -> 0 | AD4: =+IF(INDEX($K4:$O4,1,aux!$AL$1)>0,(O4/INDEX($K4:$O4,1,aux!$AL$1))^(1/($O$3-INDEX($K$3:$O$3,1,aux!$AL$1)))-1,"n.d.") -> n.d. | AE4: =IF(INDEX($K4:$O4,1,aux!$AL$1)>0,(O4-INDEX($K4:$O4,1,aux!$AL$1))/INDEX($K4:$O4,1,aux!$AL$1),"n.d.") -> n.d. | AX4: =+LEFT(A4,2) -> 01
A5: 0102 | B5: Bovinos vivos | C5: 0 | D5: 0 | E5: 0 | F5: 0 | G5: 0 | H5: 0 | I5: 0 | J5: 0 | K5: 0 | L5: 0 | M5: 0 | N5: 0 | O5: 0 | P5: 0 | Q5: 0 | R5: 0 | S5: 0 | U5: =G5-INDEX($C5:$G5,1,aux!$AL$1) -> 0 | V5: 0 | W5: 0 | X5: =+IF(INDEX($C5:$G5,1,aux!$AL$1)>0,(G5/INDEX($C5:$G5,1,aux!$AL$1))^(1/($G$3-INDEX($C$3:$G$3,1,aux!$AL$1)))-1,"n.d.") -> n.d. | Y5: =IF(INDEX($C5:$G5,1,aux!$AL$1)>0,(G5-INDEX($C5:$G5,1,aux!$AL$1))/INDEX($C5:$G5,1,aux!$AL$1),"n.d.") -> n.d. | AA5: =O5-INDEX($K5:$O5,1,aux!$AL$1) -> 0 | AB5: 0 | AC5: 0 | AD5: =+IF(INDEX($K5:$O5,1,aux!$AL$1)>0,(O5/INDEX($K5:$O5,1,aux!$AL$1))^(1/($O$3-INDEX($K$3:$O$3,1,aux!$AL$1)))-1,"n.d.") -> n.d. | AE5: =IF(INDEX($K5:$O5,1,aux!$AL$1)>0,(O5-INDEX($K5:$O5,1,aux!$AL$1))/INDEX($K5:$O5,1,aux!$AL$1),"n.d.") -> n.d. | AX5: 01
A6: 0103 | B6: Suínos vivos | C6: 0 | D6: 0 | E6: 0 | F6: 0 | G6: 0 | H6: 0 | I6: 0 | J6: 0 | K6: 0 | L6: 0 | M6: 0 | N6: 0 | O6: 0 | P6: 0 | Q6: 0 | R6: 0 | S6: 0 | U6: =G6-INDEX($C6:$G6,1,aux!$AL$1) -> 0 | V6: 0 | W6: 0 | X6: =+IF(INDEX($C6:$G6,1,aux!$AL$1)>0,(G6/INDEX($C6:$G6,1,aux!$AL$1))^(1/($G$3-INDEX($C$3:$G$3,1,aux!$AL$1)))-1,"n.d.") -> n.d. | Y6: =IF(INDEX($C6:$G6,1,aux!$AL$1)>0,(G6-INDEX($C6:$G6,1,aux!$AL$1))/INDEX($C6:$G6,1,aux!$AL$1),"n.d.") -> n.d. | AA6: =O6-INDEX($K6:$O6,1,aux!$AL$1) -> 0 | AB6: 0 | AC6: 0 | AD6: =+IF(INDEX($K6:$O6,1,aux!$AL$1)>0,(O6/INDEX($K6:$O6,1,aux!$AL$1))^(1/($O$3-INDEX($K$3:$O$3,1,aux!$AL$1)))-1,"n.d.") -> n.d. | AE6: =IF(INDEX($K6:$O6,1,aux!$AL$1)>0,(O6-INDEX($K6:$O6,1,aux!$AL$1))/INDEX($K6:$O6,1,aux!$AL$1),"n.d.") -> n.d. | AX6: 01
A7: 0104 | B7: Ovinos ou caprinos vivos | C7: 0 | D7: 0 | E7: 0 | F7: 0 | G7: 0 | H7: 0 | I7: 0 | J7: 0 | K7: 0 | L7: 0 | M7: 0 | N7: 0 | O7: 0 | P7: 0 | Q7: 0 | R7: 0 | S7: 0 | U7: =G7-INDEX($C7:$G7,1,aux!$AL$1) -> 0 | V7: 0 | W7: 0 | X7: =+IF(INDEX($C7:$G7,1,aux!$AL$1)>0,(G7/INDEX($C7:$G7,1,aux!$AL$1))^(1/($G$3-INDEX($C$3:$G$3,1,aux!$AL$1)))-1,"n.d.") -> n.d. | Y7: =IF(INDEX($C7:$G7,1,aux!$AL$1)>0,(G7-INDEX($C7:$G7,1,aux!$AL$1))/INDEX($C7:$G7,1,aux!$AL$1),"n.d.") -> n.d. | AA7: =O7-INDEX($K7:$O7,1,aux!$AL$1) -> 0 | AB7: 0 | AC7: 0 | AD7: =+IF(INDEX($K7:$O7,1,aux!$AL$1)>0,(O7/INDEX($K7:$O7,1,aux!$AL$1))^(1/($O$3-INDEX($K$3:$O$3,1,aux!$AL$1)))-1,"n.d.") -> n.d. | AE7: =IF(INDEX($K7:$O7,1,aux!$AL$1)>0,(O7-INDEX($K7:$O7,1,aux!$AL$1))/INDEX($K7:$O7,1,aux!$AL$1),"n.d.") -> n.d. | AX7: 01
A8: 0105 | B8: Aves de capoeira vivas | C8: 0 | D8: 0 | E8: 0 | F8: 0 | G8: 0 | H8: 0 | I8: 0 | J8: 0 | K8: 0 | L8: 0 | M8: 0 | N8: 0 | O8: 0 | P8: 0 | Q8: 0 | R8: 0 | S8: 0 | U8: =G8-INDEX($C8:$G8,1,aux!$AL$1) -> 0 | V8: 0 | W8: 0 | X8: =+IF(INDEX($C8:$G8,1,aux!$AL$1)>0,(G8/INDEX($C8:$G8,1,aux!$AL$1))^(1/($G$3-INDEX($C$3:$G$3,1,aux!$AL$1)))-1,"n.d.") -> n.d. | Y8: =IF(INDEX($C8:$G8,1,aux!$AL$1)>0,(G8-INDEX($C8:$G8,1,aux!$AL$1))/INDEX($C8:$G8,1,aux!$AL$1),"n.d.") -> n.d. | AA8: =O8-INDEX($K8:$O8,1,aux!$AL$1) -> 0 | AB8: 0 | AC8: 0 | AD8: =+IF(INDEX($K8:$O8,1,aux!$AL$1)>0,(O8/INDEX($K8:$O8,1,aux!$AL$1))^(1/($O$3-INDEX($K$3:$O$3,1,aux!$AL$1)))-1,"n.d.") -> n.d. | AE8: =IF(INDEX($K8:$O8,1,aux!$AL$1)>0,(O8-INDEX($K8:$O8,1,aux!$AL$1))/INDEX($K8:$O8,1,aux!$AL$1),"n.d.") -> n.d. | AX8: 01
A9: 0106 | B9: Outros animais vivos | C9: 1.78 | D9: 13.218 | E9: 27.295 | F9: 43.506 | G9: 23.239 | H9: 21.8076 | I9: 0.00017870604 | J9: 0.0001428762694 | K9: 1.41 | L9: 1.32 | M9: 2.325 | N9: 2.13 | O9: 3.002 | P9: 2.0374 | Q9: 9.193566052e-05 | R9: 5.53469434e-05 | S9: -19.7702 | U9: =G9-INDEX($C9:$G9,1,aux!$AL$1) -> 21.459 | V9: 0.0002586669334 | W9: 0.0002918846796 | X9: =+IF(INDEX($C9:$G9,1,aux!$AL$1)>0,(G9/INDEX($C9:$G9,1,aux!$AL$1))^(1/($G$3-INDEX($C$3:$G$3,1,aux!$AL$1)))-1,"n.d.") -> 0.9008566146 | Y9: =IF(INDEX($C9:$G9,1,aux!$AL$1)>0,(G9-INDEX($C9:$G9,1,aux!$AL$1))/INDEX($C9:$G9,1,aux!$AL$1),"n.d.") -> 12.05561798 | AA9: =O9-INDEX($K9:$O9,1,aux!$AL$1) -> 1.592 | AB9: -0.0002380225825 | AC9: -0.0002063170336 | AD9: =+IF(INDEX($K9:$O9,1,aux!$AL$1)>0,(O9/INDEX($K9:$O9,1,aux!$AL$1))^(1/($O$3-INDEX($K$3:$O$3,1,aux!$AL$1)))-1,"n.d.") -> 0.2079470397 | AE9: =IF(INDEX($K9:$O9,1,aux!$AL$1)>0,(O9-INDEX($K9:$O9,1,aux!$AL$1))/INDEX($K9:$O9,1,aux!$AL$1),"n.d.") -> 1.129078014 | AX9: 01
A10: 01SS | B10: Animais vivos | C10: 0 | D10: 0 | E10: 0 | F10: 0 | G10: 0 | H10: 0 | I10: 0 | J10: 0 | K10: 0 | L10: 0 | M10: 0 | N10: 0 | O10: 0 | P10: 0 | Q10: 0 | R10: 0 | S10: 0 | U10: =G10-INDEX($C10:$G10,1,aux!$AL$1) -> 0 | V10: 0 | W10: 0 | X10: =+IF(INDEX($C10:$G10,1,aux!$AL$1)>0,(G10/INDEX($C10:$G10,1,aux!$AL$1))^(1/($G$3-INDEX($C$3:$G$3,1,aux!$AL$1)))-1,"n.d.") -> n.d. | Y10: =IF(INDEX($C10:$G10,1,aux!$AL$1)>0,(G10-INDEX($C10:$G10,1,aux!$AL$1))/INDEX($C10:$G10,1,aux!$AL$1),"n.d.") -> n.d. | AA10: =O10-INDEX($K10:$O10,1,aux!$AL$1) -> 0 | AB10: 0 | AC10: 0 | AD10: =+IF(INDEX($K10:$O10,1,aux!$AL$1)>0,(O10/INDEX($K10:$O10,1,aux!$AL$1))^(1/($O$3-INDEX($K$3:$O$3,1,aux!$AL$1)))-1,"n.d.") -> n.d. | AE10: =IF(INDEX($K10:$O10,1,aux!$AL$1)>0,(O10-INDEX($K10:$O10,1,aux!$AL$1))/INDEX($K10:$O10,1,aux!$AL$1),"n.d.") -> n.d. | AX10: 01
A11: 0201 | B11: Carnes de bovino, frescas ou refrigeradas | C11: 0 | D11: 0 | E11: 0 | F11: 0 | G11: 0 | H11: 0 | I11: 0 | J11: 0 | K11: 0 | L11: 0 | M11: 0 | N11: 0 | O11: 0 | P11: 0 | Q11: 0 | R11: 0 | S11: 0 | U11: =G11-INDEX($C11:$G11,1,aux!$AL$1) -> 0 | V11: 0 | W11: 0 | X11: =+IF(INDEX($C11:$G11,1,aux!$AL$1)>0,(G11/INDEX($C11:$G11,1,aux!$AL$1))^(1/($G$3-INDEX($C$3:$G$3,1,aux!$AL$1)))-1,"n.d.") -> n.d. | Y11: =IF(INDEX($C11:$G11,1,aux!$AL$1)>0,(G11-INDEX($C11:$G11,1,aux!$AL$1))/INDEX($C11:$G11,1,aux!$AL$1),"n.d.") -> n.d. | AA11: =O11-INDEX($K11:$O11,1,aux!$AL$1) -> 0 | AB11: 0 | AC11: 0 | AD11: =+IF(INDEX($K11:$O11,1,aux!$AL$1)>0,(O11/INDEX($K11:$O11,1,aux!$AL$1))^(1/($O$3-INDEX($K$3:$O$3,1,aux!$AL$1)))-1,"n.d.") -> n.d. | AE11: =IF(INDEX($K11:$O11,1,aux!$AL$1)>0,(O11-INDEX($K11:$O11,1,aux!$AL$1))/INDEX($K11:$O11,1,aux!$AL$1),"n.d.") -> n.d. | AX11: 02
A12: 0202 | B12: Carnes de bovino, congeladas | C12: 0 | D12: 0 | E12: 0 | F12: 0 | G12: 0 | H12: 0 | I12: 0 | J12: 0 | K12: 0 | L12: 0 | M12: 0 | N12: 0 | O12: 0 | P12: 0 | Q12: 0 | R12: 0 | S12: 0 | U12: =G12-INDEX($C12:$G12,1,aux!$AL$1) -> 0 | V12: 0 | W12: 0 | X12: =+IF(INDEX($C12:$G12,1,aux!$AL$1)>0,(G12/INDEX($C12:$G12,1,aux!$AL$1))^(1/($G$3-INDEX($C$3:$G$3,1,aux!$AL$1)))-1,"n.d.") -> n.d. | Y12: =IF(INDEX($C12:$G12,1,aux!$AL$1)>0,(G12-INDEX($C12:$G12,1,aux!$AL$1))/INDEX($C12:$G12,1,aux!$AL$1),"n.d.") -> n.d. | AA12: =O12-INDEX($K12:$O12,1,aux!$AL$1) -> 0 | AB12: 0 | AC12: 0 | AD12: =+IF(INDEX($K12:$O12,1,aux!$AL$1)>0,(O12/INDEX($K12:$O12,1,aux!$AL$1))^(1/($O$3-INDEX($K$3:$O$3,1,aux!$AL$1)))-1,"n.d.") -> n.d. | AE12: =IF(INDEX($K12:$O12,1,aux!$AL$1)>0,(O12-INDEX($K12:$O12,1,aux!$AL$1))/INDEX($K12:$O12,1,aux!$AL$1),"n.d.") -> n.d. | AX12: 02
A13: 0203 | B13: Carnes de suíno | C13: 0 | D13: 0 | E13: 0 | F13: 0 | G13: 0 | H13: 0 | I13: 0 | J13: 0 | K13: 0 | L13: 0 | M13: 0 | N13: 0 | O13: 0 | P13: 0 | Q13: 0 | R13: 0 | S13: 0 | U13: =G13-INDEX($C13:$G13,1,aux!$AL$1) -> 0 | V13: 0 | W13: 0 | X13: =+IF(INDEX($C13:$G13,1,aux!$AL$1)>0,(G13/INDEX($C13:$G13,1,aux!$AL$1))^(1/($G$3-INDEX($C$3:$G$3,1,aux!$AL$1)))-1,"n.d.") -> n.d. | Y13: =IF(INDEX($C13:$G13,1,aux!$AL$1)>0,(G13-INDEX($C13:$G13,1,aux!$AL$1))/INDEX($C13:$G13,1,aux!$AL$1),"n.d.") -> n.d. | AA13: =O13-INDEX($K13:$O13,1,aux!$AL$1) -> 0 | AB13: 0 | AC13: 0 | AD13: =+IF(INDEX($K13:$O13,1,aux!$AL$1)>0,(O13/INDEX($K13:$O13,1,aux!$AL$1))^(1/($O$3-INDEX($K$3:$O$3,1,aux!$AL$1)))-1,"n.d.") -> n.d. | AE13: =IF(INDEX($K13:$O13,1,aux!$AL$1)>0,(O13-INDEX($K13:$O13,1,aux!$AL$1))/INDEX($K13:$O13,1,aux!$AL$1),"n.d.") -> n.d. | AX13: 02
A14: 0204 | B14: Carnes de ovino ou caprino | C14: 0 | D14: 0 | E14: 0 | F14: 0 | G14: 0 | H14: 0 | I14: 0 | J14: 0 | K14: 0 | L14: 0 | M14: 0 | N14: 0 | O14: 0 | P14: 0 | Q14: 0 | R14: 0 | S14: 0 | U14: =G14-INDEX($C14:$G14,1,aux!$AL$1) -> 0 | V14: 0 | W14: 0 | X14: =+IF(INDEX($C14:$G14,1,aux!$AL$1)>0,(G14/INDEX($C14:$G14,1,aux!$AL$1))^(1/($G$3-INDEX($C$3:$G$3,1,aux!$AL$1)))-1,"n.d.") -> n.d. | Y14: =IF(INDEX($C14:$G14,1,aux!$AL$1)>0,(G14-INDEX($C14:$G14,1,aux!$AL$1))/INDEX($C14:$G14,1,aux!$AL$1),"n.d.") -> n.d. | AA14: =O14-INDEX($K14:$O14,1,aux!$AL$1) -> 0 | AB14: 0 | AC14: 0 | AD14: =+IF(INDEX($K14:$O14,1,aux!$AL$1)>0,(O14/INDEX($K14:$O14,1,aux!$AL$1))^(1/($O$3-INDEX($K$3:$O$3,1,aux!$AL$1)))-1,"n.d.") -> n.d. | AE14: =IF(INDEX($K14:$O14,1,aux!$AL$1)>0,(O14-INDEX($K14:$O14,1,aux!$AL$1))/INDEX($K14:$O14,1,aux!$AL$1),"n.d.") -> n.d. | AX14: 02
A15: 0205 | B15: Carnes de equídeo | C15: 0 | D15: 0 | E15: 0 | F15: 0 | G15: 0 | H15: 0 | I15: 0 | J15: 0 | K15: 0 | L15: 0 | M15: 0 | N15: 0 | O15: 0 | P15: 0 | Q15: 0 | R15: 0 | S15: 0 | U15: =G15-INDEX($C15:$G15,1,aux!$AL$1) -> 0 | V15: 0 | W15: 0 | X15: =+IF(INDEX($C15:$G15,1,aux!$AL$1)>0,(G15/INDEX($C15:$G15,1,aux!$AL$1))^(1/($G$3-INDEX($C$3:$G$3,1,aux!$AL$1)))-1,"n.d.") -> n.d. | Y15: =IF(INDEX($C15:$G15,1,aux!$AL$1)>0,(G15-INDEX($C15:$G15,1,aux!$AL$1))/INDEX($C15:$G15,1,aux!$AL$1),"n.d.") -> n.d. | AA15: =O15-INDEX($K15:$O15,1,aux!$AL$1) -> 0 | AB15: 0 | AC15: 0 | AD15: =+IF(INDEX($K15:$O15,1,aux!$AL$1)>0,(O15/INDEX($K15:$O15,1,aux!$AL$1))^(1/($O$3-INDEX($K$3:$O$3,1,aux!$AL$1)))-1,"n.d.") -> n.d. | AE15: =IF(INDEX($K15:$O15,1,aux!$AL$1)>0,(O15-INDEX($K15:$O15,1,aux!$AL$1))/INDEX($K15:$O15,1,aux!$AL$1),"n.d.") -> n.d. | AX15: 02
A16: 0206 | B16: Miudezas de bovino, suíno, ovino, caprino,equídeo | C16: 0 | D16: 0 | E16: 0 | F16: 0 | G16: 0 | H16: 0 | I16: 0 | J16: 0 | K16: 0 | L16: 0 | M16: 0 | N16: 0 | O16: 0 | P16: 0 | Q16: 0 | R16: 0 | S16: 0 | U16: =G16-INDEX($C16:$G16,1,aux!$AL$1) -> 0 | V16: 0 | W16: 0 | X16: =+IF(INDEX($C16:$G16,1,aux!$AL$1)>0,(G16/INDEX($C16:$G16,1,aux!$AL$1))^(1/($G$3-INDEX($C$3:$G$3,1,aux!$AL$1)))-1,"n.d.") -> n.d. | Y16: =IF(INDEX($C16:$G16,1,aux!$AL$1)>0,(G16-INDEX($C16:$G16,1,aux!$AL$1))/INDEX($C16:$G16,1,aux!$AL$1),"n.d.") -> n.d. | AA16: =O16-INDEX($K16:$O16,1,aux!$AL$1) -> 0 | AB16: 0 | AC16: 0 | AD16: =+IF(INDEX($K16:$O16,1,aux!$AL$1)>0,(O16/INDEX($K16:$O16,1,aux!$AL$1))^(1/($O$3-INDEX($K$3:$O$3,1,aux!$AL$1)))-1,"n.d.") -> n.d. | AE16: =IF(INDEX($K16:$O16,1,aux!$AL$1)>0,(O16-INDEX($K16:$O16,1,aux!$AL$1))/INDEX($K16:$O16,1,aux!$AL$1),"n.d.") -> n.d. | AX16: 02
A17: 0207 | B17: Carnes e miudezas de aves de capoeira | C17: 0 | D17: 0 | E17: 0 | F17: 0 | G17: 0 | H17: 0 | I17: 0 | J17: 0 | K17: 0 | L17: 0 | M17: 0 | N17: 0 | O17: 0 | P17: 0 | Q17: 0 | R17: 0 | S17: 0 | U17: =G17-INDEX($C17:$G17,1,aux!$AL$1) -> 0 | V17: 0 | W17: 0 | X17: =+IF(INDEX($C17:$G17,1,aux!$AL$1)>0,(G17/INDEX($C17:$G17,1,aux!$AL$1))^(1/($G$3-INDEX($C$3:$G$3,1,aux!$AL$1)))-1,"n.d.") -> n.d. | Y17: =IF(INDEX($C17:$G17,1,aux!$AL$1)>0,(G17-INDEX($C17:$G17,1,aux!$AL$1))/INDEX($C17:$G17,1,aux!$AL$1),"n.d.") -> n.d. | AA17: =O17-INDEX($K17:$O17,1,aux!$AL$1) -> 0 | AB17: 0 | AC17: 0 | AD17: =+IF(INDEX($K17:$O17,1,aux!$AL$1)>0,(O17/INDEX($K17:$O17,1,aux!$AL$1))^(1/($O$3-INDEX($K$3:$O$3,1,aux!$AL$1)))-1,"n.d.") -> n.d. | AE17: =IF(INDEX($K17:$O17,1,aux!$AL$1)>0,(O17-INDEX($K17:$O17,1,aux!$AL$1))/INDEX($K17:$O17,1,aux!$AL$1),"n.d.") -> n.d. | AX17: 02
A18: 0208 | B18: Outras carnes e miudezas | C18: 0 | D18: 0 | E18: 0 | F18: 0 | G18: 0 | H18: 0 | I18: 0 | J18: 0 | K18: 0 | L18: 0 | M18: 0 | N18: 0 | O18: 0 | P18: 0 | Q18: 0 | R18: 0 | S18: 0 | U18: =G18-INDEX($C18:$G18,1,aux!$AL$1) -> 0 | V18: 0 | W18: 0 | X18: =+IF(INDEX($C18:$G18,1,aux!$AL$1)>0,(G18/INDEX($C18:$G18,1,aux!$AL$1))^(1/($G$3-INDEX($C$3:$G$3,1,aux!$AL$1)))-1,"n.d.") -> n.d. | Y18: =IF(INDEX($C18:$G18,1,aux!$AL$1)>0,(G18-INDEX($C18:$G18,1,aux!$AL$1))/INDEX($C18:$G18,1,aux!$AL$1),"n.d.") -> n.d. | AA18: =O18-INDEX($K18:$O18,1,aux!$AL$1) -> 0 | AB18: 0 | AC18: 0 | AD18: =+IF(INDEX($K18:$O18,1,aux!$AL$1)>0,(O18/INDEX($K18:$O18,1,aux!$AL$1))^(1/($O$3-INDEX($K$3:$O$3,1,aux!$AL$1)))-1,"n.d.") -> n.d. | AE18: =IF(INDEX($K18:$O18,1,aux!$AL$1)>0,(O18-INDEX($K18:$O18,1,aux!$AL$1))/INDEX($K18:$O18,1,aux!$AL$1),"n.d.") -> n.d. | AX18: 02
A19: 0209 | B19: Toucinho, gorduras de porco e de aves | C19: 0 | D19: 0 | E19: 0 | F19: 0 | G19: 0 | H19: 0 | I19: 0 | J19: 0 | K19: 0 | L19: 0 | M19: 0 | N19: 0 | O19: 0 | P19: 0 | Q19: 0 | R19: 0 | S19: 0 | U19: =G19-INDEX($C19:$G19,1,aux!$AL$1) -> 0 | V19: 0 | W19: 0 | X19: =+IF(INDEX($C19:$G19,1,aux!$AL$1)>0,(G19/INDEX($C19:$G19,1,aux!$AL$1))^(1/($G$3-INDEX($C$3:$G$3,1,aux!$AL$1)))-1,"n.d.") -> n.d. | Y19: =IF(INDEX($C19:$G19,1,aux!$AL$1)>0,(G19-INDEX($C19:$G19,1,aux!$AL$1))/INDEX($C19:$G19,1,aux!$AL$1),"n.d.") -> n.d. | AA19: =O19-INDEX($K19:$O19,1,aux!$AL$1) -> 0 | AB19: 0 | AC19: 0 | AD19: =+IF(INDEX($K19:$O19,1,aux!$AL$1)>0,(O19/INDEX($K19:$O19,1,aux!$AL$1))^(1/($O$3-INDEX($K$3:$O$3,1,aux!$AL$1)))-1,"n.d.") -> n.d. | AE19: =IF(INDEX($K19:$O19,1,aux!$AL$1)>0,(O19-INDEX($K19:$O19,1,aux!$AL$1))/INDEX($K19:$O19,1,aux!$AL$1),"n.d.") -> n.d. | AX19: 02
A20: 0210 | B20: Carnes e miudezas processadas; farinhas de carnes | C20: 0 | D20: 0 | E20: 0 | F20: 0 | G20: 0 | H20: 0 | I20: 0 | J20: 0 | K20: 2.934 | L20: 1.479 | M20: 0 | N20: 0 | O20: 5.794 | P20: 2.0414 | Q20: 9.211615657e-05 | R20: 5.545560531e-05 | S20: 2.0414 | U20: =G20-INDEX($C20:$G20,1,aux!$AL$1) -> 0 | V20: 0 | W20: 0 | X20: =+IF(INDEX($C20:$G20,1,aux!$AL$1)>0,(G20/INDEX($C20:$G20,1,aux!$AL$1))^(1/($G$3-INDEX($C$3:$G$3,1,aux!$AL$1)))-1,"n.d.") -> n.d. | Y20: =IF(INDEX($C20:$G20,1,aux!$AL$1)>0,(G20-INDEX($C20:$G20,1,aux!$AL$1))/INDEX($C20:$G20,1,aux!$AL$1),"n.d.") -> n.d. | AA20: =O20-INDEX($K20:$O20,1,aux!$AL$1) -> 2.86 | AB20: -0.0004276033832 | AC20: -0.0003706449222 | AD20: =+IF(INDEX($K20:$O20,1,aux!$AL$1)>0,(O20/INDEX($K20:$O20,1,aux!$AL$1))^(1/($O$3-INDEX($K$3:$O$3,1,aux!$AL$1)))-1,"n.d.") -> 0.1854400489 | AE20: =IF(INDEX($K20:$O20,1,aux!$AL$1)>0,(O20-INDEX($K20:$O20,1,aux!$AL$1))/INDEX($K20:$O20,1,aux!$AL$1),"n.d.") -> 0.9747784594 | AX20: 02
A21: 02SS | B21: Carnes e miudezas, comestíveis | C21: 0 | D21: 0 | E21: 0 | F21: 0 | G21: 0 | H21: 0 | I21: 0 | J21: 0 | K21: 0 | L21: 0 | M21: 0 | N21: 0 | O21: 0 | P21: 0 | Q21: 0 | R21: 0 | S21: 0 | U21: =G21-INDEX($C21:$G21,1,aux!$AL$1) -> 0 | V21: 0 | W21: 0 | X21: =+IF(INDEX($C21:$G21,1,aux!$AL$1)>0,(G21/INDEX($C21:$G21,1,aux!$AL$1))^(1/($G$3-INDEX($C$3:$G$3,1,aux!$AL$1)))-1,"n.d.") -> n.d. | Y21: =IF(INDEX($C21:$G21,1,aux!$AL$1)>0,(G21-INDEX($C21:$G21,1,aux!$AL$1))/INDEX($C21:$G21,1,aux!$AL$1),"n.d.") -> n.d. | AA21: =O21-INDEX($K21:$O21,1,aux!$AL$1) -> 0 | AB21: 0 | AC21: 0 | AD21: =+IF(INDEX($K21:$O21,1,aux!$AL$1)>0,(O21/INDEX($K21:$O21,1,aux!$AL$1))^(1/($O$3-INDEX($K$3:$O$3,1,aux!$AL$1)))-1,"n.d.") -> n.d. | AE21: =IF(INDEX($K21:$O21,1,aux!$AL$1)>0,(O21-INDEX($K21:$O21,1,aux!$AL$1))/INDEX($K21:$O21,1,aux!$AL$1),"n.d.") -> n.d. | AX21: 02
A22: 0401 | B22: Leite e nata, não concentrados | C22: 0 | D22: 0 | E22: 0 | F22: 0 | G22: 0 | H22: 0 | I22: 0 | J22: 0 | K22: 0.023 | L22: 0 | M22: 0 | N22: 7.591 | O22: 0 | P22: 1.5228 | Q22: 6.871484433e-05 | R22: 4.13675888e-05 | S22: 1.5228 | U22: =G22-INDEX($C22:$G22,1,aux!$AL$1) -> 0 | V22: 0 | W22: 0 | X22: =+IF(INDEX($C22:$G22,1,aux!$AL$1)>0,(G22/INDEX($C22:$G22,1,aux!$AL$1))^(1/($G$3-INDEX($C$3:$G$3,1,aux!$AL$1)))-1,"n.d.") -> n.d. | Y22: =IF(INDEX($C22:$G22,1,aux!$AL$1)>0,(G22-INDEX($C22:$G22,1,aux!$AL$1))/INDEX($C22:$G22,1,aux!$AL$1),"n.d.") -> n.d. | AA22: =O22-INDEX($K22:$O22,1,aux!$AL$1) -> -0.023 | AB22: 3.438768466e-06 | AC22: 2.980710913e-06 | AD22: =+IF(INDEX($K22:$O22,1,aux!$AL$1)>0,(O22/INDEX($K22:$O22,1,aux!$AL$1))^(1/($O$3-INDEX($K$3:$O$3,1,aux!$AL$1)))-1,"n.d.") -> -1 | AE22: =IF(INDEX($K22:$O22,1,aux!$AL$1)>0,(O22-INDEX($K22:$O22,1,aux!$AL$1))/INDEX($K22:$O22,1,aux!$AL$1),"n.d.") -> -1 | AX22: 04
A23: 0402 | B23: Leite e nata, concentrados | C23: 0 | D23: 0 | E23: 0 | F23: 0 | G23: 0 | H23: 0 | I23: 0 | J23: 0 | K23: 16.709 | L23: 4.15 | M23: 311.437 | N23: 925.338 | O23: 40.46 | P23: 259.6188 | Q23: 0.01171504165 | R23: 0.007052668612 | S23: 259.6188 | U23: =G23-INDEX($C23:$G23,1,aux!$AL$1) -> 0 | V23: 0 | W23: 0 | X23: =+IF(INDEX($C23:$G23,1,aux!$AL$1)>0,(G23/INDEX($C23:$G23,1,aux!$AL$1))^(1/($G$3-INDEX($C$3:$G$3,1,aux!$AL$1)))-1,"n.d.") -> n.d. | Y23: =IF(INDEX($C23:$G23,1,aux!$AL$1)>0,(G23-INDEX($C23:$G23,1,aux!$AL$1))/INDEX($C23:$G23,1,aux!$AL$1),"n.d.") -> n.d. | AA23: =O23-INDEX($K23:$O23,1,aux!$AL$1) -> 23.751 | AB23: -0.003551051732 | AC23: -0.003078037604 | AD23: =+IF(INDEX($K23:$O23,1,aux!$AL$1)>0,(O23/INDEX($K23:$O23,1,aux!$AL$1))^(1/($O$3-INDEX($K$3:$O$3,1,aux!$AL$1)))-1,"n.d.") -> 0.2474376705 | AE23: =IF(INDEX($K23:$O23,1,aux!$AL$1)>0,(O23-INDEX($K23:$O23,1,aux!$AL$1))/INDEX($K23:$O23,1,aux!$AL$1),"n.d.") -> 1.421449518 | AX23: 04
A24: 0403 | B24: Leitelho, leite coalhado, iogurte, etc. | C24: 0 | D24: 0 | E24: 0 | F24: 0 | G24: 0 | H24: 0 | I24: 0 | J24: 0 | K24: 204.195 | L24: 9.986 | M24: 7.339 | N24: 195.712 | O24: 62.189 | P24: 95.8842 | Q24: 0.00432667972 | R24: 0.002604740056 | S24: 95.8842 | U24: =G24-INDEX($C24:$G24,1,aux!$AL$1) -> 0 | V24: 0 | W24: 0 | X24: =+IF(INDEX($C24:$G24,1,aux!$AL$1)>0,(G24/INDEX($C24:$G24,1,aux!$AL$1))^(1/($G$3-INDEX($C$3:$G$3,1,aux!$AL$1)))-1,"n.d.") -> n.d. | Y24: =IF(INDEX($C24:$G24,1,aux!$AL$1)>0,(G24-INDEX($C24:$G24,1,aux!$AL$1))/INDEX($C24:$G24,1,aux!$AL$1),"n.d.") -> n.d. | AA24: =O24-INDEX($K24:$O24,1,aux!$AL$1) -> -142.006 | AB24: 0.02123155456 | AC24: 0.01840342756 | AD24: =+IF(INDEX($K24:$O24,1,aux!$AL$1)>0,(O24/INDEX($K24:$O24,1,aux!$AL$1))^(1/($O$3-INDEX($K$3:$O$3,1,aux!$AL$1)))-1,"n.d.") -> -0.2571226494 | AE24: =IF(INDEX($K24:$O24,1,aux!$AL$1)>0,(O24-INDEX($K24:$O24,1,aux!$AL$1))/INDEX($K24:$O24,1,aux!$AL$1),"n.d.") -> -0.6954430814 | AX24: 04
A25: 0404 | B25: Soro de leite e outros produtos do leite | C25: 0 | D25: 0 | E25: 0 | F25: 0 | G25: 0 | H25: 0 | I25: 0 | J25: 0 | K25: 844.4 | L25: 178.35 | M25: 256.5 | N25: 0 | O25: 114.269 | P25: 278.7038 | Q25: 0.01257623341 | R25: 0.007571121746 | S25: 278.7038 | U25: =G25-INDEX($C25:$G25,1,aux!$AL$1) -> 0 | V25: 0 | W25: 0 | X25: =+IF(INDEX($C25:$G25,1,aux!$AL$1)>0,(G25/INDEX($C25:$G25,1,aux!$AL$1))^(1/($G$3-INDEX($C$3:$G$3,1,aux!$AL$1)))-1,"n.d.") -> n.d. | Y25: =IF(INDEX($C25:$G25,1,aux!$AL$1)>0,(G25-INDEX($C25:$G25,1,aux!$AL$1))/INDEX($C25:$G25,1,aux!$AL$1),"n.d.") -> n.d. | AA25: =O25-INDEX($K25:$O25,1,aux!$AL$1) -> -730.131 | AB25: 0.1091631069 | AC25: 0.09462214953 | AD25: =+IF(INDEX($K25:$O25,1,aux!$AL$1)>0,(O25/INDEX($K25:$O25,1,aux!$AL$1))^(1/($O$3-INDEX($K$3:$O$3,1,aux!$AL$1)))-1,"n.d.") -> -0.3934801058 | AE25: =IF(INDEX($K25:$O25,1,aux!$AL$1)>0,(O25-INDEX($K25:$O25,1,aux!$AL$1))/INDEX($K25:$O25,1,aux!$AL$1),"n.d.") -> -0.864674325 | AX25: 04
A26: 0405 | B26: Manteiga | C26: 0 | D26: 0 | E26: 0 | F26: 0 | G26: 0 | H26: 0 | I26: 0 | J26: 0 | K26: 5.833 | L26: 4.637 | M26: 1.55 | N26: 2.699 | O26: 2.222 | P26: 3.3882 | Q26: 0.0001528891749 | R26: 9.204207011e-05 | S26: 3.3882 | U26: =G26-INDEX($C26:$G26,1,aux!$AL$1) -> 0 | V26: 0 | W26: 0 | X26: =+IF(INDEX($C26:$G26,1,aux!$AL$1)>0,(G26/INDEX($C26:$G26,1,aux!$AL$1))^(1/($G$3-INDEX($C$3:$G$3,1,aux!$AL$1)))-1,"n.d.") -> n.d. | Y26: =IF(INDEX($C26:$G26,1,aux!$AL$1)>0,(G26-INDEX($C26:$G26,1,aux!$AL$1))/INDEX($C26:$G26,1,aux!$AL$1),"n.d.") -> n.d. | AA26: =O26-INDEX($K26:$O26,1,aux!$AL$1) -> -3.611 | AB26: 0.0005398866492 | AC26: 0.0004679716133 | AD26: =+IF(INDEX($K26:$O26,1,aux!$AL$1)>0,(O26/INDEX($K26:$O26,1,aux!$AL$1))^(1/($O$3-INDEX($K$3:$O$3,1,aux!$AL$1)))-1,"n.d.") -> -0.2143791163 | AE26: =IF(INDEX($K26:$O26,1,aux!$AL$1)>0,(O26-INDEX($K26:$O26,1,aux!$AL$1))/INDEX($K26:$O26,1,aux!$AL$1),"n.d.") -> -0.6190639465 | AX26: 04
A27: 0406 | B27: Queijos e requeijão | C27: 0 | D27: 0 | E27: 0 | F27: 0.015 | G27: 0 | H27: 0.003 | I27: 2.458400375e-08 | J27: 1.965501973e-08 | K27: 87.578 | L27: 77.191 | M27: 66.229 | N27: 47.602 | O27: 86.275 | P27: 72.975 | Q27: 0.003292924721 | R27: 0.001982400704 | S27: 72.972 | U27: =G27-INDEX($C27:$G27,1,aux!$AL$1) -> 0 | V27: 0 | W27: 0 | X27: =+IF(INDEX($C27:$G27,1,aux!$AL$1)>0,(G27/INDEX($C27:$G27,1,aux!$AL$1))^(1/($G$3-INDEX($C$3:$G$3,1,aux!$AL$1)))-1,"n.d.") -> n.d. | Y27: =IF(INDEX($C27:$G27,1,aux!$AL$1)>0,(G27-INDEX($C27:$G27,1,aux!$AL$1))/INDEX($C27:$G27,1,aux!$AL$1),"n.d.") -> n.d. | AA27: =O27-INDEX($K27:$O27,1,aux!$AL$1) -> -1.303 | AB27: 0.0001948137092 | AC27: 0.000168863753 | AD27: =+IF(INDEX($K27:$O27,1,aux!$AL$1)>0,(O27/INDEX($K27:$O27,1,aux!$AL$1))^(1/($O$3-INDEX($K$3:$O$3,1,aux!$AL$1)))-1,"n.d.") -> -0.003740475893 | AE27: =IF(INDEX($K27:$O27,1,aux!$AL$1)>0,(O27-INDEX($K27:$O27,1,aux!$AL$1))/INDEX($K27:$O27,1,aux!$AL$1),"n.d.") -> -0.01487816575 | AX27: 04
A28: 0407 | B28: Ovos de aves, com cascas | C28: 0 | D28: 0 | E28: 0 | F28: 0 | G28: 0 | H28: 0 | I28: 0 | J28: 0 | K28: 0 | L28: 0 | M28: 0 | N28: 0 | O28: 0 | P28: 0 | Q28: 0 | R28: 0 | S28: 0 | U28: =G28-INDEX($C28:$G28,1,aux!$AL$1) -> 0 | V28: 0 | W28: 0 | X28: =+IF(INDEX($C28:$G28,1,aux!$AL$1)>0,(G28/INDEX($C28:$G28,1,aux!$AL$1))^(1/($G$3-INDEX($C$3:$G$3,1,aux!$AL$1)))-1,"n.d.") -> n.d. | Y28: =IF(INDEX($C28:$G28,1,aux!$AL$1)>0,(G28-INDEX($C28:$G28,1,aux!$AL$1))/INDEX($C28:$G28,1,aux!$AL$1),"n.d.") -> n.d. | AA28: =O28-INDEX($K28:$O28,1,aux!$AL$1) -> 0 | AB28: 0 | AC28: 0 | AD28: =+IF(INDEX($K28:$O28,1,aux!$AL$1)>0,(O28/INDEX($K28:$O28,1,aux!$AL$1))^(1/($O$3-INDEX($K$3:$O$3,1,aux!$AL$1)))-1,"n.d.") -> n.d. | AE28: =IF(INDEX($K28:$O28,1,aux!$AL$1)>0,(O28-INDEX($K28:$O28,1,aux!$AL$1))/INDEX($K28:$O28,1,aux!$AL$1),"n.d.") -> n.d. | AX28: 04
A29: 0408 | B29: Ovos de aves, sem casca | C29: 0 | D29: 0 | E29: 0 | F29: 0 | G29: 0 | H29: 0 | I29: 0 | J29: 0 | K29: 0 | L29: 0 | M29: 0 | N29: 0 | O29: 0 | P29: 0 | Q29: 0 | R29: 0 | S29: 0 | U29: =G29-INDEX($C29:$G29,1,aux!$AL$1) -> 0 | V29: 0 | W29: 0 | X29: =+IF(INDEX($C29:$G29,1,aux!$AL$1)>0,(G29/INDEX($C29:$G29,1,aux!$AL$1))^(1/($G$3-INDEX($C$3:$G$3,1,aux!$AL$1)))-1,"n.d.") -> n.d. | Y29: =IF(INDEX($C29:$G29,1,aux!$AL$1)>0,(G29-INDEX($C29:$G29,1,aux!$AL$1))/INDEX($C29:$G29,1,aux!$AL$1),"n.d.") -> n.d. | AA29: =O29-INDEX($K29:$O29,1,aux!$AL$1) -> 0 | AB29: 0 | AC29: 0 | AD29: =+IF(INDEX($K29:$O29,1,aux!$AL$1)>0,(O29/INDEX($K29:$O29,1,aux!$AL$1))^(1/($O$3-INDEX($K$3:$O$3,1,aux!$AL$1)))-1,"n.d.") -> n.d. | AE29: =IF(INDEX($K29:$O29,1,aux!$AL$1)>0,(O29-INDEX($K29:$O29,1,aux!$AL$1))/INDEX($K29:$O29,1,aux!$AL$1),"n.d.") -> n.d. | AX29: 04
A30: 0409 | B30: Mel natural | C30: 0 | D30: 0 | E30: 0 | F30: 0 | G30: 0 | H30: 0 | I30: 0 | J30: 0 | K30: 0.787 | L30: 0 | M30: 0.003 | N30: 0 | O30: 0 | P30: 0.158 | Q30: 7.129593778e-06 | R30: 4.29214541e-06 | S30: 0.158 | U30: =G30-INDEX($C30:$G30,1,aux!$AL$1) -> 0 | V30: 0 | W30: 0 | X30: =+IF(INDEX($C30:$G30,1,aux!$AL$1)>0,(G30/INDEX($C30:$G30,1,aux!$AL$1))^(1/($G$3-INDEX($C$3:$G$3,1,aux!$AL$1)))-1,"n.d.") -> n.d. | Y30: =IF(INDEX($C30:$G30,1,aux!$AL$1)>0,(G30-INDEX($C30:$G30,1,aux!$AL$1))/INDEX($C30:$G30,1,aux!$AL$1),"n.d.") -> n.d. | AA30: =O30-INDEX($K30:$O30,1,aux!$AL$1) -> -0.787 | AB30: 0.0001176656862 | AC30: 0.0001019921517 | AD30: =+IF(INDEX($K30:$O30,1,aux!$AL$1)>0,(O30/INDEX($K30:$O30,1,aux!$AL$1))^(1/($O$3-INDEX($K$3:$O$3,1,aux!$AL$1)))-1,"n.d.") -> -1 | AE30: =IF(INDEX($K30:$O30,1,aux!$AL$1)>0,(O30-INDEX($K30:$O30,1,aux!$AL$1))/INDEX($K30:$O30,1,aux!$AL$1),"n.d.") -> -1 | AX30: 04
A31: 0410 | B31: Outros produtos comestíveis de origem animal | C31: 0 | D31: 0 | E31: 0 | F31: 0 | G31: 0 | H31: 0 | I31: 0 | J31: 0 | K31: 0 | L31: 0 | M31: 0 | N31: 0 | O31: 0 | P31: 0 | Q31: 0 | R31: 0 | S31: 0 | U31: =G31-INDEX($C31:$G31,1,aux!$AL$1) -> 0 | V31: 0 | W31: 0 | X31: =+IF(INDEX($C31:$G31,1,aux!$AL$1)>0,(G31/INDEX($C31:$G31,1,aux!$AL$1))^(1/($G$3-INDEX($C$3:$G$3,1,aux!$AL$1)))-1,"n.d.") -> n.d. | Y31: =IF(INDEX($C31:$G31,1,aux!$AL$1)>0,(G31-INDEX($C31:$G31,1,aux!$AL$1))/INDEX($C31:$G31,1,aux!$AL$1),"n.d.") -> n.d. | AA31: =O31-INDEX($K31:$O31,1,aux!$AL$1) -> 0 | AB31: 0 | AC31: 0 | AD31: =+IF(INDEX($K31:$O31,1,aux!$AL$1)>0,(O31/INDEX($K31:$O31,1,aux!$AL$1))^(1/($O$3-INDEX($K$3:$O$3,1,aux!$AL$1)))-1,"n.d.") -> n.d. | AE31: =IF(INDEX($K31:$O31,1,aux!$AL$1)>0,(O31-INDEX($K31:$O31,1,aux!$AL$1))/INDEX($K31:$O31,1,aux!$AL$1),"n.d.") -> n.d. | AX31: 04
A32: 04SS | B32: Leite e lacticínios; ovos de aves; mel natural; etc. | C32: 0 | D32: 0 | E32: 0 | F32: 0 | G32: 0 | H32: 0 | I32: 0 | J32: 0 | K32: 0 | L32: 0 | M32: 0 | N32: 0 | O32: 0 | P32: 0 | Q32: 0 | R32: 0 | S32: 0 | U32: =G32-INDEX($C32:$G32,1,aux!$AL$1) -> 0 | V32: 0 | W32: 0 | X32: =+IF(INDEX($C32:$G32,1,aux!$AL$1)>0,(G32/INDEX($C32:$G32,1,aux!$AL$1))^(1/($G$3-INDEX($C$3:$G$3,1,aux!$AL$1)))-1,"n.d.") -> n.d. | Y32: =IF(INDEX($C32:$G32,1,aux!$AL$1)>0,(G32-INDEX($C32:$G32,1,aux!$AL$1))/INDEX($C32:$G32,1,aux!$AL$1),"n.d.") -> n.d. | AA32: =O32-INDEX($K32:$O32,1,aux!$AL$1) -> 0 | AB32: 0 | AC32: 0 | AD32: =+IF(INDEX($K32:$O32,1,aux!$AL$1)>0,(O32/INDEX($K32:$O32,1,aux!$AL$1))^(1/($O$3-INDEX($K$3:$O$3,1,aux!$AL$1)))-1,"n.d.") -> n.d. | AE32: =IF(INDEX($K32:$O32,1,aux!$AL$1)>0,(O32-INDEX($K32:$O32,1,aux!$AL$1))/INDEX($K32:$O32,1,aux!$AL$1),"n.d.") -> n.d. | AX32: 04
A33: 0501 | B33: Cabelos em bruto | C33: 0 | D33: 0 | E33: 0 | F33: 0.023 | G33: 0 | H33: 0.0046 | I33: 3.769547241e-08 | J33: 3.013769692e-08 | K33: 0 | L33: 0 | M33: 0 | N33: 0 | O33: 0 | P33: 0 | Q33: 0 | R33: 0 | S33: -0.0046 | U33: =G33-INDEX($C33:$G33,1,aux!$AL$1) -> 0 | V33: 0 | W33: 0 | X33: =+IF(INDEX($C33:$G33,1,aux!$AL$1)>0,(G33/INDEX($C33:$G33,1,aux!$AL$1))^(1/($G$3-INDEX($C$3:$G$3,1,aux!$AL$1)))-1,"n.d.") -> n.d. | Y33: =IF(INDEX($C33:$G33,1,aux!$AL$1)>0,(G33-INDEX($C33:$G33,1,aux!$AL$1))/INDEX($C33:$G33,1,aux!$AL$1),"n.d.") -> n.d. | AA33: =O33-INDEX($K33:$O33,1,aux!$AL$1) -> 0 | AB33: 0 | AC33: 0 | AD33: =+IF(INDEX($K33:$O33,1,aux!$AL$1)>0,(O33/INDEX($K33:$O33,1,aux!$AL$1))^(1/($O$3-INDEX($K$3:$O$3,1,aux!$AL$1)))-1,"n.d.") -> n.d. | AE33: =IF(INDEX($K33:$O33,1,aux!$AL$1)>0,(O33-INDEX($K33:$O33,1,aux!$AL$1))/INDEX($K33:$O33,1,aux!$AL$1),"n.d.") -> n.d. | AX33: 05
A34: 0502 | B34: Cerdas de porco ou de javali, etc. | C34: 0 | D34: 0 | E34: 0 | F34: 0 | G34: 0 | H34: 0 | I34: 0 | J34: 0 | K34: 0 | L34: 0 | M34: 0 | N34: 0 | O34: 0 | P34: 0 | Q34: 0 | R34: 0 | S34: 0 | U34: =G34-INDEX($C34:$G34,1,aux!$AL$1) -> 0 | V34: 0 | W34: 0 | X34: =+IF(INDEX($C34:$G34,1,aux!$AL$1)>0,(G34/INDEX($C34:$G34,1,aux!$AL$1))^(1/($G$3-INDEX($C$3:$G$3,1,aux!$AL$1)))-1,"n.d.") -> n.d. | Y34: =IF(INDEX($C34:$G34,1,aux!$AL$1)>0,(G34-INDEX($C34:$G34,1,aux!$AL$1))/INDEX($C34:$G34,1,aux!$AL$1),"n.d.") -> n.d. | AA34: =O34-INDEX($K34:$O34,1,aux!$AL$1) -> 0 | AB34: 0 | AC34: 0 | AD34: =+IF(INDEX($K34:$O34,1,aux!$AL$1)>0,(O34/INDEX($K34:$O34,1,aux!$AL$1))^(1/($O$3-INDEX($K$3:$O$3,1,aux!$AL$1)))-1,"n.d.") -> n.d. | AE34: =IF(INDEX($K34:$O34,1,aux!$AL$1)>0,(O34-INDEX($K34:$O34,1,aux!$AL$1))/INDEX($K34:$O34,1,aux!$AL$1),"n.d.") -> n.d. | AX34: 05
A35: 0504 | B35: Tripas de animais (excepto peixes) | C35: 0 | D35: 0 | E35: 0 | F35: 0 | G35: 0 | H35: 0 | I35: 0 | J35: 0 | K35: 701.681 | L35: 636.625 | M35: 389.484 | N35: 293.707 | O35: 0 | P35: 404.2994 | Q35: 0.01824361067 | R35: 0.01098298616 | S35: 404.2994 | U35: =G35-INDEX($C35:$G35,1,aux!$AL$1) -> 0 | V35: 0 | W35: 0 | X35: =+IF(INDEX($C35:$G35,1,aux!$AL$1)>0,(G35/INDEX($C35:$G35,1,aux!$AL$1))^(1/($G$3-INDEX($C$3:$G$3,1,aux!$AL$1)))-1,"n.d.") -> n.d. | Y35: =IF(INDEX($C35:$G35,1,aux!$AL$1)>0,(G35-INDEX($C35:$G35,1,aux!$AL$1))/INDEX($C35:$G35,1,aux!$AL$1),"n.d.") -> n.d. | AA35: =O35-INDEX($K35:$O35,1,aux!$AL$1) -> -701.681 | AB35: 0.1049094998 | AC35: 0.09093513973 | AD35: =+IF(INDEX($K35:$O35,1,aux!$AL$1)>0,(O35/INDEX($K35:$O35,1,aux!$AL$1))^(1/($O$3-INDEX($K$3:$O$3,1,aux!$AL$1)))-1,"n.d.") -> -1 | AE35: =IF(INDEX($K35:$O35,1,aux!$AL$1)>0,(O35-INDEX($K35:$O35,1,aux!$AL$1))/INDEX($K35:$O35,1,aux!$AL$1),"n.d.") -> -1 | AX35: 05
A36: 0505 | B36: Peles e outras partes de aves | C36: 0 | D36: 0 | E36: 0 | F36: 0 | G36: 0 | H36: 0 | I36: 0 | J36: 0 | K36: 0 | L36: 0 | M36: 0 | N36: 0 | O36: 0 | P36: 0 | Q36: 0 | R36: 0 | S36: 0 | U36: =G36-INDEX($C36:$G36,1,aux!$AL$1) -> 0 | V36: 0 | W36: 0 | X36: =+IF(INDEX($C36:$G36,1,aux!$AL$1)>0,(G36/INDEX($C36:$G36,1,aux!$AL$1))^(1/($G$3-INDEX($C$3:$G$3,1,aux!$AL$1)))-1,"n.d.") -> n.d. | Y36: =IF(INDEX($C36:$G36,1,aux!$AL$1)>0,(G36-INDEX($C36:$G36,1,aux!$AL$1))/INDEX($C36:$G36,1,aux!$AL$1),"n.d.") -> n.d. | AA36: =O36-INDEX($K36:$O36,1,aux!$AL$1) -> 0 | AB36: 0 | AC36: 0 | AD36: =+IF(INDEX($K36:$O36,1,aux!$AL$1)>0,(O36/INDEX($K36:$O36,1,aux!$AL$1))^(1/($O$3-INDEX($K$3:$O$3,1,aux!$AL$1)))-1,"n.d.") -> n.d. | AE36: =IF(INDEX($K36:$O36,1,aux!$AL$1)>0,(O36-INDEX($K36:$O36,1,aux!$AL$1))/INDEX($K36:$O36,1,aux!$AL$1),"n.d.") -> n.d. | AX36: 05
A37: 0506 | B37: Ossos e núcleos córneos, em bruto | C37: 0 | D37: 0 | E37: 0 | F37: 0 | G37: 0 | H37: 0 | I37: 0 | J37: 0 | K37: 0 | L37: 0 | M37: 0 | N37: 0 | O37: 0 | P37: 0 | Q37: 0 | R37: 0 | S37: 0 | U37: =G37-INDEX($C37:$G37,1,aux!$AL$1) -> 0 | V37: 0 | W37: 0 | X37: =+IF(INDEX($C37:$G37,1,aux!$AL$1)>0,(G37/INDEX($C37:$G37,1,aux!$AL$1))^(1/($G$3-INDEX($C$3:$G$3,1,aux!$AL$1)))-1,"n.d.") -> n.d. | Y37: =IF(INDEX($C37:$G37,1,aux!$AL$1)>0,(G37-INDEX($C37:$G37,1,aux!$AL$1))/INDEX($C37:$G37,1,aux!$AL$1),"n.d.") -> n.d. | AA37: =O37-INDEX($K37:$O37,1,aux!$AL$1) -> 0 | AB37: 0 | AC37: 0 | AD37: =+IF(INDEX($K37:$O37,1,aux!$AL$1)>0,(O37/INDEX($K37:$O37,1,aux!$AL$1))^(1/($O$3-INDEX($K$3:$O$3,1,aux!$AL$1)))-1,"n.d.") -> n.d. | AE37: =IF(INDEX($K37:$O37,1,aux!$AL$1)>0,(O37-INDEX($K37:$O37,1,aux!$AL$1))/INDEX($K37:$O37,1,aux!$AL$1),"n.d.") -> n.d. | AX37: 05
A38: 0507 | B38: Marfim, carapaças de tartaruga, etc. | C38: 0 | D38: 0 | E38: 0 | F38: 0 | G38: 0 | H38: 0 | I38: 0 | J38: 0 | K38: 0 | L38: 0 | M38: 0 | N38: 0 | O38: 0 | P38: 0 | Q38: 0 | R38: 0 | S38: 0 | U38: =G38-INDEX($C38:$G38,1,aux!$AL$1) -> 0 | V38: 0 | W38: 0 | X38: =+IF(INDEX($C38:$G38,1,aux!$AL$1)>0,(G38/INDEX($C38:$G38,1,aux!$AL$1))^(1/($G$3-INDEX($C$3:$G$3,1,aux!$AL$1)))-1,"n.d.") -> n.d. | Y38: =IF(INDEX($C38:$G38,1,aux!$AL$1)>0,(G38-INDEX($C38:$G38,1,aux!$AL$1))/INDEX($C38:$G38,1,aux!$AL$1),"n.d.") -> n.d. | AA38: =O38-INDEX($K38:$O38,1,aux!$AL$1) -> 0 | AB38: 0 | AC38: 0 | AD38: =+IF(INDEX($K38:$O38,1,aux!$AL$1)>0,(O38/INDEX($K38:$O38,1,aux!$AL$1))^(1/($O$3-INDEX($K$3:$O$3,1,aux!$AL$1)))-1,"n.d.") -> n.d. | AE38: =IF(INDEX($K38:$O38,1,aux!$AL$1)>0,(O38-INDEX($K38:$O38,1,aux!$AL$1))/INDEX($K38:$O38,1,aux!$AL$1),"n.d.") -> n.d. | AX38: 05
A39: 0510 | B39: Âmbar-cinzento, castóreo, algália e almíscar, etc. | C39: 0 | D39: 0 | E39: 0 | F39: 0 | G39: 0 | H39: 0 | I39: 0 | J39: 0 | K39: 0 | L39: 0 | M39: 0 | N39: 0 | O39: 0 | P39: 0 | Q39: 0 | R39: 0 | S39: 0 | U39: =G39-INDEX($C39:$G39,1,aux!$AL$1) -> 0 | V39: 0 | W39: 0 | X39: =+IF(INDEX($C39:$G39,1,aux!$AL$1)>0,(G39/INDEX($C39:$G39,1,aux!$AL$1))^(1/($G$3-INDEX($C$3:$G$3,1,aux!$AL$1)))-1,"n.d.") -> n.d. | Y39: =IF(INDEX($C39:$G39,1,aux!$AL$1)>0,(G39-INDEX($C39:$G39,1,aux!$AL$1))/INDEX($C39:$G39,1,aux!$AL$1),"n.d.") -> n.d. | AA39: =O39-INDEX($K39:$O39,1,aux!$AL$1) -> 0 | AB39: 0 | AC39: 0 | AD39: =+IF(INDEX($K39:$O39,1,aux!$AL$1)>0,(O39/INDEX($K39:$O39,1,aux!$AL$1))^(1/($O$3-INDEX($K$3:$O$3,1,aux!$AL$1)))-1,"n.d.") -> n.d. | AE39: =IF(INDEX($K39:$O39,1,aux!$AL$1)>0,(O39-INDEX($K39:$O39,1,aux!$AL$1))/INDEX($K39:$O39,1,aux!$AL$1),"n.d.") -> n.d. | AX39: 05
A40: 0511 | B40: Outros produtos de origem animal (exc. NC 0511 91) (a) | C40: 0.332 | D40: 0 | E40: 0.034 | F40: 0 | G40: 0.003 | H40: 0.0738 | I40: 6.047664922e-07 | J40: 4.835134854e-07 | K40: 0 | L40: 0 | M40: 0 | N40: 0 | O40: 0.012 | P40: 0.0024 | Q40: 1.08297627e-07 | R40: 6.519714546e-08 | S40: -0.0714 | U40: =G40-INDEX($C40:$G40,1,aux!$AL$1) -> -0.329 | V40: -3.96576826e-06 | W40: -4.475048213e-06 | X40: =+IF(INDEX($C40:$G40,1,aux!$AL$1)>0,(G40/INDEX($C40:$G40,1,aux!$AL$1))^(1/($G$3-INDEX($C$3:$G$3,1,aux!$AL$1)))-1,"n.d.") -> -0.6916841918 | Y40: =IF(INDEX($C40:$G40,1,aux!$AL$1)>0,(G40-INDEX($C40:$G40,1,aux!$AL$1))/INDEX($C40:$G40,1,aux!$AL$1),"n.d.") -> -0.9909638554 | AA40: =O40-INDEX($K40:$O40,1,aux!$AL$1) -> 0.012 | AB40: -1.794140069e-06 | AC40: -1.55515352e-06 | AD40: =+IF(INDEX($K40:$O40,1,aux!$AL$1)>0,(O40/INDEX($K40:$O40,1,aux!$AL$1))^(1/($O$3-INDEX($K$3:$O$3,1,aux!$AL$1)))-1,"n.d.") -> n.d. | AE40: =IF(INDEX($K40:$O40,1,aux!$AL$1)>0,(O40-INDEX($K40:$O40,1,aux!$AL$1))/INDEX($K40:$O40,1,aux!$AL$1),"n.d.") -> n.d. | AX40: 05
A41: 05SS | B41: Outros produtos de origem animal | C41: 0 | D41: 0 | E41: 0 | F41: 0 | G41: 0 | H41: 0 | I41: 0 | J41: 0 | K41: 0 | L41: 0 | M41: 0 | N41: 0 | O41: 0 | P41: 0 | Q41: 0 | R41: 0 | S41: 0 | U41: =G41-INDEX($C41:$G41,1,aux!$AL$1) -> 0 | V41: 0 | W41: 0 | X41: =+IF(INDEX($C41:$G41,1,aux!$AL$1)>0,(G41/INDEX($C41:$G41,1,aux!$AL$1))^(1/($G$3-INDEX($C$3:$G$3,1,aux!$AL$1)))-1,"n.d.") -> n.d. | Y41: =IF(INDEX($C41:$G41,1,aux!$AL$1)>0,(G41-INDEX($C41:$G41,1,aux!$AL$1))/INDEX($C41:$G41,1,aux!$AL$1),"n.d.") -> n.d. | AA41: =O41-INDEX($K41:$O41,1,aux!$AL$1) -> 0 | AB41: 0 | AC41: 0 | AD41: =+IF(INDEX($K41:$O41,1,aux!$AL$1)>0,(O41/INDEX($K41:$O41,1,aux!$AL$1))^(1/($O$3-INDEX($K$3:$O$3,1,aux!$AL$1)))-1,"n.d.") -> n.d. | AE41: =IF(INDEX($K41:$O41,1,aux!$AL$1)>0,(O41-INDEX($K41:$O41,1,aux!$AL$1))/INDEX($K41:$O41,1,aux!$AL$1),"n.d.") -> n.d. | AX41: 05
A42: 0601 | B42: Bolbos, tubérculos, raízes, etc. | C42: 0 | D42: 0 | E42: 0 | F42: 0 | G42: 0 | H42: 0 | I42: 0 | J42: 0 | K42: 0 | L42: 0 | M42: 0 | N42: 0 | O42: 0 | P42: 0 | Q42: 0 | R42: 0 | S42: 0 | U42: =G42-INDEX($C42:$G42,1,aux!$AL$1) -> 0 | V42: 0 | W42: 0 | X42: =+IF(INDEX($C42:$G42,1,aux!$AL$1)>0,(G42/INDEX($C42:$G42,1,aux!$AL$1))^(1/($G$3-INDEX($C$3:$G$3,1,aux!$AL$1)))-1,"n.d.") -> n.d. | Y42: =IF(INDEX($C42:$G42,1,aux!$AL$1)>0,(G42-INDEX($C42:$G42,1,aux!$AL$1))/INDEX($C42:$G42,1,aux!$AL$1),"n.d.") -> n.d. | AA42: =O42-INDEX($K42:$O42,1,aux!$AL$1) -> 0 | AB42: 0 | AC42: 0 | AD42: =+IF(INDEX($K42:$O42,1,aux!$AL$1)>0,(O42/INDEX($K42:$O42,1,aux!$AL$1))^(1/($O$3-INDEX($K$3:$O$3,1,aux!$AL$1)))-1,"n.d.") -> n.d. | AE42: =IF(INDEX($K42:$O42,1,aux!$AL$1)>0,(O42-INDEX($K42:$O42,1,aux!$AL$1))/INDEX($K42:$O42,1,aux!$AL$1),"n.d.") -> n.d. | AX42: 06
A43: 0602 | B43: Plantas vivas | C43: 2.902 | D43: 6.962 | E43: 59.274 | F43: 162.72 | G43: 13.105 | H43: 48.9926 | I43: 0.0004014780873 | J43: 0.0003209835066 | K43: 0 | L43: 0 | M43: 2.425 | N43: 6.789 | O43: 2.261 | P43: 2.295 | Q43: 0.0001035596058 | R43: 6.234477035e-05 | S43: -46.6976 | U43: =G43-INDEX($C43:$G43,1,aux!$AL$1) -> 10.203 | V43: 0.0001229870321 | W43: 0.0001387809025 | X43: =+IF(INDEX($C43:$G43,1,aux!$AL$1)>0,(G43/INDEX($C43:$G43,1,aux!$AL$1))^(1/($G$3-INDEX($C$3:$G$3,1,aux!$AL$1)))-1,"n.d.") -> 0.4577562238 | Y43: =IF(INDEX($C43:$G43,1,aux!$AL$1)>0,(G43-INDEX($C43:$G43,1,aux!$AL$1))/INDEX($C43:$G43,1,aux!$AL$1),"n.d.") -> 3.515851137 | AA43: =O43-INDEX($K43:$O43,1,aux!$AL$1) -> 2.261 | AB43: -0.0003380458914 | AC43: -0.0002930168423 | AD43: =+IF(INDEX($K43:$O43,1,aux!$AL$1)>0,(O43/INDEX($K43:$O43,1,aux!$AL$1))^(1/($O$3-INDEX($K$3:$O$3,1,aux!$AL$1)))-1,"n.d.") -> n.d. | AE43: =IF(INDEX($K43:$O43,1,aux!$AL$1)>0,(O43-INDEX($K43:$O43,1,aux!$AL$1))/INDEX($K43:$O43,1,aux!$AL$1),"n.d.") -> n.d. | AX43: 06
A44: 0603 | B44: Flores e seus botões | C44: 0 | D44: 0 | E44: 0 | F44: 0 | G44: 0 | H44: 0 | I44: 0 | J44: 0 | K44: 0 | L44: 0 | M44: 0 | N44: 0 | O44: 0 | P44: 0 | Q44: 0 | R44: 0 | S44: 0 | U44: =G44-INDEX($C44:$G44,1,aux!$AL$1) -> 0 | V44: 0 | W44: 0 | X44: =+IF(INDEX($C44:$G44,1,aux!$AL$1)>0,(G44/INDEX($C44:$G44,1,aux!$AL$1))^(1/($G$3-INDEX($C$3:$G$3,1,aux!$AL$1)))-1,"n.d.") -> n.d. | Y44: =IF(INDEX($C44:$G44,1,aux!$AL$1)>0,(G44-INDEX($C44:$G44,1,aux!$AL$1))/INDEX($C44:$G44,1,aux!$AL$1),"n.d.") -> n.d. | AA44: =O44-INDEX($K44:$O44,1,aux!$AL$1) -> 0 | AB44: 0 | AC44: 0 | AD44: =+IF(INDEX($K44:$O44,1,aux!$AL$1)>0,(O44/INDEX($K44:$O44,1,aux!$AL$1))^(1/($O$3-INDEX($K$3:$O$3,1,aux!$AL$1)))-1,"n.d.") -> n.d. | AE44: =IF(INDEX($K44:$O44,1,aux!$AL$1)>0,(O44-INDEX($K44:$O44,1,aux!$AL$1))/INDEX($K44:$O44,1,aux!$AL$1),"n.d.") -> n.d. | AX44: 06
A45: 0604 | B45: Folhagem, folhas, ramos e outras partes de plantas | C45: 0 | D45: 0 | E45: 10.95 | F45: 0.152 | G45: 0 | H45: 2.2204 | I45: 1.819544064e-05 | J45: 1.454733527e-05 | K45: 0 | L45: 1.177 | M45: 0.103 | N45: 0 | O45: 0 | P45: 0.256 | Q45: 1.155174688e-05 | R45: 6.954362183e-06 | S45: -1.9644 | U45: =G45-INDEX($C45:$G45,1,aux!$AL$1) -> 0 | V45: 0 | W45: 0 | X45: =+IF(INDEX($C45:$G45,1,aux!$AL$1)>0,(G45/INDEX($C45:$G45,1,aux!$AL$1))^(1/($G$3-INDEX($C$3:$G$3,1,aux!$AL$1)))-1,"n.d.") -> n.d. | Y45: =IF(INDEX($C45:$G45,1,aux!$AL$1)>0,(G45-INDEX($C45:$G45,1,aux!$AL$1))/INDEX($C45:$G45,1,aux!$AL$1),"n.d.") -> n.d. | AA45: =O45-INDEX($K45:$O45,1,aux!$AL$1) -> 0 | AB45: 0 | AC45: 0 | AD45: =+IF(INDEX($K45:$O45,1,aux!$AL$1)>0,(O45/INDEX($K45:$O45,1,aux!$AL$1))^(1/($O$3-INDEX($K$3:$O$3,1,aux!$AL$1)))-1,"n.d.") -> n.d. | AE45: =IF(INDEX($K45:$O45,1,aux!$AL$1)>0,(O45-INDEX($K45:$O45,1,aux!$AL$1))/INDEX($K45:$O45,1,aux!$AL$1),"n.d.") -> n.d. | AX45: 06
A46: 06SS | B46: Plantas vivas e produtos de floricultura | C46: 0 | D46: 0 | E46: 0 | F46: 0 | G46: 0 | H46: 0 | I46: 0 | J46: 0 | K46: 0 | L46: 0 | M46: 0 | N46: 0 | O46: 0 | P46: 0 | Q46: 0 | R46: 0 | S46: 0 | U46: =G46-INDEX($C46:$G46,1,aux!$AL$1) -> 0 | V46: 0 | W46: 0 | X46: =+IF(INDEX($C46:$G46,1,aux!$AL$1)>0,(G46/INDEX($C46:$G46,1,aux!$AL$1))^(1/($G$3-INDEX($C$3:$G$3,1,aux!$AL$1)))-1,"n.d.") -> n.d. | Y46: =IF(INDEX($C46:$G46,1,aux!$AL$1)>0,(G46-INDEX($C46:$G46,1,aux!$AL$1))/INDEX($C46:$G46,1,aux!$AL$1),"n.d.") -> n.d. | AA46: =O46-INDEX($K46:$O46,1,aux!$AL$1) -> 0 | AB46: 0 | AC46: 0 | AD46: =+IF(INDEX($K46:$O46,1,aux!$AL$1)>0,(O46/INDEX($K46:$O46,1,aux!$AL$1))^(1/($O$3-INDEX($K$3:$O$3,1,aux!$AL$1)))-1,"n.d.") -> n.d. | AE46: =IF(INDEX($K46:$O46,1,aux!$AL$1)>0,(O46-INDEX($K46:$O46,1,aux!$AL$1))/INDEX($K46:$O46,1,aux!$AL$1),"n.d.") -> n.d. | AX46: 06
A47: 0701 | B47: Batatas, frescas ou refrigeradas | C47: 0 | D47: 0 | E47: 0.051 | F47: 0 | G47: 0 | H47: 0.0102 | I47: 8.358561274e-08 | J47: 6.682706709e-08 | K47: 0 | L47: 0 | M47: 0 | N47: 0 | O47: 0 | P47: 0 | Q47: 0 | R47: 0 | S47: -0.0102 | U47: =G47-INDEX($C47:$G47,1,aux!$AL$1) -> 0 | V47: 0 | W47: 0 | X47: =+IF(INDEX($C47:$G47,1,aux!$AL$1)>0,(G47/INDEX($C47:$G47,1,aux!$AL$1))^(1/($G$3-INDEX($C$3:$G$3,1,aux!$AL$1)))-1,"n.d.") -> n.d. | Y47: =IF(INDEX($C47:$G47,1,aux!$AL$1)>0,(G47-INDEX($C47:$G47,1,aux!$AL$1))/INDEX($C47:$G47,1,aux!$AL$1),"n.d.") -> n.d. | AA47: =O47-INDEX($K47:$O47,1,aux!$AL$1) -> 0 | AB47: 0 | AC47: 0 | AD47: =+IF(INDEX($K47:$O47,1,aux!$AL$1)>0,(O47/INDEX($K47:$O47,1,aux!$AL$1))^(1/($O$3-INDEX($K$3:$O$3,1,aux!$AL$1)))-1,"n.d.") -> n.d. | AE47: =IF(INDEX($K47:$O47,1,aux!$AL$1)>0,(O47-INDEX($K47:$O47,1,aux!$AL$1))/INDEX($K47:$O47,1,aux!$AL$1),"n.d.") -> n.d. | AX47: 07
A48: 0702 | B48: Tomates, frescos ou refrigerados | C48: 0 | D48: 0 | E48: 0 | F48: 0 | G48: 0 | H48: 0 | I48: 0 | J48: 0 | K48: 0 | L48: 0 | M48: 0 | N48: 0 | O48: 0 | P48: 0 | Q48: 0 | R48: 0 | S48: 0 | U48: =G48-INDEX($C48:$G48,1,aux!$AL$1) -> 0 | V48: 0 | W48: 0 | X48: =+IF(INDEX($C48:$G48,1,aux!$AL$1)>0,(G48/INDEX($C48:$G48,1,aux!$AL$1))^(1/($G$3-INDEX($C$3:$G$3,1,aux!$AL$1)))-1,"n.d.") -> n.d. | Y48: =IF(INDEX($C48:$G48,1,aux!$AL$1)>0,(G48-INDEX($C48:$G48,1,aux!$AL$1))/INDEX($C48:$G48,1,aux!$AL$1),"n.d.") -> n.d. | AA48: =O48-INDEX($K48:$O48,1,aux!$AL$1) -> 0 | AB48: 0 | AC48: 0 | AD48: =+IF(INDEX($K48:$O48,1,aux!$AL$1)>0,(O48/INDEX($K48:$O48,1,aux!$AL$1))^(1/($O$3-INDEX($K$3:$O$3,1,aux!$AL$1)))-1,"n.d.") -> n.d. | AE48: =IF(INDEX($K48:$O48,1,aux!$AL$1)>0,(O48-INDEX($K48:$O48,1,aux!$AL$1))/INDEX($K48:$O48,1,aux!$AL$1),"n.d.") -> n.d. | AX48: 07
A49: 0703 | B49: Cebolas, alhos, etc., frescos ou refrigerados | C49: 59.406 | D49: 0 | E49: 0 | F49: 0 | G49: 85.365 | H49: 28.9542 | I49: 0.0002372700538 | J49: 0.0001896984574 | K49: 0 | L49: 0 | M49: 0 | N49: 0 | O49: 0 | P49: 0 | Q49: 0 | R49: 0 | S49: -28.9542 | U49: =G49-INDEX($C49:$G49,1,aux!$AL$1) -> 25.959 | V49: 0.0003129099643 | W49: 0.0003530935457 | X49: =+IF(INDEX($C49:$G49,1,aux!$AL$1)>0,(G49/INDEX($C49:$G49,1,aux!$AL$1))^(1/($G$3-INDEX($C$3:$G$3,1,aux!$AL$1)))-1,"n.d.") -> 0.09486956488 | Y49: =IF(INDEX($C49:$G49,1,aux!$AL$1)>0,(G49-INDEX($C49:$G49,1,aux!$AL$1))/INDEX($C49:$G49,1,aux!$AL$1),"n.d.") -> 0.436976063 | AA49: =O49-INDEX($K49:$O49,1,aux!$AL$1) -> 0 | AB49: 0 | AC49: 0 | AD49: =+IF(INDEX($K49:$O49,1,aux!$AL$1)>0,(O49/INDEX($K49:$O49,1,aux!$AL$1))^(1/($O$3-INDEX($K$3:$O$3,1,aux!$AL$1)))-1,"n.d.") -> n.d. | AE49: =IF(INDEX($K49:$O49,1,aux!$AL$1)>0,(O49-INDEX($K49:$O49,1,aux!$AL$1))/INDEX($K49:$O49,1,aux!$AL$1),"n.d.") -> n.d. | AX49: 07
A50: 0704 | B50: Couves, frescas ou refrigeradas | C50: 0 | D50: 0 | E50: 0 | F50: 0 | G50: 0 | H50: 0 | I50: 0 | J50: 0 | K50: 0 | L50: 0 | M50: 0 | N50: 0.148 | O50: 0 | P50: 0.0296 | Q50: 1.335670733e-06 | R50: 8.040981274e-07 | S50: 0.0296 | U50: =G50-INDEX($C50:$G50,1,aux!$AL$1) -> 0 | V50: 0 | W50: 0 | X50: =+IF(INDEX($C50:$G50,1,aux!$AL$1)>0,(G50/INDEX($C50:$G50,1,aux!$AL$1))^(1/($G$3-INDEX($C$3:$G$3,1,aux!$AL$1)))-1,"n.d.") -> n.d. | Y50: =IF(INDEX($C50:$G50,1,aux!$AL$1)>0,(G50-INDEX($C50:$G50,1,aux!$AL$1))/INDEX($C50:$G50,1,aux!$AL$1),"n.d.") -> n.d. | AA50: =O50-INDEX($K50:$O50,1,aux!$AL$1) -> 0 | AB50: 0 | AC50: 0 | AD50: =+IF(INDEX($K50:$O50,1,aux!$AL$1)>0,(O50/INDEX($K50:$O50,1,aux!$AL$1))^(1/($O$3-INDEX($K$3:$O$3,1,aux!$AL$1)))-1,"n.d.") -> n.d. | AE50: =IF(INDEX($K50:$O50,1,aux!$AL$1)>0,(O50-INDEX($K50:$O50,1,aux!$AL$1))/INDEX($K50:$O50,1,aux!$AL$1),"n.d.") -> n.d. | AX50: 07
A51: 0705 | B51: Alfaces, frescas ou refrigeradas | C51: 0 | D51: 0 | E51: 0 | F51: 0 | G51: 0 | H51: 0 | I51: 0 | J51: 0 | K51: 0 | L51: 0 | M51: 0 | N51: 0 | O51: 0 | P51: 0 | Q51: 0 | R51: 0 | S51: 0 | U51: =G51-INDEX($C51:$G51,1,aux!$AL$1) -> 0 | V51: 0 | W51: 0 | X51: =+IF(INDEX($C51:$G51,1,aux!$AL$1)>0,(G51/INDEX($C51:$G51,1,aux!$AL$1))^(1/($G$3-INDEX($C$3:$G$3,1,aux!$AL$1)))-1,"n.d.") -> n.d. | Y51: =IF(INDEX($C51:$G51,1,aux!$AL$1)>0,(G51-INDEX($C51:$G51,1,aux!$AL$1))/INDEX($C51:$G51,1,aux!$AL$1),"n.d.") -> n.d. | AA51: =O51-INDEX($K51:$O51,1,aux!$AL$1) -> 0 | AB51: 0 | AC51: 0 | AD51: =+IF(INDEX($K51:$O51,1,aux!$AL$1)>0,(O51/INDEX($K51:$O51,1,aux!$AL$1))^(1/($O$3-INDEX($K$3:$O$3,1,aux!$AL$1)))-1,"n.d.") -> n.d. | AE51: =IF(INDEX($K51:$O51,1,aux!$AL$1)>0,(O51-INDEX($K51:$O51,1,aux!$AL$1))/INDEX($K51:$O51,1,aux!$AL$1),"n.d.") -> n.d. | AX51: 07
A52: 0706 | B52: Cenouras, nabos, beterrabas, etc., frescos ou refrigerados | C52: 0 | D52: 0 | E52: 0 | F52: 0 | G52: 0 | H52: 0 | I52: 0 | J52: 0 | K52: 0 | L52: 0 | M52: 0 | N52: 0 | O52: 0 | P52: 0 | Q52: 0 | R52: 0 | S52: 0 | U52: =G52-INDEX($C52:$G52,1,aux!$AL$1) -> 0 | V52: 0 | W52: 0 | X52: =+IF(INDEX($C52:$G52,1,aux!$AL$1)>0,(G52/INDEX($C52:$G52,1,aux!$AL$1))^(1/($G$3-INDEX($C$3:$G$3,1,aux!$AL$1)))-1,"n.d.") -> n.d. | Y52: =IF(INDEX($C52:$G52,1,aux!$AL$1)>0,(G52-INDEX($C52:$G52,1,aux!$AL$1))/INDEX($C52:$G52,1,aux!$AL$1),"n.d.") -> n.d. | AA52: =O52-INDEX($K52:$O52,1,aux!$AL$1) -> 0 | AB52: 0 | AC52: 0 | AD52: =+IF(INDEX($K52:$O52,1,aux!$AL$1)>0,(O52/INDEX($K52:$O52,1,aux!$AL$1))^(1/($O$3-INDEX($K$3:$O$3,1,aux!$AL$1)))-1,"n.d.") -> n.d. | AE52: =IF(INDEX($K52:$O52,1,aux!$AL$1)>0,(O52-INDEX($K52:$O52,1,aux!$AL$1))/INDEX($K52:$O52,1,aux!$AL$1),"n.d.") -> n.d. | AX52: 07
A53: 0707 | B53: Pepinos e pepininhos, frescos ou refrigerados | C53: 0 | D53: 0 | E53: 0 | F53: 0 | G53: 0 | H53: 0 | I53: 0 | J53: 0 | K53: 0 | L53: 0 | M53: 0 | N53: 0 | O53: 0 | P53: 0 | Q53: 0 | R53: 0 | S53: 0 | U53: =G53-INDEX($C53:$G53,1,aux!$AL$1) -> 0 | V53: 0 | W53: 0 | X53: =+IF(INDEX($C53:$G53,1,aux!$AL$1)>0,(G53/INDEX($C53:$G53,1,aux!$AL$1))^(1/($G$3-INDEX($C$3:$G$3,1,aux!$AL$1)))-1,"n.d.") -> n.d. | Y53: =IF(INDEX($C53:$G53,1,aux!$AL$1)>0,(G53-INDEX($C53:$G53,1,aux!$AL$1))/INDEX($C53:$G53,1,aux!$AL$1),"n.d.") -> n.d. | AA53: =O53-INDEX($K53:$O53,1,aux!$AL$1) -> 0 | AB53: 0 | AC53: 0 | AD53: =+IF(INDEX($K53:$O53,1,aux!$AL$1)>0,(O53/INDEX($K53:$O53,1,aux!$AL$1))^(1/($O$3-INDEX($K$3:$O$3,1,aux!$AL$1)))-1,"n.d.") -> n.d. | AE53: =IF(INDEX($K53:$O53,1,aux!$AL$1)>0,(O53-INDEX($K53:$O53,1,aux!$AL$1))/INDEX($K53:$O53,1,aux!$AL$1),"n.d.") -> n.d. | AX53: 07
A54: 0708 | B54: Tomates preparados ou conservados | C54: 0 | D54: 0 | E54: 0 | F54: 0 | G54: 0 | H54: 0 | I54: 0 | J54: 0 | K54: 0 | L54: 2.017 | M54: 0.44 | N54: 0 | O54: 0 | P54: 0.4914 | Q54: 2.217393913e-05 | R54: 1.334911553e-05 | S54: 0.4914 | U54: =G54-INDEX($C54:$G54,1,aux!$AL$1) -> 0 | V54: 0 | W54: 0 | X54: =+IF(INDEX($C54:$G54,1,aux!$AL$1)>0,(G54/INDEX($C54:$G54,1,aux!$AL$1))^(1/($G$3-INDEX($C$3:$G$3,1,aux!$AL$1)))-1,"n.d.") -> n.d. | Y54: =IF(INDEX($C54:$G54,1,aux!$AL$1)>0,(G54-INDEX($C54:$G54,1,aux!$AL$1))/INDEX($C54:$G54,1,aux!$AL$1),"n.d.") -> n.d. | AA54: =O54-INDEX($K54:$O54,1,aux!$AL$1) -> 0 | AB54: 0 | AC54: 0 | AD54: =+IF(INDEX($K54:$O54,1,aux!$AL$1)>0,(O54/INDEX($K54:$O54,1,aux!$AL$1))^(1/($O$3-INDEX($K$3:$O$3,1,aux!$AL$1)))-1,"n.d.") -> n.d. | AE54: =IF(INDEX($K54:$O54,1,aux!$AL$1)>0,(O54-INDEX($K54:$O54,1,aux!$AL$1))/INDEX($K54:$O54,1,aux!$AL$1),"n.d.") -> n.d. | AX54: 07
A55: 0709 | B55: Outros produtos hortícolas, frescos ou refrigerados | C55: 114.4 | D55: 224.707 | E55: 160.583 | F55: 168.124 | G55: 168.414 | H55: 167.2456 | I55: 0.001370522152 | J55: 0.001095738523 | K55: 0 | L55: 0 | M55: 0 | N55: 0 | O55: 0 | P55: 0 | Q55: 0 | R55: 0 | S55: -167.2456 | U55: =G55-INDEX($C55:$G55,1,aux!$AL$1) -> 54.014 | V55: 0.000651085127 | W55: 0.0007346968211 | X55: =+IF(INDEX($C55:$G55,1,aux!$AL$1)>0,(G55/INDEX($C55:$G55,1,aux!$AL$1))^(1/($G$3-INDEX($C$3:$G$3,1,aux!$AL$1)))-1,"n.d.") -> 0.1015089788 | Y55: =IF(INDEX($C55:$G55,1,aux!$AL$1)>0,(G55-INDEX($C55:$G55,1,aux!$AL$1))/INDEX($C55:$G55,1,aux!$AL$1),"n.d.") -> 0.4721503497 | AA55: =O55-INDEX($K55:$O55,1,aux!$AL$1) -> 0 | AB55: 0 | AC55: 0 | AD55: =+IF(INDEX($K55:$O55,1,aux!$AL$1)>0,(O55/INDEX($K55:$O55,1,aux!$AL$1))^(1/($O$3-INDEX($K$3:$O$3,1,aux!$AL$1)))-1,"n.d.") -> n.d. | AE55: =IF(INDEX($K55:$O55,1,aux!$AL$1)>0,(O55-INDEX($K55:$O55,1,aux!$AL$1))/INDEX($K55:$O55,1,aux!$AL$1),"n.d.") -> n.d. | AX55: 07
A56: 0710 | B56: Produtos hortícolas congelados | C56: 0 | D56: 0 | E56: 0 | F56: 0 | G56: 0 | H56: 0 | I56: 0 | J56: 0 | K56: 8 | L56: 9.316 | M56: 8.278 | N56: 3.098 | O56: 2.444 | P56: 6.2272 | Q56: 0.0002809962429 | R56: 0.0001691648601 | S56: 6.2272 | U56: =G56-INDEX($C56:$G56,1,aux!$AL$1) -> 0 | V56: 0 | W56: 0 | X56: =+IF(INDEX($C56:$G56,1,aux!$AL$1)>0,(G56/INDEX($C56:$G56,1,aux!$AL$1))^(1/($G$3-INDEX($C$3:$G$3,1,aux!$AL$1)))-1,"n.d.") -> n.d. | Y56: =IF(INDEX($C56:$G56,1,aux!$AL$1)>0,(G56-INDEX($C56:$G56,1,aux!$AL$1))/INDEX($C56:$G56,1,aux!$AL$1),"n.d.") -> n.d. | AA56: =O56-INDEX($K56:$O56,1,aux!$AL$1) -> -5.556 | AB56: 0.0008306868521 | AC56: 0.0007200360796 | AD56: =+IF(INDEX($K56:$O56,1,aux!$AL$1)>0,(O56/INDEX($K56:$O56,1,aux!$AL$1))^(1/($O$3-INDEX($K$3:$O$3,1,aux!$AL$1)))-1,"n.d.") -> -0.2565482233 | AE56: =IF(INDEX($K56:$O56,1,aux!$AL$1)>0,(O56-INDEX($K56:$O56,1,aux!$AL$1))/INDEX($K56:$O56,1,aux!$AL$1),"n.d.") -> -0.6945 | AX56: 07
A57: 0711 | B57: Produtos hortícolas conservados transitoriamente | C57: 0 | D57: 0 | E57: 0 | F57: 0 | G57: 0 | H57: 0 | I57: 0 | J57: 0 | K57: 0 | L57: 0 | M57: 1.084 | N57: 0 | O57: 0 | P57: 0.2168 | Q57: 9.782885639e-06 | R57: 5.889475474e-06 | S57: 0.2168 | U57: =G57-INDEX($C57:$G57,1,aux!$AL$1) -> 0 | V57: 0 | W57: 0 | X57: =+IF(INDEX($C57:$G57,1,aux!$AL$1)>0,(G57/INDEX($C57:$G57,1,aux!$AL$1))^(1/($G$3-INDEX($C$3:$G$3,1,aux!$AL$1)))-1,"n.d.") -> n.d. | Y57: =IF(INDEX($C57:$G57,1,aux!$AL$1)>0,(G57-INDEX($C57:$G57,1,aux!$AL$1))/INDEX($C57:$G57,1,aux!$AL$1),"n.d.") -> n.d. | AA57: =O57-INDEX($K57:$O57,1,aux!$AL$1) -> 0 | AB57: 0 | AC57: 0 | AD57: =+IF(INDEX($K57:$O57,1,aux!$AL$1)>0,(O57/INDEX($K57:$O57,1,aux!$AL$1))^(1/($O$3-INDEX($K$3:$O$3,1,aux!$AL$1)))-1,"n.d.") -> n.d. | AE57: =IF(INDEX($K57:$O57,1,aux!$AL$1)>0,(O57-INDEX($K57:$O57,1,aux!$AL$1))/INDEX($K57:$O57,1,aux!$AL$1),"n.d.") -> n.d. | AX57: 07
A58: 0712 | B58: Produtos hortícolas secos | C58: 0 | D58: 0 | E58: 0 | F58: 0 | G58: 0 | H58: 0 | I58: 0 | J58: 0 | K58: 2.15 | L58: 0.295 | M58: 0 | N58: 2.738 | O58: 4.67 | P58: 1.9706 | Q58: 8.892137657e-05 | R58: 5.353228952e-05 | S58: 1.9706 | U58: =G58-INDEX($C58:$G58,1,aux!$AL$1) -> 0 | V58: 0 | W58: 0 | X58: =+IF(INDEX($C58:$G58,1,aux!$AL$1)>0,(G58/INDEX($C58:$G58,1,aux!$AL$1))^(1/($G$3-INDEX($C$3:$G$3,1,aux!$AL$1)))-1,"n.d.") -> n.d. | Y58: =IF(INDEX($C58:$G58,1,aux!$AL$1)>0,(G58-INDEX($C58:$G58,1,aux!$AL$1))/INDEX($C58:$G58,1,aux!$AL$1),"n.d.") -> n.d. | AA58: =O58-INDEX($K58:$O58,1,aux!$AL$1) -> 2.52 | AB58: -0.0003767694146 | AC58: -0.0003265822391 | AD58: =+IF(INDEX($K58:$O58,1,aux!$AL$1)>0,(O58/INDEX($K58:$O58,1,aux!$AL$1))^(1/($O$3-INDEX($K$3:$O$3,1,aux!$AL$1)))-1,"n.d.") -> 0.2140025673 | AE58: =IF(INDEX($K58:$O58,1,aux!$AL$1)>0,(O58-INDEX($K58:$O58,1,aux!$AL$1))/INDEX($K58:$O58,1,aux!$AL$1),"n.d.") -> 1.172093023 | AX58: 07
A59: 0713 | B59: Legumes de vagem, secos, em grão | C59: 0 | D59: 598.686 | E59: 0 | F59: 116.293 | G59: 174.591 | H59: 177.914 | I59: 0.001457946148 | J59: 0.001165634394 | K59: 1.386 | L59: 6.424 | M59: 4.036 | N59: 7.738 | O59: 1.853 | P59: 4.2874 | Q59: 0.0001934646858 | R59: 0.0001164692673 | S59: -173.6266 | U59: =G59-INDEX($C59:$G59,1,aux!$AL$1) -> 174.591 | V59: 0.002104521113 | W59: 0.002374781588 | X59: =+IF(INDEX($C59:$G59,1,aux!$AL$1)>0,(G59/INDEX($C59:$G59,1,aux!$AL$1))^(1/($G$3-INDEX($C$3:$G$3,1,aux!$AL$1)))-1,"n.d.") -> n.d. | Y59: =IF(INDEX($C59:$G59,1,aux!$AL$1)>0,(G59-INDEX($C59:$G59,1,aux!$AL$1))/INDEX($C59:$G59,1,aux!$AL$1),"n.d.") -> n.d. | AA59: =O59-INDEX($K59:$O59,1,aux!$AL$1) -> 0.467 | AB59: -6.982195103e-05 | AC59: -6.052139114e-05 | AD59: =+IF(INDEX($K59:$O59,1,aux!$AL$1)>0,(O59/INDEX($K59:$O59,1,aux!$AL$1))^(1/($O$3-INDEX($K$3:$O$3,1,aux!$AL$1)))-1,"n.d.") -> 0.07529604206 | AE59: =IF(INDEX($K59:$O59,1,aux!$AL$1)>0,(O59-INDEX($K59:$O59,1,aux!$AL$1))/INDEX($K59:$O59,1,aux!$AL$1),"n.d.") -> 0.3369408369 | AX59: 07
A60: 0714 | B60: Raízes de mandioca, de araruta, batata-doce, etc. | C60: 208.56 | D60: 0 | E60: 72.811 | F60: 0 | G60: 249.788 | H60: 106.2318 | I60: 0.0008705343231 | J60: 0.0006959960417 | K60: 32.283 | L60: 0 | M60: 0 | N60: 0 | O60: 0 | P60: 6.4566 | Q60: 0.000291347691 | R60: 0.0001753966206 | S60: -99.7752 | U60: =G60-INDEX($C60:$G60,1,aux!$AL$1) -> 41.228 | V60: 0.0004969625952 | W60: 0.0005607820295 | X60: =+IF(INDEX($C60:$G60,1,aux!$AL$1)>0,(G60/INDEX($C60:$G60,1,aux!$AL$1))^(1/($G$3-INDEX($C$3:$G$3,1,aux!$AL$1)))-1,"n.d.") -> 0.04612875115 | Y60: =IF(INDEX($C60:$G60,1,aux!$AL$1)>0,(G60-INDEX($C60:$G60,1,aux!$AL$1))/INDEX($C60:$G60,1,aux!$AL$1),"n.d.") -> 0.1976793249 | AA60: =O60-INDEX($K60:$O60,1,aux!$AL$1) -> -32.283 | AB60: 0.004826685322 | AC60: 0.004183751756 | AD60: =+IF(INDEX($K60:$O60,1,aux!$AL$1)>0,(O60/INDEX($K60:$O60,1,aux!$AL$1))^(1/($O$3-INDEX($K$3:$O$3,1,aux!$AL$1)))-1,"n.d.") -> -1 | AE60: =IF(INDEX($K60:$O60,1,aux!$AL$1)>0,(O60-INDEX($K60:$O60,1,aux!$AL$1))/INDEX($K60:$O60,1,aux!$AL$1),"n.d.") -> -1 | AX60: 07
A61: 07SS | B61: Produtos hortícolas, plantas, raízes e tubérculos, comestíveis | C61: 0 | D61: 0 | E61: 0 | F61: 0 | G61: 0 | H61: 0 | I61: 0 | J61: 0 | K61: 0 | L61: 0 | M61: 0 | N61: 0 | O61: 0 | P61: 0 | Q61: 0 | R61: 0 | S61: 0 | U61: =G61-INDEX($C61:$G61,1,aux!$AL$1) -> 0 | V61: 0 | W61: 0 | X61: =+IF(INDEX($C61:$G61,1,aux!$AL$1)>0,(G61/INDEX($C61:$G61,1,aux!$AL$1))^(1/($G$3-INDEX($C$3:$G$3,1,aux!$AL$1)))-1,"n.d.") -> n.d. | Y61: =IF(INDEX($C61:$G61,1,aux!$AL$1)>0,(G61-INDEX($C61:$G61,1,aux!$AL$1))/INDEX($C61:$G61,1,aux!$AL$1),"n.d.") -> n.d. | AA61: =O61-INDEX($K61:$O61,1,aux!$AL$1) -> 0 | AB61: 0 | AC61: 0 | AD61: =+IF(INDEX($K61:$O61,1,aux!$AL$1)>0,(O61/INDEX($K61:$O61,1,aux!$AL$1))^(1/($O$3-INDEX($K$3:$O$3,1,aux!$AL$1)))-1,"n.d.") -> n.d. | AE61: =IF(INDEX($K61:$O61,1,aux!$AL$1)>0,(O61-INDEX($K61:$O61,1,aux!$AL$1))/INDEX($K61:$O61,1,aux!$AL$1),"n.d.") -> n.d. | AX61: 07
A62: 0801 | B62: Cocos, castanhas do brasil e castanha de cajú | C62: 0 | D62: 0 | E62: 0 | F62: 0 | G62: 0 | H62: 0 | I62: 0 | J62: 0 | K62: 0 | L62: 0 | M62: 0 | N62: 0.482 | O62: 0 | P62: 0.0964 | Q62: 4.349954685e-06 | R62: 2.618752009e-06 | S62: 0.0964 | U62: =G62-INDEX($C62:$G62,1,aux!$AL$1) -> 0 | V62: 0 | W62: 0 | X62: =+IF(INDEX($C62:$G62,1,aux!$AL$1)>0,(G62/INDEX($C62:$G62,1,aux!$AL$1))^(1/($G$3-INDEX($C$3:$G$3,1,aux!$AL$1)))-1,"n.d.") -> n.d. | Y62: =IF(INDEX($C62:$G62,1,aux!$AL$1)>0,(G62-INDEX($C62:$G62,1,aux!$AL$1))/INDEX($C62:$G62,1,aux!$AL$1),"n.d.") -> n.d. | AA62: =O62-INDEX($K62:$O62,1,aux!$AL$1) -> 0 | AB62: 0 | AC62: 0 | AD62: =+IF(INDEX($K62:$O62,1,aux!$AL$1)>0,(O62/INDEX($K62:$O62,1,aux!$AL$1))^(1/($O$3-INDEX($K$3:$O$3,1,aux!$AL$1)))-1,"n.d.") -> n.d. | AE62: =IF(INDEX($K62:$O62,1,aux!$AL$1)>0,(O62-INDEX($K62:$O62,1,aux!$AL$1))/INDEX($K62:$O62,1,aux!$AL$1),"n.d.") -> n.d. | AX62: 08
A63: 0802 | B63: Frutas de casca rija | C63: 108.947 | D63: 89.992 | E63: 0 | F63: 136.388 | G63: 345.438 | H63: 136.153 | I63: 0.001115728621 | J63: 0.0008920299672 | K63: 9.003 | L63: 27.482 | M63: 9.542 | N63: 3.212 | O63: 9.295 | P63: 11.7068 | Q63: 0.0005282577749 | R63: 0.0003180208094 | S63: -124.4462 | U63: =G63-INDEX($C63:$G63,1,aux!$AL$1) -> 236.491 | V63: 0.002850664138 | W63: 0.003216743547 | X63: =+IF(INDEX($C63:$G63,1,aux!$AL$1)>0,(G63/INDEX($C63:$G63,1,aux!$AL$1))^(1/($G$3-INDEX($C$3:$G$3,1,aux!$AL$1)))-1,"n.d.") -> 0.3344082203 | Y63: =IF(INDEX($C63:$G63,1,aux!$AL$1)>0,(G63-INDEX($C63:$G63,1,aux!$AL$1))/INDEX($C63:$G63,1,aux!$AL$1),"n.d.") -> 2.170697679 | AA63: =O63-INDEX($K63:$O63,1,aux!$AL$1) -> 0.292 | AB63: -4.365740836e-05 | AC63: -3.784206898e-05 | AD63: =+IF(INDEX($K63:$O63,1,aux!$AL$1)>0,(O63/INDEX($K63:$O63,1,aux!$AL$1))^(1/($O$3-INDEX($K$3:$O$3,1,aux!$AL$1)))-1,"n.d.") -> 0.008011614104 | AE63: =IF(INDEX($K63:$O63,1,aux!$AL$1)>0,(O63-INDEX($K63:$O63,1,aux!$AL$1))/INDEX($K63:$O63,1,aux!$AL$1),"n.d.") -> 0.03243363323 | AX63: 08
A64: 0803 | B64: Bananas, frescas ou secas | C64: 0 | D64: 0 | E64: 0 | F64: 0 | G64: 0 | H64: 0 | I64: 0 | J64: 0 | K64: 0 | L64: 0 | M64: 0 | N64: 0 | O64: 0 | P64: 0 | Q64: 0 | R64: 0 | S64: 0 | U64: =G64-INDEX($C64:$G64,1,aux!$AL$1) -> 0 | V64: 0 | W64: 0 | X64: =+IF(INDEX($C64:$G64,1,aux!$AL$1)>0,(G64/INDEX($C64:$G64,1,aux!$AL$1))^(1/($G$3-INDEX($C$3:$G$3,1,aux!$AL$1)))-1,"n.d.") -> n.d. | Y64: =IF(INDEX($C64:$G64,1,aux!$AL$1)>0,(G64-INDEX($C64:$G64,1,aux!$AL$1))/INDEX($C64:$G64,1,aux!$AL$1),"n.d.") -> n.d. | AA64: =O64-INDEX($K64:$O64,1,aux!$AL$1) -> 0 | AB64: 0 | AC64: 0 | AD64: =+IF(INDEX($K64:$O64,1,aux!$AL$1)>0,(O64/INDEX($K64:$O64,1,aux!$AL$1))^(1/($O$3-INDEX($K$3:$O$3,1,aux!$AL$1)))-1,"n.d.") -> n.d. | AE64: =IF(INDEX($K64:$O64,1,aux!$AL$1)>0,(O64-INDEX($K64:$O64,1,aux!$AL$1))/INDEX($K64:$O64,1,aux!$AL$1),"n.d.") -> n.d. | AX64: 08
A65: 0804 | B65: Tâmaras, figos, ananases, abacates, goiabas, mangas | C65: 1069.505 | D65: 2418.122 | E65: 1804.539 | F65: 3186.609 | G65: 3280.494 | H65: 2351.8538 | I65: 0.01927266088 | J65: 0.01540857762 | K65: 2.457 | L65: 0.305 | M65: 0.594 | N65: 1.546 | O65: 1.131 | P65: 1.2066 | Q65: 5.444663198e-05 | R65: 3.277786488e-05 | S65: -2350.6472 | U65: =G65-INDEX($C65:$G65,1,aux!$AL$1) -> 2210.989 | V65: 0.02665127659 | W65: 0.0300738066 | X65: =+IF(INDEX($C65:$G65,1,aux!$AL$1)>0,(G65/INDEX($C65:$G65,1,aux!$AL$1))^(1/($G$3-INDEX($C$3:$G$3,1,aux!$AL$1)))-1,"n.d.") -> 0.3233938349 | Y65: =IF(INDEX($C65:$G65,1,aux!$AL$1)>0,(G65-INDEX($C65:$G65,1,aux!$AL$1))/INDEX($C65:$G65,1,aux!$AL$1),"n.d.") -> 2.067301228 | AA65: =O65-INDEX($K65:$O65,1,aux!$AL$1) -> -1.326 | AB65: 0.0001982524777 | AC65: 0.0001718444639 | AD65: =+IF(INDEX($K65:$O65,1,aux!$AL$1)>0,(O65/INDEX($K65:$O65,1,aux!$AL$1))^(1/($O$3-INDEX($K$3:$O$3,1,aux!$AL$1)))-1,"n.d.") -> -0.1763089215 | AE65: =IF(INDEX($K65:$O65,1,aux!$AL$1)>0,(O65-INDEX($K65:$O65,1,aux!$AL$1))/INDEX($K65:$O65,1,aux!$AL$1),"n.d.") -> -0.5396825397 | AX65: 08
A66: 0805 | B66: Citrinos, frescos ou secos | C66: 69189.162 | D66: 115181.955 | E66: 82951.385 | F66: 99810.78 | G66: 128036.907 | H66: 99034.0378 | I66: 0.8115510521 | J66: 0.6488386557 | K66: 0 | L66: 0 | M66: 12.867 | N66: 0 | O66: 0 | P66: 2.5734 | Q66: 0.0001161221306 | R66: 6.990763922e-05 | S66: -99031.4644 | U66: =G66-INDEX($C66:$G66,1,aux!$AL$1) -> 58847.745 | V66: 0.7093511224 | W66: 0.8004452768 | X66: =+IF(INDEX($C66:$G66,1,aux!$AL$1)>0,(G66/INDEX($C66:$G66,1,aux!$AL$1))^(1/($G$3-INDEX($C$3:$G$3,1,aux!$AL$1)))-1,"n.d.") -> 0.1663375985 | Y66: =IF(INDEX($C66:$G66,1,aux!$AL$1)>0,(G66-INDEX($C66:$G66,1,aux!$AL$1))/INDEX($C66:$G66,1,aux!$AL$1),"n.d.") -> 0.8505341487 | AA66: =O66-INDEX($K66:$O66,1,aux!$AL$1) -> 0 | AB66: 0 | AC66: 0 | AD66: =+IF(INDEX($K66:$O66,1,aux!$AL$1)>0,(O66/INDEX($K66:$O66,1,aux!$AL$1))^(1/($O$3-INDEX($K$3:$O$3,1,aux!$AL$1)))-1,"n.d.") -> n.d. | AE66: =IF(INDEX($K66:$O66,1,aux!$AL$1)>0,(O66-INDEX($K66:$O66,1,aux!$AL$1))/INDEX($K66:$O66,1,aux!$AL$1),"n.d.") -> n.d. | AX66: 08
A67: 0806 | B67: Uvas, frescas ou secas | C67: 1429.182 | D67: 2294.911 | E67: 2150.074 | F67: 1693.482 | G67: 2036.11 | H67: 1920.7518 | I67: 0.01573992315 | J67: 0.01258413818 | K67: 0 | L67: 111.669 | M67: 35.54 | N67: 0 | O67: 0 | P67: 29.4418 | Q67: 0.001328532114 | R67: 0.0007998005489 | S67: -1891.31 | U67: =G67-INDEX($C67:$G67,1,aux!$AL$1) -> 606.928 | V67: 0.007315914281 | W67: 0.0082554166 | X67: =+IF(INDEX($C67:$G67,1,aux!$AL$1)>0,(G67/INDEX($C67:$G67,1,aux!$AL$1))^(1/($G$3-INDEX($C$3:$G$3,1,aux!$AL$1)))-1,"n.d.") -> 0.09251755666 | Y67: =IF(INDEX($C67:$G67,1,aux!$AL$1)>0,(G67-INDEX($C67:$G67,1,aux!$AL$1))/INDEX($C67:$G67,1,aux!$AL$1),"n.d.") -> 0.4246680969 | AA67: =O67-INDEX($K67:$O67,1,aux!$AL$1) -> 0 | AB67: 0 | AC67: 0 | AD67: =+IF(INDEX($K67:$O67,1,aux!$AL$1)>0,(O67/INDEX($K67:$O67,1,aux!$AL$1))^(1/($O$3-INDEX($K$3:$O$3,1,aux!$AL$1)))-1,"n.d.") -> n.d. | AE67: =IF(INDEX($K67:$O67,1,aux!$AL$1)>0,(O67-INDEX($K67:$O67,1,aux!$AL$1))/INDEX($K67:$O67,1,aux!$AL$1),"n.d.") -> n.d. | AX67: 08
A68: 0807 | B68: Melões, melancias e papaia, frescos | C68: 0 | D68: 0 | E68: 0 | F68: 0 | G68: 0 | H68: 0 | I68: 0 | J68: 0 | K68: 0 | L68: 0 | M68: 0 | N68: 0 | O68: 0 | P68: 0 | Q68: 0 | R68: 0 | S68: 0 | U68: =G68-INDEX($C68:$G68,1,aux!$AL$1) -> 0 | V68: =IF($U$237<>0,U68/$U$237, "n.d.") -> 0 | W68: =IF($U$322<>0,U68/$U$322, "n.d.") -> 0 | X68: =+IF(INDEX($C68:$G68,1,aux!$AL$1)>0,(G68/INDEX($C68:$G68,1,aux!$AL$1))^(1/($G$3-INDEX($C$3:$G$3,1,aux!$AL$1)))-1,"n.d.") -> n.d. | Y68: =IF(INDEX($C68:$G68,1,aux!$AL$1)>0,(G68-INDEX($C68:$G68,1,aux!$AL$1))/INDEX($C68:$G68,1,aux!$AL$1),"n.d.") -> n.d. | AA68: =O68-INDEX($K68:$O68,1,aux!$AL$1) -> 0 | AB68: =IF($AA$237<>0,AA68/$AA$237, "n.d.") -> 0 | AC68: =IF($AA$322<>0,AA68/$AA$322, "n.d.") -> 0 | AD68: =+IF(INDEX($K68:$O68,1,aux!$AL$1)>0,(O68/INDEX($K68:$O68,1,aux!$AL$1))^(1/($O$3-INDEX($K$3:$O$3,1,aux!$AL$1)))-1,"n.d.") -> n.d. | AE68: =IF(INDEX($K68:$O68,1,aux!$AL$1)>0,(O68-INDEX($K68:$O68,1,aux!$AL$1))/INDEX($K68:$O68,1,aux!$AL$1),"n.d.") -> n.d. | AX68: 08
A69: 0808 | B69: Maçãs, peras e marmelos, frescos | C69: 5129.564 | D69: 4862.808 | E69: 5444.643 | F69: 5239.578 | G69: 8360.811 | H69: 5807.4808 | I69: 0.04759037658 | J69: 0.03804871657 | K69: 0 | L69: 0 | M69: 0 | N69: 0 | O69: 0 | P69: 0 | Q69: 0 | R69: 0 | S69: -5807.4808 | U69: =G69-INDEX($C69:$G69,1,aux!$AL$1) -> 3231.247 | V69: 0.03894947353 | W69: 0.04395132557 | X69: =+IF(INDEX($C69:$G69,1,aux!$AL$1)>0,(G69/INDEX($C69:$G69,1,aux!$AL$1))^(1/($G$3-INDEX($C$3:$G$3,1,aux!$AL$1)))-1,"n.d.") -> 0.1299051506 | Y69: =IF(INDEX($C69:$G69,1,aux!$AL$1)>0,(G69-INDEX($C69:$G69,1,aux!$AL$1))/INDEX($C69:$G69,1,aux!$AL$1),"n.d.") -> 0.6299262471 | AA69: =O69-INDEX($K69:$O69,1,aux!$AL$1) -> 0 | AB69: 0 | AC69: 0 | AD69: =+IF(INDEX($K69:$O69,1,aux!$AL$1)>0,(O69/INDEX($K69:$O69,1,aux!$AL$1))^(1/($O$3-INDEX($K$3:$O$3,1,aux!$AL$1)))-1,"n.d.") -> n.d. | AE69: =IF(INDEX($K69:$O69,1,aux!$AL$1)>0,(O69-INDEX($K69:$O69,1,aux!$AL$1))/INDEX($K69:$O69,1,aux!$AL$1),"n.d.") -> n.d. | AX69: 08
A70: 0809 | B70: Damascos, cerejas, pêssegos, etc., frescos | C70: 0 | D70: 69.702 | E70: 825.071 | F70: 621.988 | G70: 368.402 | H70: 377.0326 | I70: 0.00308965695 | J70: 0.002470194398 | K70: 0 | L70: 0 | M70: 0 | N70: 16.64 | O70: 0 | P70: 3.328 | Q70: 0.0001501727094 | R70: 9.040670838e-05 | S70: -373.7046 | U70: =G70-INDEX($C70:$G70,1,aux!$AL$1) -> 368.402 | V70: 0.004440720238 | W70: 0.005010993044 | X70: =+IF(INDEX($C70:$G70,1,aux!$AL$1)>0,(G70/INDEX($C70:$G70,1,aux!$AL$1))^(1/($G$3-INDEX($C$3:$G$3,1,aux!$AL$1)))-1,"n.d.") -> n.d. | Y70: =IF(INDEX($C70:$G70,1,aux!$AL$1)>0,(G70-INDEX($C70:$G70,1,aux!$AL$1))/INDEX($C70:$G70,1,aux!$AL$1),"n.d.") -> n.d. | AA70: =O70-INDEX($K70:$O70,1,aux!$AL$1) -> 0 | AB70: 0 | AC70: 0 | AD70: =+IF(INDEX($K70:$O70,1,aux!$AL$1)>0,(O70/INDEX($K70:$O70,1,aux!$AL$1))^(1/($O$3-INDEX($K$3:$O$3,1,aux!$AL$1)))-1,"n.d.") -> n.d. | AE70: =IF(INDEX($K70:$O70,1,aux!$AL$1)>0,(O70-INDEX($K70:$O70,1,aux!$AL$1))/INDEX($K70:$O70,1,aux!$AL$1),"n.d.") -> n.d. | AX70: 08
A71: 0810 | B71: Outras frutas frescas | C71: 23.328 | D71: 26.464 | E71: 0 | F71: 899.123 | G71: 11.725 | H71: 192.128 | I71: 0.001574425157 | J71: 0.001258759877 | K71: 0 | L71: 0 | M71: 0 | N71: 0 | O71: 0 | P71: 0 | Q71: 0 | R71: 0 | S71: -192.128 | U71: =G71-INDEX($C71:$G71,1,aux!$AL$1) -> -11.603 | V71: -0.0001398626417 | W71: -0.0001578236608 | X71: =+IF(INDEX($C71:$G71,1,aux!$AL$1)>0,(G71/INDEX($C71:$G71,1,aux!$AL$1))^(1/($G$3-INDEX($C$3:$G$3,1,aux!$AL$1)))-1,"n.d.") -> -0.1580063113 | Y71: =IF(INDEX($C71:$G71,1,aux!$AL$1)>0,(G71-INDEX($C71:$G71,1,aux!$AL$1))/INDEX($C71:$G71,1,aux!$AL$1),"n.d.") -> -0.4973851166 | AA71: =O71-INDEX($K71:$O71,1,aux!$AL$1) -> 0 | AB71: 0 | AC71: 0 | AD71: =+IF(INDEX($K71:$O71,1,aux!$AL$1)>0,(O71/INDEX($K71:$O71,1,aux!$AL$1))^(1/($O$3-INDEX($K$3:$O$3,1,aux!$AL$1)))-1,"n.d.") -> n.d. | AE71: =IF(INDEX($K71:$O71,1,aux!$AL$1)>0,(O71-INDEX($K71:$O71,1,aux!$AL$1))/INDEX($K71:$O71,1,aux!$AL$1),"n.d.") -> n.d. | AX71: 08
A72: 0811 | B72: Frutas não cozidas ou cozidas em água ou vapor, congeladas | C72: 0 | D72: 0 | E72: 0 | F72: 0 | G72: 10.519 | H72: 2.1038 | I72: 1.723994236e-05 | J72: 1.378341017e-05 | K72: 0 | L72: 0 | M72: 1.69 | N72: 0 | O72: 0 | P72: 0.338 | Q72: 1.52519158e-05 | R72: 9.18193132e-06 | S72: -1.7658 | U72: =G72-INDEX($C72:$G72,1,aux!$AL$1) -> 10.519 | V72: 0.0001267960983 | W72: 0.0001430791251 | X72: =+IF(INDEX($C72:$G72,1,aux!$AL$1)>0,(G72/INDEX($C72:$G72,1,aux!$AL$1))^(1/($G$3-INDEX($C$3:$G$3,1,aux!$AL$1)))-1,"n.d.") -> n.d. | Y72: =IF(INDEX($C72:$G72,1,aux!$AL$1)>0,(G72-INDEX($C72:$G72,1,aux!$AL$1))/INDEX($C72:$G72,1,aux!$AL$1),"n.d.") -> n.d. | AA72: =O72-INDEX($K72:$O72,1,aux!$AL$1) -> 0 | AB72: 0 | AC72: 0 | AD72: =+IF(INDEX($K72:$O72,1,aux!$AL$1)>0,(O72/INDEX($K72:$O72,1,aux!$AL$1))^(1/($O$3-INDEX($K$3:$O$3,1,aux!$AL$1)))-1,"n.d.") -> n.d. | AE72: =IF(INDEX($K72:$O72,1,aux!$AL$1)>0,(O72-INDEX($K72:$O72,1,aux!$AL$1))/INDEX($K72:$O72,1,aux!$AL$1),"n.d.") -> n.d. | AX72: 08
A73: 0812 | B73: Frutas conservadas transitoriamente | C73: 0 | D73: 0 | E73: 0 | F73: 0 | G73: 0 | H73: 0 | I73: 0 | J73: 0 | K73: 0 | L73: 0 | M73: 0 | N73: 0 | O73: 0 | P73: 0 | Q73: 0 | R73: 0 | S73: 0 | U73: =G73-INDEX($C73:$G73,1,aux!$AL$1) -> 0 | V73: 0 | W73: 0 | X73: =+IF(INDEX($C73:$G73,1,aux!$AL$1)>0,(G73/INDEX($C73:$G73,1,aux!$AL$1))^(1/($G$3-INDEX($C$3:$G$3,1,aux!$AL$1)))-1,"n.d.") -> n.d. | Y73: =IF(INDEX($C73:$G73,1,aux!$AL$1)>0,(G73-INDEX($C73:$G73,1,aux!$AL$1))/INDEX($C73:$G73,1,aux!$AL$1),"n.d.") -> n.d. | AA73: =O73-INDEX($K73:$O73,1,aux!$AL$1) -> 0 | AB73: 0 | AC73: 0 | AD73: =+IF(INDEX($K73:$O73,1,aux!$AL$1)>0,(O73/INDEX($K73:$O73,1,aux!$AL$1))^(1/($O$3-INDEX($K$3:$O$3,1,aux!$AL$1)))-1,"n.d.") -> n.d. | AE73: =IF(INDEX($K73:$O73,1,aux!$AL$1)>0,(O73-INDEX($K73:$O73,1,aux!$AL$1))/INDEX($K73:$O73,1,aux!$AL$1),"n.d.") -> n.d. | AX73: 08
A74: 0813 | B74: Outras frutas secas | C74: 0 | D74: 0 | E74: 0.815 | F74: 0 | G74: 0.526 | H74: 0.2682 | I74: 2.197809935e-06 | J74: 1.757158764e-06 | K74: 0.018 | L74: 75.901 | M74: 1.245 | N74: 0.216 | O74: 0.388 | P74: 15.5536 | Q74: 0.0007018408214 | R74: 0.0004225209674 | S74: 15.2854 | U74: =G74-INDEX($C74:$G74,1,aux!$AL$1) -> 0.526 | V74: 6.340407613e-06 | W74: 7.154636352e-06 | X74: =+IF(INDEX($C74:$G74,1,aux!$AL$1)>0,(G74/INDEX($C74:$G74,1,aux!$AL$1))^(1/($G$3-INDEX($C$3:$G$3,1,aux!$AL$1)))-1,"n.d.") -> n.d. | Y74: =IF(INDEX($C74:$G74,1,aux!$AL$1)>0,(G74-INDEX($C74:$G74,1,aux!$AL$1))/INDEX($C74:$G74,1,aux!$AL$1),"n.d.") -> n.d. | AA74: =O74-INDEX($K74:$O74,1,aux!$AL$1) -> 0.37 | AB74: -5.531931881e-05 | AC74: -4.795056685e-05 | AD74: =+IF(INDEX($K74:$O74,1,aux!$AL$1)>0,(O74/INDEX($K74:$O74,1,aux!$AL$1))^(1/($O$3-INDEX($K$3:$O$3,1,aux!$AL$1)))-1,"n.d.") -> 1.154714852 | AE74: =IF(INDEX($K74:$O74,1,aux!$AL$1)>0,(O74-INDEX($K74:$O74,1,aux!$AL$1))/INDEX($K74:$O74,1,aux!$AL$1),"n.d.") -> 20.55555556 | AX74: 08
A75: 0814 | B75: Cascas de citrinos, melões ou melancias | C75: 0 | D75: 0 | E75: 0 | F75: 0 | G75: 0 | H75: 0 | I75: 0 | J75: 0 | K75: 0 | L75: 0 | M75: 0 | N75: 0 | O75: 0 | P75: 0 | Q75: 0 | R75: 0 | S75: 0 | U75: =G75-INDEX($C75:$G75,1,aux!$AL$1) -> 0 | V75: 0 | W75: 0 | X75: =+IF(INDEX($C75:$G75,1,aux!$AL$1)>0,(G75/INDEX($C75:$G75,1,aux!$AL$1))^(1/($G$3-INDEX($C$3:$G$3,1,aux!$AL$1)))-1,"n.d.") -> n.d. | Y75: =IF(INDEX($C75:$G75,1,aux!$AL$1)>0,(G75-INDEX($C75:$G75,1,aux!$AL$1))/INDEX($C75:$G75,1,aux!$AL$1),"n.d.") -> n.d. | AA75: =O75-INDEX($K75:$O75,1,aux!$AL$1) -> 0 | AB75: 0 | AC75: 0 | AD75: =+IF(INDEX($K75:$O75,1,aux!$AL$1)>0,(O75/INDEX($K75:$O75,1,aux!$AL$1))^(1/($O$3-INDEX($K$3:$O$3,1,aux!$AL$1)))-1,"n.d.") -> n.d. | AE75: =IF(INDEX($K75:$O75,1,aux!$AL$1)>0,(O75-INDEX($K75:$O75,1,aux!$AL$1))/INDEX($K75:$O75,1,aux!$AL$1),"n.d.") -> n.d. | AX75: =+LEFT(A75,2) -> 08
A76: 08SS | B76: Frutas; cascas de citrinos e de melões | C76: 0 | D76: 0 | E76: 0 | F76: 0 | G76: 0 | H76: 0 | I76: 0 | J76: 0 | K76: 0 | L76: 0 | M76: 0 | N76: 0 | O76: 0 | P76: 0 | Q76: 0 | R76: 0 | S76: 0 | U76: =G76-INDEX($C76:$G76,1,aux!$AL$1) -> 0 | V76: 0 | W76: 0 | X76: =+IF(INDEX($C76:$G76,1,aux!$AL$1)>0,(G76/INDEX($C76:$G76,1,aux!$AL$1))^(1/($G$3-INDEX($C$3:$G$3,1,aux!$AL$1)))-1,"n.d.") -> n.d. | Y76: =IF(INDEX($C76:$G76,1,aux!$AL$1)>0,(G76-INDEX($C76:$G76,1,aux!$AL$1))/INDEX($C76:$G76,1,aux!$AL$1),"n.d.") -> n.d. | AA76: =O76-INDEX($K76:$O76,1,aux!$AL$1) -> 0 | AB76: 0 | AC76: 0 | AD76: =+IF(INDEX($K76:$O76,1,aux!$AL$1)>0,(O76/INDEX($K76:$O76,1,aux!$AL$1))^(1/($O$3-INDEX($K$3:$O$3,1,aux!$AL$1)))-1,"n.d.") -> n.d. | AE76: =IF(INDEX($K76:$O76,1,aux!$AL$1)>0,(O76-INDEX($K76:$O76,1,aux!$AL$1))/INDEX($K76:$O76,1,aux!$AL$1),"n.d.") -> n.d. | AX76: 08
A77: 0901 | B77: Café | C77: 0 | D77: 0 | E77: 0 | F77: 0.126 | G77: 0.063 | H77: 0.0378 | I77: 3.097584472e-07 | J77: 2.476532486e-07 | K77: 309.73 | L77: 188.933 | M77: 172.034 | N77: 257.085 | O77: 212.664 | P77: 228.0892 | Q77: 0.01029229963 | R77: 0.00619615198 | S77: 228.0514 | U77: =G77-INDEX($C77:$G77,1,aux!$AL$1) -> 0.063 | V77: 7.594024327e-07 | W77: 8.569241258e-07 | X77: =+IF(INDEX($C77:$G77,1,aux!$AL$1)>0,(G77/INDEX($C77:$G77,1,aux!$AL$1))^(1/($G$3-INDEX($C$3:$G$3,1,aux!$AL$1)))-1,"n.d.") -> n.d. | Y77: =IF(INDEX($C77:$G77,1,aux!$AL$1)>0,(G77-INDEX($C77:$G77,1,aux!$AL$1))/INDEX($C77:$G77,1,aux!$AL$1),"n.d.") -> n.d. | AA77: =O77-INDEX($K77:$O77,1,aux!$AL$1) -> -97.066 | AB77: 0.0145125 | AC77: 0.01257937763 | AD77: =+IF(INDEX($K77:$O77,1,aux!$AL$1)>0,(O77/INDEX($K77:$O77,1,aux!$AL$1))^(1/($O$3-INDEX($K$3:$O$3,1,aux!$AL$1)))-1,"n.d.") -> -0.08971439194 | AE77: =IF(INDEX($K77:$O77,1,aux!$AL$1)>0,(O77-INDEX($K77:$O77,1,aux!$AL$1))/INDEX($K77:$O77,1,aux!$AL$1),"n.d.") -> -0.3133890808 | AX77: 09
A78: 0902 | B78: Chá | C78: 0 | D78: 0 | E78: 0.023 | F78: 0 | G78: 0.084 | H78: 0.0214 | I78: 1.753658934e-07 | J78: 1.402058074e-07 | K78: 2.586 | L78: 0.119 | M78: 0.766 | N78: 0 | O78: 0.141 | P78: 0.7224 | Q78: 3.259758573e-05 | R78: 1.962434078e-05 | S78: 0.701 | U78: =G78-INDEX($C78:$G78,1,aux!$AL$1) -> 0.084 | V78: 1.012536577e-06 | W78: 1.142565501e-06 | X78: =+IF(INDEX($C78:$G78,1,aux!$AL$1)>0,(G78/INDEX($C78:$G78,1,aux!$AL$1))^(1/($G$3-INDEX($C$3:$G$3,1,aux!$AL$1)))-1,"n.d.") -> n.d. | Y78: =IF(INDEX($C78:$G78,1,aux!$AL$1)>0,(G78-INDEX($C78:$G78,1,aux!$AL$1))/INDEX($C78:$G78,1,aux!$AL$1),"n.d.") -> n.d. | AA78: =O78-INDEX($K78:$O78,1,aux!$AL$1) -> -2.445 | AB78: 0.0003655560391 | AC78: 0.0003168625296 | AD78: =+IF(INDEX($K78:$O78,1,aux!$AL$1)>0,(O78/INDEX($K78:$O78,1,aux!$AL$1))^(1/($O$3-INDEX($K$3:$O$3,1,aux!$AL$1)))-1,"n.d.") -> -0.5167769435 | AE78: =IF(INDEX($K78:$O78,1,aux!$AL$1)>0,(O78-INDEX($K78:$O78,1,aux!$AL$1))/INDEX($K78:$O78,1,aux!$AL$1),"n.d.") -> -0.9454756381 | AX78: 09
A79: 0903 | B79: Mate | C79: 0 | D79: 0.002 | E79: 0.491 | F79: 0 | G79: 0 | H79: 0.0986 | I79: 8.079942565e-07 | J79: 6.459949819e-07 | K79: 0 | L79: 0 | M79: 0 | N79: 0 | O79: 0 | P79: 0 | Q79: 0 | R79: 0 | S79: -0.0986 | U79: =G79-INDEX($C79:$G79,1,aux!$AL$1) -> 0 | V79: 0 | W79: 0 | X79: =+IF(INDEX($C79:$G79,1,aux!$AL$1)>0,(G79/INDEX($C79:$G79,1,aux!$AL$1))^(1/($G$3-INDEX($C$3:$G$3,1,aux!$AL$1)))-1,"n.d.") -> n.d. | Y79: =IF(INDEX($C79:$G79,1,aux!$AL$1)>0,(G79-INDEX($C79:$G79,1,aux!$AL$1))/INDEX($C79:$G79,1,aux!$AL$1),"n.d.") -> n.d. | AA79: =O79-INDEX($K79:$O79,1,aux!$AL$1) -> 0 | AB79: 0 | AC79: 0 | AD79: =+IF(INDEX($K79:$O79,1,aux!$AL$1)>0,(O79/INDEX($K79:$O79,1,aux!$AL$1))^(1/($O$3-INDEX($K$3:$O$3,1,aux!$AL$1)))-1,"n.d.") -> n.d. | AE79: =IF(INDEX($K79:$O79,1,aux!$AL$1)>0,(O79-INDEX($K79:$O79,1,aux!$AL$1))/INDEX($K79:$O79,1,aux!$AL$1),"n.d.") -> n.d. | AX79: 09
A80: 0904 | B80: Pimenta | C80: 11.45 | D80: 5.961 | E80: 7.124 | F80: 3.823 | G80: 8.961 | H80: 7.4638 | I80: 6.116336239e-05 | J80: 4.890037876e-05 | K80: 0 | L80: 1.115 | M80: 0 | N80: 0.535 | O80: 2.019 | P80: 0.7338 | Q80: 3.311199946e-05 | R80: 1.993402723e-05 | S80: -6.73 | U80: =G80-INDEX($C80:$G80,1,aux!$AL$1) -> -2.489 | V80: -3.00024231e-05 | W80: -3.385530395e-05 | X80: =+IF(INDEX($C80:$G80,1,aux!$AL$1)>0,(G80/INDEX($C80:$G80,1,aux!$AL$1))^(1/($G$3-INDEX($C$3:$G$3,1,aux!$AL$1)))-1,"n.d.") -> -0.05943730915 | Y80: =IF(INDEX($C80:$G80,1,aux!$AL$1)>0,(G80-INDEX($C80:$G80,1,aux!$AL$1))/INDEX($C80:$G80,1,aux!$AL$1),"n.d.") -> -0.2173799127 | AA80: =O80-INDEX($K80:$O80,1,aux!$AL$1) -> 2.019 | AB80: -0.0003018640667 | AC80: -0.0002616545797 | AD80: =+IF(INDEX($K80:$O80,1,aux!$AL$1)>0,(O80/INDEX($K80:$O80,1,aux!$AL$1))^(1/($O$3-INDEX($K$3:$O$3,1,aux!$AL$1)))-1,"n.d.") -> n.d. | AE80: =IF(INDEX($K80:$O80,1,aux!$AL$1)>0,(O80-INDEX($K80:$O80,1,aux!$AL$1))/INDEX($K80:$O80,1,aux!$AL$1),"n.d.") -> n.d. | AX80: 09
A81: 0905 | B81: Baunilha | C81: 0 | D81: 0 | E81: 0 | F81: 0 | G81: 0 | H81: 0 | I81: 0 | J81: 0 | K81: 0 | L81: 0 | M81: 0 | N81: 0 | O81: 0 | P81: 0 | Q81: 0 | R81: 0 | S81: 0 | U81: =G81-INDEX($C81:$G81,1,aux!$AL$1) -> 0 | V81: 0 | W81: 0 | X81: =+IF(INDEX($C81:$G81,1,aux!$AL$1)>0,(G81/INDEX($C81:$G81,1,aux!$AL$1))^(1/($G$3-INDEX($C$3:$G$3,1,aux!$AL$1)))-1,"n.d.") -> n.d. | Y81: =IF(INDEX($C81:$G81,1,aux!$AL$1)>0,(G81-INDEX($C81:$G81,1,aux!$AL$1))/INDEX($C81:$G81,1,aux!$AL$1),"n.d.") -> n.d. | AA81: =O81-INDEX($K81:$O81,1,aux!$AL$1) -> 0 | AB81: 0 | AC81: 0 | AD81: =+IF(INDEX($K81:$O81,1,aux!$AL$1)>0,(O81/INDEX($K81:$O81,1,aux!$AL$1))^(1/($O$3-INDEX($K$3:$O$3,1,aux!$AL$1)))-1,"n.d.") -> n.d. | AE81: =IF(INDEX($K81:$O81,1,aux!$AL$1)>0,(O81-INDEX($K81:$O81,1,aux!$AL$1))/INDEX($K81:$O81,1,aux!$AL$1),"n.d.") -> n.d. | AX81: 09
A82: 0906 | B82: Canela | C82: 0 | D82: 0 | E82: 0 | F82: 0 | G82: 0.004 | H82: 0.0008 | I82: 6.555734333e-09 | J82: 5.241338595e-09 | K82: 0 | L82: 0.037 | M82: 0.246 | N82: 0.196 | O82: 0.082 | P82: 0.1122 | Q82: 5.062914062e-06 | R82: 3.04796655e-06 | S82: 0.1114 | U82: =G82-INDEX($C82:$G82,1,aux!$AL$1) -> 0.004 | V82: 4.821602748e-08 | W82: 5.4407881e-08 | X82: =+IF(INDEX($C82:$G82,1,aux!$AL$1)>0,(G82/INDEX($C82:$G82,1,aux!$AL$1))^(1/($G$3-INDEX($C$3:$G$3,1,aux!$AL$1)))-1,"n.d.") -> n.d. | Y82: =IF(INDEX($C82:$G82,1,aux!$AL$1)>0,(G82-INDEX($C82:$G82,1,aux!$AL$1))/INDEX($C82:$G82,1,aux!$AL$1),"n.d.") -> n.d. | AA82: =O82-INDEX($K82:$O82,1,aux!$AL$1) -> 0.082 | AB82: -1.225995714e-05 | AC82: -1.062688238e-05 | AD82: =+IF(INDEX($K82:$O82,1,aux!$AL$1)>0,(O82/INDEX($K82:$O82,1,aux!$AL$1))^(1/($O$3-INDEX($K$3:$O$3,1,aux!$AL$1)))-1,"n.d.") -> n.d. | AE82: =IF(INDEX($K82:$O82,1,aux!$AL$1)>0,(O82-INDEX($K82:$O82,1,aux!$AL$1))/INDEX($K82:$O82,1,aux!$AL$1),"n.d.") -> n.d. | AX82: 09
A83: 0907 | B83: Cravo-da-índia | C83: 0 | D83: 0 | E83: 0 | F83: 0 | G83: 0.005 | H83: 0.001 | I83: 8.194667916e-09 | J83: 6.551673244e-09 | K83: 0 | L83: 0 | M83: 0 | N83: 0.031 | O83: 0 | P83: 0.0062 | Q83: 2.797688698e-07 | R83: 1.684259591e-07 | S83: 0.0052 | U83: =G83-INDEX($C83:$G83,1,aux!$AL$1) -> 0.005 | V83: 6.027003434e-08 | W83: 6.800985125e-08 | X83: =+IF(INDEX($C83:$G83,1,aux!$AL$1)>0,(G83/INDEX($C83:$G83,1,aux!$AL$1))^(1/($G$3-INDEX($C$3:$G$3,1,aux!$AL$1)))-1,"n.d.") -> n.d. | Y83: =IF(INDEX($C83:$G83,1,aux!$AL$1)>0,(G83-INDEX($C83:$G83,1,aux!$AL$1))/INDEX($C83:$G83,1,aux!$AL$1),"n.d.") -> n.d. | AA83: =O83-INDEX($K83:$O83,1,aux!$AL$1) -> 0 | AB83: 0 | AC83: 0 | AD83: =+IF(INDEX($K83:$O83,1,aux!$AL$1)>0,(O83/INDEX($K83:$O83,1,aux!$AL$1))^(1/($O$3-INDEX($K$3:$O$3,1,aux!$AL$1)))-1,"n.d.") -> n.d. | AE83: =IF(INDEX($K83:$O83,1,aux!$AL$1)>0,(O83-INDEX($K83:$O83,1,aux!$AL$1))/INDEX($K83:$O83,1,aux!$AL$1),"n.d.") -> n.d. | AX83: 09
A84: 0908 | B84: Noz-moscada, etc. | C84: 0 | D84: 0 | E84: 0 | F84: 0 | G84: 0.005 | H84: 0.001 | I84: 8.194667916e-09 | J84: 6.551673244e-09 | K84: 0 | L84: 0 | M84: 0 | N84: 0.1 | O84: 0 | P84: 0.02 | Q84: 9.02480225e-07 | R84: 5.433095455e-07 | S84: 0.019 | U84: =G84-INDEX($C84:$G84,1,aux!$AL$1) -> 0.005 | V84: 6.027003434e-08 | W84: 6.800985125e-08 | X84: =+IF(INDEX($C84:$G84,1,aux!$AL$1)>0,(G84/INDEX($C84:$G84,1,aux!$AL$1))^(1/($G$3-INDEX($C$3:$G$3,1,aux!$AL$1)))-1,"n.d.") -> n.d. | Y84: =IF(INDEX($C84:$G84,1,aux!$AL$1)>0,(G84-INDEX($C84:$G84,1,aux!$AL$1))/INDEX($C84:$G84,1,aux!$AL$1),"n.d.") -> n.d. | AA84: =O84-INDEX($K84:$O84,1,aux!$AL$1) -> 0 | AB84: 0 | AC84: 0 | AD84: =+IF(INDEX($K84:$O84,1,aux!$AL$1)>0,(O84/INDEX($K84:$O84,1,aux!$AL$1))^(1/($O$3-INDEX($K$3:$O$3,1,aux!$AL$1)))-1,"n.d.") -> n.d. | AE84: =IF(INDEX($K84:$O84,1,aux!$AL$1)>0,(O84-INDEX($K84:$O84,1,aux!$AL$1))/INDEX($K84:$O84,1,aux!$AL$1),"n.d.") -> n.d. | AX84: 09
A85: 0909 | B85: Sementes de anis, funcho, etc. | C85: 0 | D85: 0 | E85: 0 | F85: 0 | G85: 0.009 | H85: 0.0018 | I85: 1.475040225e-08 | J85: 1.179301184e-08 | K85: 0.001 | L85: 0 | M85: 0 | N85: 0.033 | O85: 0 | P85: 0.0068 | Q85: 3.068432765e-07 | R85: 1.847252455e-07 | S85: 0.005 | U85: =G85-INDEX($C85:$G85,1,aux!$AL$1) -> 0.009 | V85: 1.084860618e-07 | W85: 1.224177323e-07 | X85: =+IF(INDEX($C85:$G85,1,aux!$AL$1)>0,(G85/INDEX($C85:$G85,1,aux!$AL$1))^(1/($G$3-INDEX($C$3:$G$3,1,aux!$AL$1)))-1,"n.d.") -> n.d. | Y85: =IF(INDEX($C85:$G85,1,aux!$AL$1)>0,(G85-INDEX($C85:$G85,1,aux!$AL$1))/INDEX($C85:$G85,1,aux!$AL$1),"n.d.") -> n.d. | AA85: =O85-INDEX($K85:$O85,1,aux!$AL$1) -> -0.001 | AB85: 1.495116725e-07 | AC85: 1.295961266e-07 | AD85: =+IF(INDEX($K85:$O85,1,aux!$AL$1)>0,(O85/INDEX($K85:$O85,1,aux!$AL$1))^(1/($O$3-INDEX($K$3:$O$3,1,aux!$AL$1)))-1,"n.d.") -> -1 | AE85: =IF(INDEX($K85:$O85,1,aux!$AL$1)>0,(O85-INDEX($K85:$O85,1,aux!$AL$1))/INDEX($K85:$O85,1,aux!$AL$1),"n.d.") -> -1 | AX85: 09
A86: 0910 | B86: Gengibre, açafrão, tomilho, louro, etc. | C86: 1.482 | D86: 7.637 | E86: 4.926 | F86: 0.123 | G86: 0.929 | H86: 3.0194 | I86: 2.47429803e-05 | J86: 1.978212219e-05 | K86: 1.267 | L86: 2.922 | M86: 0.36 | N86: 0.166 | O86: 0.608 | P86: 1.0646 | Q86: 4.803902238e-05 | R86: 2.892036711e-05 | S86: -1.9548 | U86: =G86-INDEX($C86:$G86,1,aux!$AL$1) -> -0.553 | V86: -6.665865798e-06 | W86: -7.521889549e-06 | X86: =+IF(INDEX($C86:$G86,1,aux!$AL$1)>0,(G86/INDEX($C86:$G86,1,aux!$AL$1))^(1/($G$3-INDEX($C$3:$G$3,1,aux!$AL$1)))-1,"n.d.") -> -0.1102010732 | Y86: =IF(INDEX($C86:$G86,1,aux!$AL$1)>0,(G86-INDEX($C86:$G86,1,aux!$AL$1))/INDEX($C86:$G86,1,aux!$AL$1),"n.d.") -> -0.3731443995 | AA86: =O86-INDEX($K86:$O86,1,aux!$AL$1) -> -0.659 | AB86: 9.852819215e-05 | AC86: 8.540384745e-05 | AD86: =+IF(INDEX($K86:$O86,1,aux!$AL$1)>0,(O86/INDEX($K86:$O86,1,aux!$AL$1))^(1/($O$3-INDEX($K$3:$O$3,1,aux!$AL$1)))-1,"n.d.") -> -0.1676964614 | AE86: =IF(INDEX($K86:$O86,1,aux!$AL$1)>0,(O86-INDEX($K86:$O86,1,aux!$AL$1))/INDEX($K86:$O86,1,aux!$AL$1),"n.d.") -> -0.5201262826 | AX86: 09
A87: 09SS | B87: Café, chá, mate e especiarias | C87: 0 | D87: 0 | E87: 0 | F87: 0 | G87: 0 | H87: 0 | I87: 0 | J87: 0 | K87: 0 | L87: 0 | M87: 0 | N87: 0 | O87: 0 | P87: 0 | Q87: 0 | R87: 0 | S87: 0 | U87: =G87-INDEX($C87:$G87,1,aux!$AL$1) -> 0 | V87: 0 | W87: 0 | X87: =+IF(INDEX($C87:$G87,1,aux!$AL$1)>0,(G87/INDEX($C87:$G87,1,aux!$AL$1))^(1/($G$3-INDEX($C$3:$G$3,1,aux!$AL$1)))-1,"n.d.") -> n.d. | Y87: =IF(INDEX($C87:$G87,1,aux!$AL$1)>0,(G87-INDEX($C87:$G87,1,aux!$AL$1))/INDEX($C87:$G87,1,aux!$AL$1),"n.d.") -> n.d. | AA87: =O87-INDEX($K87:$O87,1,aux!$AL$1) -> 0 | AB87: 0 | AC87: 0 | AD87: =+IF(INDEX($K87:$O87,1,aux!$AL$1)>0,(O87/INDEX($K87:$O87,1,aux!$AL$1))^(1/($O$3-INDEX($K$3:$O$3,1,aux!$AL$1)))-1,"n.d.") -> n.d. | AE87: =IF(INDEX($K87:$O87,1,aux!$AL$1)>0,(O87-INDEX($K87:$O87,1,aux!$AL$1))/INDEX($K87:$O87,1,aux!$AL$1),"n.d.") -> n.d. | AX87: 09
A88: 1001 | B88: Trigo e mistura trigo/centeio | C88: 0 | D88: 0 | E88: 0 | F88: 0 | G88: 0 | H88: 0 | I88: 0 | J88: 0 | K88: 0 | L88: 0 | M88: 0 | N88: 0 | O88: 0 | P88: 0 | Q88: 0 | R88: 0 | S88: 0 | U88: =G88-INDEX($C88:$G88,1,aux!$AL$1) -> 0 | V88: 0 | W88: 0 | X88: =+IF(INDEX($C88:$G88,1,aux!$AL$1)>0,(G88/INDEX($C88:$G88,1,aux!$AL$1))^(1/($G$3-INDEX($C$3:$G$3,1,aux!$AL$1)))-1,"n.d.") -> n.d. | Y88: =IF(INDEX($C88:$G88,1,aux!$AL$1)>0,(G88-INDEX($C88:$G88,1,aux!$AL$1))/INDEX($C88:$G88,1,aux!$AL$1),"n.d.") -> n.d. | AA88: =O88-INDEX($K88:$O88,1,aux!$AL$1) -> 0 | AB88: 0 | AC88: 0 | AD88: =+IF(INDEX($K88:$O88,1,aux!$AL$1)>0,(O88/INDEX($K88:$O88,1,aux!$AL$1))^(1/($O$3-INDEX($K$3:$O$3,1,aux!$AL$1)))-1,"n.d.") -> n.d. | AE88: =IF(INDEX($K88:$O88,1,aux!$AL$1)>0,(O88-INDEX($K88:$O88,1,aux!$AL$1))/INDEX($K88:$O88,1,aux!$AL$1),"n.d.") -> n.d. | AX88: 10
A89: 1002 | B89: Centeio | C89: 0 | D89: 0 | E89: 0 | F89: 0 | G89: 0 | H89: 0 | I89: 0 | J89: 0 | K89: 0 | L89: 0 | M89: 0 | N89: 0 | O89: 0 | P89: 0 | Q89: 0 | R89: 0 | S89: 0 | U89: =G89-INDEX($C89:$G89,1,aux!$AL$1) -> 0 | V89: 0 | W89: 0 | X89: =+IF(INDEX($C89:$G89,1,aux!$AL$1)>0,(G89/INDEX($C89:$G89,1,aux!$AL$1))^(1/($G$3-INDEX($C$3:$G$3,1,aux!$AL$1)))-1,"n.d.") -> n.d. | Y89: =IF(INDEX($C89:$G89,1,aux!$AL$1)>0,(G89-INDEX($C89:$G89,1,aux!$AL$1))/INDEX($C89:$G89,1,aux!$AL$1),"n.d.") -> n.d. | AA89: =O89-INDEX($K89:$O89,1,aux!$AL$1) -> 0 | AB89: 0 | AC89: 0 | AD89: =+IF(INDEX($K89:$O89,1,aux!$AL$1)>0,(O89/INDEX($K89:$O89,1,aux!$AL$1))^(1/($O$3-INDEX($K$3:$O$3,1,aux!$AL$1)))-1,"n.d.") -> n.d. | AE89: =IF(INDEX($K89:$O89,1,aux!$AL$1)>0,(O89-INDEX($K89:$O89,1,aux!$AL$1))/INDEX($K89:$O89,1,aux!$AL$1),"n.d.") -> n.d. | AX89: 10
A90: 1003 | B90: Cevada | C90: 0 | D90: 0 | E90: 0 | F90: 0 | G90: 0 | H90: 0 | I90: 0 | J90: 0 | K90: 0 | L90: 0 | M90: 0.153 | N90: 0 | O90: 0 | P90: 0.0306 | Q90: 1.380794744e-06 | R90: 8.312636047e-07 | S90: 0.0306 | U90: =G90-INDEX($C90:$G90,1,aux!$AL$1) -> 0 | V90: 0 | W90: 0 | X90: =+IF(INDEX($C90:$G90,1,aux!$AL$1)>0,(G90/INDEX($C90:$G90,1,aux!$AL$1))^(1/($G$3-INDEX($C$3:$G$3,1,aux!$AL$1)))-1,"n.d.") -> n.d. | Y90: =IF(INDEX($C90:$G90,1,aux!$AL$1)>0,(G90-INDEX($C90:$G90,1,aux!$AL$1))/INDEX($C90:$G90,1,aux!$AL$1),"n.d.") -> n.d. | AA90: =O90-INDEX($K90:$O90,1,aux!$AL$1) -> 0 | AB90: 0 | AC90: 0 | AD90: =+IF(INDEX($K90:$O90,1,aux!$AL$1)>0,(O90/INDEX($K90:$O90,1,aux!$AL$1))^(1/($O$3-INDEX($K$3:$O$3,1,aux!$AL$1)))-1,"n.d.") -> n.d. | AE90: =IF(INDEX($K90:$O90,1,aux!$AL$1)>0,(O90-INDEX($K90:$O90,1,aux!$AL$1))/INDEX($K90:$O90,1,aux!$AL$1),"n.d.") -> n.d. | AX90: 10
A91: 1004 | B91: Aveia | C91: 0 | D91: 0 | E91: 0 | F91: 0 | G91: 0 | H91: 0 | I91: 0 | J91: 0 | K91: 0 | L91: 0 | M91: 0 | N91: 0 | O91: 0 | P91: 0 | Q91: 0 | R91: 0 | S91: 0 | U91: =G91-INDEX($C91:$G91,1,aux!$AL$1) -> 0 | V91: 0 | W91: 0 | X91: =+IF(INDEX($C91:$G91,1,aux!$AL$1)>0,(G91/INDEX($C91:$G91,1,aux!$AL$1))^(1/($G$3-INDEX($C$3:$G$3,1,aux!$AL$1)))-1,"n.d.") -> n.d. | Y91: =IF(INDEX($C91:$G91,1,aux!$AL$1)>0,(G91-INDEX($C91:$G91,1,aux!$AL$1))/INDEX($C91:$G91,1,aux!$AL$1),"n.d.") -> n.d. | AA91: =O91-INDEX($K91:$O91,1,aux!$AL$1) -> 0 | AB91: 0 | AC91: 0 | AD91: =+IF(INDEX($K91:$O91,1,aux!$AL$1)>0,(O91/INDEX($K91:$O91,1,aux!$AL$1))^(1/($O$3-INDEX($K$3:$O$3,1,aux!$AL$1)))-1,"n.d.") -> n.d. | AE91: =IF(INDEX($K91:$O91,1,aux!$AL$1)>0,(O91-INDEX($K91:$O91,1,aux!$AL$1))/INDEX($K91:$O91,1,aux!$AL$1),"n.d.") -> n.d. | AX91: 10
A92: 1005 | B92: Milho | C92: 0 | D92: 0 | E92: 0 | F92: 17535.056 | G92: 0.013 | H92: 3507.0138 | I92: 0.02873881347 | J92: 0.02297680848 | K92: 0 | L92: 0 | M92: 0 | N92: 0 | O92: 0 | P92: 0 | Q92: 0 | R92: 0 | S92: -3507.0138 | U92: =G92-INDEX($C92:$G92,1,aux!$AL$1) -> 0.013 | V92: 1.567020893e-07 | W92: 1.768256133e-07 | X92: =+IF(INDEX($C92:$G92,1,aux!$AL$1)>0,(G92/INDEX($C92:$G92,1,aux!$AL$1))^(1/($G$3-INDEX($C$3:$G$3,1,aux!$AL$1)))-1,"n.d.") -> n.d. | Y92: =IF(INDEX($C92:$G92,1,aux!$AL$1)>0,(G92-INDEX($C92:$G92,1,aux!$AL$1))/INDEX($C92:$G92,1,aux!$AL$1),"n.d.") -> n.d. | AA92: =O92-INDEX($K92:$O92,1,aux!$AL$1) -> 0 | AB92: 0 | AC92: 0 | AD92: =+IF(INDEX($K92:$O92,1,aux!$AL$1)>0,(O92/INDEX($K92:$O92,1,aux!$AL$1))^(1/($O$3-INDEX($K$3:$O$3,1,aux!$AL$1)))-1,"n.d.") -> n.d. | AE92: =IF(INDEX($K92:$O92,1,aux!$AL$1)>0,(O92-INDEX($K92:$O92,1,aux!$AL$1))/INDEX($K92:$O92,1,aux!$AL$1),"n.d.") -> n.d. | AX92: 10
A93: 1006 | B93: Arroz | C93: 0 | D93: 0 | E93: 0 | F93: 0 | G93: 0 | H93: 0 | I93: 0 | J93: 0 | K93: 140.728 | L93: 80.81 | M93: 139.836 | N93: 162.008 | O93: 151.971 | P93: 135.0706 | Q93: 0.006094927274 | R93: 0.003669257315 | S93: 135.0706 | U93: =G93-INDEX($C93:$G93,1,aux!$AL$1) -> 0 | V93: 0 | W93: 0 | X93: =+IF(INDEX($C93:$G93,1,aux!$AL$1)>0,(G93/INDEX($C93:$G93,1,aux!$AL$1))^(1/($G$3-INDEX($C$3:$G$3,1,aux!$AL$1)))-1,"n.d.") -> n.d. | Y93: =IF(INDEX($C93:$G93,1,aux!$AL$1)>0,(G93-INDEX($C93:$G93,1,aux!$AL$1))/INDEX($C93:$G93,1,aux!$AL$1),"n.d.") -> n.d. | AA93: =O93-INDEX($K93:$O93,1,aux!$AL$1) -> 11.243 | AB93: -0.001680959733 | AC93: -0.001457049252 | AD93: =+IF(INDEX($K93:$O93,1,aux!$AL$1)>0,(O93/INDEX($K93:$O93,1,aux!$AL$1))^(1/($O$3-INDEX($K$3:$O$3,1,aux!$AL$1)))-1,"n.d.") -> 0.0194009909 | AE93: =IF(INDEX($K93:$O93,1,aux!$AL$1)>0,(O93-INDEX($K93:$O93,1,aux!$AL$1))/INDEX($K93:$O93,1,aux!$AL$1),"n.d.") -> 0.07989170599 | AX93: 10
A94: 1007 | B94: Sorgo de grão | C94: 0.486 | D94: 0 | E94: 0 | F94: 0 | G94: 0 | H94: 0.0972 | I94: 7.965217214e-07 | J94: 6.368226393e-07 | K94: 0 | L94: 0 | M94: 0 | N94: 0 | O94: 0 | P94: 0 | Q94: 0 | R94: 0 | S94: -0.0972 | U94: =G94-INDEX($C94:$G94,1,aux!$AL$1) -> -0.486 | V94: -5.858247338e-06 | W94: -6.610557542e-06 | X94: =+IF(INDEX($C94:$G94,1,aux!$AL$1)>0,(G94/INDEX($C94:$G94,1,aux!$AL$1))^(1/($G$3-INDEX($C$3:$G$3,1,aux!$AL$1)))-1,"n.d.") -> -1 | Y94: =IF(INDEX($C94:$G94,1,aux!$AL$1)>0,(G94-INDEX($C94:$G94,1,aux!$AL$1))/INDEX($C94:$G94,1,aux!$AL$1),"n.d.") -> -1 | AA94: =O94-INDEX($K94:$O94,1,aux!$AL$1) -> 0 | AB94: 0 | AC94: 0 | AD94: =+IF(INDEX($K94:$O94,1,aux!$AL$1)>0,(O94/INDEX($K94:$O94,1,aux!$AL$1))^(1/($O$3-INDEX($K$3:$O$3,1,aux!$AL$1)))-1,"n.d.") -> n.d. | AE94: =IF(INDEX($K94:$O94,1,aux!$AL$1)>0,(O94-INDEX($K94:$O94,1,aux!$AL$1))/INDEX($K94:$O94,1,aux!$AL$1),"n.d.") -> n.d. | AX94: 10
A95: 1008 | B95: Trigo mourisco, painço e outros cereais | C95: 0 | D95: 0 | E95: 0 | F95: 0 | G95: 0 | H95: 0 | I95: 0 | J95: 0 | K95: 0 | L95: 0 | M95: 0 | N95: 0 | O95: 0 | P95: 0 | Q95: 0 | R95: 0 | S95: 0 | U95: =G95-INDEX($C95:$G95,1,aux!$AL$1) -> 0 | V95: 0 | W95: 0 | X95: =+IF(INDEX($C95:$G95,1,aux!$AL$1)>0,(G95/INDEX($C95:$G95,1,aux!$AL$1))^(1/($G$3-INDEX($C$3:$G$3,1,aux!$AL$1)))-1,"n.d.") -> n.d. | Y95: =IF(INDEX($C95:$G95,1,aux!$AL$1)>0,(G95-INDEX($C95:$G95,1,aux!$AL$1))/INDEX($C95:$G95,1,aux!$AL$1),"n.d.") -> n.d. | AA95: =O95-INDEX($K95:$O95,1,aux!$AL$1) -> 0 | AB95: 0 | AC95: 0 | AD95: =+IF(INDEX($K95:$O95,1,aux!$AL$1)>0,(O95/INDEX($K95:$O95,1,aux!$AL$1))^(1/($O$3-INDEX($K$3:$O$3,1,aux!$AL$1)))-1,"n.d.") -> n.d. | AE95: =IF(INDEX($K95:$O95,1,aux!$AL$1)>0,(O95-INDEX($K95:$O95,1,aux!$AL$1))/INDEX($K95:$O95,1,aux!$AL$1),"n.d.") -> n.d. | AX95: 10
A96: 10SS | B96: Cereais | C96: 0 | D96: 0 | E96: 0 | F96: 0 | G96: 0 | H96: 0 | I96: 0 | J96: 0 | K96: 0 | L96: 0 | M96: 0 | N96: 0 | O96: 0 | P96: 0 | Q96: 0 | R96: 0 | S96: 0 | U96: =G96-INDEX($C96:$G96,1,aux!$AL$1) -> 0 | V96: 0 | W96: 0 | X96: =+IF(INDEX($C96:$G96,1,aux!$AL$1)>0,(G96/INDEX($C96:$G96,1,aux!$AL$1))^(1/($G$3-INDEX($C$3:$G$3,1,aux!$AL$1)))-1,"n.d.") -> n.d. | Y96: =IF(INDEX($C96:$G96,1,aux!$AL$1)>0,(G96-INDEX($C96:$G96,1,aux!$AL$1))/INDEX($C96:$G96,1,aux!$AL$1),"n.d.") -> n.d. | AA96: =O96-INDEX($K96:$O96,1,aux!$AL$1) -> 0 | AB96: 0 | AC96: 0 | AD96: =+IF(INDEX($K96:$O96,1,aux!$AL$1)>0,(O96/INDEX($K96:$O96,1,aux!$AL$1))^(1/($O$3-INDEX($K$3:$O$3,1,aux!$AL$1)))-1,"n.d.") -> n.d. | AE96: =IF(INDEX($K96:$O96,1,aux!$AL$1)>0,(O96-INDEX($K96:$O96,1,aux!$AL$1))/INDEX($K96:$O96,1,aux!$AL$1),"n.d.") -> n.d. | AX96: 10
A97: 1101 | B97: Farinhas de trigo ou trigo/centeio | C97: 0 | D97: 0 | E97: 0 | F97: 0 | G97: 0 | H97: 0 | I97: 0 | J97: 0 | K97: 0.93 | L97: 3.93 | M97: 1.283 | N97: 0.028 | O97: 0 | P97: 1.2342 | Q97: 5.569205469e-05 | R97: 3.352763206e-05 | S97: 1.2342 | U97: =G97-INDEX($C97:$G97,1,aux!$AL$1) -> 0 | V97: 0 | W97: 0 | X97: =+IF(INDEX($C97:$G97,1,aux!$AL$1)>0,(G97/INDEX($C97:$G97,1,aux!$AL$1))^(1/($G$3-INDEX($C$3:$G$3,1,aux!$AL$1)))-1,"n.d.") -> n.d. | Y97: =IF(INDEX($C97:$G97,1,aux!$AL$1)>0,(G97-INDEX($C97:$G97,1,aux!$AL$1))/INDEX($C97:$G97,1,aux!$AL$1),"n.d.") -> n.d. | AA97: =O97-INDEX($K97:$O97,1,aux!$AL$1) -> -0.93 | AB97: 0.0001390458554 | AC97: 0.0001205243978 | AD97: =+IF(INDEX($K97:$O97,1,aux!$AL$1)>0,(O97/INDEX($K97:$O97,1,aux!$AL$1))^(1/($O$3-INDEX($K$3:$O$3,1,aux!$AL$1)))-1,"n.d.") -> -1 | AE97: =IF(INDEX($K97:$O97,1,aux!$AL$1)>0,(O97-INDEX($K97:$O97,1,aux!$AL$1))/INDEX($K97:$O97,1,aux!$AL$1),"n.d.") -> -1 | AX97: 11
A98: 1102 | B98: Outras farinhas de cereais | C98: 2.239 | D98: 0 | E98: 0 | F98: 0 | G98: 0 | H98: 0.4478 | I98: 3.669572293e-06 | J98: 2.933839279e-06 | K98: 3.344 | L98: 3.405 | M98: 5.621 | N98: 3.298 | O98: 3.101 | P98: 3.7538 | Q98: 0.0001693865134 | R98: 0.0001019737686 | S98: 3.306 | U98: =G98-INDEX($C98:$G98,1,aux!$AL$1) -> -2.239 | V98: -2.698892138e-05 | W98: -3.045481139e-05 | X98: =+IF(INDEX($C98:$G98,1,aux!$AL$1)>0,(G98/INDEX($C98:$G98,1,aux!$AL$1))^(1/($G$3-INDEX($C$3:$G$3,1,aux!$AL$1)))-1,"n.d.") -> -1 | Y98: =IF(INDEX($C98:$G98,1,aux!$AL$1)>0,(G98-INDEX($C98:$G98,1,aux!$AL$1))/INDEX($C98:$G98,1,aux!$AL$1),"n.d.") -> -1 | AA98: =O98-INDEX($K98:$O98,1,aux!$AL$1) -> -0.243 | AB98: 3.633133641e-05 | AC98: 3.149185877e-05 | AD98: =+IF(INDEX($K98:$O98,1,aux!$AL$1)>0,(O98/INDEX($K98:$O98,1,aux!$AL$1))^(1/($O$3-INDEX($K$3:$O$3,1,aux!$AL$1)))-1,"n.d.") -> -0.01868401254 | AE98: =IF(INDEX($K98:$O98,1,aux!$AL$1)>0,(O98-INDEX($K98:$O98,1,aux!$AL$1))/INDEX($K98:$O98,1,aux!$AL$1),"n.d.") -> -0.07266746411 | AX98: 11
A99: 1103 | B99: Grumos, sêmolas, etc. de cereais | C99: 0 | D99: 0 | E99: 0 | F99: 0 | G99: 0 | H99: 0 | I99: 0 | J99: 0 | K99: 0 | L99: 0 | M99: 0 | N99: 0 | O99: 0 | P99: 0 | Q99: 0 | R99: 0 | S99: 0 | U99: =G99-INDEX($C99:$G99,1,aux!$AL$1) -> 0 | V99: 0 | W99: 0 | X99: =+IF(INDEX($C99:$G99,1,aux!$AL$1)>0,(G99/INDEX($C99:$G99,1,aux!$AL$1))^(1/($G$3-INDEX($C$3:$G$3,1,aux!$AL$1)))-1,"n.d.") -> n.d. | Y99: =IF(INDEX($C99:$G99,1,aux!$AL$1)>0,(G99-INDEX($C99:$G99,1,aux!$AL$1))/INDEX($C99:$G99,1,aux!$AL$1),"n.d.") -> n.d. | AA99: =O99-INDEX($K99:$O99,1,aux!$AL$1) -> 0 | AB99: 0 | AC99: 0 | AD99: =+IF(INDEX($K99:$O99,1,aux!$AL$1)>0,(O99/INDEX($K99:$O99,1,aux!$AL$1))^(1/($O$3-INDEX($K$3:$O$3,1,aux!$AL$1)))-1,"n.d.") -> n.d. | AE99: =IF(INDEX($K99:$O99,1,aux!$AL$1)>0,(O99-INDEX($K99:$O99,1,aux!$AL$1))/INDEX($K99:$O99,1,aux!$AL$1),"n.d.") -> n.d. | AX99: 11
A100: 1104 | B100: Grãos de cereais processados | C100: 0 | D100: 0 | E100: 0 | F100: 0 | G100: 0 | H100: 0 | I100: 0 | J100: 0 | K100: 0.001 | L100: 0.01 | M100: 0 | N100: 0 | O100: 0 | P100: 0.0022 | Q100: 9.927282475e-08 | R100: 5.976405001e-08 | S100: 0.0022 | U100: =G100-INDEX($C100:$G100,1,aux!$AL$1) -> 0 | V100: 0 | W100: 0 | X100: =+IF(INDEX($C100:$G100,1,aux!$AL$1)>0,(G100/INDEX($C100:$G100,1,aux!$AL$1))^(1/($G$3-INDEX($C$3:$G$3,1,aux!$AL$1)))-1,"n.d.") -> n.d. | Y100: =IF(INDEX($C100:$G100,1,aux!$AL$1)>0,(G100-INDEX($C100:$G100,1,aux!$AL$1))/INDEX($C100:$G100,1,aux!$AL$1),"n.d.") -> n.d. | AA100: =O100-INDEX($K100:$O100,1,aux!$AL$1) -> -0.001 | AB100: 1.495116725e-07 | AC100: 1.295961266e-07 | AD100: =+IF(INDEX($K100:$O100,1,aux!$AL$1)>0,(O100/INDEX($K100:$O100,1,aux!$AL$1))^(1/($O$3-INDEX($K$3:$O$3,1,aux!$AL$1)))-1,"n.d.") -> -1 | AE100: =IF(INDEX($K100:$O100,1,aux!$AL$1)>0,(O100-INDEX($K100:$O100,1,aux!$AL$1))/INDEX($K100:$O100,1,aux!$AL$1),"n.d.") -> -1 | AX100: 11
A101: 1105 | B101: Farinha, sêmola, etc. de batata | C101: 0 | D101: 0 | E101: 0 | F101: 0 | G101: 0 | H101: 0 | I101: 0 | J101: 0 | K101: 0 | L101: 0 | M101: 0 | N101: 0 | O101: 0 | P101: 0 | Q101: 0 | R101: 0 | S101: 0 | U101: =G101-INDEX($C101:$G101,1,aux!$AL$1) -> 0 | V101: 0 | W101: 0 | X101: =+IF(INDEX($C101:$G101,1,aux!$AL$1)>0,(G101/INDEX($C101:$G101,1,aux!$AL$1))^(1/($G$3-INDEX($C$3:$G$3,1,aux!$AL$1)))-1,"n.d.") -> n.d. | Y101: =IF(INDEX($C101:$G101,1,aux!$AL$1)>0,(G101-INDEX($C101:$G101,1,aux!$AL$1))/INDEX($C101:$G101,1,aux!$AL$1),"n.d.") -> n.d. | AA101: =O101-INDEX($K101:$O101,1,aux!$AL$1) -> 0 | AB101: 0 | AC101: 0 | AD101: =+IF(INDEX($K101:$O101,1,aux!$AL$1)>0,(O101/INDEX($K101:$O101,1,aux!$AL$1))^(1/($O$3-INDEX($K$3:$O$3,1,aux!$AL$1)))-1,"n.d.") -> n.d. | AE101: =IF(INDEX($K101:$O101,1,aux!$AL$1)>0,(O101-INDEX($K101:$O101,1,aux!$AL$1))/INDEX($K101:$O101,1,aux!$AL$1),"n.d.") -> n.d. | AX101: 11
A102: 1106 | B102: Farinhas, etc. de leguminosas e outros tubérculos | C102: 0 | D102: 0 | E102: 0.001 | F102: 0 | G102: 0 | H102: 0.0002 | I102: 1.638933583e-09 | J102: 1.310334649e-09 | K102: 1.655 | L102: 0.519 | M102: 1.17 | N102: 0.837 | O102: 1.188 | P102: 1.0738 | Q102: 4.845416328e-05 | R102: 2.91702895e-05 | S102: 1.0736 | U102: =G102-INDEX($C102:$G102,1,aux!$AL$1) -> 0 | V102: 0 | W102: 0 | X102: =+IF(INDEX($C102:$G102,1,aux!$AL$1)>0,(G102/INDEX($C102:$G102,1,aux!$AL$1))^(1/($G$3-INDEX($C$3:$G$3,1,aux!$AL$1)))-1,"n.d.") -> n.d. | Y102: =IF(INDEX($C102:$G102,1,aux!$AL$1)>0,(G102-INDEX($C102:$G102,1,aux!$AL$1))/INDEX($C102:$G102,1,aux!$AL$1),"n.d.") -> n.d. | AA102: =O102-INDEX($K102:$O102,1,aux!$AL$1) -> -0.467 | AB102: 6.982195103e-05 | AC102: 6.052139114e-05 | AD102: =+IF(INDEX($K102:$O102,1,aux!$AL$1)>0,(O102/INDEX($K102:$O102,1,aux!$AL$1))^(1/($O$3-INDEX($K$3:$O$3,1,aux!$AL$1)))-1,"n.d.") -> -0.07954065636 | AE102: =IF(INDEX($K102:$O102,1,aux!$AL$1)>0,(O102-INDEX($K102:$O102,1,aux!$AL$1))/INDEX($K102:$O102,1,aux!$AL$1),"n.d.") -> -0.2821752266 | AX102: 11
A103: 1107 | B103: Malte, mesmo torrado | C103: 0 | D103: 0 | E103: 0 | F103: 0 | G103: 0 | H103: 0 | I103: 0 | J103: 0 | K103: 0 | L103: 0 | M103: 755.63 | N103: 3057.09 | O103: 1623.758 | P103: 1087.2956 | Q103: 0.04906313889 | R103: 0.02953690392 | S103: 1087.2956 | U103: =G103-INDEX($C103:$G103,1,aux!$AL$1) -> 0 | V103: 0 | W103: 0 | X103: =+IF(INDEX($C103:$G103,1,aux!$AL$1)>0,(G103/INDEX($C103:$G103,1,aux!$AL$1))^(1/($G$3-INDEX($C$3:$G$3,1,aux!$AL$1)))-1,"n.d.") -> n.d. | Y103: =IF(INDEX($C103:$G103,1,aux!$AL$1)>0,(G103-INDEX($C103:$G103,1,aux!$AL$1))/INDEX($C103:$G103,1,aux!$AL$1),"n.d.") -> n.d. | AA103: =O103-INDEX($K103:$O103,1,aux!$AL$1) -> 1623.758 | AB103: -0.2427707742 | AC103: -0.2104327474 | AD103: =+IF(INDEX($K103:$O103,1,aux!$AL$1)>0,(O103/INDEX($K103:$O103,1,aux!$AL$1))^(1/($O$3-INDEX($K$3:$O$3,1,aux!$AL$1)))-1,"n.d.") -> n.d. | AE103: =IF(INDEX($K103:$O103,1,aux!$AL$1)>0,(O103-INDEX($K103:$O103,1,aux!$AL$1))/INDEX($K103:$O103,1,aux!$AL$1),"n.d.") -> n.d. | AX103: 11
A104: 1108 | B104: Amidos e féculas; inulina | C104: 0 | D104: 0 | E104: 0 | F104: 0.031 | G104: 0 | H104: 0.0062 | I104: 5.080694108e-08 | J104: 4.062037411e-08 | K104: 0.156 | L104: 0.32 | M104: 0 | N104: 1.113 | O104: 0.254 | P104: 0.3686 | Q104: 1.663271055e-05 | R104: 1.001319492e-05 | S104: 0.3624 | U104: =G104-INDEX($C104:$G104,1,aux!$AL$1) -> 0 | V104: 0 | W104: 0 | X104: =+IF(INDEX($C104:$G104,1,aux!$AL$1)>0,(G104/INDEX($C104:$G104,1,aux!$AL$1))^(1/($G$3-INDEX($C$3:$G$3,1,aux!$AL$1)))-1,"n.d.") -> n.d. | Y104: =IF(INDEX($C104:$G104,1,aux!$AL$1)>0,(G104-INDEX($C104:$G104,1,aux!$AL$1))/INDEX($C104:$G104,1,aux!$AL$1),"n.d.") -> n.d. | AA104: =O104-INDEX($K104:$O104,1,aux!$AL$1) -> 0.098 | AB104: -1.46521439e-05 | AC104: -1.270042041e-05 | AD104: =+IF(INDEX($K104:$O104,1,aux!$AL$1)>0,(O104/INDEX($K104:$O104,1,aux!$AL$1))^(1/($O$3-INDEX($K$3:$O$3,1,aux!$AL$1)))-1,"n.d.") -> 0.1296067518 | AE104: =IF(INDEX($K104:$O104,1,aux!$AL$1)>0,(O104-INDEX($K104:$O104,1,aux!$AL$1))/INDEX($K104:$O104,1,aux!$AL$1),"n.d.") -> 0.6282051282 | AX104: 11
A105: 1109 | B105: Glúten de trigo, mesmo seco | C105: 0 | D105: 0 | E105: 0 | F105: 0 | G105: 0 | H105: 0 | I105: 0 | J105: 0 | K105: 0 | L105: 0 | M105: 0 | N105: 0 | O105: 0 | P105: 0 | Q105: 0 | R105: 0 | S105: 0 | U105: =G105-INDEX($C105:$G105,1,aux!$AL$1) -> 0 | V105: 0 | W105: 0 | X105: =+IF(INDEX($C105:$G105,1,aux!$AL$1)>0,(G105/INDEX($C105:$G105,1,aux!$AL$1))^(1/($G$3-INDEX($C$3:$G$3,1,aux!$AL$1)))-1,"n.d.") -> n.d. | Y105: =IF(INDEX($C105:$G105,1,aux!$AL$1)>0,(G105-INDEX($C105:$G105,1,aux!$AL$1))/INDEX($C105:$G105,1,aux!$AL$1),"n.d.") -> n.d. | AA105: =O105-INDEX($K105:$O105,1,aux!$AL$1) -> 0 | AB105: 0 | AC105: 0 | AD105: =+IF(INDEX($K105:$O105,1,aux!$AL$1)>0,(O105/INDEX($K105:$O105,1,aux!$AL$1))^(1/($O$3-INDEX($K$3:$O$3,1,aux!$AL$1)))-1,"n.d.") -> n.d. | AE105: =IF(INDEX($K105:$O105,1,aux!$AL$1)>0,(O105-INDEX($K105:$O105,1,aux!$AL$1))/INDEX($K105:$O105,1,aux!$AL$1),"n.d.") -> n.d. | AX105: 11
A106: 11SS | B106: Produtos da indústria de moagem e outros | C106: 0 | D106: 0 | E106: 0 | F106: 0 | G106: 0 | H106: 0 | I106: 0 | J106: 0 | K106: 0 | L106: 0 | M106: 0 | N106: 0 | O106: 0 | P106: 0 | Q106: 0 | R106: 0 | S106: 0 | U106: =G106-INDEX($C106:$G106,1,aux!$AL$1) -> 0 | V106: 0 | W106: 0 | X106: =+IF(INDEX($C106:$G106,1,aux!$AL$1)>0,(G106/INDEX($C106:$G106,1,aux!$AL$1))^(1/($G$3-INDEX($C$3:$G$3,1,aux!$AL$1)))-1,"n.d.") -> n.d. | Y106: =IF(INDEX($C106:$G106,1,aux!$AL$1)>0,(G106-INDEX($C106:$G106,1,aux!$AL$1))/INDEX($C106:$G106,1,aux!$AL$1),"n.d.") -> n.d. | AA106: =O106-INDEX($K106:$O106,1,aux!$AL$1) -> 0 | AB106: 0 | AC106: 0 | AD106: =+IF(INDEX($K106:$O106,1,aux!$AL$1)>0,(O106/INDEX($K106:$O106,1,aux!$AL$1))^(1/($O$3-INDEX($K$3:$O$3,1,aux!$AL$1)))-1,"n.d.") -> n.d. | AE106: =IF(INDEX($K106:$O106,1,aux!$AL$1)>0,(O106-INDEX($K106:$O106,1,aux!$AL$1))/INDEX($K106:$O106,1,aux!$AL$1),"n.d.") -> n.d. | AX106: 11
A107: 1201 | B107: Soja, mesmo triturada | C107: 0 | D107: 0 | E107: 0 | F107: 0 | G107: 16127.626 | H107: 3225.5252 | I107: 0.02643210787 | J107: 0.02113258715 | K107: 0 | L107: 0 | M107: 0 | N107: 0 | O107: 0 | P107: 0 | Q107: 0 | R107: 0 | S107: -3225.5252 | U107: =G107-INDEX($C107:$G107,1,aux!$AL$1) -> 16127.626 | V107: 0.1944025146 | W107: 0.2193674891 | X107: =+IF(INDEX($C107:$G107,1,aux!$AL$1)>0,(G107/INDEX($C107:$G107,1,aux!$AL$1))^(1/($G$3-INDEX($C$3:$G$3,1,aux!$AL$1)))-1,"n.d.") -> n.d. | Y107: =IF(INDEX($C107:$G107,1,aux!$AL$1)>0,(G107-INDEX($C107:$G107,1,aux!$AL$1))/INDEX($C107:$G107,1,aux!$AL$1),"n.d.") -> n.d. | AA107: =O107-INDEX($K107:$O107,1,aux!$AL$1) -> 0 | AB107: 0 | AC107: 0 | AD107: =+IF(INDEX($K107:$O107,1,aux!$AL$1)>0,(O107/INDEX($K107:$O107,1,aux!$AL$1))^(1/($O$3-INDEX($K$3:$O$3,1,aux!$AL$1)))-1,"n.d.") -> n.d. | AE107: =IF(INDEX($K107:$O107,1,aux!$AL$1)>0,(O107-INDEX($K107:$O107,1,aux!$AL$1))/INDEX($K107:$O107,1,aux!$AL$1),"n.d.") -> n.d. | AX107: 12
A108: 1202 | B108: Amendoins não torrados | C108: 0 | D108: 0 | E108: 0 | F108: 0 | G108: 0 | H108: 0 | I108: 0 | J108: 0 | K108: 0 | L108: 0 | M108: 0 | N108: 0 | O108: 0 | P108: 0 | Q108: 0 | R108: 0 | S108: 0 | U108: =G108-INDEX($C108:$G108,1,aux!$AL$1) -> 0 | V108: 0 | W108: 0 | X108: =+IF(INDEX($C108:$G108,1,aux!$AL$1)>0,(G108/INDEX($C108:$G108,1,aux!$AL$1))^(1/($G$3-INDEX($C$3:$G$3,1,aux!$AL$1)))-1,"n.d.") -> n.d. | Y108: =IF(INDEX($C108:$G108,1,aux!$AL$1)>0,(G108-INDEX($C108:$G108,1,aux!$AL$1))/INDEX($C108:$G108,1,aux!$AL$1),"n.d.") -> n.d. | AA108: =O108-INDEX($K108:$O108,1,aux!$AL$1) -> 0 | AB108: 0 | AC108: 0 | AD108: =+IF(INDEX($K108:$O108,1,aux!$AL$1)>0,(O108/INDEX($K108:$O108,1,aux!$AL$1))^(1/($O$3-INDEX($K$3:$O$3,1,aux!$AL$1)))-1,"n.d.") -> n.d. | AE108: =IF(INDEX($K108:$O108,1,aux!$AL$1)>0,(O108-INDEX($K108:$O108,1,aux!$AL$1))/INDEX($K108:$O108,1,aux!$AL$1),"n.d.") -> n.d. | AX108: 12
A109: 1203 | B109: Copra | C109: 0 | D109: 0 | E109: 0 | F109: 0 | G109: 0 | H109: 0 | I109: 0 | J109: 0 | K109: 0 | L109: 0 | M109: 0 | N109: 0 | O109: 0 | P109: 0 | Q109: 0 | R109: 0 | S109: 0 | U109: =G109-INDEX($C109:$G109,1,aux!$AL$1) -> 0 | V109: 0 | W109: 0 | X109: =+IF(INDEX($C109:$G109,1,aux!$AL$1)>0,(G109/INDEX($C109:$G109,1,aux!$AL$1))^(1/($G$3-INDEX($C$3:$G$3,1,aux!$AL$1)))-1,"n.d.") -> n.d. | Y109: =IF(INDEX($C109:$G109,1,aux!$AL$1)>0,(G109-INDEX($C109:$G109,1,aux!$AL$1))/INDEX($C109:$G109,1,aux!$AL$1),"n.d.") -> n.d. | AA109: =O109-INDEX($K109:$O109,1,aux!$AL$1) -> 0 | AB109: 0 | AC109: 0 | AD109: =+IF(INDEX($K109:$O109,1,aux!$AL$1)>0,(O109/INDEX($K109:$O109,1,aux!$AL$1))^(1/($O$3-INDEX($K$3:$O$3,1,aux!$AL$1)))-1,"n.d.") -> n.d. | AE109: =IF(INDEX($K109:$O109,1,aux!$AL$1)>0,(O109-INDEX($K109:$O109,1,aux!$AL$1))/INDEX($K109:$O109,1,aux!$AL$1),"n.d.") -> n.d. | AX109: 12
A110: 1204 | B110: Sementes de linho (linhaça) | C110: 0 | D110: 0 | E110: 0 | F110: 0 | G110: 0.024 | H110: 0.0048 | I110: 3.9334406e-08 | J110: 3.144803157e-08 | K110: 0 | L110: 0 | M110: 0 | N110: 0 | O110: 0 | P110: 0 | Q110: 0 | R110: 0 | S110: -0.0048 | U110: =G110-INDEX($C110:$G110,1,aux!$AL$1) -> 0.024 | V110: 2.892961649e-07 | W110: 3.26447286e-07 | X110: =+IF(INDEX($C110:$G110,1,aux!$AL$1)>0,(G110/INDEX($C110:$G110,1,aux!$AL$1))^(1/($G$3-INDEX($C$3:$G$3,1,aux!$AL$1)))-1,"n.d.") -> n.d. | Y110: =IF(INDEX($C110:$G110,1,aux!$AL$1)>0,(G110-INDEX($C110:$G110,1,aux!$AL$1))/INDEX($C110:$G110,1,aux!$AL$1),"n.d.") -> n.d. | AA110: =O110-INDEX($K110:$O110,1,aux!$AL$1) -> 0 | AB110: 0 | AC110: 0 | AD110: =+IF(INDEX($K110:$O110,1,aux!$AL$1)>0,(O110/INDEX($K110:$O110,1,aux!$AL$1))^(1/($O$3-INDEX($K$3:$O$3,1,aux!$AL$1)))-1,"n.d.") -> n.d. | AE110: =IF(INDEX($K110:$O110,1,aux!$AL$1)>0,(O110-INDEX($K110:$O110,1,aux!$AL$1))/INDEX($K110:$O110,1,aux!$AL$1),"n.d.") -> n.d. | AX110: 12
A111: 1205 | B111: Sementes de nabo silvestre ou de colza | C111: 0 | D111: 0 | E111: 0 | F111: 0 | G111: 0 | H111: 0 | I111: 0 | J111: 0 | K111: 0 | L111: 0 | M111: 0 | N111: 0 | O111: 0 | P111: 0 | Q111: 0 | R111: 0 | S111: 0 | U111: =G111-INDEX($C111:$G111,1,aux!$AL$1) -> 0 | V111: 0 | W111: 0 | X111: =+IF(INDEX($C111:$G111,1,aux!$AL$1)>0,(G111/INDEX($C111:$G111,1,aux!$AL$1))^(1/($G$3-INDEX($C$3:$G$3,1,aux!$AL$1)))-1,"n.d.") -> n.d. | Y111: =IF(INDEX($C111:$G111,1,aux!$AL$1)>0,(G111-INDEX($C111:$G111,1,aux!$AL$1))/INDEX($C111:$G111,1,aux!$AL$1),"n.d.") -> n.d. | AA111: =O111-INDEX($K111:$O111,1,aux!$AL$1) -> 0 | AB111: 0 | AC111: 0 | AD111: =+IF(INDEX($K111:$O111,1,aux!$AL$1)>0,(O111/INDEX($K111:$O111,1,aux!$AL$1))^(1/($O$3-INDEX($K$3:$O$3,1,aux!$AL$1)))-1,"n.d.") -> n.d. | AE111: =IF(INDEX($K111:$O111,1,aux!$AL$1)>0,(O111-INDEX($K111:$O111,1,aux!$AL$1))/INDEX($K111:$O111,1,aux!$AL$1),"n.d.") -> n.d. | AX111: 12
A112: 1206 | B112: Sementes de girassol | C112: 0 | D112: 0 | E112: 0 | F112: 0 | G112: 0 | H112: 0 | I112: 0 | J112: 0 | K112: 0 | L112: 0 | M112: 0 | N112: 0 | O112: 0 | P112: 0 | Q112: 0 | R112: 0 | S112: 0 | U112: =G112-INDEX($C112:$G112,1,aux!$AL$1) -> 0 | V112: 0 | W112: 0 | X112: =+IF(INDEX($C112:$G112,1,aux!$AL$1)>0,(G112/INDEX($C112:$G112,1,aux!$AL$1))^(1/($G$3-INDEX($C$3:$G$3,1,aux!$AL$1)))-1,"n.d.") -> n.d. | Y112: =IF(INDEX($C112:$G112,1,aux!$AL$1)>0,(G112-INDEX($C112:$G112,1,aux!$AL$1))/INDEX($C112:$G112,1,aux!$AL$1),"n.d.") -> n.d. | AA112: =O112-INDEX($K112:$O112,1,aux!$AL$1) -> 0 | AB112: 0 | AC112: 0 | AD112: =+IF(INDEX($K112:$O112,1,aux!$AL$1)>0,(O112/INDEX($K112:$O112,1,aux!$AL$1))^(1/($O$3-INDEX($K$3:$O$3,1,aux!$AL$1)))-1,"n.d.") -> n.d. | AE112: =IF(INDEX($K112:$O112,1,aux!$AL$1)>0,(O112-INDEX($K112:$O112,1,aux!$AL$1))/INDEX($K112:$O112,1,aux!$AL$1),"n.d.") -> n.d. | AX112: 12
A113: 1207 | B113: Sementes e frutos oleaginosos | C113: 0 | D113: 0 | E113: 0 | F113: 0 | G113: 0 | H113: 0 | I113: 0 | J113: 0 | K113: 0 | L113: 0 | M113: 34.85 | N113: 0.01 | O113: 0 | P113: 6.972 | Q113: 0.0003146046064 | R113: 0.0001893977076 | S113: 6.972 | U113: =G113-INDEX($C113:$G113,1,aux!$AL$1) -> 0 | V113: 0 | W113: 0 | X113: =+IF(INDEX($C113:$G113,1,aux!$AL$1)>0,(G113/INDEX($C113:$G113,1,aux!$AL$1))^(1/($G$3-INDEX($C$3:$G$3,1,aux!$AL$1)))-1,"n.d.") -> n.d. | Y113: =IF(INDEX($C113:$G113,1,aux!$AL$1)>0,(G113-INDEX($C113:$G113,1,aux!$AL$1))/INDEX($C113:$G113,1,aux!$AL$1),"n.d.") -> n.d. | AA113: =O113-INDEX($K113:$O113,1,aux!$AL$1) -> 0 | AB113: 0 | AC113: 0 | AD113: =+IF(INDEX($K113:$O113,1,aux!$AL$1)>0,(O113/INDEX($K113:$O113,1,aux!$AL$1))^(1/($O$3-INDEX($K$3:$O$3,1,aux!$AL$1)))-1,"n.d.") -> n.d. | AE113: =IF(INDEX($K113:$O113,1,aux!$AL$1)>0,(O113-INDEX($K113:$O113,1,aux!$AL$1))/INDEX($K113:$O113,1,aux!$AL$1),"n.d.") -> n.d. | AX113: 12
A114: 1208 | B114: Farinhas de sementes oleaginosas | C114: 0 | D114: 0 | E114: 0 | F114: 0 | G114: 0 | H114: 0 | I114: 0 | J114: 0 | K114: 0 | L114: 0 | M114: 0 | N114: 0 | O114: 0 | P114: 0 | Q114: 0 | R114: 0 | S114: 0 | U114: =G114-INDEX($C114:$G114,1,aux!$AL$1) -> 0 | V114: 0 | W114: 0 | X114: =+IF(INDEX($C114:$G114,1,aux!$AL$1)>0,(G114/INDEX($C114:$G114,1,aux!$AL$1))^(1/($G$3-INDEX($C$3:$G$3,1,aux!$AL$1)))-1,"n.d.") -> n.d. | Y114: =IF(INDEX($C114:$G114,1,aux!$AL$1)>0,(G114-INDEX($C114:$G114,1,aux!$AL$1))/INDEX($C114:$G114,1,aux!$AL$1),"n.d.") -> n.d. | AA114: =O114-INDEX($K114:$O114,1,aux!$AL$1) -> 0 | AB114: 0 | AC114: 0 | AD114: =+IF(INDEX($K114:$O114,1,aux!$AL$1)>0,(O114/INDEX($K114:$O114,1,aux!$AL$1))^(1/($O$3-INDEX($K$3:$O$3,1,aux!$AL$1)))-1,"n.d.") -> n.d. | AE114: =IF(INDEX($K114:$O114,1,aux!$AL$1)>0,(O114-INDEX($K114:$O114,1,aux!$AL$1))/INDEX($K114:$O114,1,aux!$AL$1),"n.d.") -> n.d. | AX114: 12
A115: 1209 | B115: Sementes, frutos e esporos para sementeira | C115: 111.716 | D115: 69.561 | E115: 55.32 | F115: 39.627 | G115: 79.693 | H115: 71.1834 | I115: 0.0005833243241 | J115: 0.0004663703772 | K115: 0 | L115: 0 | M115: 0.7 | N115: 0.002 | O115: 0 | P115: 0.1404 | Q115: 6.33541118e-06 | R115: 3.81403301e-06 | S115: -71.043 | U115: =G115-INDEX($C115:$G115,1,aux!$AL$1) -> -32.023 | V115: -0.000386005462 | W115: -0.0004355758933 | X115: =+IF(INDEX($C115:$G115,1,aux!$AL$1)>0,(G115/INDEX($C115:$G115,1,aux!$AL$1))^(1/($G$3-INDEX($C$3:$G$3,1,aux!$AL$1)))-1,"n.d.") -> -0.08097738257 | Y115: =IF(INDEX($C115:$G115,1,aux!$AL$1)>0,(G115-INDEX($C115:$G115,1,aux!$AL$1))/INDEX($C115:$G115,1,aux!$AL$1),"n.d.") -> -0.2866464965 | AA115: =O115-INDEX($K115:$O115,1,aux!$AL$1) -> 0 | AB115: 0 | AC115: 0 | AD115: =+IF(INDEX($K115:$O115,1,aux!$AL$1)>0,(O115/INDEX($K115:$O115,1,aux!$AL$1))^(1/($O$3-INDEX($K$3:$O$3,1,aux!$AL$1)))-1,"n.d.") -> n.d. | AE115: =IF(INDEX($K115:$O115,1,aux!$AL$1)>0,(O115-INDEX($K115:$O115,1,aux!$AL$1))/INDEX($K115:$O115,1,aux!$AL$1),"n.d.") -> n.d. | AX115: 12
A116: 1210 | B116: Cones de lúpulo, frescos ou secos | C116: 0 | D116: 0 | E116: 0 | F116: 0 | G116: 0 | H116: 0 | I116: 0 | J116: 0 | K116: 0 | L116: 0 | M116: 0 | N116: 0 | O116: 0 | P116: 0 | Q116: 0 | R116: 0 | S116: 0 | U116: =G116-INDEX($C116:$G116,1,aux!$AL$1) -> 0 | V116: 0 | W116: 0 | X116: =+IF(INDEX($C116:$G116,1,aux!$AL$1)>0,(G116/INDEX($C116:$G116,1,aux!$AL$1))^(1/($G$3-INDEX($C$3:$G$3,1,aux!$AL$1)))-1,"n.d.") -> n.d. | Y116: =IF(INDEX($C116:$G116,1,aux!$AL$1)>0,(G116-INDEX($C116:$G116,1,aux!$AL$1))/INDEX($C116:$G116,1,aux!$AL$1),"n.d.") -> n.d. | AA116: =O116-INDEX($K116:$O116,1,aux!$AL$1) -> 0 | AB116: 0 | AC116: 0 | AD116: =+IF(INDEX($K116:$O116,1,aux!$AL$1)>0,(O116/INDEX($K116:$O116,1,aux!$AL$1))^(1/($O$3-INDEX($K$3:$O$3,1,aux!$AL$1)))-1,"n.d.") -> n.d. | AE116: =IF(INDEX($K116:$O116,1,aux!$AL$1)>0,(O116-INDEX($K116:$O116,1,aux!$AL$1))/INDEX($K116:$O116,1,aux!$AL$1),"n.d.") -> n.d. | AX116: 12
A117: 1211 | B117: Plantas, partes de plantas para usos não alimentares | C117: 0 | D117: 0 | E117: 0 | F117: 1089.27 | G117: 2334.589 | H117: 684.7718 | I117: 0.005611477499 | J117: 0.00448640108 | K117: 0 | L117: 0 | M117: 0 | N117: 0.139 | O117: 0.278 | P117: 0.0834 | Q117: 3.763342538e-06 | R117: 2.265600805e-06 | S117: -684.6884 | U117: =G117-INDEX($C117:$G117,1,aux!$AL$1) -> 2334.589 | V117: 0.02814115184 | W117: 0.03175501013 | X117: =+IF(INDEX($C117:$G117,1,aux!$AL$1)>0,(G117/INDEX($C117:$G117,1,aux!$AL$1))^(1/($G$3-INDEX($C$3:$G$3,1,aux!$AL$1)))-1,"n.d.") -> n.d. | Y117: =IF(INDEX($C117:$G117,1,aux!$AL$1)>0,(G117-INDEX($C117:$G117,1,aux!$AL$1))/INDEX($C117:$G117,1,aux!$AL$1),"n.d.") -> n.d. | AA117: =O117-INDEX($K117:$O117,1,aux!$AL$1) -> 0.278 | AB117: -4.156424494e-05 | AC117: -3.60277232e-05 | AD117: =+IF(INDEX($K117:$O117,1,aux!$AL$1)>0,(O117/INDEX($K117:$O117,1,aux!$AL$1))^(1/($O$3-INDEX($K$3:$O$3,1,aux!$AL$1)))-1,"n.d.") -> n.d. | AE117: =IF(INDEX($K117:$O117,1,aux!$AL$1)>0,(O117-INDEX($K117:$O117,1,aux!$AL$1))/INDEX($K117:$O117,1,aux!$AL$1),"n.d.") -> n.d. | AX117: 12
A118: 1212 | B118: Alfarroba, algas, beterraba sacarina, etc. | C118: 0 | D118: 0.567 | E118: 0 | F118: 0 | G118: 0 | H118: 0.1134 | I118: 9.292753416e-07 | J118: 7.429597459e-07 | K118: 0 | L118: 0 | M118: 0 | N118: 0 | O118: 0 | P118: 0 | Q118: 0 | R118: 0 | S118: -0.1134 | U118: =G118-INDEX($C118:$G118,1,aux!$AL$1) -> 0 | V118: 0 | W118: 0 | X118: =+IF(INDEX($C118:$G118,1,aux!$AL$1)>0,(G118/INDEX($C118:$G118,1,aux!$AL$1))^(1/($G$3-INDEX($C$3:$G$3,1,aux!$AL$1)))-1,"n.d.") -> n.d. | Y118: =IF(INDEX($C118:$G118,1,aux!$AL$1)>0,(G118-INDEX($C118:$G118,1,aux!$AL$1))/INDEX($C118:$G118,1,aux!$AL$1),"n.d.") -> n.d. | AA118: =O118-INDEX($K118:$O118,1,aux!$AL$1) -> 0 | AB118: 0 | AC118: 0 | AD118: =+IF(INDEX($K118:$O118,1,aux!$AL$1)>0,(O118/INDEX($K118:$O118,1,aux!$AL$1))^(1/($O$3-INDEX($K$3:$O$3,1,aux!$AL$1)))-1,"n.d.") -> n.d. | AE118: =IF(INDEX($K118:$O118,1,aux!$AL$1)>0,(O118-INDEX($K118:$O118,1,aux!$AL$1))/INDEX($K118:$O118,1,aux!$AL$1),"n.d.") -> n.d. | AX118: 12
